Workbook

Sheet ACCUEILPRO
A1: Accueil
F7: =ACCUEIL!F7 -> 2022-11-27

Sheet ACCUEILPREM
A1: Accueil
F7: =ACCUEIL!F7 -> 2022-11-27

Sheet ACCUEILGP
A1: Accueil
F7: =ACCUEIL!F7 -> 2022-11-27

Sheet ACCUEIL
F7: 2022-11-27

Sheet Accueilagence
A1: Accueil
E7: =ACCUEIL!F7 -> 2022-11-27

Sheet Accueilsecteur
A1: Accueil
E7: =ACCUEIL!F7 -> 2022-11-27

Sheet AccueilDircom
A1: Accueil
E7: =ACCUEIL!F7 -> 2022-11-27

Sheet DC_FICHE
A1: Accueil
A2: BAROMETRE BDD
A4: UNITE: | B4: DIRECTION REGIONALE | E4: ETP perf : | F4: =VLOOKUP(A5,'RECAP DIRCOM'!$G$6:$I$12,3,FALSE) -> 218.54
A5: =VLOOKUP(B5,LISTES!$M$6:$N$12,2,FALSE) -> 262 | B5: BAS-RHIN
C6: Coefficient du critére | E6: Résultats | I6: Ecart au 1ier | M6: Evolution | O6: Rang
E7: du 1ier | G7: DIRECTION | I7: Du mois | K7: Au 31/12/2019
A9: RANG au CLASSEMENT GENERAL | K9: =VLOOKUP($A$5,#REF!,168,FALSE) ->  | M9: =+K9-O9 ->  | O9: =VLOOKUP($A$5,'RECAP DIRCOM'!$G$6:$CY$312,168,FALSE) -> 
A11: CRITERE CLIENTS | C11: 15% | O11: =VLOOKUP($A$5,'RECAP DIRCOM'!$G$6:$CY$312,23,FALSE) -> 54.15942162
B12: PNB Evolution nette Clients BP | C12: 4% | E12: ='RECAP DIRCOM'!#REF! ->  | G12: =VLOOKUP($A$5,'RECAP DIRCOM'!$G$6:$CY$312,6,FALSE) -> 0.7 | I12: =VLOOKUP($A$5,'RECAP DIRCOM'!$G$6:$CY$312,7,FALSE) -> 500% | K12: =VLOOKUP($A$5,#REF!,7,FALSE) ->  | M12: =+K12-I12 ->  | O12: =VLOOKUP($A$5,'RECAP DIRCOM'!$G$6:$CY$312,8,FALSE) -> 0.6171428758
B13: PNB Evolution nette Clients PREMIUM | C13: 5% | E13: ='RECAP DIRCOM'!#REF! ->  | G13: =VLOOKUP($A$5,'RECAP DIRCOM'!$G$6:$CY$312,10,FALSE) -> 3.0 | I13: =VLOOKUP($A$5,'RECAP DIRCOM'!$G$6:$CY$312,11,FALSE) -> 40% | K13: =VLOOKUP($A$5,#REF!,11,FALSE) ->  | M13: =+K13-I13 ->  | O13: =VLOOKUP($A$5,'RECAP DIRCOM'!$G$6:$CY$312,12,FALSE) -> 0.4042618222
B14: PNB Evolution nette Clients Jeunes Equipés | C14: 3% | E14: ='RECAP DIRCOM'!#REF! ->  | G14: =VLOOKUP($A$5,'RECAP DIRCOM'!$G$6:$CY$312,14,FALSE) -> 0.0 | I14: =VLOOKUP($A$5,'RECAP DIRCOM'!$G$6:$CY$312,15,FALSE) -> 0% | K14: =VLOOKUP($A$5,#REF!,15,FALSE) ->  | M14: =+K14-I14 ->  | O14: =VLOOKUP($A$5,'RECAP DIRCOM'!$G$6:$CY$312,16,FALSE) -> 0
B15: PNB Evolution nette Clients Pro Actifs Equipés | C15: 3% | E15: ='RECAP DIRCOM'!W4 -> 0.0 | G15: =VLOOKUP($A$5,'RECAP DIRCOM'!$G$6:$CY$312,18,FALSE) -> 3591.0 | I15: =VLOOKUP($A$5,'RECAP DIRCOM'!$G$6:$CY$312,19,FALSE) -> 1643% | K15: =VLOOKUP($A$5,#REF!,19,FALSE) ->  | M15: =+K15-I15 ->  | O15: =VLOOKUP($A$5,'RECAP DIRCOM'!$G$6:$CY$312,20,FALSE) -> 0.3424423239
A17: CRITERE BANCARISATION | C17: 15% | O17: =VLOOKUP($A$5,'RECAP DIRCOM'!$G$6:$CY$312,48,FALSE) -> 48234.94042
B18: PNB Ventes nettes forfaits | C18: 4% | E18: ='RECAP DIRCOM'!X4 -> 25.0 | G18: =VLOOKUP($A$5,'RECAP DIRCOM'!$G$6:$CY$312,31,FALSE) -> 0.0 | I18: =VLOOKUP($A$5,'RECAP DIRCOM'!$G$6:$CY$312,32,FALSE) -> 0% | K18: =VLOOKUP($A$5,#REF!,32,FALSE) ->  | M18: =+K18-I18 ->  | O18: =VLOOKUP($A$5,'RECAP DIRCOM'!$G$6:$CY$312,33,FALSE) -> 54789.35637
B19: PNB Ventes nettes IZICARTES Débit Différé | C19: 4% | E19: ='RECAP DIRCOM'!AB4 -> 67.3 | G19: =VLOOKUP($A$5,'RECAP DIRCOM'!$G$6:$CY$312,35,FALSE) -> 0.1 | I19: =VLOOKUP($A$5,'RECAP DIRCOM'!$G$6:$CY$312,36,FALSE) -> 500% | K19: =VLOOKUP($A$5,#REF!,36,FALSE) ->  | M19: =+K19-I19 ->  | O19: =VLOOKUP($A$5,'RECAP DIRCOM'!$G$6:$CY$312,37,FALSE) -> 11909
B20: PNB Ventes nettes cartes HDG Débit Différé | C20: 4% | E20: ='RECAP DIRCOM'!#REF! ->  | G20: =VLOOKUP($A$5,'RECAP DIRCOM'!$G$6:$CY$312,39,FALSE) -> 0.2 | I20: =VLOOKUP($A$5,'RECAP DIRCOM'!$G$6:$CY$312,40,FALSE) -> 300% | K20: =VLOOKUP($A$5,#REF!,40,FALSE) ->  | M20: =+K20-I20 ->  | O20: =VLOOKUP($A$5,'RECAP DIRCOM'!$G$6:$CY$312,41,FALSE) -> 0.1814819914
B21: PNB Ventes nettes Forfaits Pro, Carte pro | C21: 3% | E21: ='RECAP DIRCOM'!#REF! ->  | G21: =VLOOKUP($A$5,'RECAP DIRCOM'!$G$6:$CY$312,43,FALSE) -> 4.0 | I21: =VLOOKUP($A$5,'RECAP DIRCOM'!$G$6:$CY$312,44,FALSE) -> 0% | K21: =VLOOKUP($A$5,#REF!,44,FALSE) ->  | M21: =+K21-I21 ->  | O21: =VLOOKUP($A$5,'RECAP DIRCOM'!$G$6:$CY$312,45,FALSE) -> 0
A23: CRITERE EPARGNE | C23: 10% | O23: =VLOOKUP($A$5,'RECAP DIRCOM'!$G$6:$CY$312,69,FALSE) -> 0.3947211734
B24: PNB Epargne Liquide | C24: 3% | E24: ='RECAP DIRCOM'!AM4 -> 292.8 | G24: =VLOOKUP($A$5,'RECAP DIRCOM'!$G$6:$CY$312,56,FALSE) -> 4121.0 | I24: =VLOOKUP($A$5,'RECAP DIRCOM'!$G$6:$CY$312,57,FALSE) -> 1886% | K24: =VLOOKUP($A$5,#REF!,57,FALSE) ->  | M24: =+K24-I24 ->  | O24: =VLOOKUP($A$5,'RECAP DIRCOM'!$G$6:$CY$312,58,FALSE) -> 0.4088867752
B25: PNB CA UC + arbitrage | C25: 4% | E25: ='RECAP DIRCOM'!AQ4 -> 71.5 | G25: =VLOOKUP($A$5,'RECAP DIRCOM'!$G$6:$CY$312,60,FALSE) -> 0.4 | I25: =VLOOKUP($A$5,'RECAP DIRCOM'!$G$6:$CY$312,61,FALSE) -> 36% | K25: =VLOOKUP($A$5,#REF!,61,FALSE) ->  | M25: =+K25-I25 ->  | O25: =VLOOKUP($A$5,'RECAP DIRCOM'!$G$6:$CY$312,62,FALSE) -> 6
B26: PNB Excédent assurance vie | C26: 3% | E26: ='RECAP DIRCOM'!#REF! ->  | G26: =VLOOKUP($A$5,'RECAP DIRCOM'!$G$6:$CY$312,64,FALSE) -> 0.0 | I26: =VLOOKUP($A$5,'RECAP DIRCOM'!$G$6:$CY$312,65,FALSE) -> 0% | K26: =VLOOKUP($A$5,#REF!,65,FALSE) ->  | M26: =+K26-I26 ->  | O26: =VLOOKUP($A$5,'RECAP DIRCOM'!$G$6:$CY$312,66,FALSE) -> 0
A28: CRITERE CREDITS | C28: 15% | O28: =VLOOKUP($A$5,'RECAP DIRCOM'!$G$6:$CY$312,102,FALSE) -> 
B29: PNB crédit conso | C29: 4% | E29: ='RECAP DIRCOM'!BB4 -> 444.9 | G29: =VLOOKUP($A$5,'RECAP DIRCOM'!$G$6:$CY$312,77,FALSE) -> 5.0 | I29: =VLOOKUP($A$5,'RECAP DIRCOM'!$G$6:$CY$312,78,FALSE) -> 0% | K29: =VLOOKUP($A$5,#REF!,78,FALSE) ->  | M29: =+K29-I29 ->  | O29: =VLOOKUP($A$5,'RECAP DIRCOM'!$G$6:$CY$312,79,FALSE) -> 0
B30: PNB ADE crédit conso | C30: 1% | E30: ='RECAP DIRCOM'!#REF! ->  | G30: =VLOOKUP($A$5,'RECAP DIRCOM'!$G$6:$CY$312,81,FALSE) -> 0.0 | I30: =VLOOKUP($A$5,'RECAP DIRCOM'!$G$6:$CY$312,82,FALSE) -> 0% | K30: =VLOOKUP($A$5,#REF!,82,FALSE) ->  | O30: =VLOOKUP($A$5,'RECAP DIRCOM'!$G$6:$CY$312,83,FALSE) -> 0
B31: PNB crédit immo | C31: 4% | E31: ='RECAP DIRCOM'!BF4 -> 53.8 | G31: =VLOOKUP($A$5,'RECAP DIRCOM'!$G$6:$CY$312,85,FALSE) -> 0.0 | I31: =VLOOKUP($A$5,'RECAP DIRCOM'!$G$6:$CY$312,86,FALSE) -> 0% | K31: =VLOOKUP($A$5,#REF!,86,FALSE) ->  | O31: =VLOOKUP($A$5,'RECAP DIRCOM'!$G$6:$CY$312,87,FALSE) -> 0
B32: PNB ADE crédit immo | C32: 2% | E32: ='RECAP DIRCOM'!#REF! ->  | G32: =VLOOKUP($A$5,'RECAP DIRCOM'!$G$6:$CY$312,89,FALSE) -> 0.0 | I32: =VLOOKUP($A$5,'RECAP DIRCOM'!$G$6:$CY$312,90,FALSE) -> 0% | K32: =VLOOKUP($A$5,#REF!,90,FALSE) ->  | O32: =VLOOKUP($A$5,'RECAP DIRCOM'!$G$6:$CY$312,91,FALSE) -> 0
B33: PNB SACCEF | C33: 2% | E33: ='RECAP DIRCOM'!#REF! ->  | G33: =VLOOKUP($A$5,'RECAP DIRCOM'!$G$6:$CY$312,93,FALSE) -> 0.0 | I33: =VLOOKUP($A$5,'RECAP DIRCOM'!$G$6:$CY$312,94,FALSE) -> 31% | K33: =VLOOKUP($A$5,#REF!,94,FALSE) ->  | O33: =VLOOKUP($A$5,'RECAP DIRCOM'!$G$6:$CY$312,95,FALSE) -> 0.2571070417
B34: PNB Crédit MLT + Crédit Bail | C34: 2% | E34: ='RECAP DIRCOM'!BJ4 -> 31.9 | G34: =VLOOKUP($A$5,'RECAP DIRCOM'!$G$6:$CY$312,97,FALSE) -> 0.0 | I34: =VLOOKUP($A$5,'RECAP DIRCOM'!$G$6:$CY$312,98,FALSE) ->  | K34: =VLOOKUP($A$5,#REF!,98,FALSE) ->  | O34: =VLOOKUP($A$5,'RECAP DIRCOM'!$G$6:$CY$312,99,FALSE) -> 
A36: CRITERE IARD PREVOYANCE | C36: 15% | O36: =VLOOKUP($A$5,'RECAP DIRCOM'!$G$6:$CY$312,119,FALSE) -> 
B37: PNB Ventes nettes IARD | C37: 9% | E37: ='RECAP DIRCOM'!BU4 -> 149.1 | G37: =VLOOKUP($A$5,'RECAP DIRCOM'!$G$6:$CY$312,110,FALSE) ->  | I37: =VLOOKUP($A$5,'RECAP DIRCOM'!$G$6:$CY$312,111,FALSE) ->  | K37: =VLOOKUP($A$5,#REF!,111,FALSE) ->  | M37: =+K37-I37 ->  | O37: =VLOOKUP($A$5,'RECAP DIRCOM'!$G$6:$CY$312,112,FALSE) -> 
B38: PNB Ventes nettes Prévoyance | C38: 6% | E38: ='RECAP DIRCOM'!BY4 -> 45.2 | G38: =VLOOKUP($A$5,'RECAP DIRCOM'!$G$6:$CY$312,114,FALSE) ->  | I38: =VLOOKUP($A$5,'RECAP DIRCOM'!$G$6:$CY$312,115,FALSE) ->  | K38: =VLOOKUP($A$5,#REF!,115,FALSE) ->  | M38: =+K38-I38 ->  | O38: =VLOOKUP($A$5,'RECAP DIRCOM'!$G$6:$CY$312,116,FALSE) -> 
A40: CRITERE ACCELERATEURS PNB | C40: 15% | O40: =VLOOKUP($A$5,'RECAP DIRCOM'!$G$6:$CY$312,144,FALSE) -> 
B41: PNB Ventes brutes SED Finalisées | C41: 6% | E41: ='RECAP DIRCOM'!#REF! ->  | G41: =VLOOKUP($A$5,'RECAP DIRCOM'!$G$6:$CY$312,127,FALSE) ->  | I41: =VLOOKUP($A$5,'RECAP DIRCOM'!$G$6:$CY$312,128,FALSE) ->  | K41: =VLOOKUP($A$5,#REF!,128,FALSE) ->  | M41: =+K41-I41 ->  | O41: =VLOOKUP($A$5,'RECAP DIRCOM'!$G$6:$CY$312,129,FALSE) -> 
B42: PNB clients équipés E documents | C42: 3% | E42: ='RECAP DIRCOM'!#REF! ->  | G42: =VLOOKUP($A$5,'RECAP DIRCOM'!$G$6:$CY$312,131,FALSE) ->  | I42: =VLOOKUP($A$5,'RECAP DIRCOM'!$G$6:$CY$312,132,FALSE) ->  | K42: =VLOOKUP($A$5,#REF!,132,FALSE) ->  | M42: =+K42-I42 ->  | O42: =VLOOKUP($A$5,'RECAP DIRCOM'!$G$6:$CY$312,133,FALSE) -> 
B43: Economie opt'in | C43: 3% | E43: ='RECAP DIRCOM'!#REF! ->  | G43: =VLOOKUP($A$5,'RECAP DIRCOM'!$G$6:$CY$312,135,FALSE) ->  | I43: =VLOOKUP($A$5,'RECAP DIRCOM'!$G$6:$CY$312,136,FALSE) ->  | K43: =VLOOKUP($A$5,#REF!,136,FALSE) ->  | M43: =+K43-I43 ->  | O43: =VLOOKUP($A$5,'RECAP DIRCOM'!$G$6:$CY$312,137,FALSE) -> 
B44: Remises commerciales | C44: 3% | E44: ='RECAP DIRCOM'!#REF! ->  | G44: =VLOOKUP($A$5,'RECAP DIRCOM'!$G$6:$CY$312,139,FALSE) ->  | I44: =VLOOKUP($A$5,'RECAP DIRCOM'!$G$6:$CY$312,140,FALSE) ->  | K44: =VLOOKUP($A$5,#REF!,140,FALSE) ->  | M44: =+K44-I44 ->  | O44: =VLOOKUP($A$5,'RECAP DIRCOM'!$G$6:$CY$312,141,FALSE) -> 
A46: CRITERE Qualité-Satisfaction Clients | C46: 15% | O46: =VLOOKUP($A$5,'RECAP DIRCOM'!$G$6:$CY$312,159,FALSE) -> 
B47: Objectifs NPS* | C47: 8% | E47: ='RECAP DIRCOM'!K4 -> 23 | G47: =VLOOKUP($A$5,'RECAP DIRCOM'!$G$6:$CY$312,151,FALSE) ->  | I47: =VLOOKUP($A$5,'RECAP DIRCOM'!$G$6:$CY$312,152,FALSE) ->  | K47: =VLOOKUP($A$5,#REF!,152,FALSE) ->  | M47: =+K47-I47 ->  | O47: =VLOOKUP($A$5,'RECAP DIRCOM'!$G$6:$CY$312,153,FALSE) -> 
B48: Enquête Qualité Haute Définition | C48: 7% | E48: ='RECAP DIRCOM'!N4 -> 69% | G48: =VLOOKUP($A$5,'RECAP DIRCOM'!$G$6:$CY$312,154,FALSE) ->  | I48: =VLOOKUP($A$5,'RECAP DIRCOM'!$G$6:$CY$312,155,FALSE) ->  | K48: =VLOOKUP($A$5,#REF!,155,FALSE) ->  | M48: =+K48-I48 ->  | O48: =VLOOKUP($A$5,'RECAP DIRCOM'!$G$6:$CY$312,156,FALSE) -> 

Sheet DC_TOTAL
B1: Accueil | D1: BAROMETRE BDD - DIRECTIONS REGIONALES
D2: TOTAL GENERAL
D3: =ACCUEIL!F7 -> 2022-11-27
D7: TOTAL GENERAL | G7: Total Satisfaction Clients | J7: Total Bancarisation | M7: Total Epargne | P7: Total IARD Prévoyance | S7: Total Crédits
E8: coef | F8: =+I8+L8+O8+R8+U8 -> 100% | H8: coef | I8: =DC_SATISFACTION!L8 -> 20% | K8: coef | L8: =DC_BANCA!N8 -> 20% | N8: coef | O8: =DC_EPARGNE!N8 -> 20% | Q8: coef | R8: =DC_IARD!N8 -> 20% | T8: coef | U8: =DC_CREDIT!R8 -> 20%
A9: eds | B9: Direction | C9: ="ETP perf "&DATEMAJ!$C$28 -> ETP perf 27-nov | D9: Moyenne ecart au 1er | E9: % Ecart au 1er | F9: Rang CEGEE | G9: Moyenne ecart au 1er | H9: % Ecart au 1er | I9: Rang CEGEE | J9: Moyenne ecart au 1er | K9: % Ecart au 1er | L9: Rang CEGEE | M9: Moyenne ecart au 1er | N9: % Ecart au 1er | O9: Rang CEGEE | P9: Moyenne ecart au 1er | Q9: % Ecart au 1er | R9: Rang CEGEE | S9: Moyenne ecart au 1er | T9: % Ecart au 1er | U9: Rang CEGEE
A10: 50 | B10: Marne-Ardennes | C10: 193 | D10: 5% | E10: 0% | F10: 1 | G10: 16% | H10: 16% | I10: 2 | J10: 0% | K10: 0% | L10: 1 | M10: 10% | N10: 8% | O10: 2 | P10: 0% | Q10: 0% | R10: 1 | S10: 3% | T10: 0% | U10: 1
A11: 262 | B11: Moselle | C11: 221 | D11: 8% | E11: 3% | F11: 2 | G11: 23% | H11: 23% | I11: 3 | J11: 7% | K11: 7% | L11: 2 | M11: 1% | N11: 0% | O11: 1 | P11: 5% | Q11: 5% | R11: 2 | S11: 9% | T11: 6% | U11: 2
A12: 264 | B12: Meurthe et Moselle Meuse | C12: 204 | D12: 22% | E12: 17% | F12: 3 | G12: 31% | H12: 31% | I12: 4 | J12: 30% | K12: 30% | L12: 4 | M12: 10% | N12: 9% | O12: 3 | P12: 26% | Q12: 26% | R12: 4 | S12: 19% | T12: 16% | U12: 3
A13: 30 | B13: Vosges | C13: 117 | D13: 25% | E13: 20% | F13: 4 | G13: 0% | H13: 0% | I13: 1 | J13: 34% | K13: 34% | L13: 5 | M13: 22% | N13: 21% | O13: 5 | P13: 39% | Q13: 39% | R13: 6 | S13: 35% | T13: 31% | U13: 4
A14: 110 | B14: Bas-Rhin | C14: 219 | D14: 31% | E14: 26% | F14: 5 | G14: 40% | H14: 40% | I14: 5 | J14: 28% | K14: 28% | L14: 3 | M14: 18% | N14: 17% | O14: 4 | P14: 31% | Q14: 31% | R14: 5 | S14: 40% | T14: 36% | U14: 6
A15: 160 | B15: Aube Haute Marne | C15: 112 | D15: 40% | E15: 35% | F15: 6 | G15: 52% | H15: 52% | I15: 6 | J15: 48% | K15: 48% | L15: 6 | M15: 44% | N15: 43% | O15: 6 | P15: 25% | Q15: 25% | R15: 3 | S15: 37% | T15: 33% | U15: 5
A16: 80 | B16: Haut-Rhin | C16: 123 | D16: 65% | E16: 60% | F16: 7 | G16: 61% | H16: 61% | I16: 7 | J16: 66% | K16: 66% | L16: 7 | M16: 86% | N16: 85% | O16: 7 | P16: 67% | Q16: 67% | R16: 7 | S16: 48% | T16: 44% | U16: 7
B17: Total CEGEE Directions Régionales | C17: =SUM(C10:C16) -> 1187

Sheet DC_BANCA
B1: Accueil | D1: BAROMETRE BDD - DIRECTIONS REGIONALES
D2: BANCARISATION
D3: =ACCUEIL!F7 -> 2022-11-27
D7: Ventes Nettes produits pondérés | H7: Ventes sur client non détenteur de l’univers | L7: Total Bancarisation
D8: =DATEMAJ!C8 -> au 27/11 | F8: coef | G8: ='RECAP DIRCOM'!AA4 -> 12% | H8: =DATEMAJ!C9 -> au 27/11 | J8: coef | K8: ='RECAP DIRCOM'!AE4 -> 8% | M8: coef | N8: ='RECAP DIRCOM'!AH4 -> 20%
B9: Direction | C9: ="ETP perf "&DATEMAJ!$C$28 -> ETP perf 27-nov | D9: VN | E9: VN / ETP | F9: % Ecart au 1er | G9: Rang | H9: VB | I9: VB / ETP | J9: % Ecart au 1er | K9: Rang | L9: Moyenne ecart au 1er | M9: % Ecart au 1er | N9: Rang CEGEE
A10: 50 | B10: Aube Haute Marne | C10: =VLOOKUP($A10,'RECAP DIRCOM'!$G$6:$CU$12,3,FALSE) -> 112 | D10: =VLOOKUP($A10,'RECAP DIRCOM'!$G$6:$CU$12,18,FALSE) -> 1,010 | E10: =VLOOKUP($A10,'RECAP DIRCOM'!$G$6:$CU$12,19,FALSE) -> 9.01 | F10: =VLOOKUP($A10,'RECAP DIRCOM'!$G$6:$CU$12,20,FALSE) -> 64% | G10: =VLOOKUP($A10,'RECAP DIRCOM'!$G$6:$CU$12,21,FALSE) -> 6 | H10: =VLOOKUP($A10,'RECAP DIRCOM'!$G$6:$CU$12,22,FALSE) -> 5,819 | I10: =VLOOKUP($A10,'RECAP DIRCOM'!$G$6:$CU$12,23,FALSE) -> 51.90 | J10: =VLOOKUP($A10,'RECAP DIRCOM'!$G$6:$CU$12,24,FALSE) -> 23% | K10: =VLOOKUP($A10,'RECAP DIRCOM'!$G$6:$CU$12,25,FALSE) -> 5 | L10: =VLOOKUP($A10,'RECAP DIRCOM'!$G$6:$CU$12,26,FALSE) -> 48% | M10: =VLOOKUP($A10,'RECAP DIRCOM'!$G$6:$CU$12,27,FALSE) -> 48% | N10: =VLOOKUP($A10,'RECAP DIRCOM'!$G$6:$CU$12,28,FALSE) -> 6
A11: 262 | B11: Bas-Rhin | C11: =VLOOKUP($A11,'RECAP DIRCOM'!$G$6:$CU$12,3,FALSE) -> 219 | D11: =VLOOKUP($A11,'RECAP DIRCOM'!$G$6:$CU$12,18,FALSE) -> 3,591 | E11: =VLOOKUP($A11,'RECAP DIRCOM'!$G$6:$CU$12,19,FALSE) -> 16.43 | F11: =VLOOKUP($A11,'RECAP DIRCOM'!$G$6:$CU$12,20,FALSE) -> 34% | G11: =VLOOKUP($A11,'RECAP DIRCOM'!$G$6:$CU$12,21,FALSE) -> 3 | H11: =VLOOKUP($A11,'RECAP DIRCOM'!$G$6:$CU$12,22,FALSE) -> 11,836 | I11: =VLOOKUP($A11,'RECAP DIRCOM'!$G$6:$CU$12,23,FALSE) -> 54.16 | J11: =VLOOKUP($A11,'RECAP DIRCOM'!$G$6:$CU$12,24,FALSE) -> 20% | K11: =VLOOKUP($A11,'RECAP DIRCOM'!$G$6:$CU$12,25,FALSE) -> 4 | L11: =VLOOKUP($A11,'RECAP DIRCOM'!$G$6:$CU$12,26,FALSE) -> 28% | M11: =VLOOKUP($A11,'RECAP DIRCOM'!$G$6:$CU$12,27,FALSE) -> 28% | N11: =VLOOKUP($A11,'RECAP DIRCOM'!$G$6:$CU$12,28,FALSE) -> 3
A12: 264 | B12: Haut-Rhin | C12: =VLOOKUP($A12,'RECAP DIRCOM'!$G$6:$CU$12,3,FALSE) -> 123 | D12: =VLOOKUP($A12,'RECAP DIRCOM'!$G$6:$CU$12,18,FALSE) -> 387 | E12: =VLOOKUP($A12,'RECAP DIRCOM'!$G$6:$CU$12,19,FALSE) -> 3.16 | F12: =VLOOKUP($A12,'RECAP DIRCOM'!$G$6:$CU$12,20,FALSE) -> 87% | G12: =VLOOKUP($A12,'RECAP DIRCOM'!$G$6:$CU$12,21,FALSE) -> 7 | H12: =VLOOKUP($A12,'RECAP DIRCOM'!$G$6:$CU$12,22,FALSE) -> 5,393 | I12: =VLOOKUP($A12,'RECAP DIRCOM'!$G$6:$CU$12,23,FALSE) -> 44.02 | J12: =VLOOKUP($A12,'RECAP DIRCOM'!$G$6:$CU$12,24,FALSE) -> 35% | K12: =VLOOKUP($A12,'RECAP DIRCOM'!$G$6:$CU$12,25,FALSE) -> 7 | L12: =VLOOKUP($A12,'RECAP DIRCOM'!$G$6:$CU$12,26,FALSE) -> 66% | M12: =VLOOKUP($A12,'RECAP DIRCOM'!$G$6:$CU$12,27,FALSE) -> 66% | N12: =VLOOKUP($A12,'RECAP DIRCOM'!$G$6:$CU$12,28,FALSE) -> 7
A13: 30 | B13: Marne-Ardennes | C13: =VLOOKUP($A13,'RECAP DIRCOM'!$G$6:$CU$12,3,FALSE) -> 193 | D13: =VLOOKUP($A13,'RECAP DIRCOM'!$G$6:$CU$12,18,FALSE) -> 4,814 | E13: =VLOOKUP($A13,'RECAP DIRCOM'!$G$6:$CU$12,19,FALSE) -> 24.99 | F13: =VLOOKUP($A13,'RECAP DIRCOM'!$G$6:$CU$12,20,FALSE) -> 0% | G13: =VLOOKUP($A13,'RECAP DIRCOM'!$G$6:$CU$12,21,FALSE) -> 1 | H13: =VLOOKUP($A13,'RECAP DIRCOM'!$G$6:$CU$12,22,FALSE) -> 12,969 | I13: =VLOOKUP($A13,'RECAP DIRCOM'!$G$6:$CU$12,23,FALSE) -> 67.32 | J13: =VLOOKUP($A13,'RECAP DIRCOM'!$G$6:$CU$12,24,FALSE) -> 0% | K13: =VLOOKUP($A13,'RECAP DIRCOM'!$G$6:$CU$12,25,FALSE) -> 1 | L13: =VLOOKUP($A13,'RECAP DIRCOM'!$G$6:$CU$12,26,FALSE) -> 0% | M13: =VLOOKUP($A13,'RECAP DIRCOM'!$G$6:$CU$12,27,FALSE) -> 0% | N13: =VLOOKUP($A13,'RECAP DIRCOM'!$G$6:$CU$12,28,FALSE) -> 1
A14: 110 | B14: Meurthe et Moselle Meuse | C14: =VLOOKUP($A14,'RECAP DIRCOM'!$G$6:$CU$12,3,FALSE) -> 204 | D14: =VLOOKUP($A14,'RECAP DIRCOM'!$G$6:$CU$12,18,FALSE) -> 2,941 | E14: =VLOOKUP($A14,'RECAP DIRCOM'!$G$6:$CU$12,19,FALSE) -> 14.44 | F14: =VLOOKUP($A14,'RECAP DIRCOM'!$G$6:$CU$12,20,FALSE) -> 42% | G14: =VLOOKUP($A14,'RECAP DIRCOM'!$G$6:$CU$12,21,FALSE) -> 5 | H14: =VLOOKUP($A14,'RECAP DIRCOM'!$G$6:$CU$12,22,FALSE) -> 12,111 | I14: =VLOOKUP($A14,'RECAP DIRCOM'!$G$6:$CU$12,23,FALSE) -> 59.47 | J14: =VLOOKUP($A14,'RECAP DIRCOM'!$G$6:$CU$12,24,FALSE) -> 12% | K14: =VLOOKUP($A14,'RECAP DIRCOM'!$G$6:$CU$12,25,FALSE) -> 3 | L14: =VLOOKUP($A14,'RECAP DIRCOM'!$G$6:$CU$12,26,FALSE) -> 30% | M14: =VLOOKUP($A14,'RECAP DIRCOM'!$G$6:$CU$12,27,FALSE) -> 30% | N14: =VLOOKUP($A14,'RECAP DIRCOM'!$G$6:$CU$12,28,FALSE) -> 4
A15: 160 | B15: Moselle | C15: =VLOOKUP($A15,'RECAP DIRCOM'!$G$6:$CU$12,3,FALSE) -> 221 | D15: =VLOOKUP($A15,'RECAP DIRCOM'!$G$6:$CU$12,18,FALSE) -> 4,959 | E15: =VLOOKUP($A15,'RECAP DIRCOM'!$G$6:$CU$12,19,FALSE) -> 22.47 | F15: =VLOOKUP($A15,'RECAP DIRCOM'!$G$6:$CU$12,20,FALSE) -> 10% | G15: =VLOOKUP($A15,'RECAP DIRCOM'!$G$6:$CU$12,21,FALSE) -> 2 | H15: =VLOOKUP($A15,'RECAP DIRCOM'!$G$6:$CU$12,22,FALSE) -> 14,668 | I15: =VLOOKUP($A15,'RECAP DIRCOM'!$G$6:$CU$12,23,FALSE) -> 66.46 | J15: =VLOOKUP($A15,'RECAP DIRCOM'!$G$6:$CU$12,24,FALSE) -> 1% | K15: =VLOOKUP($A15,'RECAP DIRCOM'!$G$6:$CU$12,25,FALSE) -> 2 | L15: =VLOOKUP($A15,'RECAP DIRCOM'!$G$6:$CU$12,26,FALSE) -> 7% | M15: =VLOOKUP($A15,'RECAP DIRCOM'!$G$6:$CU$12,27,FALSE) -> 7% | N15: =VLOOKUP($A15,'RECAP DIRCOM'!$G$6:$CU$12,28,FALSE) -> 2
A16: 80 | B16: Vosges | C16: =VLOOKUP($A16,'RECAP DIRCOM'!$G$6:$CU$12,3,FALSE) -> 117 | D16: =VLOOKUP($A16,'RECAP DIRCOM'!$G$6:$CU$12,18,FALSE) -> 1,765 | E16: =VLOOKUP($A16,'RECAP DIRCOM'!$G$6:$CU$12,19,FALSE) -> 15.14 | F16: =VLOOKUP($A16,'RECAP DIRCOM'!$G$6:$CU$12,20,FALSE) -> 39% | G16: =VLOOKUP($A16,'RECAP DIRCOM'!$G$6:$CU$12,21,FALSE) -> 4 | H16: =VLOOKUP($A16,'RECAP DIRCOM'!$G$6:$CU$12,22,FALSE) -> 5,733 | I16: =VLOOKUP($A16,'RECAP DIRCOM'!$G$6:$CU$12,23,FALSE) -> 49.18 | J16: =VLOOKUP($A16,'RECAP DIRCOM'!$G$6:$CU$12,24,FALSE) -> 27% | K16: =VLOOKUP($A16,'RECAP DIRCOM'!$G$6:$CU$12,25,FALSE) -> 6 | L16: =VLOOKUP($A16,'RECAP DIRCOM'!$G$6:$CU$12,26,FALSE) -> 34% | M16: =VLOOKUP($A16,'RECAP DIRCOM'!$G$6:$CU$12,27,FALSE) -> 34% | N16: =VLOOKUP($A16,'RECAP DIRCOM'!$G$6:$CU$12,28,FALSE) -> 5
B17: Total CEGEE Directions Régionales | C17: =SUM(C10:C16) -> 1187

Sheet DC_EPARGNE
B1: Accueil | D1: BAROMETRE BDD - DIRECTIONS REGIONALES
D2: EPARGNE
D3: =ACCUEIL!F7 -> 2022-11-27
D7: Excédent Epargne hors DAV pondéré | H7: Ventes sur client non détenteur de l’univers | L7: Total Epargne
D8: =DATEMAJ!C14 -> au 27/11 | F8: coef | G8: ='RECAP DIRCOM'!AP4 -> 12% | H8: =DATEMAJ!C15 -> au 27/11 | J8: coef | K8: ='RECAP DIRCOM'!AT4 -> 8% | M8: coef | N8: ='RECAP DIRCOM'!AW4 -> 20%
B9: Direction | C9: ="ETP perf "&DATEMAJ!$C$28 -> ETP perf 27-nov | D9: Excédent | E9: Excédent / ETP | F9: % Ecart au 1er | G9: Rang | H9: VB | I9: VB / ETP | J9: % Ecart au 1er | K9: Rang | L9: Moyenne ecart au 1er | M9: % Ecart au 1er | N9: Rang CEGEE
A10: 50 | B10: Aube Haute Marne | C10: =VLOOKUP($A10,'RECAP DIRCOM'!$G$6:$CU$12,3,FALSE) -> 112 | D10: =VLOOKUP($A10,'RECAP DIRCOM'!$G$6:$CU$12,33,FALSE) -> 15,451 | E10: =VLOOKUP($A10,'RECAP DIRCOM'!$G$6:$CU$12,34,FALSE) -> 137.81 | F10: =VLOOKUP($A10,'RECAP DIRCOM'!$G$6:$CU$12,35,FALSE) -> 53% | G10: =VLOOKUP($A10,'RECAP DIRCOM'!$G$6:$CU$12,36,FALSE) -> 6 | H10: =VLOOKUP($A10,'RECAP DIRCOM'!$G$6:$CU$12,37,FALSE) -> 5,560 | I10: =VLOOKUP($A10,'RECAP DIRCOM'!$G$6:$CU$12,38,FALSE) -> 49.59 | J10: =VLOOKUP($A10,'RECAP DIRCOM'!$G$6:$CU$12,39,FALSE) -> 31% | K10: =VLOOKUP($A10,'RECAP DIRCOM'!$G$6:$CU$12,40,FALSE) -> 5 | L10: =VLOOKUP($A10,'RECAP DIRCOM'!$G$6:$CU$12,41,FALSE) -> 44% | M10: =VLOOKUP($A10,'RECAP DIRCOM'!$G$6:$CU$12,42,FALSE) -> 43% | N10: =VLOOKUP($A10,'RECAP DIRCOM'!$G$6:$CU$12,43,FALSE) -> 6
A11: 262 | B11: Bas-Rhin | C11: =VLOOKUP($A11,'RECAP DIRCOM'!$G$6:$CU$12,3,FALSE) -> 219 | D11: =VLOOKUP($A11,'RECAP DIRCOM'!$G$6:$CU$12,33,FALSE) -> 54,789 | E11: =VLOOKUP($A11,'RECAP DIRCOM'!$G$6:$CU$12,34,FALSE) -> 250.71 | F11: =VLOOKUP($A11,'RECAP DIRCOM'!$G$6:$CU$12,35,FALSE) -> 14% | G11: =VLOOKUP($A11,'RECAP DIRCOM'!$G$6:$CU$12,36,FALSE) -> 5 | H11: =VLOOKUP($A11,'RECAP DIRCOM'!$G$6:$CU$12,37,FALSE) -> 11,909 | I11: =VLOOKUP($A11,'RECAP DIRCOM'!$G$6:$CU$12,38,FALSE) -> 54.49 | J11: =VLOOKUP($A11,'RECAP DIRCOM'!$G$6:$CU$12,39,FALSE) -> 24% | K11: =VLOOKUP($A11,'RECAP DIRCOM'!$G$6:$CU$12,40,FALSE) -> 3 | L11: =VLOOKUP($A11,'RECAP DIRCOM'!$G$6:$CU$12,41,FALSE) -> 18% | M11: =VLOOKUP($A11,'RECAP DIRCOM'!$G$6:$CU$12,42,FALSE) -> 17% | N11: =VLOOKUP($A11,'RECAP DIRCOM'!$G$6:$CU$12,43,FALSE) -> 4
A12: 264 | B12: Haut-Rhin | C12: =VLOOKUP($A12,'RECAP DIRCOM'!$G$6:$CU$12,3,FALSE) -> 123 | D12: =VLOOKUP($A12,'RECAP DIRCOM'!$G$6:$CU$12,33,FALSE) -> -4,898 | E12: =VLOOKUP($A12,'RECAP DIRCOM'!$G$6:$CU$12,34,FALSE) -> -39.98 | F12: =VLOOKUP($A12,'RECAP DIRCOM'!$G$6:$CU$12,35,FALSE) -> 114% | G12: =VLOOKUP($A12,'RECAP DIRCOM'!$G$6:$CU$12,36,FALSE) -> 7 | H12: =VLOOKUP($A12,'RECAP DIRCOM'!$G$6:$CU$12,37,FALSE) -> 4,934 | I12: =VLOOKUP($A12,'RECAP DIRCOM'!$G$6:$CU$12,38,FALSE) -> 40.27 | J12: =VLOOKUP($A12,'RECAP DIRCOM'!$G$6:$CU$12,39,FALSE) -> 44% | K12: =VLOOKUP($A12,'RECAP DIRCOM'!$G$6:$CU$12,40,FALSE) -> 7 | L12: =VLOOKUP($A12,'RECAP DIRCOM'!$G$6:$CU$12,41,FALSE) -> 86% | M12: =VLOOKUP($A12,'RECAP DIRCOM'!$G$6:$CU$12,42,FALSE) -> 85% | N12: =VLOOKUP($A12,'RECAP DIRCOM'!$G$6:$CU$12,43,FALSE) -> 7
A13: 30 | B13: Marne-Ardennes | C13: =VLOOKUP($A13,'RECAP DIRCOM'!$G$6:$CU$12,3,FALSE) -> 193 | D13: =VLOOKUP($A13,'RECAP DIRCOM'!$G$6:$CU$12,33,FALSE) -> 48,355 | E13: =VLOOKUP($A13,'RECAP DIRCOM'!$G$6:$CU$12,34,FALSE) -> 250.99 | F13: =VLOOKUP($A13,'RECAP DIRCOM'!$G$6:$CU$12,35,FALSE) -> 14% | G13: =VLOOKUP($A13,'RECAP DIRCOM'!$G$6:$CU$12,36,FALSE) -> 4 | H13: =VLOOKUP($A13,'RECAP DIRCOM'!$G$6:$CU$12,37,FALSE) -> 13,407 | I13: =VLOOKUP($A13,'RECAP DIRCOM'!$G$6:$CU$12,38,FALSE) -> 69.59 | J13: =VLOOKUP($A13,'RECAP DIRCOM'!$G$6:$CU$12,39,FALSE) -> 3% | K13: =VLOOKUP($A13,'RECAP DIRCOM'!$G$6:$CU$12,40,FALSE) -> 2 | L13: =VLOOKUP($A13,'RECAP DIRCOM'!$G$6:$CU$12,41,FALSE) -> 10% | M13: =VLOOKUP($A13,'RECAP DIRCOM'!$G$6:$CU$12,42,FALSE) -> 8% | N13: =VLOOKUP($A13,'RECAP DIRCOM'!$G$6:$CU$12,43,FALSE) -> 2
A14: 110 | B14: Meurthe et Moselle Meuse | C14: =VLOOKUP($A14,'RECAP DIRCOM'!$G$6:$CU$12,3,FALSE) -> 204 | D14: =VLOOKUP($A14,'RECAP DIRCOM'!$G$6:$CU$12,33,FALSE) -> 59,641 | E14: =VLOOKUP($A14,'RECAP DIRCOM'!$G$6:$CU$12,34,FALSE) -> 292.84 | F14: =VLOOKUP($A14,'RECAP DIRCOM'!$G$6:$CU$12,35,FALSE) -> 0% | G14: =VLOOKUP($A14,'RECAP DIRCOM'!$G$6:$CU$12,36,FALSE) -> 1 | H14: =VLOOKUP($A14,'RECAP DIRCOM'!$G$6:$CU$12,37,FALSE) -> 10,927 | I14: =VLOOKUP($A14,'RECAP DIRCOM'!$G$6:$CU$12,38,FALSE) -> 53.65 | J14: =VLOOKUP($A14,'RECAP DIRCOM'!$G$6:$CU$12,39,FALSE) -> 25% | K14: =VLOOKUP($A14,'RECAP DIRCOM'!$G$6:$CU$12,40,FALSE) -> 4 | L14: =VLOOKUP($A14,'RECAP DIRCOM'!$G$6:$CU$12,41,FALSE) -> 10% | M14: =VLOOKUP($A14,'RECAP DIRCOM'!$G$6:$CU$12,42,FALSE) -> 9% | N14: =VLOOKUP($A14,'RECAP DIRCOM'!$G$6:$CU$12,43,FALSE) -> 3
A15: 160 | B15: Moselle | C15: =VLOOKUP($A15,'RECAP DIRCOM'!$G$6:$CU$12,3,FALSE) -> 221 | D15: =VLOOKUP($A15,'RECAP DIRCOM'!$G$6:$CU$12,33,FALSE) -> 63,386 | E15: =VLOOKUP($A15,'RECAP DIRCOM'!$G$6:$CU$12,34,FALSE) -> 287.19 | F15: =VLOOKUP($A15,'RECAP DIRCOM'!$G$6:$CU$12,35,FALSE) -> 2% | G15: =VLOOKUP($A15,'RECAP DIRCOM'!$G$6:$CU$12,36,FALSE) -> 2 | H15: =VLOOKUP($A15,'RECAP DIRCOM'!$G$6:$CU$12,37,FALSE) -> 15,781 | I15: =VLOOKUP($A15,'RECAP DIRCOM'!$G$6:$CU$12,38,FALSE) -> 71.50 | J15: =VLOOKUP($A15,'RECAP DIRCOM'!$G$6:$CU$12,39,FALSE) -> 0% | K15: =VLOOKUP($A15,'RECAP DIRCOM'!$G$6:$CU$12,40,FALSE) -> 1 | L15: =VLOOKUP($A15,'RECAP DIRCOM'!$G$6:$CU$12,41,FALSE) -> 1% | M15: =VLOOKUP($A15,'RECAP DIRCOM'!$G$6:$CU$12,42,FALSE) -> 0% | N15: =VLOOKUP($A15,'RECAP DIRCOM'!$G$6:$CU$12,43,FALSE) -> 1
A16: 80 | B16: Vosges | C16: =VLOOKUP($A16,'RECAP DIRCOM'!$G$6:$CU$12,3,FALSE) -> 117 | D16: =VLOOKUP($A16,'RECAP DIRCOM'!$G$6:$CU$12,33,FALSE) -> 29,452 | E16: =VLOOKUP($A16,'RECAP DIRCOM'!$G$6:$CU$12,34,FALSE) -> 252.63 | F16: =VLOOKUP($A16,'RECAP DIRCOM'!$G$6:$CU$12,35,FALSE) -> 14% | G16: =VLOOKUP($A16,'RECAP DIRCOM'!$G$6:$CU$12,36,FALSE) -> 3 | H16: =VLOOKUP($A16,'RECAP DIRCOM'!$G$6:$CU$12,37,FALSE) -> 5,477 | I16: =VLOOKUP($A16,'RECAP DIRCOM'!$G$6:$CU$12,38,FALSE) -> 46.98 | J16: =VLOOKUP($A16,'RECAP DIRCOM'!$G$6:$CU$12,39,FALSE) -> 34% | K16: =VLOOKUP($A16,'RECAP DIRCOM'!$G$6:$CU$12,40,FALSE) -> 6 | L16: =VLOOKUP($A16,'RECAP DIRCOM'!$G$6:$CU$12,41,FALSE) -> 22% | M16: =VLOOKUP($A16,'RECAP DIRCOM'!$G$6:$CU$12,42,FALSE) -> 21% | N16: =VLOOKUP($A16,'RECAP DIRCOM'!$G$6:$CU$12,43,FALSE) -> 5
B17: Total CEGEE Directions Régionales | C17: =SUM(C10:C16) -> 1187

Sheet DC_CREDIT
B1: Accueil | D1: BAROMETRE BDD - DIRECTIONS REGIONALES
D2: CREDITS
D3: =ACCUEIL!F7 -> 2022-11-27
D7: Engagements et ventes accessoires pondérés Immo | H7: Engagements et ventes accessoires pondérés Conso | L7: Ventes sur client non détenteur de l’univers | P7: Total Crédits
D8: =DATEMAJ!C18 -> au 27/11 | F8: coef | G8: ='RECAP DIRCOM'!BE4 -> 6% | H8: =DATEMAJ!C19 -> au 27/11 | J8: coef | K8: ='RECAP DIRCOM'!BI4 -> 6% | L8: =DATEMAJ!C20 -> au 27/11 | N8: coef | O8: ='RECAP DIRCOM'!BM4 -> 8% | Q8: coef | R8: ='RECAP DIRCOM'!BP4 -> 20%
B9: Direction | C9: ="ETP perf "&DATEMAJ!$C$28 -> ETP perf 27-nov | D9: PNB | E9: PNB / ETP | F9: % Ecart au 1er | G9: Rang | H9: PNB | I9: PNB / ETP | J9: % Ecart au 1er | K9: Rang | L9: VB | M9: VB / ETP | N9: % Ecart au 1er | O9: Rang | P9: Moyenne ecart au 1er | Q9: % Ecart au 1er | R9: Rang CEGEE
A10: 50 | B10: Aube Haute Marne | C10: =VLOOKUP($A10,'RECAP DIRCOM'!$G$6:$CU$12,3,FALSE) -> 112 | D10: =VLOOKUP($A10,'RECAP DIRCOM'!$G$6:$CU$12,48,FALSE) -> 21,886 | E10: =VLOOKUP($A10,'RECAP DIRCOM'!$G$6:$CU$12,49,FALSE) -> 195.20 | F10: =VLOOKUP($A10,'RECAP DIRCOM'!$G$6:$CU$12,50,FALSE) -> 56% | G10: =VLOOKUP($A10,'RECAP DIRCOM'!$G$6:$CU$12,51,FALSE) -> 6 | H10: =VLOOKUP($A10,'RECAP DIRCOM'!$G$6:$CU$12,52,FALSE) -> 5,205 | I10: =VLOOKUP($A10,'RECAP DIRCOM'!$G$6:$CU$12,53,FALSE) -> 46.43 | J10: =VLOOKUP($A10,'RECAP DIRCOM'!$G$6:$CU$12,54,FALSE) -> 14% | K10: =VLOOKUP($A10,'RECAP DIRCOM'!$G$6:$CU$12,55,FALSE) -> 4 | L10: =VLOOKUP($A10,'RECAP DIRCOM'!$G$6:$CU$12,56,FALSE) -> 2,153 | M10: =VLOOKUP($A10,'RECAP DIRCOM'!$G$6:$CU$12,57,FALSE) -> 19.20 | N10: =VLOOKUP($A10,'RECAP DIRCOM'!$G$6:$CU$12,58,FALSE) -> 40% | O10: =VLOOKUP($A10,'RECAP DIRCOM'!$G$6:$CU$12,59,FALSE) -> 5 | P10: =VLOOKUP($A10,'RECAP DIRCOM'!$G$6:$CU$12,60,FALSE) -> 37% | Q10: =VLOOKUP($A10,'RECAP DIRCOM'!$G$6:$CU$12,61,FALSE) -> 33% | R10: =VLOOKUP($A10,'RECAP DIRCOM'!$G$6:$CU$12,62,FALSE) -> 5
A11: 262 | B11: Bas-Rhin | C11: =VLOOKUP($A11,'RECAP DIRCOM'!$G$6:$CU$12,3,FALSE) -> 219 | D11: =VLOOKUP($A11,'RECAP DIRCOM'!$G$6:$CU$12,48,FALSE) -> 48,235 | E11: =VLOOKUP($A11,'RECAP DIRCOM'!$G$6:$CU$12,49,FALSE) -> 220.71 | F11: =VLOOKUP($A11,'RECAP DIRCOM'!$G$6:$CU$12,50,FALSE) -> 50% | G11: =VLOOKUP($A11,'RECAP DIRCOM'!$G$6:$CU$12,51,FALSE) -> 5 | H11: =VLOOKUP($A11,'RECAP DIRCOM'!$G$6:$CU$12,52,FALSE) -> 8,593 | I11: =VLOOKUP($A11,'RECAP DIRCOM'!$G$6:$CU$12,53,FALSE) -> 39.32 | J11: =VLOOKUP($A11,'RECAP DIRCOM'!$G$6:$CU$12,54,FALSE) -> 27% | K11: =VLOOKUP($A11,'RECAP DIRCOM'!$G$6:$CU$12,55,FALSE) -> 6 | L11: =VLOOKUP($A11,'RECAP DIRCOM'!$G$6:$CU$12,56,FALSE) -> 4,121 | M11: =VLOOKUP($A11,'RECAP DIRCOM'!$G$6:$CU$12,57,FALSE) -> 18.86 | N11: =VLOOKUP($A11,'RECAP DIRCOM'!$G$6:$CU$12,58,FALSE) -> 41% | O11: =VLOOKUP($A11,'RECAP DIRCOM'!$G$6:$CU$12,59,FALSE) -> 6 | P11: =VLOOKUP($A11,'RECAP DIRCOM'!$G$6:$CU$12,60,FALSE) -> 40% | Q11: =VLOOKUP($A11,'RECAP DIRCOM'!$G$6:$CU$12,61,FALSE) -> 36% | R11: =VLOOKUP($A11,'RECAP DIRCOM'!$G$6:$CU$12,62,FALSE) -> 6
A12: 264 | B12: Haut-Rhin | C12: =VLOOKUP($A12,'RECAP DIRCOM'!$G$6:$CU$12,3,FALSE) -> 123 | D12: =VLOOKUP($A12,'RECAP DIRCOM'!$G$6:$CU$12,48,FALSE) -> 22,130 | E12: =VLOOKUP($A12,'RECAP DIRCOM'!$G$6:$CU$12,49,FALSE) -> 180.64 | F12: =VLOOKUP($A12,'RECAP DIRCOM'!$G$6:$CU$12,50,FALSE) -> 59% | G12: =VLOOKUP($A12,'RECAP DIRCOM'!$G$6:$CU$12,51,FALSE) -> 7 | H12: =VLOOKUP($A12,'RECAP DIRCOM'!$G$6:$CU$12,52,FALSE) -> 4,625 | I12: =VLOOKUP($A12,'RECAP DIRCOM'!$G$6:$CU$12,53,FALSE) -> 37.75 | J12: =VLOOKUP($A12,'RECAP DIRCOM'!$G$6:$CU$12,54,FALSE) -> 30% | K12: =VLOOKUP($A12,'RECAP DIRCOM'!$G$6:$CU$12,55,FALSE) -> 7 | L12: =VLOOKUP($A12,'RECAP DIRCOM'!$G$6:$CU$12,56,FALSE) -> 1,847 | M12: =VLOOKUP($A12,'RECAP DIRCOM'!$G$6:$CU$12,57,FALSE) -> 15.08 | N12: =VLOOKUP($A12,'RECAP DIRCOM'!$G$6:$CU$12,58,FALSE) -> 53% | O12: =VLOOKUP($A12,'RECAP DIRCOM'!$G$6:$CU$12,59,FALSE) -> 7 | P12: =VLOOKUP($A12,'RECAP DIRCOM'!$G$6:$CU$12,60,FALSE) -> 48% | Q12: =VLOOKUP($A12,'RECAP DIRCOM'!$G$6:$CU$12,61,FALSE) -> 44% | R12: =VLOOKUP($A12,'RECAP DIRCOM'!$G$6:$CU$12,62,FALSE) -> 7
A13: 30 | B13: Marne-Ardennes | C13: =VLOOKUP($A13,'RECAP DIRCOM'!$G$6:$CU$12,3,FALSE) -> 193 | D13: =VLOOKUP($A13,'RECAP DIRCOM'!$G$6:$CU$12,48,FALSE) -> 85,707 | E13: =VLOOKUP($A13,'RECAP DIRCOM'!$G$6:$CU$12,49,FALSE) -> 444.86 | F13: =VLOOKUP($A13,'RECAP DIRCOM'!$G$6:$CU$12,50,FALSE) -> 0% | G13: =VLOOKUP($A13,'RECAP DIRCOM'!$G$6:$CU$12,51,FALSE) -> 1 | H13: =VLOOKUP($A13,'RECAP DIRCOM'!$G$6:$CU$12,52,FALSE) -> 9,158 | I13: =VLOOKUP($A13,'RECAP DIRCOM'!$G$6:$CU$12,53,FALSE) -> 47.54 | J13: =VLOOKUP($A13,'RECAP DIRCOM'!$G$6:$CU$12,54,FALSE) -> 12% | K13: =VLOOKUP($A13,'RECAP DIRCOM'!$G$6:$CU$12,55,FALSE) -> 3 | L13: =VLOOKUP($A13,'RECAP DIRCOM'!$G$6:$CU$12,56,FALSE) -> 6,146 | M13: =VLOOKUP($A13,'RECAP DIRCOM'!$G$6:$CU$12,57,FALSE) -> 31.90 | N13: =VLOOKUP($A13,'RECAP DIRCOM'!$G$6:$CU$12,58,FALSE) -> 0% | O13: =VLOOKUP($A13,'RECAP DIRCOM'!$G$6:$CU$12,59,FALSE) -> 1 | P13: =VLOOKUP($A13,'RECAP DIRCOM'!$G$6:$CU$12,60,FALSE) -> 3% | Q13: =VLOOKUP($A13,'RECAP DIRCOM'!$G$6:$CU$12,61,FALSE) -> 0% | R13: =VLOOKUP($A13,'RECAP DIRCOM'!$G$6:$CU$12,62,FALSE) -> 1
A14: 110 | B14: Meurthe et Moselle Meuse | C14: =VLOOKUP($A14,'RECAP DIRCOM'!$G$6:$CU$12,3,FALSE) -> 204 | D14: =VLOOKUP($A14,'RECAP DIRCOM'!$G$6:$CU$12,48,FALSE) -> 67,903 | E14: =VLOOKUP($A14,'RECAP DIRCOM'!$G$6:$CU$12,49,FALSE) -> 333.41 | F14: =VLOOKUP($A14,'RECAP DIRCOM'!$G$6:$CU$12,50,FALSE) -> 25% | G14: =VLOOKUP($A14,'RECAP DIRCOM'!$G$6:$CU$12,51,FALSE) -> 3 | H14: =VLOOKUP($A14,'RECAP DIRCOM'!$G$6:$CU$12,52,FALSE) -> 10,224 | I14: =VLOOKUP($A14,'RECAP DIRCOM'!$G$6:$CU$12,53,FALSE) -> 50.20 | J14: =VLOOKUP($A14,'RECAP DIRCOM'!$G$6:$CU$12,54,FALSE) -> 7% | K14: =VLOOKUP($A14,'RECAP DIRCOM'!$G$6:$CU$12,55,FALSE) -> 2 | L14: =VLOOKUP($A14,'RECAP DIRCOM'!$G$6:$CU$12,56,FALSE) -> 4,940 | M14: =VLOOKUP($A14,'RECAP DIRCOM'!$G$6:$CU$12,57,FALSE) -> 24.26 | N14: =VLOOKUP($A14,'RECAP DIRCOM'!$G$6:$CU$12,58,FALSE) -> 24% | O14: =VLOOKUP($A14,'RECAP DIRCOM'!$G$6:$CU$12,59,FALSE) -> 3 | P14: =VLOOKUP($A14,'RECAP DIRCOM'!$G$6:$CU$12,60,FALSE) -> 19% | Q14: =VLOOKUP($A14,'RECAP DIRCOM'!$G$6:$CU$12,61,FALSE) -> 16% | R14: =VLOOKUP($A14,'RECAP DIRCOM'!$G$6:$CU$12,62,FALSE) -> 3
A15: 160 | B15: Moselle | C15: =VLOOKUP($A15,'RECAP DIRCOM'!$G$6:$CU$12,3,FALSE) -> 221 | D15: =VLOOKUP($A15,'RECAP DIRCOM'!$G$6:$CU$12,48,FALSE) -> 88,076 | E15: =VLOOKUP($A15,'RECAP DIRCOM'!$G$6:$CU$12,49,FALSE) -> 399.06 | F15: =VLOOKUP($A15,'RECAP DIRCOM'!$G$6:$CU$12,50,FALSE) -> 10% | G15: =VLOOKUP($A15,'RECAP DIRCOM'!$G$6:$CU$12,51,FALSE) -> 2 | H15: =VLOOKUP($A15,'RECAP DIRCOM'!$G$6:$CU$12,52,FALSE) -> 11,874 | I15: =VLOOKUP($A15,'RECAP DIRCOM'!$G$6:$CU$12,53,FALSE) -> 53.80 | J15: =VLOOKUP($A15,'RECAP DIRCOM'!$G$6:$CU$12,54,FALSE) -> 0% | K15: =VLOOKUP($A15,'RECAP DIRCOM'!$G$6:$CU$12,55,FALSE) -> 1 | L15: =VLOOKUP($A15,'RECAP DIRCOM'!$G$6:$CU$12,56,FALSE) -> 5,952 | M15: =VLOOKUP($A15,'RECAP DIRCOM'!$G$6:$CU$12,57,FALSE) -> 26.97 | N15: =VLOOKUP($A15,'RECAP DIRCOM'!$G$6:$CU$12,58,FALSE) -> 15% | O15: =VLOOKUP($A15,'RECAP DIRCOM'!$G$6:$CU$12,59,FALSE) -> 2 | P15: =VLOOKUP($A15,'RECAP DIRCOM'!$G$6:$CU$12,60,FALSE) -> 9% | Q15: =VLOOKUP($A15,'RECAP DIRCOM'!$G$6:$CU$12,61,FALSE) -> 6% | R15: =VLOOKUP($A15,'RECAP DIRCOM'!$G$6:$CU$12,62,FALSE) -> 2
A16: 80 | B16: Vosges | C16: =VLOOKUP($A16,'RECAP DIRCOM'!$G$6:$CU$12,3,FALSE) -> 117 | D16: =VLOOKUP($A16,'RECAP DIRCOM'!$G$6:$CU$12,48,FALSE) -> 25,833 | E16: =VLOOKUP($A16,'RECAP DIRCOM'!$G$6:$CU$12,49,FALSE) -> 221.59 | F16: =VLOOKUP($A16,'RECAP DIRCOM'!$G$6:$CU$12,50,FALSE) -> 50% | G16: =VLOOKUP($A16,'RECAP DIRCOM'!$G$6:$CU$12,51,FALSE) -> 4 | H16: =VLOOKUP($A16,'RECAP DIRCOM'!$G$6:$CU$12,52,FALSE) -> 4,916 | I16: =VLOOKUP($A16,'RECAP DIRCOM'!$G$6:$CU$12,53,FALSE) -> 42.17 | J16: =VLOOKUP($A16,'RECAP DIRCOM'!$G$6:$CU$12,54,FALSE) -> 22% | K16: =VLOOKUP($A16,'RECAP DIRCOM'!$G$6:$CU$12,55,FALSE) -> 5 | L16: =VLOOKUP($A16,'RECAP DIRCOM'!$G$6:$CU$12,56,FALSE) -> 2,505 | M16: =VLOOKUP($A16,'RECAP DIRCOM'!$G$6:$CU$12,57,FALSE) -> 21.49 | N16: =VLOOKUP($A16,'RECAP DIRCOM'!$G$6:$CU$12,58,FALSE) -> 33% | O16: =VLOOKUP($A16,'RECAP DIRCOM'!$G$6:$CU$12,59,FALSE) -> 4 | P16: =VLOOKUP($A16,'RECAP DIRCOM'!$G$6:$CU$12,60,FALSE) -> 35% | Q16: =VLOOKUP($A16,'RECAP DIRCOM'!$G$6:$CU$12,61,FALSE) -> 31% | R16: =VLOOKUP($A16,'RECAP DIRCOM'!$G$6:$CU$12,62,FALSE) -> 4
B17: Total CEGEE Directions Régionales | C17: =SUM(C10:C16) -> 1187

Sheet DC_IARD
B1: Accueil | D1: BAROMETRE BDD - DIRECTIONS REGIONALES
D2: IARD ET PREVOYANCE
D3: =ACCUEIL!F7 -> 2022-11-27
D7: Ventes Nettes produits pondérés | H7: Ventes sur client non détenteur de l’univers | L7: Total IARD Prévoyance
D8: =DATEMAJ!C23 -> au 27/11 | F8: coef | G8: ='RECAP DIRCOM'!BX4 -> 12% | H8: =DATEMAJ!C24 -> au 27/11 | J8: coef | K8: ='RECAP DIRCOM'!CB4 -> 8% | M8: coef | N8: ='RECAP DIRCOM'!CE4 -> 20%
B9: Direction | C9: ="ETP perf "&DATEMAJ!$C$28 -> ETP perf 27-nov | D9: VN | E9: VN / ETP | F9: % Ecart au 1er | G9: Rang | H9: VB | I9: VB / ETP | J9: % Ecart au 1er | K9: Rang | L9: Moyenne ecart au 1er | M9: % Ecart au 1er | N9: Rang CEGEE
A10: 50 | B10: Aube Haute Marne | C10: =VLOOKUP($A10,'RECAP DIRCOM'!$G$6:$CU$12,3,FALSE) -> 112 | D10: =VLOOKUP($A10,'RECAP DIRCOM'!$G$6:$CU$12,67,FALSE) -> 12,399 | E10: =VLOOKUP($A10,'RECAP DIRCOM'!$G$6:$CU$12,68,FALSE) -> 110.59 | F10: =VLOOKUP($A10,'RECAP DIRCOM'!$G$6:$CU$12,69,FALSE) -> 26% | G10: =VLOOKUP($A10,'RECAP DIRCOM'!$G$6:$CU$12,70,FALSE) -> 3 | H10: =VLOOKUP($A10,'RECAP DIRCOM'!$G$6:$CU$12,71,FALSE) -> 3,903 | I10: =VLOOKUP($A10,'RECAP DIRCOM'!$G$6:$CU$12,72,FALSE) -> 34.81 | J10: =VLOOKUP($A10,'RECAP DIRCOM'!$G$6:$CU$12,73,FALSE) -> 23% | K10: =VLOOKUP($A10,'RECAP DIRCOM'!$G$6:$CU$12,74,FALSE) -> 5 | L10: =VLOOKUP($A10,'RECAP DIRCOM'!$G$6:$CU$12,75,FALSE) -> 25% | M10: =VLOOKUP($A10,'RECAP DIRCOM'!$G$6:$CU$12,76,FALSE) -> 25% | N10: =VLOOKUP($A10,'RECAP DIRCOM'!$G$6:$CU$12,77,FALSE) -> 3
A11: 262 | B11: Bas-Rhin | C11: =VLOOKUP($A11,'RECAP DIRCOM'!$G$6:$CU$12,3,FALSE) -> 219 | D11: =VLOOKUP($A11,'RECAP DIRCOM'!$G$6:$CU$12,67,FALSE) -> 19,716 | E11: =VLOOKUP($A11,'RECAP DIRCOM'!$G$6:$CU$12,68,FALSE) -> 90.22 | F11: =VLOOKUP($A11,'RECAP DIRCOM'!$G$6:$CU$12,69,FALSE) -> 39% | G11: =VLOOKUP($A11,'RECAP DIRCOM'!$G$6:$CU$12,70,FALSE) -> 5 | H11: =VLOOKUP($A11,'RECAP DIRCOM'!$G$6:$CU$12,71,FALSE) -> 8,032 | I11: =VLOOKUP($A11,'RECAP DIRCOM'!$G$6:$CU$12,72,FALSE) -> 36.75 | J11: =VLOOKUP($A11,'RECAP DIRCOM'!$G$6:$CU$12,73,FALSE) -> 19% | K11: =VLOOKUP($A11,'RECAP DIRCOM'!$G$6:$CU$12,74,FALSE) -> 4 | L11: =VLOOKUP($A11,'RECAP DIRCOM'!$G$6:$CU$12,75,FALSE) -> 31% | M11: =VLOOKUP($A11,'RECAP DIRCOM'!$G$6:$CU$12,76,FALSE) -> 31% | N11: =VLOOKUP($A11,'RECAP DIRCOM'!$G$6:$CU$12,77,FALSE) -> 5
A12: 264 | B12: Haut-Rhin | C12: =VLOOKUP($A12,'RECAP DIRCOM'!$G$6:$CU$12,3,FALSE) -> 123 | D12: =VLOOKUP($A12,'RECAP DIRCOM'!$G$6:$CU$12,67,FALSE) -> 2,388 | E12: =VLOOKUP($A12,'RECAP DIRCOM'!$G$6:$CU$12,68,FALSE) -> 19.49 | F12: =VLOOKUP($A12,'RECAP DIRCOM'!$G$6:$CU$12,69,FALSE) -> 87% | G12: =VLOOKUP($A12,'RECAP DIRCOM'!$G$6:$CU$12,70,FALSE) -> 7 | H12: =VLOOKUP($A12,'RECAP DIRCOM'!$G$6:$CU$12,71,FALSE) -> 3,422 | I12: =VLOOKUP($A12,'RECAP DIRCOM'!$G$6:$CU$12,72,FALSE) -> 27.93 | J12: =VLOOKUP($A12,'RECAP DIRCOM'!$G$6:$CU$12,73,FALSE) -> 38% | K12: =VLOOKUP($A12,'RECAP DIRCOM'!$G$6:$CU$12,74,FALSE) -> 7 | L12: =VLOOKUP($A12,'RECAP DIRCOM'!$G$6:$CU$12,75,FALSE) -> 67% | M12: =VLOOKUP($A12,'RECAP DIRCOM'!$G$6:$CU$12,76,FALSE) -> 67% | N12: =VLOOKUP($A12,'RECAP DIRCOM'!$G$6:$CU$12,77,FALSE) -> 7
A13: 30 | B13: Marne-Ardennes | C13: =VLOOKUP($A13,'RECAP DIRCOM'!$G$6:$CU$12,3,FALSE) -> 193 | D13: =VLOOKUP($A13,'RECAP DIRCOM'!$G$6:$CU$12,67,FALSE) -> 28,716 | E13: =VLOOKUP($A13,'RECAP DIRCOM'!$G$6:$CU$12,68,FALSE) -> 149.05 | F13: =VLOOKUP($A13,'RECAP DIRCOM'!$G$6:$CU$12,69,FALSE) -> 0% | G13: =VLOOKUP($A13,'RECAP DIRCOM'!$G$6:$CU$12,70,FALSE) -> 1 | H13: =VLOOKUP($A13,'RECAP DIRCOM'!$G$6:$CU$12,71,FALSE) -> 8,699 | I13: =VLOOKUP($A13,'RECAP DIRCOM'!$G$6:$CU$12,72,FALSE) -> 45.15 | J13: =VLOOKUP($A13,'RECAP DIRCOM'!$G$6:$CU$12,73,FALSE) -> 0% | K13: =VLOOKUP($A13,'RECAP DIRCOM'!$G$6:$CU$12,74,FALSE) -> 1 | L13: =VLOOKUP($A13,'RECAP DIRCOM'!$G$6:$CU$12,75,FALSE) -> 0% | M13: =VLOOKUP($A13,'RECAP DIRCOM'!$G$6:$CU$12,76,FALSE) -> 0% | N13: =VLOOKUP($A13,'RECAP DIRCOM'!$G$6:$CU$12,77,FALSE) -> 1
A14: 110 | B14: Meurthe et Moselle Meuse | C14: =VLOOKUP($A14,'RECAP DIRCOM'!$G$6:$CU$12,3,FALSE) -> 204 | D14: =VLOOKUP($A14,'RECAP DIRCOM'!$G$6:$CU$12,67,FALSE) -> 19,975 | E14: =VLOOKUP($A14,'RECAP DIRCOM'!$G$6:$CU$12,68,FALSE) -> 98.08 | F14: =VLOOKUP($A14,'RECAP DIRCOM'!$G$6:$CU$12,69,FALSE) -> 34% | G14: =VLOOKUP($A14,'RECAP DIRCOM'!$G$6:$CU$12,70,FALSE) -> 4 | H14: =VLOOKUP($A14,'RECAP DIRCOM'!$G$6:$CU$12,71,FALSE) -> 7,894 | I14: =VLOOKUP($A14,'RECAP DIRCOM'!$G$6:$CU$12,72,FALSE) -> 38.76 | J14: =VLOOKUP($A14,'RECAP DIRCOM'!$G$6:$CU$12,73,FALSE) -> 14% | K14: =VLOOKUP($A14,'RECAP DIRCOM'!$G$6:$CU$12,74,FALSE) -> 3 | L14: =VLOOKUP($A14,'RECAP DIRCOM'!$G$6:$CU$12,75,FALSE) -> 26% | M14: =VLOOKUP($A14,'RECAP DIRCOM'!$G$6:$CU$12,76,FALSE) -> 26% | N14: =VLOOKUP($A14,'RECAP DIRCOM'!$G$6:$CU$12,77,FALSE) -> 4
A15: 160 | B15: Moselle | C15: =VLOOKUP($A15,'RECAP DIRCOM'!$G$6:$CU$12,3,FALSE) -> 221 | D15: =VLOOKUP($A15,'RECAP DIRCOM'!$G$6:$CU$12,67,FALSE) -> 30,761 | E15: =VLOOKUP($A15,'RECAP DIRCOM'!$G$6:$CU$12,68,FALSE) -> 139.37 | F15: =VLOOKUP($A15,'RECAP DIRCOM'!$G$6:$CU$12,69,FALSE) -> 6% | G15: =VLOOKUP($A15,'RECAP DIRCOM'!$G$6:$CU$12,70,FALSE) -> 2 | H15: =VLOOKUP($A15,'RECAP DIRCOM'!$G$6:$CU$12,71,FALSE) -> 9,811 | I15: =VLOOKUP($A15,'RECAP DIRCOM'!$G$6:$CU$12,72,FALSE) -> 44.45 | J15: =VLOOKUP($A15,'RECAP DIRCOM'!$G$6:$CU$12,73,FALSE) -> 2% | K15: =VLOOKUP($A15,'RECAP DIRCOM'!$G$6:$CU$12,74,FALSE) -> 2 | L15: =VLOOKUP($A15,'RECAP DIRCOM'!$G$6:$CU$12,75,FALSE) -> 5% | M15: =VLOOKUP($A15,'RECAP DIRCOM'!$G$6:$CU$12,76,FALSE) -> 5% | N15: =VLOOKUP($A15,'RECAP DIRCOM'!$G$6:$CU$12,77,FALSE) -> 2
A16: 80 | B16: Vosges | C16: =VLOOKUP($A16,'RECAP DIRCOM'!$G$6:$CU$12,3,FALSE) -> 117 | D16: =VLOOKUP($A16,'RECAP DIRCOM'!$G$6:$CU$12,67,FALSE) -> 9,618 | E16: =VLOOKUP($A16,'RECAP DIRCOM'!$G$6:$CU$12,68,FALSE) -> 82.50 | F16: =VLOOKUP($A16,'RECAP DIRCOM'!$G$6:$CU$12,69,FALSE) -> 45% | G16: =VLOOKUP($A16,'RECAP DIRCOM'!$G$6:$CU$12,70,FALSE) -> 6 | H16: =VLOOKUP($A16,'RECAP DIRCOM'!$G$6:$CU$12,71,FALSE) -> 3,713 | I16: =VLOOKUP($A16,'RECAP DIRCOM'!$G$6:$CU$12,72,FALSE) -> 31.85 | J16: =VLOOKUP($A16,'RECAP DIRCOM'!$G$6:$CU$12,73,FALSE) -> 29% | K16: =VLOOKUP($A16,'RECAP DIRCOM'!$G$6:$CU$12,74,FALSE) -> 6 | L16: =VLOOKUP($A16,'RECAP DIRCOM'!$G$6:$CU$12,75,FALSE) -> 39% | M16: =VLOOKUP($A16,'RECAP DIRCOM'!$G$6:$CU$12,76,FALSE) -> 39% | N16: =VLOOKUP($A16,'RECAP DIRCOM'!$G$6:$CU$12,77,FALSE) -> 6
B17: Total CEGEE Directions Régionales | C17: =SUM(C10:C16) -> 1187

Sheet DC_SATISFACTION
B1: Accueil | D1: BAROMETRE BDD - DIRECTIONS REGIONALES
D2: SATISFACTION
D3: =ACCUEIL!F7 -> 2022-11-27
D7: NPS à froid (SAE) | G7: NPS à chaud (QHD) | J7: Total Satisfaction Clients
D8: =DATEMAJ!E4 -> au 31/10 | E8: coef | F8: ='RECAP DIRCOM'!M4 -> 10% | G8: =DATEMAJ!C5 -> au 30/09 | H8: coef | I8: ='RECAP DIRCOM'!P4 -> 10% | K8: coef | L8: ='RECAP DIRCOM'!S4 -> 20%
B9: Direction | C9: ="ETP perf "&DATEMAJ!$C$28 -> ETP perf 27-nov | E9: % Ecart au 1er | F9: Rang | H9: % Ecart au 1er | I9: Rang | J9: Moyenne ecart au 1er | K9: % Ecart au 1er | L9: Rang CEGEE
A10: 50 | B10: Aube Haute Marne | C10: =VLOOKUP($A10,'RECAP DIRCOM'!$G$6:$CU$12,3,FALSE) -> 112 | D10: =VLOOKUP($A10,'RECAP DIRCOM'!$G$6:$CU$12,5,FALSE) -> 4.25 | E10: =VLOOKUP($A10,'RECAP DIRCOM'!$G$6:$CU$12,6,FALSE) -> 82% | F10: =VLOOKUP($A10,'RECAP DIRCOM'!$G$6:$CU$12,7,FALSE) -> 6 | G10: =VLOOKUP($A10,'RECAP DIRCOM'!$G$6:$CU$12,8,FALSE) -> 54% | H10: =VLOOKUP($A10,'RECAP DIRCOM'!$G$6:$CU$12,9,FALSE) -> 21% | I10: =VLOOKUP($A10,'RECAP DIRCOM'!$G$6:$CU$12,10,FALSE) -> 6 | J10: =VLOOKUP($A10,'RECAP DIRCOM'!$G$6:$CU$12,11,FALSE) -> 52% | K10: =VLOOKUP($A10,'RECAP DIRCOM'!$G$6:$CU$12,12,FALSE) -> 52% | L10: =VLOOKUP($A10,'RECAP DIRCOM'!$G$6:$CU$12,13,FALSE) -> 6
A11: 262 | B11: Bas-Rhin | C11: =VLOOKUP($A11,'RECAP DIRCOM'!$G$6:$CU$12,3,FALSE) -> 219 | D11: =VLOOKUP($A11,'RECAP DIRCOM'!$G$6:$CU$12,5,FALSE) -> 7 | E11: =VLOOKUP($A11,'RECAP DIRCOM'!$G$6:$CU$12,6,FALSE) -> 70% | F11: =VLOOKUP($A11,'RECAP DIRCOM'!$G$6:$CU$12,7,FALSE) -> 5 | G11: =VLOOKUP($A11,'RECAP DIRCOM'!$G$6:$CU$12,8,FALSE) -> 62% | H11: =VLOOKUP($A11,'RECAP DIRCOM'!$G$6:$CU$12,9,FALSE) -> 11% | I11: =VLOOKUP($A11,'RECAP DIRCOM'!$G$6:$CU$12,10,FALSE) -> 3 | J11: =VLOOKUP($A11,'RECAP DIRCOM'!$G$6:$CU$12,11,FALSE) -> 40% | K11: =VLOOKUP($A11,'RECAP DIRCOM'!$G$6:$CU$12,12,FALSE) -> 40% | L11: =VLOOKUP($A11,'RECAP DIRCOM'!$G$6:$CU$12,13,FALSE) -> 5
A12: 264 | B12: Haut-Rhin | C12: =VLOOKUP($A12,'RECAP DIRCOM'!$G$6:$CU$12,3,FALSE) -> 123 | D12: =VLOOKUP($A12,'RECAP DIRCOM'!$G$6:$CU$12,5,FALSE) -> 2.75 | E12: =VLOOKUP($A12,'RECAP DIRCOM'!$G$6:$CU$12,6,FALSE) -> 88% | F12: =VLOOKUP($A12,'RECAP DIRCOM'!$G$6:$CU$12,7,FALSE) -> 7 | G12: =VLOOKUP($A12,'RECAP DIRCOM'!$G$6:$CU$12,8,FALSE) -> 46% | H12: =VLOOKUP($A12,'RECAP DIRCOM'!$G$6:$CU$12,9,FALSE) -> 33% | I12: =VLOOKUP($A12,'RECAP DIRCOM'!$G$6:$CU$12,10,FALSE) -> 7 | J12: =VLOOKUP($A12,'RECAP DIRCOM'!$G$6:$CU$12,11,FALSE) -> 61% | K12: =VLOOKUP($A12,'RECAP DIRCOM'!$G$6:$CU$12,12,FALSE) -> 61% | L12: =VLOOKUP($A12,'RECAP DIRCOM'!$G$6:$CU$12,13,FALSE) -> 7
A13: 30 | B13: Marne-Ardennes | C13: =VLOOKUP($A13,'RECAP DIRCOM'!$G$6:$CU$12,3,FALSE) -> 193 | D13: =VLOOKUP($A13,'RECAP DIRCOM'!$G$6:$CU$12,5,FALSE) -> 17.25 | E13: =VLOOKUP($A13,'RECAP DIRCOM'!$G$6:$CU$12,6,FALSE) -> 26% | F13: =VLOOKUP($A13,'RECAP DIRCOM'!$G$6:$CU$12,7,FALSE) -> 2 | G13: =VLOOKUP($A13,'RECAP DIRCOM'!$G$6:$CU$12,8,FALSE) -> 65% | H13: =VLOOKUP($A13,'RECAP DIRCOM'!$G$6:$CU$12,9,FALSE) -> 6% | I13: =VLOOKUP($A13,'RECAP DIRCOM'!$G$6:$CU$12,10,FALSE) -> 2 | J13: =VLOOKUP($A13,'RECAP DIRCOM'!$G$6:$CU$12,11,FALSE) -> 16% | K13: =VLOOKUP($A13,'RECAP DIRCOM'!$G$6:$CU$12,12,FALSE) -> 16% | L13: =VLOOKUP($A13,'RECAP DIRCOM'!$G$6:$CU$12,13,FALSE) -> 2
A14: 110 | B14: Meurthe et Moselle Meuse | C14: =VLOOKUP($A14,'RECAP DIRCOM'!$G$6:$CU$12,3,FALSE) -> 204 | D14: =VLOOKUP($A14,'RECAP DIRCOM'!$G$6:$CU$12,5,FALSE) -> 12 | E14: =VLOOKUP($A14,'RECAP DIRCOM'!$G$6:$CU$12,6,FALSE) -> 48% | F14: =VLOOKUP($A14,'RECAP DIRCOM'!$G$6:$CU$12,7,FALSE) -> 4 | G14: =VLOOKUP($A14,'RECAP DIRCOM'!$G$6:$CU$12,8,FALSE) -> 60% | H14: =VLOOKUP($A14,'RECAP DIRCOM'!$G$6:$CU$12,9,FALSE) -> 13% | I14: =VLOOKUP($A14,'RECAP DIRCOM'!$G$6:$CU$12,10,FALSE) -> 5 | J14: =VLOOKUP($A14,'RECAP DIRCOM'!$G$6:$CU$12,11,FALSE) -> 31% | K14: =VLOOKUP($A14,'RECAP DIRCOM'!$G$6:$CU$12,12,FALSE) -> 31% | L14: =VLOOKUP($A14,'RECAP DIRCOM'!$G$6:$CU$12,13,FALSE) -> 4
A15: 160 | B15: Moselle | C15: =VLOOKUP($A15,'RECAP DIRCOM'!$G$6:$CU$12,3,FALSE) -> 221 | D15: =VLOOKUP($A15,'RECAP DIRCOM'!$G$6:$CU$12,5,FALSE) -> 15.25 | E15: =VLOOKUP($A15,'RECAP DIRCOM'!$G$6:$CU$12,6,FALSE) -> 34% | F15: =VLOOKUP($A15,'RECAP DIRCOM'!$G$6:$CU$12,7,FALSE) -> 3 | G15: =VLOOKUP($A15,'RECAP DIRCOM'!$G$6:$CU$12,8,FALSE) -> 61% | H15: =VLOOKUP($A15,'RECAP DIRCOM'!$G$6:$CU$12,9,FALSE) -> 11% | I15: =VLOOKUP($A15,'RECAP DIRCOM'!$G$6:$CU$12,10,FALSE) -> 4 | J15: =VLOOKUP($A15,'RECAP DIRCOM'!$G$6:$CU$12,11,FALSE) -> 23% | K15: =VLOOKUP($A15,'RECAP DIRCOM'!$G$6:$CU$12,12,FALSE) -> 23% | L15: =VLOOKUP($A15,'RECAP DIRCOM'!$G$6:$CU$12,13,FALSE) -> 3
A16: 80 | B16: Vosges | C16: =VLOOKUP($A16,'RECAP DIRCOM'!$G$6:$CU$12,3,FALSE) -> 117 | D16: =VLOOKUP($A16,'RECAP DIRCOM'!$G$6:$CU$12,5,FALSE) -> 23.25 | E16: =VLOOKUP($A16,'RECAP DIRCOM'!$G$6:$CU$12,6,FALSE) -> 0% | F16: =VLOOKUP($A16,'RECAP DIRCOM'!$G$6:$CU$12,7,FALSE) -> 1 | G16: =VLOOKUP($A16,'RECAP DIRCOM'!$G$6:$CU$12,8,FALSE) -> 69% | H16: =VLOOKUP($A16,'RECAP DIRCOM'!$G$6:$CU$12,9,FALSE) -> 0% | I16: =VLOOKUP($A16,'RECAP DIRCOM'!$G$6:$CU$12,10,FALSE) -> 1 | J16: =VLOOKUP($A16,'RECAP DIRCOM'!$G$6:$CU$12,11,FALSE) -> 0% | K16: =VLOOKUP($A16,'RECAP DIRCOM'!$G$6:$CU$12,12,FALSE) -> 0% | L16: =VLOOKUP($A16,'RECAP DIRCOM'!$G$6:$CU$12,13,FALSE) -> 1
B17: Total CEGEE Directions Régionales | C17: =SUM(C10:C16) -> 1187

Sheet SE_FICHE
A1: Accueil
A2: BAROMETRE BDD
A4: UNITE: | B4: TERRITOIRE | E4: ETP perf : | F4: =VLOOKUP(A5,'RECAP SECT'!$G$6:$I$23,3,FALSE) -> 45.46
A5: =VLOOKUP(B5,LISTES!$H$6:$I$23,2,FALSE) -> 5130 | B5: COLMAR
C6: Coefficient du critére | E6: Résultats | I6: Ecart au 1ier | M6: Evolution | O6: Rang
E7: du 1ier | G7: du territoire | I7: Du mois | K7: Au 31/12/2019
A9: RANG au CLASSEMENT GENERAL | K9: =VLOOKUP($A$5,#REF!,168,FALSE) ->  | M9: =+K9-O9 ->  | O9: =VLOOKUP($A$5,'RECAP SECT'!$G$6:$CY$312,168,FALSE) ->  | S9: =VLOOKUP($A$5,#REF!,154,FALSE) ->  | U9: =+S9-O9 -> 
A11: CRITERE CONQUETE | C11: 15% | O11: =VLOOKUP($A$5,'RECAP SECT'!$G$6:$CY$312,23,FALSE) -> 54.4874615
B12: PNB Evolution nette Clients BP | C12: 4% | E12: ='RECAP SECT'!#REF! ->  | G12: =VLOOKUP($A$5,'RECAP SECT'!$G$6:$CY$312,6,FALSE) -> 0.9 | I12: =VLOOKUP($A$5,'RECAP SECT'!$G$6:$CY$312,7,FALSE) -> 1600% | K12: =VLOOKUP($A$5,#REF!,7,FALSE) ->  | M12: =+K12-I12 ->  | O12: =VLOOKUP($A$5,'RECAP SECT'!$G$6:$CY$312,8,FALSE) -> 0.4867710882 | S12: =VLOOKUP($A$5,#REF!,6,FALSE) ->  | U12: =+S12-I12 -> 
B13: PNB Evolution nette Clients PREMIUM | C13: 5% | E13: ='RECAP SECT'!#REF! ->  | G13: =VLOOKUP($A$5,'RECAP SECT'!$G$6:$CY$312,10,FALSE) -> 16.0 | I13: =VLOOKUP($A$5,'RECAP SECT'!$G$6:$CY$312,11,FALSE) -> 62% | K13: =VLOOKUP($A$5,#REF!,11,FALSE) ->  | M13: =+K13-I13 ->  | O13: =VLOOKUP($A$5,'RECAP SECT'!$G$6:$CY$312,12,FALSE) -> 0.6188481511 | S13: =VLOOKUP($A$5,#REF!,9,FALSE) ->  | U13: =+S13-I13 -> 
B14: PNB Evolution nette Clients Jeunes Equipés | C14: 3% | E14: ='RECAP SECT'!#REF! ->  | G14: =VLOOKUP($A$5,'RECAP SECT'!$G$6:$CY$312,14,FALSE) -> 0.0 | I14: =VLOOKUP($A$5,'RECAP SECT'!$G$6:$CY$312,15,FALSE) -> 0% | K14: =VLOOKUP($A$5,#REF!,15,FALSE) ->  | M14: =+K14-I14 ->  | O14: =VLOOKUP($A$5,'RECAP SECT'!$G$6:$CY$312,16,FALSE) -> 0 | S14: =VLOOKUP($A$5,#REF!,12,FALSE) ->  | U14: =+S14-I14 -> 
B15: PNB Evolution nette Clients Pro Actifs Equipés | C15: 3% | E15: ='RECAP SECT'!W4 -> 0.0 | G15: =VLOOKUP($A$5,'RECAP SECT'!$G$6:$CY$312,18,FALSE) -> 395.5 | I15: =VLOOKUP($A$5,'RECAP SECT'!$G$6:$CY$312,19,FALSE) -> 870% | K15: =VLOOKUP($A$5,#REF!,19,FALSE) ->  | M15: =+K15-I15 ->  | O15: =VLOOKUP($A$5,'RECAP SECT'!$G$6:$CY$312,20,FALSE) -> 0.7732275351 | S15: =VLOOKUP($A$5,#REF!,15,FALSE) ->  | U15: =+S15-I15 -> 
A17: CRITERE BANCARISATION | C17: 15% | O17: =VLOOKUP($A$5,'RECAP SECT'!$G$6:$CY$312,48,FALSE) -> 9753.442214
B18: PNB Ventes nettes forfaits | C18: 4% | E18: ='RECAP SECT'!X4 -> 38.4 | G18: =VLOOKUP($A$5,'RECAP SECT'!$G$6:$CY$312,31,FALSE) -> 0.0 | I18: =VLOOKUP($A$5,'RECAP SECT'!$G$6:$CY$312,32,FALSE) -> 0% | K18: =VLOOKUP($A$5,#REF!,32,FALSE) ->  | M18: =+K18-I18 ->  | O18: =VLOOKUP($A$5,'RECAP SECT'!$G$6:$CY$312,33,FALSE) -> -974.0592395 | S18: =VLOOKUP($A$5,#REF!,27,FALSE) ->  | U18: =+S18-I18 -> 
B19: PNB Ventes nettes IZICARTES Débit Différé | C19: 4% | E19: ='RECAP SECT'!AB4 -> 96.6 | G19: =VLOOKUP($A$5,'RECAP SECT'!$G$6:$CY$312,35,FALSE) -> 1.0 | I19: =VLOOKUP($A$5,'RECAP SECT'!$G$6:$CY$312,36,FALSE) -> 1700% | K19: =VLOOKUP($A$5,#REF!,36,FALSE) ->  | M19: =+K19-I19 ->  | O19: =VLOOKUP($A$5,'RECAP SECT'!$G$6:$CY$312,37,FALSE) -> 2260 | S19: =VLOOKUP($A$5,#REF!,30,FALSE) ->  | U19: =+S19-I19 -> 
B20: PNB Ventes nettes cartes HDG Débit Différé | C20: 4% | E20: ='RECAP SECT'!#REF! ->  | G20: =VLOOKUP($A$5,'RECAP SECT'!$G$6:$CY$312,39,FALSE) -> 0.5 | I20: =VLOOKUP($A$5,'RECAP SECT'!$G$6:$CY$312,40,FALSE) -> 1800% | K20: =VLOOKUP($A$5,#REF!,40,FALSE) ->  | M20: =+K20-I20 ->  | O20: =VLOOKUP($A$5,'RECAP SECT'!$G$6:$CY$312,41,FALSE) -> 0.8179214952 | S20: =VLOOKUP($A$5,#REF!,33,FALSE) ->  | U20: =+S20-I20 -> 
B21: PNB Ventes nettes Forfaits Pro, Carte pro | C21: 3% | E21: ='RECAP SECT'!#REF! ->  | G21: =VLOOKUP($A$5,'RECAP SECT'!$G$6:$CY$312,43,FALSE) -> 17.0 | I21: =VLOOKUP($A$5,'RECAP SECT'!$G$6:$CY$312,44,FALSE) -> 0% | K21: =VLOOKUP($A$5,#REF!,44,FALSE) ->  | M21: =+K21-I21 ->  | O21: =VLOOKUP($A$5,'RECAP SECT'!$G$6:$CY$312,45,FALSE) -> 0 | S21: =VLOOKUP($A$5,#REF!,39,FALSE) ->  | U21: =+S21-I21 -> 
A23: CRITERE EPARGNE | C23: 10% | O23: =VLOOKUP($A$5,'RECAP SECT'!$G$6:$CY$312,69,FALSE) -> 0.7059764458
B24: PNB Epargne Liquide | C24: 3% | E24: ='RECAP SECT'!AM4 -> 514.3 | G24: =VLOOKUP($A$5,'RECAP SECT'!$G$6:$CY$312,56,FALSE) -> 908.0 | I24: =VLOOKUP($A$5,'RECAP SECT'!$G$6:$CY$312,57,FALSE) -> 1997% | K24: =VLOOKUP($A$5,#REF!,57,FALSE) ->  | M24: =+K24-I24 ->  | O24: =VLOOKUP($A$5,'RECAP SECT'!$G$6:$CY$312,58,FALSE) -> 0.5689205189 | S24: =VLOOKUP($A$5,#REF!,51,FALSE) ->  | U24: =+S24-I24 -> 
B25: PNB CA UC + arbitrage | C25: 4% | E25: ='RECAP SECT'!AQ4 -> 96.0 | G25: =VLOOKUP($A$5,'RECAP SECT'!$G$6:$CY$312,60,FALSE) -> 0.5 | I25: =VLOOKUP($A$5,'RECAP SECT'!$G$6:$CY$312,61,FALSE) -> 46% | K25: =VLOOKUP($A$5,#REF!,61,FALSE) ->  | M25: =+K25-I25 ->  | O25: =VLOOKUP($A$5,'RECAP SECT'!$G$6:$CY$312,62,FALSE) -> 18 | S25: =VLOOKUP($A$5,#REF!,57,FALSE) ->  | U25: =+S25-I25 -> 
B26: PNB Excédent assurance vie | C26: 3% | E26: ='RECAP SECT'!#REF! ->  | G26: =VLOOKUP($A$5,'RECAP SECT'!$G$6:$CY$312,64,FALSE) -> 0.0 | I26: =VLOOKUP($A$5,'RECAP SECT'!$G$6:$CY$312,65,FALSE) -> 0% | K26: =VLOOKUP($A$5,#REF!,65,FALSE) ->  | M26: =+K26-I26 ->  | O26: =VLOOKUP($A$5,'RECAP SECT'!$G$6:$CY$312,66,FALSE) -> 0 | S26: =VLOOKUP($A$5,#REF!,60,FALSE) ->  | U26: =+S26-I26 -> 
A28: CRITERE CREDITS | C28: 15% | O28: =VLOOKUP($A$5,'RECAP SECT'!$G$6:$CY$312,102,FALSE) -> 
B29: PNB crédit conso | C29: 4% | E29: ='RECAP SECT'!BB4 -> 680.4 | G29: =VLOOKUP($A$5,'RECAP SECT'!$G$6:$CY$312,77,FALSE) -> 17.0 | I29: =VLOOKUP($A$5,'RECAP SECT'!$G$6:$CY$312,78,FALSE) -> 0% | K29: =VLOOKUP($A$5,#REF!,78,FALSE) ->  | M29: =+K29-I29 ->  | O29: =VLOOKUP($A$5,'RECAP SECT'!$G$6:$CY$312,79,FALSE) -> 0 | S29: =VLOOKUP($A$5,#REF!,75,FALSE) ->  | U29: =+S29-I29 -> 
B30: PNB ADE crédit conso | C30: 1% | E30: ='RECAP SECT'!#REF! ->  | G30: =VLOOKUP($A$5,'RECAP SECT'!$G$6:$CY$312,81,FALSE) -> 0.0 | I30: =VLOOKUP($A$5,'RECAP SECT'!$G$6:$CY$312,82,FALSE) -> 0% | K30: =VLOOKUP($A$5,#REF!,82,FALSE) ->  | O30: =VLOOKUP($A$5,'RECAP SECT'!$G$6:$CY$312,83,FALSE) -> 0 | S30: =VLOOKUP($A$5,#REF!,78,FALSE) -> 
B31: PNB crédit immo | C31: 4% | E31: ='RECAP SECT'!BF4 -> 68.1 | G31: =VLOOKUP($A$5,'RECAP SECT'!$G$6:$CY$312,85,FALSE) -> 0.0 | I31: =VLOOKUP($A$5,'RECAP SECT'!$G$6:$CY$312,86,FALSE) -> 0% | K31: =VLOOKUP($A$5,#REF!,86,FALSE) ->  | O31: =VLOOKUP($A$5,'RECAP SECT'!$G$6:$CY$312,87,FALSE) -> 0 | S31: =VLOOKUP($A$5,#REF!,81,FALSE) -> 
B32: PNB ADE crédit immo | C32: 2% | E32: ='RECAP SECT'!#REF! ->  | G32: =VLOOKUP($A$5,'RECAP SECT'!$G$6:$CY$312,89,FALSE) -> 0.0 | I32: =VLOOKUP($A$5,'RECAP SECT'!$G$6:$CY$312,90,FALSE) -> 0% | K32: =VLOOKUP($A$5,#REF!,90,FALSE) ->  | O32: =VLOOKUP($A$5,'RECAP SECT'!$G$6:$CY$312,91,FALSE) -> 0 | S32: =VLOOKUP($A$5,#REF!,84,FALSE) -> 
B33: PNB SACCEF | C33: 2% | E33: ='RECAP SECT'!#REF! ->  | G33: =VLOOKUP($A$5,'RECAP SECT'!$G$6:$CY$312,93,FALSE) -> 0.0 | I33: =VLOOKUP($A$5,'RECAP SECT'!$G$6:$CY$312,94,FALSE) -> 61% | K33: =VLOOKUP($A$5,#REF!,94,FALSE) ->  | O33: =VLOOKUP($A$5,'RECAP SECT'!$G$6:$CY$312,95,FALSE) -> 0.4953979405 | S33: =VLOOKUP($A$5,#REF!,87,FALSE) -> 
B34: PNB Crédit MLT + Crédit Bail | C34: 2% | E34: ='RECAP SECT'!BJ4 -> 46.3 | G34: =VLOOKUP($A$5,'RECAP SECT'!$G$6:$CY$312,97,FALSE) -> 0.0 | I34: =VLOOKUP($A$5,'RECAP SECT'!$G$6:$CY$312,98,FALSE) ->  | K34: =VLOOKUP($A$5,#REF!,98,FALSE) ->  | O34: =VLOOKUP($A$5,'RECAP SECT'!$G$6:$CY$312,99,FALSE) ->  | S34: =VLOOKUP($A$5,#REF!,90,FALSE) -> 
A36: CRITERE IARD PREVOYANCE | C36: 15% | O36: =VLOOKUP($A$5,'RECAP SECT'!$G$6:$CY$312,119,FALSE) -> 
B37: PNB Ventes nettes IARD | C37: 9% | E37: ='RECAP SECT'!BU4 -> 208.2 | G37: =VLOOKUP($A$5,'RECAP SECT'!$G$6:$CY$312,110,FALSE) ->  | I37: =VLOOKUP($A$5,'RECAP SECT'!$G$6:$CY$312,111,FALSE) ->  | K37: =VLOOKUP($A$5,#REF!,111,FALSE) ->  | M37: =+K37-I37 ->  | O37: =VLOOKUP($A$5,'RECAP SECT'!$G$6:$CY$312,112,FALSE) ->  | S37: =VLOOKUP($A$5,#REF!,102,FALSE) ->  | U37: =+S37-I37 -> 
B38: PNB Ventes nettes Prévoyance | C38: 6% | E38: ='RECAP SECT'!BY4 -> 62.0 | G38: =VLOOKUP($A$5,'RECAP SECT'!$G$6:$CY$312,114,FALSE) ->  | I38: =VLOOKUP($A$5,'RECAP SECT'!$G$6:$CY$312,115,FALSE) ->  | K38: =VLOOKUP($A$5,#REF!,115,FALSE) ->  | M38: =+K38-I38 ->  | O38: =VLOOKUP($A$5,'RECAP SECT'!$G$6:$CY$312,116,FALSE) ->  | S38: =VLOOKUP($A$5,#REF!,105,FALSE) ->  | U38: =+S38-I38 -> 
A40: CRITERE ACCELERATEURS PNB | C40: 15% | O40: =VLOOKUP($A$5,'RECAP SECT'!$G$6:$CY$312,144,FALSE) -> 
B41: PNB Ventes brutes SED Finalisées | C41: 6% | E41: ='RECAP SECT'!#REF! ->  | G41: =VLOOKUP($A$5,'RECAP SECT'!$G$6:$CY$312,127,FALSE) ->  | I41: =VLOOKUP($A$5,'RECAP SECT'!$G$6:$CY$312,128,FALSE) ->  | K41: =VLOOKUP($A$5,#REF!,128,FALSE) ->  | M41: =+K41-I41 ->  | O41: =VLOOKUP($A$5,'RECAP SECT'!$G$6:$CY$312,129,FALSE) ->  | S41: =VLOOKUP($A$5,#REF!,120,FALSE) ->  | U41: =+S41-I41 -> 
B42: PNB clients équipés E documents | C42: 3% | E42: ='RECAP SECT'!#REF! ->  | G42: =VLOOKUP($A$5,'RECAP SECT'!$G$6:$CY$312,131,FALSE) ->  | I42: =VLOOKUP($A$5,'RECAP SECT'!$G$6:$CY$312,132,FALSE) ->  | K42: =VLOOKUP($A$5,#REF!,132,FALSE) ->  | M42: =+K42-I42 ->  | O42: =VLOOKUP($A$5,'RECAP SECT'!$G$6:$CY$312,133,FALSE) ->  | S42: =VLOOKUP($A$5,#REF!,123,FALSE) ->  | U42: =+S42-I42 -> 
B43: Economie opt'in | C43: 3% | E43: ='RECAP SECT'!#REF! ->  | G43: =VLOOKUP($A$5,'RECAP SECT'!$G$6:$CY$312,135,FALSE) ->  | I43: =VLOOKUP($A$5,'RECAP SECT'!$G$6:$CY$312,136,FALSE) ->  | K43: =VLOOKUP($A$5,#REF!,136,FALSE) ->  | M43: =+K43-I43 ->  | O43: =VLOOKUP($A$5,'RECAP SECT'!$G$6:$CY$312,137,FALSE) -> 
B44: Remises commerciales | C44: 3% | E44: ='RECAP SECT'!#REF! ->  | G44: =VLOOKUP($A$5,'RECAP SECT'!$G$6:$CY$312,139,FALSE) ->  | I44: =VLOOKUP($A$5,'RECAP SECT'!$G$6:$CY$312,140,FALSE) ->  | K44: =VLOOKUP($A$5,#REF!,140,FALSE) ->  | M44: =+K44-I44 ->  | O44: =VLOOKUP($A$5,'RECAP SECT'!$G$6:$CY$312,141,FALSE) ->  | S44: =VLOOKUP($A$5,#REF!,126,FALSE) ->  | U44: =+S44-I44 -> 
A46: CRITERE Satisfaction Clients | C46: 15% | O46: =VLOOKUP($A$5,'RECAP SECT'!$G$6:$CY$312,159,FALSE) -> 
B47: Objectifs NPS* | C47: 8% | E47: ='RECAP SECT'!K4 -> 25 | G47: =VLOOKUP($A$5,'RECAP SECT'!$G$6:$CY$312,151,FALSE) ->  | I47: =VLOOKUP($A$5,'RECAP SECT'!$G$6:$CY$312,152,FALSE) ->  | K47: =VLOOKUP($A$5,#REF!,152,FALSE) ->  | M47: =+K47-I47 ->  | O47: =VLOOKUP($A$5,'RECAP SECT'!$G$6:$CY$312,153,FALSE) ->  | S47: =VLOOKUP($A$5,#REF!,138,FALSE) ->  | U47: =+S47-I47 -> 
B48: Enquête Qualité Haute Définition | C48: 7% | E48: ='RECAP SECT'!N4 -> 73% | G48: =VLOOKUP($A$5,'RECAP SECT'!$G$6:$CY$312,154,FALSE) ->  | I48: =VLOOKUP($A$5,'RECAP SECT'!$G$6:$CY$312,155,FALSE) ->  | K48: =VLOOKUP($A$5,#REF!,155,FALSE) ->  | M48: =+K48-I48 ->  | O48: =VLOOKUP($A$5,'RECAP SECT'!$G$6:$CY$312,156,FALSE) ->  | S48: =VLOOKUP($A$5,#REF!,141,FALSE) ->  | U48: =+S48-I48 -> 

Sheet SE_TOTAL
B1: Accueil | F1: BAROMETRE BDD - TERRITOIRES
F2: TOTAL GENERAL
F3: =ACCUEIL!F7 -> 2022-11-27
F7: TOTAL GENERAL | I7: Total Satisfaction Clients | L7: Total Bancarisation | O7: Total Epargne | R7: Total IARD Prévoyance | U7: Total Crédits
G8: coef | H8: =K8+N8+Q8+T8+W8 -> 100% | J8: coef | K8: =SE_SATISFACTION!N8 -> 20% | M8: coef | N8: =SE_BANCA!P8 -> 20% | P8: coef | Q8: =SE_EPARGNE!P8 -> 20% | S8: coef | T8: =SE_IARD!P8 -> 20% | V8: coef | W8: =SE_CREDIT!T8 -> 20%
B9: Direction | C9: eds | D9: Territoire | E9: ="ETP perf "&DATEMAJ!$C$28 -> ETP perf 27-nov | F9: Moyenne ecart au 1er | G9: % Ecart au 1er | H9: Rang CEGEE | I9: Moyenne ecart au 1er | J9: % Ecart au 1er | K9: Rang CEGEE | L9: Moyenne ecart au 1er | M9: % Ecart au 1er | N9: Rang CEGEE | O9: Moyenne ecart au 1er | P9: % Ecart au 1er | Q9: Rang CEGEE | R9: Moyenne ecart au 1er | S9: % Ecart au 1er | T9: Rang CEGEE | U9: Moyenne ecart au 1er | V9: % Ecart au 1er | W9: Rang CEGEE
A10: 50 | B10: MARNE-ARDENNES | C10: 11 | D10: REIMS | E10: 67.9 | F10: 11% | G10: 0% | H10: 1 | I10: 27% | J10: 26% | K10: 8 | L10: 0% | M10: 0% | N10: 1 | O10: 30% | P10: 23% | Q10: 9 | R10: 8% | S10: 7% | T10: 2 | U10: 5% | V10: 0% | W10: 1
A11: 50 | B11: MARNE-ARDENNES | C11: 6 | D11: CHALONS EN CHAMPAGNE | E11: 37.3 | F11: 13% | G11: 2% | H11: 2 | I11: 0% | J11: 0% | K11: 1 | L11: 20% | M11: 20% | N11: 3 | O11: 24% | P11: 17% | Q11: 3 | R11: 10% | S11: 9% | T11: 3 | U11: 24% | V11: 20% | W11: 4
A12: 262 | B12: MOSELLE | C12: 44 | D12: MOSELLE NORD | E12: 55.4 | F12: 17% | G12: 6% | H12: 3 | I12: 40% | J12: 39% | K12: 13 | L12: 6% | M12: 6% | N12: 2 | O12: 41% | P12: 34% | Q12: 12 | R12: 1% | S12: 0% | T12: 1 | U12: 9% | V12: 5% | W12: 2
A13: 262 | B13: MOSELLE | C13: 42 | D13: MOSELLE EST | E13: 57.7 | F13: 21% | G13: 9% | H13: 4 | I13: 16% | J13: 15% | K13: 5 | L13: 27% | M13: 27% | N13: 4 | O13: 31% | P13: 24% | Q13: 10 | R13: 15% | S13: 14% | T13: 6 | U13: 27% | V13: 23% | W13: 7
A14: 262 | B14: MARNE-ARDENNES | C14: 2 | D14: CHARLEVILLE MEZIERES | E14: 48.2 | F14: 21% | G14: 10% | H14: 5 | I14: 27% | J14: 26% | K14: 7 | L14: 35% | M14: 35% | N14: 6 | O14: 24% | P14: 17% | Q14: 5 | R14: 11% | S14: 11% | T14: 4 | U14: 21% | V14: 16% | W14: 3
A15: 264 | B15: BAS-RHIN | C15: 5006 | D15: STRASBOURG | E15: 64.5 | F15: 25% | G15: 14% | H15: 6 | I15: 38% | J15: 38% | K15: 12 | L15: 31% | M15: 31% | N15: 5 | O15: 9% | P15: 1% | Q15: 2 | R15: 20% | S15: 19% | T15: 7 | U15: 40% | V15: 35% | W15: 11
A16: 264 | B16: AUBE HAUTE MARNE | C16: 21 | D16: CHAUMONT | E16: 33.5 | F16: 25% | G16: 14% | H16: 7 | I16: 16% | J16: 15% | K16: 6 | L16: 45% | M16: 45% | N16: 14 | O16: 27% | P16: 20% | Q16: 7 | R16: 14% | S16: 13% | T16: 5 | U16: 37% | V16: 33% | W16: 10
A17: 30 | B17: MOSELLE | C17: 45 | D17: METZ | E17: 72.6 | F17: 26% | G17: 14% | H17: 8 | I17: 30% | J17: 29% | K17: 9 | L17: 39% | M17: 39% | N17: 9 | O17: 7% | P17: 0% | Q17: 1 | R17: 34% | S17: 34% | T17: 9 | U17: 31% | V17: 26% | W17: 8
A18: 30 | B18: VOSGES | C18: 57 | D18: EPINAL | E18: 53.0 | F18: 29% | G18: 18% | H18: 9 | I18: 8% | J18: 8% | K18: 3 | L18: 39% | M18: 39% | N18: 8 | O18: 29% | P18: 22% | Q18: 8 | R18: 43% | S18: 42% | T18: 13 | U18: 41% | V18: 36% | W18: 12
A19: 30 | B19: MEURTHE ET MOSELLE MEUSE | C19: 26 | D19: NANCY | E19: 54.9 | F19: 29% | G19: 18% | H19: 10 | I19: 32% | J19: 31% | K19: 10 | L19: 43% | M19: 43% | N19: 11 | O19: 24% | P19: 17% | Q19: 4 | R19: 37% | S19: 36% | T19: 10 | U19: 25% | V19: 20% | W19: 5
A20: 110 | B20: MEURTHE ET MOSELLE MEUSE | C20: 31 | D20: VERDUN | E20: 48.7 | F20: 30% | G20: 18% | H20: 11 | I20: 13% | J20: 13% | K20: 4 | L20: 37% | M20: 37% | N20: 7 | O20: 41% | P20: 34% | Q20: 11 | R20: 38% | S20: 37% | T20: 11 | U20: 33% | V20: 28% | W20: 9
A21: 110 | B21: MEURTHE ET MOSELLE MEUSE | C21: 27 | D21: PONT A MOUSSON | E21: 59.6 | F21: 33% | G21: 21% | H21: 12 | I21: 54% | J21: 53% | K21: 14 | L21: 43% | M21: 43% | N21: 12 | O21: 25% | P21: 18% | Q21: 6 | R21: 27% | S21: 26% | T21: 8 | U21: 27% | V21: 22% | W21: 6
A22: 110 | B22: VOSGES | C22: 55 | D22: SAINT DIE | E22: 40.0 | F22: 36% | G22: 25% | H22: 13 | I22: 3% | J22: 3% | K22: 2 | L22: 53% | M22: 53% | N22: 15 | O22: 51% | P22: 44% | Q22: 14 | R22: 46% | S22: 46% | T22: 15 | U22: 41% | V22: 37% | W22: 13
A23: 160 | B23: BAS-RHIN | C23: 5060 | D23: HAGUENAU | E23: 55.7 | F23: 40% | G23: 29% | H23: 14 | I23: 36% | J23: 36% | K23: 11 | L23: 41% | M23: 41% | N23: 10 | O23: 42% | P23: 35% | Q23: 13 | R23: 47% | S23: 46% | T23: 16 | U23: 48% | V23: 44% | W23: 16
A24: 160 | B24: BAS-RHIN | C24: 5101 | D24: SELESTAT | E24: 50.7 | F24: 47% | G24: 36% | H24: 15 | I24: 55% | J24: 54% | K24: 15 | L24: 45% | M24: 45% | N24: 13 | O24: 56% | P24: 48% | Q24: 15 | R24: 46% | S24: 46% | T24: 14 | U24: 46% | V24: 42% | W24: 15
A25: 160 | B25: AUBE HAUTE MARNE | C25: 14 | D25: TROYES | E25: 53.9 | F25: 54% | G25: 42% | H25: 16 | I25: 67% | J25: 67% | K25: 18 | L25: 60% | M25: 60% | N25: 16 | O25: 69% | P25: 62% | Q25: 16 | R25: 40% | S25: 40% | T25: 12 | U25: 44% | V25: 39% | W25: 14
A26: 80 | B26: HAUT-RHIN | C26: 5130 | D26: COLMAR | E26: 45.5 | F26: 61% | G26: 50% | H26: 17 | I26: 62% | J26: 62% | K26: 16 | L26: 64% | M26: 64% | N26: 17 | O26: 82% | P26: 75% | Q26: 17 | R26: 58% | S26: 58% | T26: 17 | U26: 50% | V26: 46% | W26: 18
A27: 80 | B27: HAUT-RHIN | C27: 5169 | D27: MULHOUSE | E27: 46.9 | F27: 68% | G27: 57% | H27: 18 | I27: 63% | J27: 63% | K27: 17 | L27: 75% | M27: 75% | N27: 18 | O27: 86% | P27: 79% | Q27: 18 | R27: 79% | S27: 78% | T27: 18 | U27: 50% | V27: 45% | W27: 17
A28: Total CEGEE Directions Régionales | E28: =SUM(E10:E27) -> 946

Sheet SE_BANCA
B1: Accueil | F1: BAROMETRE BDD - TERRITOIRES
F2: BANCARISATION
F3: =ACCUEIL!F7 -> 2022-11-27
F7: Ventes Nettes produits pondérés | J7: Ventes sur client non détenteur de l’univers | N7: Total Bancarisation
F8: =DATEMAJ!C8 -> au 27/11 | H8: coef | I8: ='RECAP DIRCOM'!AA4 -> 12% | J8: =DATEMAJ!C9 -> au 27/11 | L8: coef | M8: ='RECAP DIRCOM'!AE4 -> 8% | O8: coef | P8: ='RECAP DIRCOM'!AH4 -> 20%
B9: Direction | C9: eds | D9: Territoire | E9: ="ETP perf "&DATEMAJ!$C$28 -> ETP perf 27-nov | F9: VN | G9: VN / ETP | H9: % Ecart au 1er | I9: Rang | J9: VB | K9: VB / ETP | L9: % Ecart au 1er | M9: Rang | N9: Moyenne ecart au 1er | O9: % Ecart au 1er | P9: Rang CEGEE
A10: 50 | B10: AUBE HAUTE MARNE | C10: 21 | D10: CHAUMONT | E10: =VLOOKUP($C10,'RECAP SECT'!$G$6:$CU$253,3,FALSE) -> 33.5 | F10: =VLOOKUP($C10,'RECAP SECT'!$G$6:$CU$253,18,FALSE) -> 584 | G10: =VLOOKUP($C10,'RECAP SECT'!$G$6:$CU$253,19,FALSE) -> 17.43 | H10: =VLOOKUP($C10,'RECAP SECT'!$G$6:$CU$253,20,FALSE) -> 55% | I10: =VLOOKUP($C10,'RECAP SECT'!$G$6:$CU$253,21,FALSE) -> 12 | J10: =VLOOKUP($C10,'RECAP SECT'!$G$6:$CU$253,22,FALSE) -> 2,227 | K10: =VLOOKUP($C10,'RECAP SECT'!$G$6:$CU$253,23,FALSE) -> 66.42 | L10: =VLOOKUP($C10,'RECAP SECT'!$G$6:$CU$253,24,FALSE) -> 31% | M10: =VLOOKUP($C10,'RECAP SECT'!$G$6:$CU$253,25,FALSE) -> 12 | N10: =VLOOKUP($C10,'RECAP SECT'!$G$6:$CU$253,26,FALSE) -> 45% | O10: =VLOOKUP($C10,'RECAP SECT'!$G$6:$CU$253,27,FALSE) -> 45% | P10: =VLOOKUP($C10,'RECAP SECT'!$G$6:$CU$253,28,FALSE) -> 14
A11: 50 | B11: AUBE HAUTE MARNE | C11: 14 | D11: TROYES | E11: =VLOOKUP($C11,'RECAP SECT'!$G$6:$CU$253,3,FALSE) -> 53.9 | F11: =VLOOKUP($C11,'RECAP SECT'!$G$6:$CU$253,18,FALSE) -> 426 | G11: =VLOOKUP($C11,'RECAP SECT'!$G$6:$CU$253,19,FALSE) -> 7.90 | H11: =VLOOKUP($C11,'RECAP SECT'!$G$6:$CU$253,20,FALSE) -> 79% | I11: =VLOOKUP($C11,'RECAP SECT'!$G$6:$CU$253,21,FALSE) -> 17 | J11: =VLOOKUP($C11,'RECAP SECT'!$G$6:$CU$253,22,FALSE) -> 3,592 | K11: =VLOOKUP($C11,'RECAP SECT'!$G$6:$CU$253,23,FALSE) -> 66.65 | L11: =VLOOKUP($C11,'RECAP SECT'!$G$6:$CU$253,24,FALSE) -> 31% | M11: =VLOOKUP($C11,'RECAP SECT'!$G$6:$CU$253,25,FALSE) -> 11 | N11: =VLOOKUP($C11,'RECAP SECT'!$G$6:$CU$253,26,FALSE) -> 60% | O11: =VLOOKUP($C11,'RECAP SECT'!$G$6:$CU$253,27,FALSE) -> 60% | P11: =VLOOKUP($C11,'RECAP SECT'!$G$6:$CU$253,28,FALSE) -> 16
A12: 262 | B12: BAS-RHIN | C12: 5060 | D12: HAGUENAU | E12: =VLOOKUP($C12,'RECAP SECT'!$G$6:$CU$253,3,FALSE) -> 55.7 | F12: =VLOOKUP($C12,'RECAP SECT'!$G$6:$CU$253,18,FALSE) -> 1,226 | G12: =VLOOKUP($C12,'RECAP SECT'!$G$6:$CU$253,19,FALSE) -> 22.03 | H12: =VLOOKUP($C12,'RECAP SECT'!$G$6:$CU$253,20,FALSE) -> 43% | I12: =VLOOKUP($C12,'RECAP SECT'!$G$6:$CU$253,21,FALSE) -> 5 | J12: =VLOOKUP($C12,'RECAP SECT'!$G$6:$CU$253,22,FALSE) -> 3,335 | K12: =VLOOKUP($C12,'RECAP SECT'!$G$6:$CU$253,23,FALSE) -> 59.92 | L12: =VLOOKUP($C12,'RECAP SECT'!$G$6:$CU$253,24,FALSE) -> 38% | M12: =VLOOKUP($C12,'RECAP SECT'!$G$6:$CU$253,25,FALSE) -> 15 | N12: =VLOOKUP($C12,'RECAP SECT'!$G$6:$CU$253,26,FALSE) -> 41% | O12: =VLOOKUP($C12,'RECAP SECT'!$G$6:$CU$253,27,FALSE) -> 41% | P12: =VLOOKUP($C12,'RECAP SECT'!$G$6:$CU$253,28,FALSE) -> 10
A13: 262 | B13: BAS-RHIN | C13: 5101 | D13: SELESTAT | E13: =VLOOKUP($C13,'RECAP SECT'!$G$6:$CU$253,3,FALSE) -> 50.7 | F13: =VLOOKUP($C13,'RECAP SECT'!$G$6:$CU$253,18,FALSE) -> 992 | G13: =VLOOKUP($C13,'RECAP SECT'!$G$6:$CU$253,19,FALSE) -> 19.58 | H13: =VLOOKUP($C13,'RECAP SECT'!$G$6:$CU$253,20,FALSE) -> 49% | I13: =VLOOKUP($C13,'RECAP SECT'!$G$6:$CU$253,21,FALSE) -> 10 | J13: =VLOOKUP($C13,'RECAP SECT'!$G$6:$CU$253,22,FALSE) -> 2,982 | K13: =VLOOKUP($C13,'RECAP SECT'!$G$6:$CU$253,23,FALSE) -> 58.86 | L13: =VLOOKUP($C13,'RECAP SECT'!$G$6:$CU$253,24,FALSE) -> 39% | M13: =VLOOKUP($C13,'RECAP SECT'!$G$6:$CU$253,25,FALSE) -> 16 | N13: =VLOOKUP($C13,'RECAP SECT'!$G$6:$CU$253,26,FALSE) -> 45% | O13: =VLOOKUP($C13,'RECAP SECT'!$G$6:$CU$253,27,FALSE) -> 45% | P13: =VLOOKUP($C13,'RECAP SECT'!$G$6:$CU$253,28,FALSE) -> 13
A14: 262 | B14: BAS-RHIN | C14: 5006 | D14: STRASBOURG | E14: =VLOOKUP($C14,'RECAP SECT'!$G$6:$CU$253,3,FALSE) -> 64.5 | F14: =VLOOKUP($C14,'RECAP SECT'!$G$6:$CU$253,18,FALSE) -> 1,373 | G14: =VLOOKUP($C14,'RECAP SECT'!$G$6:$CU$253,19,FALSE) -> 21.29 | H14: =VLOOKUP($C14,'RECAP SECT'!$G$6:$CU$253,20,FALSE) -> 45% | I14: =VLOOKUP($C14,'RECAP SECT'!$G$6:$CU$253,21,FALSE) -> 9 | J14: =VLOOKUP($C14,'RECAP SECT'!$G$6:$CU$253,22,FALSE) -> 5,519 | K14: =VLOOKUP($C14,'RECAP SECT'!$G$6:$CU$253,23,FALSE) -> 85.61 | L14: =VLOOKUP($C14,'RECAP SECT'!$G$6:$CU$253,24,FALSE) -> 11% | M14: =VLOOKUP($C14,'RECAP SECT'!$G$6:$CU$253,25,FALSE) -> 3 | N14: =VLOOKUP($C14,'RECAP SECT'!$G$6:$CU$253,26,FALSE) -> 31% | O14: =VLOOKUP($C14,'RECAP SECT'!$G$6:$CU$253,27,FALSE) -> 31% | P14: =VLOOKUP($C14,'RECAP SECT'!$G$6:$CU$253,28,FALSE) -> 5
A15: 264 | B15: HAUT-RHIN | C15: 5130 | D15: COLMAR | E15: =VLOOKUP($C15,'RECAP SECT'!$G$6:$CU$253,3,FALSE) -> 45.5 | F15: =VLOOKUP($C15,'RECAP SECT'!$G$6:$CU$253,18,FALSE) -> 396 | G15: =VLOOKUP($C15,'RECAP SECT'!$G$6:$CU$253,19,FALSE) -> 8.70 | H15: =VLOOKUP($C15,'RECAP SECT'!$G$6:$CU$253,20,FALSE) -> 77% | I15: =VLOOKUP($C15,'RECAP SECT'!$G$6:$CU$253,21,FALSE) -> 16 | J15: =VLOOKUP($C15,'RECAP SECT'!$G$6:$CU$253,22,FALSE) -> 2,477 | K15: =VLOOKUP($C15,'RECAP SECT'!$G$6:$CU$253,23,FALSE) -> 54.49 | L15: =VLOOKUP($C15,'RECAP SECT'!$G$6:$CU$253,24,FALSE) -> 44% | M15: =VLOOKUP($C15,'RECAP SECT'!$G$6:$CU$253,25,FALSE) -> 18 | N15: =VLOOKUP($C15,'RECAP SECT'!$G$6:$CU$253,26,FALSE) -> 64% | O15: =VLOOKUP($C15,'RECAP SECT'!$G$6:$CU$253,27,FALSE) -> 64% | P15: =VLOOKUP($C15,'RECAP SECT'!$G$6:$CU$253,28,FALSE) -> 17
A16: 264 | B16: HAUT-RHIN | C16: 5169 | D16: MULHOUSE | E16: =VLOOKUP($C16,'RECAP SECT'!$G$6:$CU$253,3,FALSE) -> 46.9 | F16: =VLOOKUP($C16,'RECAP SECT'!$G$6:$CU$253,18,FALSE) -> -9 | G16: =VLOOKUP($C16,'RECAP SECT'!$G$6:$CU$253,19,FALSE) -> -0.18 | H16: =VLOOKUP($C16,'RECAP SECT'!$G$6:$CU$253,20,FALSE) -> 100% | I16: =VLOOKUP($C16,'RECAP SECT'!$G$6:$CU$253,21,FALSE) -> 18 | J16: =VLOOKUP($C16,'RECAP SECT'!$G$6:$CU$253,22,FALSE) -> 2,916 | K16: =VLOOKUP($C16,'RECAP SECT'!$G$6:$CU$253,23,FALSE) -> 62.12 | L16: =VLOOKUP($C16,'RECAP SECT'!$G$6:$CU$253,24,FALSE) -> 36% | M16: =VLOOKUP($C16,'RECAP SECT'!$G$6:$CU$253,25,FALSE) -> 14 | N16: =VLOOKUP($C16,'RECAP SECT'!$G$6:$CU$253,26,FALSE) -> 75% | O16: =VLOOKUP($C16,'RECAP SECT'!$G$6:$CU$253,27,FALSE) -> 75% | P16: =VLOOKUP($C16,'RECAP SECT'!$G$6:$CU$253,28,FALSE) -> 18
A17: 30 | B17: MARNE-ARDENNES | C17: 6 | D17: CHALONS EN CHAMPAGNE | E17: =VLOOKUP($C17,'RECAP SECT'!$G$6:$CU$253,3,FALSE) -> 37.3 | F17: =VLOOKUP($C17,'RECAP SECT'!$G$6:$CU$253,18,FALSE) -> 1,179 | G17: =VLOOKUP($C17,'RECAP SECT'!$G$6:$CU$253,19,FALSE) -> 31.64 | H17: =VLOOKUP($C17,'RECAP SECT'!$G$6:$CU$253,20,FALSE) -> 18% | I17: =VLOOKUP($C17,'RECAP SECT'!$G$6:$CU$253,21,FALSE) -> 3 | J17: =VLOOKUP($C17,'RECAP SECT'!$G$6:$CU$253,22,FALSE) -> 2,728 | K17: =VLOOKUP($C17,'RECAP SECT'!$G$6:$CU$253,23,FALSE) -> 73.22 | L17: =VLOOKUP($C17,'RECAP SECT'!$G$6:$CU$253,24,FALSE) -> 24% | M17: =VLOOKUP($C17,'RECAP SECT'!$G$6:$CU$253,25,FALSE) -> 8 | N17: =VLOOKUP($C17,'RECAP SECT'!$G$6:$CU$253,26,FALSE) -> 20% | O17: =VLOOKUP($C17,'RECAP SECT'!$G$6:$CU$253,27,FALSE) -> 20% | P17: =VLOOKUP($C17,'RECAP SECT'!$G$6:$CU$253,28,FALSE) -> 3
A18: 30 | B18: MARNE-ARDENNES | C18: 2 | D18: CHARLEVILLE MEZIERES | E18: =VLOOKUP($C18,'RECAP SECT'!$G$6:$CU$253,3,FALSE) -> 48.2 | F18: =VLOOKUP($C18,'RECAP SECT'!$G$6:$CU$253,18,FALSE) -> 1,030 | G18: =VLOOKUP($C18,'RECAP SECT'!$G$6:$CU$253,19,FALSE) -> 21.39 | H18: =VLOOKUP($C18,'RECAP SECT'!$G$6:$CU$253,20,FALSE) -> 44% | I18: =VLOOKUP($C18,'RECAP SECT'!$G$6:$CU$253,21,FALSE) -> 8 | J18: =VLOOKUP($C18,'RECAP SECT'!$G$6:$CU$253,22,FALSE) -> 3,679 | K18: =VLOOKUP($C18,'RECAP SECT'!$G$6:$CU$253,23,FALSE) -> 76.41 | L18: =VLOOKUP($C18,'RECAP SECT'!$G$6:$CU$253,24,FALSE) -> 21% | M18: =VLOOKUP($C18,'RECAP SECT'!$G$6:$CU$253,25,FALSE) -> 5 | N18: =VLOOKUP($C18,'RECAP SECT'!$G$6:$CU$253,26,FALSE) -> 35% | O18: =VLOOKUP($C18,'RECAP SECT'!$G$6:$CU$253,27,FALSE) -> 35% | P18: =VLOOKUP($C18,'RECAP SECT'!$G$6:$CU$253,28,FALSE) -> 6
A19: 30 | B19: MARNE-ARDENNES | C19: 11 | D19: REIMS | E19: =VLOOKUP($C19,'RECAP SECT'!$G$6:$CU$253,3,FALSE) -> 67.9 | F19: =VLOOKUP($C19,'RECAP SECT'!$G$6:$CU$253,18,FALSE) -> 2,606 | G19: =VLOOKUP($C19,'RECAP SECT'!$G$6:$CU$253,19,FALSE) -> 38.36 | H19: =VLOOKUP($C19,'RECAP SECT'!$G$6:$CU$253,20,FALSE) -> 0% | I19: =VLOOKUP($C19,'RECAP SECT'!$G$6:$CU$253,21,FALSE) -> 1 | J19: =VLOOKUP($C19,'RECAP SECT'!$G$6:$CU$253,22,FALSE) -> 6,562 | K19: =VLOOKUP($C19,'RECAP SECT'!$G$6:$CU$253,23,FALSE) -> 96.61 | L19: =VLOOKUP($C19,'RECAP SECT'!$G$6:$CU$253,24,FALSE) -> 0% | M19: =VLOOKUP($C19,'RECAP SECT'!$G$6:$CU$253,25,FALSE) -> 1 | N19: =VLOOKUP($C19,'RECAP SECT'!$G$6:$CU$253,26,FALSE) -> 0% | O19: =VLOOKUP($C19,'RECAP SECT'!$G$6:$CU$253,27,FALSE) -> 0% | P19: =VLOOKUP($C19,'RECAP SECT'!$G$6:$CU$253,28,FALSE) -> 1
A20: 110 | B20: MEURTHE ET MOSELLE MEUSE | C20: 26 | D20: NANCY | E20: =VLOOKUP($C20,'RECAP SECT'!$G$6:$CU$253,3,FALSE) -> 54.9 | F20: =VLOOKUP($C20,'RECAP SECT'!$G$6:$CU$253,18,FALSE) -> 916 | G20: =VLOOKUP($C20,'RECAP SECT'!$G$6:$CU$253,19,FALSE) -> 16.68 | H20: =VLOOKUP($C20,'RECAP SECT'!$G$6:$CU$253,20,FALSE) -> 57% | I20: =VLOOKUP($C20,'RECAP SECT'!$G$6:$CU$253,21,FALSE) -> 13 | J20: =VLOOKUP($C20,'RECAP SECT'!$G$6:$CU$253,22,FALSE) -> 4,114 | K20: =VLOOKUP($C20,'RECAP SECT'!$G$6:$CU$253,23,FALSE) -> 74.91 | L20: =VLOOKUP($C20,'RECAP SECT'!$G$6:$CU$253,24,FALSE) -> 22% | M20: =VLOOKUP($C20,'RECAP SECT'!$G$6:$CU$253,25,FALSE) -> 7 | N20: =VLOOKUP($C20,'RECAP SECT'!$G$6:$CU$253,26,FALSE) -> 43% | O20: =VLOOKUP($C20,'RECAP SECT'!$G$6:$CU$253,27,FALSE) -> 43% | P20: =VLOOKUP($C20,'RECAP SECT'!$G$6:$CU$253,28,FALSE) -> 11
A21: 110 | B21: MEURTHE ET MOSELLE MEUSE | C21: 27 | D21: PONT A MOUSSON | E21: =VLOOKUP($C21,'RECAP SECT'!$G$6:$CU$253,3,FALSE) -> 59.6 | F21: =VLOOKUP($C21,'RECAP SECT'!$G$6:$CU$253,18,FALSE) -> 974 | G21: =VLOOKUP($C21,'RECAP SECT'!$G$6:$CU$253,19,FALSE) -> 16.34 | H21: =VLOOKUP($C21,'RECAP SECT'!$G$6:$CU$253,20,FALSE) -> 57% | I21: =VLOOKUP($C21,'RECAP SECT'!$G$6:$CU$253,21,FALSE) -> 14 | J21: =VLOOKUP($C21,'RECAP SECT'!$G$6:$CU$253,22,FALSE) -> 4,529 | K21: =VLOOKUP($C21,'RECAP SECT'!$G$6:$CU$253,23,FALSE) -> 75.94 | L21: =VLOOKUP($C21,'RECAP SECT'!$G$6:$CU$253,24,FALSE) -> 21% | M21: =VLOOKUP($C21,'RECAP SECT'!$G$6:$CU$253,25,FALSE) -> 6 | N21: =VLOOKUP($C21,'RECAP SECT'!$G$6:$CU$253,26,FALSE) -> 43% | O21: =VLOOKUP($C21,'RECAP SECT'!$G$6:$CU$253,27,FALSE) -> 43% | P21: =VLOOKUP($C21,'RECAP SECT'!$G$6:$CU$253,28,FALSE) -> 12
A22: 110 | B22: MEURTHE ET MOSELLE MEUSE | C22: 31 | D22: VERDUN | E22: =VLOOKUP($C22,'RECAP SECT'!$G$6:$CU$253,3,FALSE) -> 48.7 | F22: =VLOOKUP($C22,'RECAP SECT'!$G$6:$CU$253,18,FALSE) -> 1,051 | G22: =VLOOKUP($C22,'RECAP SECT'!$G$6:$CU$253,19,FALSE) -> 21.58 | H22: =VLOOKUP($C22,'RECAP SECT'!$G$6:$CU$253,20,FALSE) -> 44% | I22: =VLOOKUP($C22,'RECAP SECT'!$G$6:$CU$253,21,FALSE) -> 7 | J22: =VLOOKUP($C22,'RECAP SECT'!$G$6:$CU$253,22,FALSE) -> 3,468 | K22: =VLOOKUP($C22,'RECAP SECT'!$G$6:$CU$253,23,FALSE) -> 71.23 | L22: =VLOOKUP($C22,'RECAP SECT'!$G$6:$CU$253,24,FALSE) -> 26% | M22: =VLOOKUP($C22,'RECAP SECT'!$G$6:$CU$253,25,FALSE) -> 10 | N22: =VLOOKUP($C22,'RECAP SECT'!$G$6:$CU$253,26,FALSE) -> 37% | O22: =VLOOKUP($C22,'RECAP SECT'!$G$6:$CU$253,27,FALSE) -> 37% | P22: =VLOOKUP($C22,'RECAP SECT'!$G$6:$CU$253,28,FALSE) -> 7
A23: 160 | B23: MOSELLE | C23: 45 | D23: METZ | E23: =VLOOKUP($C23,'RECAP SECT'!$G$6:$CU$253,3,FALSE) -> 72.6 | F23: =VLOOKUP($C23,'RECAP SECT'!$G$6:$CU$253,18,FALSE) -> 1,414 | G23: =VLOOKUP($C23,'RECAP SECT'!$G$6:$CU$253,19,FALSE) -> 19.49 | H23: =VLOOKUP($C23,'RECAP SECT'!$G$6:$CU$253,20,FALSE) -> 49% | I23: =VLOOKUP($C23,'RECAP SECT'!$G$6:$CU$253,21,FALSE) -> 11 | J23: =VLOOKUP($C23,'RECAP SECT'!$G$6:$CU$253,22,FALSE) -> 5,298 | K23: =VLOOKUP($C23,'RECAP SECT'!$G$6:$CU$253,23,FALSE) -> 73.03 | L23: =VLOOKUP($C23,'RECAP SECT'!$G$6:$CU$253,24,FALSE) -> 24% | M23: =VLOOKUP($C23,'RECAP SECT'!$G$6:$CU$253,25,FALSE) -> 9 | N23: =VLOOKUP($C23,'RECAP SECT'!$G$6:$CU$253,26,FALSE) -> 39% | O23: =VLOOKUP($C23,'RECAP SECT'!$G$6:$CU$253,27,FALSE) -> 39% | P23: =VLOOKUP($C23,'RECAP SECT'!$G$6:$CU$253,28,FALSE) -> 9
A24: 160 | B24: MOSELLE | C24: 42 | D24: MOSELLE EST | E24: =VLOOKUP($C24,'RECAP SECT'!$G$6:$CU$253,3,FALSE) -> 57.7 | F24: =VLOOKUP($C24,'RECAP SECT'!$G$6:$CU$253,18,FALSE) -> 1,518 | G24: =VLOOKUP($C24,'RECAP SECT'!$G$6:$CU$253,19,FALSE) -> 26.31 | H24: =VLOOKUP($C24,'RECAP SECT'!$G$6:$CU$253,20,FALSE) -> 31% | I24: =VLOOKUP($C24,'RECAP SECT'!$G$6:$CU$253,21,FALSE) -> 4 | J24: =VLOOKUP($C24,'RECAP SECT'!$G$6:$CU$253,22,FALSE) -> 4,490 | K24: =VLOOKUP($C24,'RECAP SECT'!$G$6:$CU$253,23,FALSE) -> 77.84 | L24: =VLOOKUP($C24,'RECAP SECT'!$G$6:$CU$253,24,FALSE) -> 19% | M24: =VLOOKUP($C24,'RECAP SECT'!$G$6:$CU$253,25,FALSE) -> 4 | N24: =VLOOKUP($C24,'RECAP SECT'!$G$6:$CU$253,26,FALSE) -> 27% | O24: =VLOOKUP($C24,'RECAP SECT'!$G$6:$CU$253,27,FALSE) -> 27% | P24: =VLOOKUP($C24,'RECAP SECT'!$G$6:$CU$253,28,FALSE) -> 4
A25: 160 | B25: MOSELLE | C25: 44 | D25: MOSELLE NORD | E25: =VLOOKUP($C25,'RECAP SECT'!$G$6:$CU$253,3,FALSE) -> 55.4 | F25: =VLOOKUP($C25,'RECAP SECT'!$G$6:$CU$253,18,FALSE) -> 2,028 | G25: =VLOOKUP($C25,'RECAP SECT'!$G$6:$CU$253,19,FALSE) -> 36.59 | H25: =VLOOKUP($C25,'RECAP SECT'!$G$6:$CU$253,20,FALSE) -> 5% | I25: =VLOOKUP($C25,'RECAP SECT'!$G$6:$CU$253,21,FALSE) -> 2 | J25: =VLOOKUP($C25,'RECAP SECT'!$G$6:$CU$253,22,FALSE) -> 4,880 | K25: =VLOOKUP($C25,'RECAP SECT'!$G$6:$CU$253,23,FALSE) -> 88.05 | L25: =VLOOKUP($C25,'RECAP SECT'!$G$6:$CU$253,24,FALSE) -> 9% | M25: =VLOOKUP($C25,'RECAP SECT'!$G$6:$CU$253,25,FALSE) -> 2 | N25: =VLOOKUP($C25,'RECAP SECT'!$G$6:$CU$253,26,FALSE) -> 6% | O25: =VLOOKUP($C25,'RECAP SECT'!$G$6:$CU$253,27,FALSE) -> 6% | P25: =VLOOKUP($C25,'RECAP SECT'!$G$6:$CU$253,28,FALSE) -> 2
A26: 80 | B26: VOSGES | C26: 57 | D26: EPINAL | E26: =VLOOKUP($C26,'RECAP SECT'!$G$6:$CU$253,3,FALSE) -> 53.0 | F26: =VLOOKUP($C26,'RECAP SECT'!$G$6:$CU$253,18,FALSE) -> 1,164 | G26: =VLOOKUP($C26,'RECAP SECT'!$G$6:$CU$253,19,FALSE) -> 21.98 | H26: =VLOOKUP($C26,'RECAP SECT'!$G$6:$CU$253,20,FALSE) -> 43% | I26: =VLOOKUP($C26,'RECAP SECT'!$G$6:$CU$253,21,FALSE) -> 6 | J26: =VLOOKUP($C26,'RECAP SECT'!$G$6:$CU$253,22,FALSE) -> 3,468 | K26: =VLOOKUP($C26,'RECAP SECT'!$G$6:$CU$253,23,FALSE) -> 65.48 | L26: =VLOOKUP($C26,'RECAP SECT'!$G$6:$CU$253,24,FALSE) -> 32% | M26: =VLOOKUP($C26,'RECAP SECT'!$G$6:$CU$253,25,FALSE) -> 13 | N26: =VLOOKUP($C26,'RECAP SECT'!$G$6:$CU$253,26,FALSE) -> 39% | O26: =VLOOKUP($C26,'RECAP SECT'!$G$6:$CU$253,27,FALSE) -> 39% | P26: =VLOOKUP($C26,'RECAP SECT'!$G$6:$CU$253,28,FALSE) -> 8
A27: 80 | B27: VOSGES | C27: 55 | D27: SAINT DIE | E27: =VLOOKUP($C27,'RECAP SECT'!$G$6:$CU$253,3,FALSE) -> 40.0 | F27: =VLOOKUP($C27,'RECAP SECT'!$G$6:$CU$253,18,FALSE) -> 601 | G27: =VLOOKUP($C27,'RECAP SECT'!$G$6:$CU$253,19,FALSE) -> 15.02 | H27: =VLOOKUP($C27,'RECAP SECT'!$G$6:$CU$253,20,FALSE) -> 61% | I27: =VLOOKUP($C27,'RECAP SECT'!$G$6:$CU$253,21,FALSE) -> 15 | J27: =VLOOKUP($C27,'RECAP SECT'!$G$6:$CU$253,22,FALSE) -> 2,265 | K27: =VLOOKUP($C27,'RECAP SECT'!$G$6:$CU$253,23,FALSE) -> 56.58 | L27: =VLOOKUP($C27,'RECAP SECT'!$G$6:$CU$253,24,FALSE) -> 41% | M27: =VLOOKUP($C27,'RECAP SECT'!$G$6:$CU$253,25,FALSE) -> 17 | N27: =VLOOKUP($C27,'RECAP SECT'!$G$6:$CU$253,26,FALSE) -> 53% | O27: =VLOOKUP($C27,'RECAP SECT'!$G$6:$CU$253,27,FALSE) -> 53% | P27: =VLOOKUP($C27,'RECAP SECT'!$G$6:$CU$253,28,FALSE) -> 15
A28: Total CEGEE Directions Régionales | E28: =SUM(E10:E27) -> 946

Sheet SE_EPARGNE
B1: Accueil | F1: BAROMETRE BDD - TERRITOIRES
F2: EPARGNE
F3: =ACCUEIL!F7 -> 2022-11-27
F7: Excédent Epargne hors DAV pondéré | J7: Ventes sur client non détenteur de l’univers | N7: Total Epargne
F8: =DATEMAJ!C14 -> au 27/11 | H8: coef | I8: ='RECAP DIRCOM'!AP4 -> 12% | J8: =DATEMAJ!C15 -> au 27/11 | L8: coef | M8: ='RECAP DIRCOM'!AT4 -> 8% | O8: coef | P8: ='RECAP DIRCOM'!AW4 -> 20%
A9: eds | B9: Direction | C9: eds | D9: Territoire | E9: ="ETP perf "&DATEMAJ!$C$28 -> ETP perf 27-nov | F9: Excédent | G9: Excédent / ETP | H9: % Ecart au 1er | I9: Rang | J9: VB | K9: VB / ETP | L9: % Ecart au 1er | M9: Rang | N9: Moyenne ecart au 1er | O9: % Ecart au 1er | P9: Rang CEGEE
A10: 50 | B10: AUBE HAUTE MARNE | C10: 21 | D10: CHAUMONT | E10: =VLOOKUP($C10,'RECAP SECT'!$G$6:$CU$253,3,FALSE) -> 33.5 | F10: =VLOOKUP($C10,'RECAP SECT'!$G$6:$CU$253,33,FALSE) -> 13,178 | G10: =VLOOKUP($C10,'RECAP SECT'!$G$6:$CU$253,34,FALSE) -> 393.02 | H10: =VLOOKUP($C10,'RECAP SECT'!$G$6:$CU$253,35,FALSE) -> 24% | I10: =VLOOKUP($C10,'RECAP SECT'!$G$6:$CU$253,36,FALSE) -> 4 | J10: =VLOOKUP($C10,'RECAP SECT'!$G$6:$CU$253,37,FALSE) -> 2,154 | K10: =VLOOKUP($C10,'RECAP SECT'!$G$6:$CU$253,38,FALSE) -> 64.24 | L10: =VLOOKUP($C10,'RECAP SECT'!$G$6:$CU$253,39,FALSE) -> 33% | M10: =VLOOKUP($C10,'RECAP SECT'!$G$6:$CU$253,40,FALSE) -> 10 | N10: =VLOOKUP($C10,'RECAP SECT'!$G$6:$CU$253,41,FALSE) -> 27% | O10: =VLOOKUP($C10,'RECAP SECT'!$G$6:$CU$253,42,FALSE) -> 20% | P10: =VLOOKUP($C10,'RECAP SECT'!$G$6:$CU$253,43,FALSE) -> 7
A11: 50 | B11: AUBE HAUTE MARNE | C11: 14 | D11: TROYES | E11: =VLOOKUP($C11,'RECAP SECT'!$G$6:$CU$253,3,FALSE) -> 53.9 | F11: =VLOOKUP($C11,'RECAP SECT'!$G$6:$CU$253,33,FALSE) -> 2,273 | G11: =VLOOKUP($C11,'RECAP SECT'!$G$6:$CU$253,34,FALSE) -> 42.18 | H11: =VLOOKUP($C11,'RECAP SECT'!$G$6:$CU$253,35,FALSE) -> 92% | I11: =VLOOKUP($C11,'RECAP SECT'!$G$6:$CU$253,36,FALSE) -> 16 | J11: =VLOOKUP($C11,'RECAP SECT'!$G$6:$CU$253,37,FALSE) -> 3,406 | K11: =VLOOKUP($C11,'RECAP SECT'!$G$6:$CU$253,38,FALSE) -> 63.20 | L11: =VLOOKUP($C11,'RECAP SECT'!$G$6:$CU$253,39,FALSE) -> 34% | M11: =VLOOKUP($C11,'RECAP SECT'!$G$6:$CU$253,40,FALSE) -> 13 | N11: =VLOOKUP($C11,'RECAP SECT'!$G$6:$CU$253,41,FALSE) -> 69% | O11: =VLOOKUP($C11,'RECAP SECT'!$G$6:$CU$253,42,FALSE) -> 62% | P11: =VLOOKUP($C11,'RECAP SECT'!$G$6:$CU$253,43,FALSE) -> 16
A12: 262 | B12: BAS-RHIN | C12: 5060 | D12: HAGUENAU | E12: =VLOOKUP($C12,'RECAP SECT'!$G$6:$CU$253,3,FALSE) -> 55.7 | F12: =VLOOKUP($C12,'RECAP SECT'!$G$6:$CU$253,33,FALSE) -> 15,552 | G12: =VLOOKUP($C12,'RECAP SECT'!$G$6:$CU$253,34,FALSE) -> 279.42 | H12: =VLOOKUP($C12,'RECAP SECT'!$G$6:$CU$253,35,FALSE) -> 46% | I12: =VLOOKUP($C12,'RECAP SECT'!$G$6:$CU$253,36,FALSE) -> 10 | J12: =VLOOKUP($C12,'RECAP SECT'!$G$6:$CU$253,37,FALSE) -> 3,363 | K12: =VLOOKUP($C12,'RECAP SECT'!$G$6:$CU$253,38,FALSE) -> 60.42 | L12: =VLOOKUP($C12,'RECAP SECT'!$G$6:$CU$253,39,FALSE) -> 37% | M12: =VLOOKUP($C12,'RECAP SECT'!$G$6:$CU$253,40,FALSE) -> 14 | N12: =VLOOKUP($C12,'RECAP SECT'!$G$6:$CU$253,41,FALSE) -> 42% | O12: =VLOOKUP($C12,'RECAP SECT'!$G$6:$CU$253,42,FALSE) -> 35% | P12: =VLOOKUP($C12,'RECAP SECT'!$G$6:$CU$253,43,FALSE) -> 13
A13: 262 | B13: BAS-RHIN | C13: 5101 | D13: SELESTAT | E13: =VLOOKUP($C13,'RECAP SECT'!$G$6:$CU$253,3,FALSE) -> 50.7 | F13: =VLOOKUP($C13,'RECAP SECT'!$G$6:$CU$253,33,FALSE) -> 8,397 | G13: =VLOOKUP($C13,'RECAP SECT'!$G$6:$CU$253,34,FALSE) -> 165.75 | H13: =VLOOKUP($C13,'RECAP SECT'!$G$6:$CU$253,35,FALSE) -> 68% | I13: =VLOOKUP($C13,'RECAP SECT'!$G$6:$CU$253,36,FALSE) -> 14 | J13: =VLOOKUP($C13,'RECAP SECT'!$G$6:$CU$253,37,FALSE) -> 3,038 | K13: =VLOOKUP($C13,'RECAP SECT'!$G$6:$CU$253,38,FALSE) -> 59.97 | L13: =VLOOKUP($C13,'RECAP SECT'!$G$6:$CU$253,39,FALSE) -> 38% | M13: =VLOOKUP($C13,'RECAP SECT'!$G$6:$CU$253,40,FALSE) -> 15 | N13: =VLOOKUP($C13,'RECAP SECT'!$G$6:$CU$253,41,FALSE) -> 56% | O13: =VLOOKUP($C13,'RECAP SECT'!$G$6:$CU$253,42,FALSE) -> 48% | P13: =VLOOKUP($C13,'RECAP SECT'!$G$6:$CU$253,43,FALSE) -> 15
A14: 262 | B14: BAS-RHIN | C14: 5006 | D14: STRASBOURG | E14: =VLOOKUP($C14,'RECAP SECT'!$G$6:$CU$253,3,FALSE) -> 64.5 | F14: =VLOOKUP($C14,'RECAP SECT'!$G$6:$CU$253,33,FALSE) -> 30,840 | G14: =VLOOKUP($C14,'RECAP SECT'!$G$6:$CU$253,34,FALSE) -> 478.37 | H14: =VLOOKUP($C14,'RECAP SECT'!$G$6:$CU$253,35,FALSE) -> 7% | I14: =VLOOKUP($C14,'RECAP SECT'!$G$6:$CU$253,36,FALSE) -> 2 | J14: =VLOOKUP($C14,'RECAP SECT'!$G$6:$CU$253,37,FALSE) -> 5,508 | K14: =VLOOKUP($C14,'RECAP SECT'!$G$6:$CU$253,38,FALSE) -> 85.44 | L14: =VLOOKUP($C14,'RECAP SECT'!$G$6:$CU$253,39,FALSE) -> 11% | M14: =VLOOKUP($C14,'RECAP SECT'!$G$6:$CU$253,40,FALSE) -> 4 | N14: =VLOOKUP($C14,'RECAP SECT'!$G$6:$CU$253,41,FALSE) -> 9% | O14: =VLOOKUP($C14,'RECAP SECT'!$G$6:$CU$253,42,FALSE) -> 1% | P14: =VLOOKUP($C14,'RECAP SECT'!$G$6:$CU$253,43,FALSE) -> 2
A15: 264 | B15: HAUT-RHIN | C15: 5130 | D15: COLMAR | E15: =VLOOKUP($C15,'RECAP SECT'!$G$6:$CU$253,3,FALSE) -> 45.5 | F15: =VLOOKUP($C15,'RECAP SECT'!$G$6:$CU$253,33,FALSE) -> -974 | G15: =VLOOKUP($C15,'RECAP SECT'!$G$6:$CU$253,34,FALSE) -> -21.43 | H15: =VLOOKUP($C15,'RECAP SECT'!$G$6:$CU$253,35,FALSE) -> 104% | I15: =VLOOKUP($C15,'RECAP SECT'!$G$6:$CU$253,36,FALSE) -> 17 | J15: =VLOOKUP($C15,'RECAP SECT'!$G$6:$CU$253,37,FALSE) -> 2,260 | K15: =VLOOKUP($C15,'RECAP SECT'!$G$6:$CU$253,38,FALSE) -> 49.71 | L15: =VLOOKUP($C15,'RECAP SECT'!$G$6:$CU$253,39,FALSE) -> 48% | M15: =VLOOKUP($C15,'RECAP SECT'!$G$6:$CU$253,40,FALSE) -> 18 | N15: =VLOOKUP($C15,'RECAP SECT'!$G$6:$CU$253,41,FALSE) -> 82% | O15: =VLOOKUP($C15,'RECAP SECT'!$G$6:$CU$253,42,FALSE) -> 75% | P15: =VLOOKUP($C15,'RECAP SECT'!$G$6:$CU$253,43,FALSE) -> 17
A16: 264 | B16: HAUT-RHIN | C16: 5169 | D16: MULHOUSE | E16: =VLOOKUP($C16,'RECAP SECT'!$G$6:$CU$253,3,FALSE) -> 46.9 | F16: =VLOOKUP($C16,'RECAP SECT'!$G$6:$CU$253,33,FALSE) -> -3,923 | G16: =VLOOKUP($C16,'RECAP SECT'!$G$6:$CU$253,34,FALSE) -> -83.58 | H16: =VLOOKUP($C16,'RECAP SECT'!$G$6:$CU$253,35,FALSE) -> 116% | I16: =VLOOKUP($C16,'RECAP SECT'!$G$6:$CU$253,36,FALSE) -> 18 | J16: =VLOOKUP($C16,'RECAP SECT'!$G$6:$CU$253,37,FALSE) -> 2,674 | K16: =VLOOKUP($C16,'RECAP SECT'!$G$6:$CU$253,38,FALSE) -> 56.97 | L16: =VLOOKUP($C16,'RECAP SECT'!$G$6:$CU$253,39,FALSE) -> 41% | M16: =VLOOKUP($C16,'RECAP SECT'!$G$6:$CU$253,40,FALSE) -> 16 | N16: =VLOOKUP($C16,'RECAP SECT'!$G$6:$CU$253,41,FALSE) -> 86% | O16: =VLOOKUP($C16,'RECAP SECT'!$G$6:$CU$253,42,FALSE) -> 79% | P16: =VLOOKUP($C16,'RECAP SECT'!$G$6:$CU$253,43,FALSE) -> 18
A17: 30 | B17: MARNE-ARDENNES | C17: 6 | D17: CHALONS EN CHAMPAGNE | E17: =VLOOKUP($C17,'RECAP SECT'!$G$6:$CU$253,3,FALSE) -> 37.3 | F17: =VLOOKUP($C17,'RECAP SECT'!$G$6:$CU$253,33,FALSE) -> 13,306 | G17: =VLOOKUP($C17,'RECAP SECT'!$G$6:$CU$253,34,FALSE) -> 357.12 | H17: =VLOOKUP($C17,'RECAP SECT'!$G$6:$CU$253,35,FALSE) -> 31% | I17: =VLOOKUP($C17,'RECAP SECT'!$G$6:$CU$253,36,FALSE) -> 7 | J17: =VLOOKUP($C17,'RECAP SECT'!$G$6:$CU$253,37,FALSE) -> 3,057 | K17: =VLOOKUP($C17,'RECAP SECT'!$G$6:$CU$253,38,FALSE) -> 82.05 | L17: =VLOOKUP($C17,'RECAP SECT'!$G$6:$CU$253,39,FALSE) -> 15% | M17: =VLOOKUP($C17,'RECAP SECT'!$G$6:$CU$253,40,FALSE) -> 6 | N17: =VLOOKUP($C17,'RECAP SECT'!$G$6:$CU$253,41,FALSE) -> 24% | O17: =VLOOKUP($C17,'RECAP SECT'!$G$6:$CU$253,42,FALSE) -> 17% | P17: =VLOOKUP($C17,'RECAP SECT'!$G$6:$CU$253,43,FALSE) -> 3
A18: 30 | B18: MARNE-ARDENNES | C18: 2 | D18: CHARLEVILLE MEZIERES | E18: =VLOOKUP($C18,'RECAP SECT'!$G$6:$CU$253,3,FALSE) -> 48.2 | F18: =VLOOKUP($C18,'RECAP SECT'!$G$6:$CU$253,33,FALSE) -> 16,332 | G18: =VLOOKUP($C18,'RECAP SECT'!$G$6:$CU$253,34,FALSE) -> 339.19 | H18: =VLOOKUP($C18,'RECAP SECT'!$G$6:$CU$253,35,FALSE) -> 34% | I18: =VLOOKUP($C18,'RECAP SECT'!$G$6:$CU$253,36,FALSE) -> 8 | J18: =VLOOKUP($C18,'RECAP SECT'!$G$6:$CU$253,37,FALSE) -> 4,174 | K18: =VLOOKUP($C18,'RECAP SECT'!$G$6:$CU$253,38,FALSE) -> 86.69 | L18: =VLOOKUP($C18,'RECAP SECT'!$G$6:$CU$253,39,FALSE) -> 10% | M18: =VLOOKUP($C18,'RECAP SECT'!$G$6:$CU$253,40,FALSE) -> 3 | N18: =VLOOKUP($C18,'RECAP SECT'!$G$6:$CU$253,41,FALSE) -> 24% | O18: =VLOOKUP($C18,'RECAP SECT'!$G$6:$CU$253,42,FALSE) -> 17% | P18: =VLOOKUP($C18,'RECAP SECT'!$G$6:$CU$253,43,FALSE) -> 5
A19: 30 | B19: MARNE-ARDENNES | C19: 11 | D19: REIMS | E19: =VLOOKUP($C19,'RECAP SECT'!$G$6:$CU$253,3,FALSE) -> 67.9 | F19: =VLOOKUP($C19,'RECAP SECT'!$G$6:$CU$253,33,FALSE) -> 18,717 | G19: =VLOOKUP($C19,'RECAP SECT'!$G$6:$CU$253,34,FALSE) -> 275.57 | H19: =VLOOKUP($C19,'RECAP SECT'!$G$6:$CU$253,35,FALSE) -> 46% | I19: =VLOOKUP($C19,'RECAP SECT'!$G$6:$CU$253,36,FALSE) -> 12 | J19: =VLOOKUP($C19,'RECAP SECT'!$G$6:$CU$253,37,FALSE) -> 6,176 | K19: =VLOOKUP($C19,'RECAP SECT'!$G$6:$CU$253,38,FALSE) -> 90.93 | L19: =VLOOKUP($C19,'RECAP SECT'!$G$6:$CU$253,39,FALSE) -> 5% | M19: =VLOOKUP($C19,'RECAP SECT'!$G$6:$CU$253,40,FALSE) -> 2 | N19: =VLOOKUP($C19,'RECAP SECT'!$G$6:$CU$253,41,FALSE) -> 30% | O19: =VLOOKUP($C19,'RECAP SECT'!$G$6:$CU$253,42,FALSE) -> 23% | P19: =VLOOKUP($C19,'RECAP SECT'!$G$6:$CU$253,43,FALSE) -> 9
A20: 110 | B20: MEURTHE ET MOSELLE MEUSE | C20: 26 | D20: NANCY | E20: =VLOOKUP($C20,'RECAP SECT'!$G$6:$CU$253,3,FALSE) -> 54.9 | F20: =VLOOKUP($C20,'RECAP SECT'!$G$6:$CU$253,33,FALSE) -> 21,580 | G20: =VLOOKUP($C20,'RECAP SECT'!$G$6:$CU$253,34,FALSE) -> 392.94 | H20: =VLOOKUP($C20,'RECAP SECT'!$G$6:$CU$253,35,FALSE) -> 24% | I20: =VLOOKUP($C20,'RECAP SECT'!$G$6:$CU$253,36,FALSE) -> 5 | J20: =VLOOKUP($C20,'RECAP SECT'!$G$6:$CU$253,37,FALSE) -> 3,939 | K20: =VLOOKUP($C20,'RECAP SECT'!$G$6:$CU$253,38,FALSE) -> 71.72 | L20: =VLOOKUP($C20,'RECAP SECT'!$G$6:$CU$253,39,FALSE) -> 25% | M20: =VLOOKUP($C20,'RECAP SECT'!$G$6:$CU$253,40,FALSE) -> 8 | N20: =VLOOKUP($C20,'RECAP SECT'!$G$6:$CU$253,41,FALSE) -> 24% | O20: =VLOOKUP($C20,'RECAP SECT'!$G$6:$CU$253,42,FALSE) -> 17% | P20: =VLOOKUP($C20,'RECAP SECT'!$G$6:$CU$253,43,FALSE) -> 4
A21: 110 | B21: MEURTHE ET MOSELLE MEUSE | C21: 27 | D21: PONT A MOUSSON | E21: =VLOOKUP($C21,'RECAP SECT'!$G$6:$CU$253,3,FALSE) -> 59.6 | F21: =VLOOKUP($C21,'RECAP SECT'!$G$6:$CU$253,33,FALSE) -> 24,510 | G21: =VLOOKUP($C21,'RECAP SECT'!$G$6:$CU$253,34,FALSE) -> 410.97 | H21: =VLOOKUP($C21,'RECAP SECT'!$G$6:$CU$253,35,FALSE) -> 20% | I21: =VLOOKUP($C21,'RECAP SECT'!$G$6:$CU$253,36,FALSE) -> 3 | J21: =VLOOKUP($C21,'RECAP SECT'!$G$6:$CU$253,37,FALSE) -> 3,865 | K21: =VLOOKUP($C21,'RECAP SECT'!$G$6:$CU$253,38,FALSE) -> 64.81 | L21: =VLOOKUP($C21,'RECAP SECT'!$G$6:$CU$253,39,FALSE) -> 33% | M21: =VLOOKUP($C21,'RECAP SECT'!$G$6:$CU$253,40,FALSE) -> 9 | N21: =VLOOKUP($C21,'RECAP SECT'!$G$6:$CU$253,41,FALSE) -> 25% | O21: =VLOOKUP($C21,'RECAP SECT'!$G$6:$CU$253,42,FALSE) -> 18% | P21: =VLOOKUP($C21,'RECAP SECT'!$G$6:$CU$253,43,FALSE) -> 6
A22: 110 | B22: MEURTHE ET MOSELLE MEUSE | C22: 31 | D22: VERDUN | E22: =VLOOKUP($C22,'RECAP SECT'!$G$6:$CU$253,3,FALSE) -> 48.7 | F22: =VLOOKUP($C22,'RECAP SECT'!$G$6:$CU$253,33,FALSE) -> 13,550 | G22: =VLOOKUP($C22,'RECAP SECT'!$G$6:$CU$253,34,FALSE) -> 278.29 | H22: =VLOOKUP($C22,'RECAP SECT'!$G$6:$CU$253,35,FALSE) -> 46% | I22: =VLOOKUP($C22,'RECAP SECT'!$G$6:$CU$253,36,FALSE) -> 11 | J22: =VLOOKUP($C22,'RECAP SECT'!$G$6:$CU$253,37,FALSE) -> 3,123 | K22: =VLOOKUP($C22,'RECAP SECT'!$G$6:$CU$253,38,FALSE) -> 64.14 | L22: =VLOOKUP($C22,'RECAP SECT'!$G$6:$CU$253,39,FALSE) -> 33% | M22: =VLOOKUP($C22,'RECAP SECT'!$G$6:$CU$253,40,FALSE) -> 11 | N22: =VLOOKUP($C22,'RECAP SECT'!$G$6:$CU$253,41,FALSE) -> 41% | O22: =VLOOKUP($C22,'RECAP SECT'!$G$6:$CU$253,42,FALSE) -> 34% | P22: =VLOOKUP($C22,'RECAP SECT'!$G$6:$CU$253,43,FALSE) -> 11
A23: 160 | B23: MOSELLE | C23: 45 | D23: METZ | E23: =VLOOKUP($C23,'RECAP SECT'!$G$6:$CU$253,3,FALSE) -> 72.6 | F23: =VLOOKUP($C23,'RECAP SECT'!$G$6:$CU$253,33,FALSE) -> 37,311 | G23: =VLOOKUP($C23,'RECAP SECT'!$G$6:$CU$253,34,FALSE) -> 514.28 | H23: =VLOOKUP($C23,'RECAP SECT'!$G$6:$CU$253,35,FALSE) -> 0% | I23: =VLOOKUP($C23,'RECAP SECT'!$G$6:$CU$253,36,FALSE) -> 1 | J23: =VLOOKUP($C23,'RECAP SECT'!$G$6:$CU$253,37,FALSE) -> 5,714 | K23: =VLOOKUP($C23,'RECAP SECT'!$G$6:$CU$253,38,FALSE) -> 78.76 | L23: =VLOOKUP($C23,'RECAP SECT'!$G$6:$CU$253,39,FALSE) -> 18% | M23: =VLOOKUP($C23,'RECAP SECT'!$G$6:$CU$253,40,FALSE) -> 7 | N23: =VLOOKUP($C23,'RECAP SECT'!$G$6:$CU$253,41,FALSE) -> 7% | O23: =VLOOKUP($C23,'RECAP SECT'!$G$6:$CU$253,42,FALSE) -> 0% | P23: =VLOOKUP($C23,'RECAP SECT'!$G$6:$CU$253,43,FALSE) -> 1
A24: 160 | B24: MOSELLE | C24: 42 | D24: MOSELLE EST | E24: =VLOOKUP($C24,'RECAP SECT'!$G$6:$CU$253,3,FALSE) -> 57.7 | F24: =VLOOKUP($C24,'RECAP SECT'!$G$6:$CU$253,33,FALSE) -> 17,117 | G24: =VLOOKUP($C24,'RECAP SECT'!$G$6:$CU$253,34,FALSE) -> 296.75 | H24: =VLOOKUP($C24,'RECAP SECT'!$G$6:$CU$253,35,FALSE) -> 42% | I24: =VLOOKUP($C24,'RECAP SECT'!$G$6:$CU$253,36,FALSE) -> 9 | J24: =VLOOKUP($C24,'RECAP SECT'!$G$6:$CU$253,37,FALSE) -> 4,745 | K24: =VLOOKUP($C24,'RECAP SECT'!$G$6:$CU$253,38,FALSE) -> 82.26 | L24: =VLOOKUP($C24,'RECAP SECT'!$G$6:$CU$253,39,FALSE) -> 14% | M24: =VLOOKUP($C24,'RECAP SECT'!$G$6:$CU$253,40,FALSE) -> 5 | N24: =VLOOKUP($C24,'RECAP SECT'!$G$6:$CU$253,41,FALSE) -> 31% | O24: =VLOOKUP($C24,'RECAP SECT'!$G$6:$CU$253,42,FALSE) -> 24% | P24: =VLOOKUP($C24,'RECAP SECT'!$G$6:$CU$253,43,FALSE) -> 10
A25: 160 | B25: MOSELLE | C25: 44 | D25: MOSELLE NORD | E25: =VLOOKUP($C25,'RECAP SECT'!$G$6:$CU$253,3,FALSE) -> 55.4 | F25: =VLOOKUP($C25,'RECAP SECT'!$G$6:$CU$253,33,FALSE) -> 8,958 | G25: =VLOOKUP($C25,'RECAP SECT'!$G$6:$CU$253,34,FALSE) -> 161.64 | H25: =VLOOKUP($C25,'RECAP SECT'!$G$6:$CU$253,35,FALSE) -> 69% | I25: =VLOOKUP($C25,'RECAP SECT'!$G$6:$CU$253,36,FALSE) -> 15 | J25: =VLOOKUP($C25,'RECAP SECT'!$G$6:$CU$253,37,FALSE) -> 5,322 | K25: =VLOOKUP($C25,'RECAP SECT'!$G$6:$CU$253,38,FALSE) -> 96.03 | L25: =VLOOKUP($C25,'RECAP SECT'!$G$6:$CU$253,39,FALSE) -> 0% | M25: =VLOOKUP($C25,'RECAP SECT'!$G$6:$CU$253,40,FALSE) -> 1 | N25: =VLOOKUP($C25,'RECAP SECT'!$G$6:$CU$253,41,FALSE) -> 41% | O25: =VLOOKUP($C25,'RECAP SECT'!$G$6:$CU$253,42,FALSE) -> 34% | P25: =VLOOKUP($C25,'RECAP SECT'!$G$6:$CU$253,43,FALSE) -> 12
A26: 80 | B26: VOSGES | C26: 57 | D26: EPINAL | E26: =VLOOKUP($C26,'RECAP SECT'!$G$6:$CU$253,3,FALSE) -> 53.0 | F26: =VLOOKUP($C26,'RECAP SECT'!$G$6:$CU$253,33,FALSE) -> 20,209 | G26: =VLOOKUP($C26,'RECAP SECT'!$G$6:$CU$253,34,FALSE) -> 381.58 | H26: =VLOOKUP($C26,'RECAP SECT'!$G$6:$CU$253,35,FALSE) -> 26% | I26: =VLOOKUP($C26,'RECAP SECT'!$G$6:$CU$253,36,FALSE) -> 6 | J26: =VLOOKUP($C26,'RECAP SECT'!$G$6:$CU$253,37,FALSE) -> 3,370 | K26: =VLOOKUP($C26,'RECAP SECT'!$G$6:$CU$253,38,FALSE) -> 63.63 | L26: =VLOOKUP($C26,'RECAP SECT'!$G$6:$CU$253,39,FALSE) -> 34% | M26: =VLOOKUP($C26,'RECAP SECT'!$G$6:$CU$253,40,FALSE) -> 12 | N26: =VLOOKUP($C26,'RECAP SECT'!$G$6:$CU$253,41,FALSE) -> 29% | O26: =VLOOKUP($C26,'RECAP SECT'!$G$6:$CU$253,42,FALSE) -> 22% | P26: =VLOOKUP($C26,'RECAP SECT'!$G$6:$CU$253,43,FALSE) -> 8
A27: 80 | B27: VOSGES | C27: 55 | D27: SAINT DIE | E27: =VLOOKUP($C27,'RECAP SECT'!$G$6:$CU$253,3,FALSE) -> 40.0 | F27: =VLOOKUP($C27,'RECAP SECT'!$G$6:$CU$253,33,FALSE) -> 9,244 | G27: =VLOOKUP($C27,'RECAP SECT'!$G$6:$CU$253,34,FALSE) -> 230.92 | H27: =VLOOKUP($C27,'RECAP SECT'!$G$6:$CU$253,35,FALSE) -> 55% | I27: =VLOOKUP($C27,'RECAP SECT'!$G$6:$CU$253,36,FALSE) -> 13 | J27: =VLOOKUP($C27,'RECAP SECT'!$G$6:$CU$253,37,FALSE) -> 2,107 | K27: =VLOOKUP($C27,'RECAP SECT'!$G$6:$CU$253,38,FALSE) -> 52.64 | L27: =VLOOKUP($C27,'RECAP SECT'!$G$6:$CU$253,39,FALSE) -> 45% | M27: =VLOOKUP($C27,'RECAP SECT'!$G$6:$CU$253,40,FALSE) -> 17 | N27: =VLOOKUP($C27,'RECAP SECT'!$G$6:$CU$253,41,FALSE) -> 51% | O27: =VLOOKUP($C27,'RECAP SECT'!$G$6:$CU$253,42,FALSE) -> 44% | P27: =VLOOKUP($C27,'RECAP SECT'!$G$6:$CU$253,43,FALSE) -> 14
A28: Total CEGEE Directions Régionales | E28: =SUM(E10:E27) -> 946

Sheet SE_CREDIT
B1: Accueil | F1: BAROMETRE BDD - TERRITOIRES
F2: CREDITS
F3: =ACCUEIL!F7 -> 2022-11-27
F7: Engagements et ventes accessoires pondérés Immo | J7: Engagements et ventes accessoires pondérés Conso | N7: Ventes sur client non détenteur de l’univers | R7: Total Crédits
F8: =DATEMAJ!C18 -> au 27/11 | H8: coef | I8: ='RECAP DIRCOM'!BE4 -> 6% | J8: =DATEMAJ!C19 -> au 27/11 | L8: coef | M8: ='RECAP DIRCOM'!BI4 -> 6% | N8: =DATEMAJ!C20 -> au 27/11 | P8: coef | Q8: ='RECAP DIRCOM'!BM4 -> 8% | S8: coef | T8: ='RECAP DIRCOM'!BP4 -> 20%
B9: Direction | C9: eds | D9: Territoire | E9: ="ETP perf "&DATEMAJ!$C$28 -> ETP perf 27-nov | F9: PNB | G9: PNB / ETP | H9: % Ecart au 1er | I9: Rang | J9: PNB | K9: PNB / ETP | L9: % Ecart au 1er | M9: Rang | N9: VB | O9: VB / ETP | P9: % Ecart au 1er | Q9: Rang | R9: Moyenne ecart au 1er | S9: % Ecart au 1er | T9: Rang CEGEE
A10: 50 | B10: AUBE HAUTE MARNE | C10: 21 | D10: CHAUMONT | E10: =VLOOKUP($C10,'RECAP SECT'!$G$6:$CU$253,3,FALSE) -> 33.5 | F10: =VLOOKUP($C10,'RECAP SECT'!$G$6:$CU$253,48,FALSE) -> 8,695 | G10: =VLOOKUP($C10,'RECAP SECT'!$G$6:$CU$253,49,FALSE) -> 259.31 | H10: =VLOOKUP($C10,'RECAP SECT'!$G$6:$CU$253,50,FALSE) -> 62% | I10: =VLOOKUP($C10,'RECAP SECT'!$G$6:$CU$253,51,FALSE) -> 14 | J10: =VLOOKUP($C10,'RECAP SECT'!$G$6:$CU$253,52,FALSE) -> 2,145 | K10: =VLOOKUP($C10,'RECAP SECT'!$G$6:$CU$253,53,FALSE) -> 63.98 | L10: =VLOOKUP($C10,'RECAP SECT'!$G$6:$CU$253,54,FALSE) -> 6% | M10: =VLOOKUP($C10,'RECAP SECT'!$G$6:$CU$253,55,FALSE) -> 4 | N10: =VLOOKUP($C10,'RECAP SECT'!$G$6:$CU$253,56,FALSE) -> 893 | O10: =VLOOKUP($C10,'RECAP SECT'!$G$6:$CU$253,57,FALSE) -> 26.63 | P10: =VLOOKUP($C10,'RECAP SECT'!$G$6:$CU$253,58,FALSE) -> 43% | Q10: =VLOOKUP($C10,'RECAP SECT'!$G$6:$CU$253,59,FALSE) -> 12 | R10: =VLOOKUP($C10,'RECAP SECT'!$G$6:$CU$253,60,FALSE) -> 37% | S10: =VLOOKUP($C10,'RECAP SECT'!$G$6:$CU$253,61,FALSE) -> 33% | T10: =VLOOKUP($C10,'RECAP SECT'!$G$6:$CU$253,62,FALSE) -> 10
A11: 50 | B11: AUBE HAUTE MARNE | C11: 14 | D11: TROYES | E11: =VLOOKUP($C11,'RECAP SECT'!$G$6:$CU$253,3,FALSE) -> 53.9 | F11: =VLOOKUP($C11,'RECAP SECT'!$G$6:$CU$253,48,FALSE) -> 13,191 | G11: =VLOOKUP($C11,'RECAP SECT'!$G$6:$CU$253,49,FALSE) -> 244.78 | H11: =VLOOKUP($C11,'RECAP SECT'!$G$6:$CU$253,50,FALSE) -> 64% | I11: =VLOOKUP($C11,'RECAP SECT'!$G$6:$CU$253,51,FALSE) -> 16 | J11: =VLOOKUP($C11,'RECAP SECT'!$G$6:$CU$253,52,FALSE) -> 3,060 | K11: =VLOOKUP($C11,'RECAP SECT'!$G$6:$CU$253,53,FALSE) -> 56.79 | L11: =VLOOKUP($C11,'RECAP SECT'!$G$6:$CU$253,54,FALSE) -> 17% | M11: =VLOOKUP($C11,'RECAP SECT'!$G$6:$CU$253,55,FALSE) -> 11 | N11: =VLOOKUP($C11,'RECAP SECT'!$G$6:$CU$253,56,FALSE) -> 1,260 | O11: =VLOOKUP($C11,'RECAP SECT'!$G$6:$CU$253,57,FALSE) -> 23.38 | P11: =VLOOKUP($C11,'RECAP SECT'!$G$6:$CU$253,58,FALSE) -> 50% | Q11: =VLOOKUP($C11,'RECAP SECT'!$G$6:$CU$253,59,FALSE) -> 14 | R11: =VLOOKUP($C11,'RECAP SECT'!$G$6:$CU$253,60,FALSE) -> 44% | S11: =VLOOKUP($C11,'RECAP SECT'!$G$6:$CU$253,61,FALSE) -> 39% | T11: =VLOOKUP($C11,'RECAP SECT'!$G$6:$CU$253,62,FALSE) -> 14
A12: 262 | B12: BAS-RHIN | C12: 5060 | D12: HAGUENAU | E12: =VLOOKUP($C12,'RECAP SECT'!$G$6:$CU$253,3,FALSE) -> 55.7 | F12: =VLOOKUP($C12,'RECAP SECT'!$G$6:$CU$253,48,FALSE) -> 11,746 | G12: =VLOOKUP($C12,'RECAP SECT'!$G$6:$CU$253,49,FALSE) -> 211.04 | H12: =VLOOKUP($C12,'RECAP SECT'!$G$6:$CU$253,50,FALSE) -> 69% | I12: =VLOOKUP($C12,'RECAP SECT'!$G$6:$CU$253,51,FALSE) -> 18 | J12: =VLOOKUP($C12,'RECAP SECT'!$G$6:$CU$253,52,FALSE) -> 3,115 | K12: =VLOOKUP($C12,'RECAP SECT'!$G$6:$CU$253,53,FALSE) -> 55.97 | L12: =VLOOKUP($C12,'RECAP SECT'!$G$6:$CU$253,54,FALSE) -> 18% | M12: =VLOOKUP($C12,'RECAP SECT'!$G$6:$CU$253,55,FALSE) -> 13 | N12: =VLOOKUP($C12,'RECAP SECT'!$G$6:$CU$253,56,FALSE) -> 1,138 | O12: =VLOOKUP($C12,'RECAP SECT'!$G$6:$CU$253,57,FALSE) -> 20.45 | P12: =VLOOKUP($C12,'RECAP SECT'!$G$6:$CU$253,58,FALSE) -> 56% | Q12: =VLOOKUP($C12,'RECAP SECT'!$G$6:$CU$253,59,FALSE) -> 16 | R12: =VLOOKUP($C12,'RECAP SECT'!$G$6:$CU$253,60,FALSE) -> 48% | S12: =VLOOKUP($C12,'RECAP SECT'!$G$6:$CU$253,61,FALSE) -> 44% | T12: =VLOOKUP($C12,'RECAP SECT'!$G$6:$CU$253,62,FALSE) -> 16
A13: 262 | B13: BAS-RHIN | C13: 5101 | D13: SELESTAT | E13: =VLOOKUP($C13,'RECAP SECT'!$G$6:$CU$253,3,FALSE) -> 50.7 | F13: =VLOOKUP($C13,'RECAP SECT'!$G$6:$CU$253,48,FALSE) -> 12,856 | G13: =VLOOKUP($C13,'RECAP SECT'!$G$6:$CU$253,49,FALSE) -> 253.76 | H13: =VLOOKUP($C13,'RECAP SECT'!$G$6:$CU$253,50,FALSE) -> 63% | I13: =VLOOKUP($C13,'RECAP SECT'!$G$6:$CU$253,51,FALSE) -> 15 | J13: =VLOOKUP($C13,'RECAP SECT'!$G$6:$CU$253,52,FALSE) -> 2,634 | K13: =VLOOKUP($C13,'RECAP SECT'!$G$6:$CU$253,53,FALSE) -> 51.99 | L13: =VLOOKUP($C13,'RECAP SECT'!$G$6:$CU$253,54,FALSE) -> 24% | M13: =VLOOKUP($C13,'RECAP SECT'!$G$6:$CU$253,55,FALSE) -> 15 | N13: =VLOOKUP($C13,'RECAP SECT'!$G$6:$CU$253,56,FALSE) -> 1,154 | O13: =VLOOKUP($C13,'RECAP SECT'!$G$6:$CU$253,57,FALSE) -> 22.78 | P13: =VLOOKUP($C13,'RECAP SECT'!$G$6:$CU$253,58,FALSE) -> 51% | Q13: =VLOOKUP($C13,'RECAP SECT'!$G$6:$CU$253,59,FALSE) -> 15 | R13: =VLOOKUP($C13,'RECAP SECT'!$G$6:$CU$253,60,FALSE) -> 46% | S13: =VLOOKUP($C13,'RECAP SECT'!$G$6:$CU$253,61,FALSE) -> 42% | T13: =VLOOKUP($C13,'RECAP SECT'!$G$6:$CU$253,62,FALSE) -> 15
A14: 262 | B14: BAS-RHIN | C14: 5006 | D14: STRASBOURG | E14: =VLOOKUP($C14,'RECAP SECT'!$G$6:$CU$253,3,FALSE) -> 64.5 | F14: =VLOOKUP($C14,'RECAP SECT'!$G$6:$CU$253,48,FALSE) -> 23,633 | G14: =VLOOKUP($C14,'RECAP SECT'!$G$6:$CU$253,49,FALSE) -> 366.57 | H14: =VLOOKUP($C14,'RECAP SECT'!$G$6:$CU$253,50,FALSE) -> 46% | I14: =VLOOKUP($C14,'RECAP SECT'!$G$6:$CU$253,51,FALSE) -> 9 | J14: =VLOOKUP($C14,'RECAP SECT'!$G$6:$CU$253,52,FALSE) -> 2,844 | K14: =VLOOKUP($C14,'RECAP SECT'!$G$6:$CU$253,53,FALSE) -> 44.12 | L14: =VLOOKUP($C14,'RECAP SECT'!$G$6:$CU$253,54,FALSE) -> 35% | M14: =VLOOKUP($C14,'RECAP SECT'!$G$6:$CU$253,55,FALSE) -> 18 | N14: =VLOOKUP($C14,'RECAP SECT'!$G$6:$CU$253,56,FALSE) -> 1,829 | O14: =VLOOKUP($C14,'RECAP SECT'!$G$6:$CU$253,57,FALSE) -> 28.37 | P14: =VLOOKUP($C14,'RECAP SECT'!$G$6:$CU$253,58,FALSE) -> 39% | Q14: =VLOOKUP($C14,'RECAP SECT'!$G$6:$CU$253,59,FALSE) -> 9 | R14: =VLOOKUP($C14,'RECAP SECT'!$G$6:$CU$253,60,FALSE) -> 40% | S14: =VLOOKUP($C14,'RECAP SECT'!$G$6:$CU$253,61,FALSE) -> 35% | T14: =VLOOKUP($C14,'RECAP SECT'!$G$6:$CU$253,62,FALSE) -> 11
A15: 264 | B15: HAUT-RHIN | C15: 5130 | D15: COLMAR | E15: =VLOOKUP($C15,'RECAP SECT'!$G$6:$CU$253,3,FALSE) -> 45.5 | F15: =VLOOKUP($C15,'RECAP SECT'!$G$6:$CU$253,48,FALSE) -> 9,753 | G15: =VLOOKUP($C15,'RECAP SECT'!$G$6:$CU$253,49,FALSE) -> 214.55 | H15: =VLOOKUP($C15,'RECAP SECT'!$G$6:$CU$253,50,FALSE) -> 68% | I15: =VLOOKUP($C15,'RECAP SECT'!$G$6:$CU$253,51,FALSE) -> 17 | J15: =VLOOKUP($C15,'RECAP SECT'!$G$6:$CU$253,52,FALSE) -> 2,368 | K15: =VLOOKUP($C15,'RECAP SECT'!$G$6:$CU$253,53,FALSE) -> 52.08 | L15: =VLOOKUP($C15,'RECAP SECT'!$G$6:$CU$253,54,FALSE) -> 24% | M15: =VLOOKUP($C15,'RECAP SECT'!$G$6:$CU$253,55,FALSE) -> 14 | N15: =VLOOKUP($C15,'RECAP SECT'!$G$6:$CU$253,56,FALSE) -> 908 | O15: =VLOOKUP($C15,'RECAP SECT'!$G$6:$CU$253,57,FALSE) -> 19.97 | P15: =VLOOKUP($C15,'RECAP SECT'!$G$6:$CU$253,58,FALSE) -> 57% | Q15: =VLOOKUP($C15,'RECAP SECT'!$G$6:$CU$253,59,FALSE) -> 18 | R15: =VLOOKUP($C15,'RECAP SECT'!$G$6:$CU$253,60,FALSE) -> 50% | S15: =VLOOKUP($C15,'RECAP SECT'!$G$6:$CU$253,61,FALSE) -> 46% | T15: =VLOOKUP($C15,'RECAP SECT'!$G$6:$CU$253,62,FALSE) -> 18
A16: 264 | B16: HAUT-RHIN | C16: 5169 | D16: MULHOUSE | E16: =VLOOKUP($C16,'RECAP SECT'!$G$6:$CU$253,3,FALSE) -> 46.9 | F16: =VLOOKUP($C16,'RECAP SECT'!$G$6:$CU$253,48,FALSE) -> 12,376 | G16: =VLOOKUP($C16,'RECAP SECT'!$G$6:$CU$253,49,FALSE) -> 263.66 | H16: =VLOOKUP($C16,'RECAP SECT'!$G$6:$CU$253,50,FALSE) -> 61% | I16: =VLOOKUP($C16,'RECAP SECT'!$G$6:$CU$253,51,FALSE) -> 12 | J16: =VLOOKUP($C16,'RECAP SECT'!$G$6:$CU$253,52,FALSE) -> 2,258 | K16: =VLOOKUP($C16,'RECAP SECT'!$G$6:$CU$253,53,FALSE) -> 48.10 | L16: =VLOOKUP($C16,'RECAP SECT'!$G$6:$CU$253,54,FALSE) -> 29% | M16: =VLOOKUP($C16,'RECAP SECT'!$G$6:$CU$253,55,FALSE) -> 17 | N16: =VLOOKUP($C16,'RECAP SECT'!$G$6:$CU$253,56,FALSE) -> 939 | O16: =VLOOKUP($C16,'RECAP SECT'!$G$6:$CU$253,57,FALSE) -> 20.00 | P16: =VLOOKUP($C16,'RECAP SECT'!$G$6:$CU$253,58,FALSE) -> 57% | Q16: =VLOOKUP($C16,'RECAP SECT'!$G$6:$CU$253,59,FALSE) -> 17 | R16: =VLOOKUP($C16,'RECAP SECT'!$G$6:$CU$253,60,FALSE) -> 50% | S16: =VLOOKUP($C16,'RECAP SECT'!$G$6:$CU$253,61,FALSE) -> 45% | T16: =VLOOKUP($C16,'RECAP SECT'!$G$6:$CU$253,62,FALSE) -> 17
A17: 30 | B17: MARNE-ARDENNES | C17: 6 | D17: CHALONS EN CHAMPAGNE | E17: =VLOOKUP($C17,'RECAP SECT'!$G$6:$CU$253,3,FALSE) -> 37.3 | F17: =VLOOKUP($C17,'RECAP SECT'!$G$6:$CU$253,48,FALSE) -> 16,547 | G17: =VLOOKUP($C17,'RECAP SECT'!$G$6:$CU$253,49,FALSE) -> 444.11 | H17: =VLOOKUP($C17,'RECAP SECT'!$G$6:$CU$253,50,FALSE) -> 35% | I17: =VLOOKUP($C17,'RECAP SECT'!$G$6:$CU$253,51,FALSE) -> 5 | J17: =VLOOKUP($C17,'RECAP SECT'!$G$6:$CU$253,52,FALSE) -> 2,290 | K17: =VLOOKUP($C17,'RECAP SECT'!$G$6:$CU$253,53,FALSE) -> 61.46 | L17: =VLOOKUP($C17,'RECAP SECT'!$G$6:$CU$253,54,FALSE) -> 10% | M17: =VLOOKUP($C17,'RECAP SECT'!$G$6:$CU$253,55,FALSE) -> 5 | N17: =VLOOKUP($C17,'RECAP SECT'!$G$6:$CU$253,56,FALSE) -> 1,256 | O17: =VLOOKUP($C17,'RECAP SECT'!$G$6:$CU$253,57,FALSE) -> 33.71 | P17: =VLOOKUP($C17,'RECAP SECT'!$G$6:$CU$253,58,FALSE) -> 27% | Q17: =VLOOKUP($C17,'RECAP SECT'!$G$6:$CU$253,59,FALSE) -> 4 | R17: =VLOOKUP($C17,'RECAP SECT'!$G$6:$CU$253,60,FALSE) -> 24% | S17: =VLOOKUP($C17,'RECAP SECT'!$G$6:$CU$253,61,FALSE) -> 20% | T17: =VLOOKUP($C17,'RECAP SECT'!$G$6:$CU$253,62,FALSE) -> 4
A18: 30 | B18: MARNE-ARDENNES | C18: 2 | D18: CHARLEVILLE MEZIERES | E18: =VLOOKUP($C18,'RECAP SECT'!$G$6:$CU$253,3,FALSE) -> 48.2 | F18: =VLOOKUP($C18,'RECAP SECT'!$G$6:$CU$253,48,FALSE) -> 22,950 | G18: =VLOOKUP($C18,'RECAP SECT'!$G$6:$CU$253,49,FALSE) -> 476.63 | H18: =VLOOKUP($C18,'RECAP SECT'!$G$6:$CU$253,50,FALSE) -> 30% | I18: =VLOOKUP($C18,'RECAP SECT'!$G$6:$CU$253,51,FALSE) -> 3 | J18: =VLOOKUP($C18,'RECAP SECT'!$G$6:$CU$253,52,FALSE) -> 2,957 | K18: =VLOOKUP($C18,'RECAP SECT'!$G$6:$CU$253,53,FALSE) -> 61.42 | L18: =VLOOKUP($C18,'RECAP SECT'!$G$6:$CU$253,54,FALSE) -> 10% | M18: =VLOOKUP($C18,'RECAP SECT'!$G$6:$CU$253,55,FALSE) -> 6 | N18: =VLOOKUP($C18,'RECAP SECT'!$G$6:$CU$253,56,FALSE) -> 1,743 | O18: =VLOOKUP($C18,'RECAP SECT'!$G$6:$CU$253,57,FALSE) -> 36.20 | P18: =VLOOKUP($C18,'RECAP SECT'!$G$6:$CU$253,58,FALSE) -> 22% | Q18: =VLOOKUP($C18,'RECAP SECT'!$G$6:$CU$253,59,FALSE) -> 3 | R18: =VLOOKUP($C18,'RECAP SECT'!$G$6:$CU$253,60,FALSE) -> 21% | S18: =VLOOKUP($C18,'RECAP SECT'!$G$6:$CU$253,61,FALSE) -> 16% | T18: =VLOOKUP($C18,'RECAP SECT'!$G$6:$CU$253,62,FALSE) -> 3
A19: 30 | B19: MARNE-ARDENNES | C19: 11 | D19: REIMS | E19: =VLOOKUP($C19,'RECAP SECT'!$G$6:$CU$253,3,FALSE) -> 67.9 | F19: =VLOOKUP($C19,'RECAP SECT'!$G$6:$CU$253,48,FALSE) -> 46,209 | G19: =VLOOKUP($C19,'RECAP SECT'!$G$6:$CU$253,49,FALSE) -> 680.35 | H19: =VLOOKUP($C19,'RECAP SECT'!$G$6:$CU$253,50,FALSE) -> 0% | I19: =VLOOKUP($C19,'RECAP SECT'!$G$6:$CU$253,51,FALSE) -> 1 | J19: =VLOOKUP($C19,'RECAP SECT'!$G$6:$CU$253,52,FALSE) -> 3,911 | K19: =VLOOKUP($C19,'RECAP SECT'!$G$6:$CU$253,53,FALSE) -> 57.59 | L19: =VLOOKUP($C19,'RECAP SECT'!$G$6:$CU$253,54,FALSE) -> 15% | M19: =VLOOKUP($C19,'RECAP SECT'!$G$6:$CU$253,55,FALSE) -> 10 | N19: =VLOOKUP($C19,'RECAP SECT'!$G$6:$CU$253,56,FALSE) -> 3,147 | O19: =VLOOKUP($C19,'RECAP SECT'!$G$6:$CU$253,57,FALSE) -> 46.33 | P19: =VLOOKUP($C19,'RECAP SECT'!$G$6:$CU$253,58,FALSE) -> 0% | Q19: =VLOOKUP($C19,'RECAP SECT'!$G$6:$CU$253,59,FALSE) -> 1 | R19: =VLOOKUP($C19,'RECAP SECT'!$G$6:$CU$253,60,FALSE) -> 5% | S19: =VLOOKUP($C19,'RECAP SECT'!$G$6:$CU$253,61,FALSE) -> 0% | T19: =VLOOKUP($C19,'RECAP SECT'!$G$6:$CU$253,62,FALSE) -> 1
A20: 110 | B20: MEURTHE ET MOSELLE MEUSE | C20: 26 | D20: NANCY | E20: =VLOOKUP($C20,'RECAP SECT'!$G$6:$CU$253,3,FALSE) -> 54.9 | F20: =VLOOKUP($C20,'RECAP SECT'!$G$6:$CU$253,48,FALSE) -> 25,849 | G20: =VLOOKUP($C20,'RECAP SECT'!$G$6:$CU$253,49,FALSE) -> 470.67 | H20: =VLOOKUP($C20,'RECAP SECT'!$G$6:$CU$253,50,FALSE) -> 31% | I20: =VLOOKUP($C20,'RECAP SECT'!$G$6:$CU$253,51,FALSE) -> 4 | J20: =VLOOKUP($C20,'RECAP SECT'!$G$6:$CU$253,52,FALSE) -> 3,290 | K20: =VLOOKUP($C20,'RECAP SECT'!$G$6:$CU$253,53,FALSE) -> 59.91 | L20: =VLOOKUP($C20,'RECAP SECT'!$G$6:$CU$253,54,FALSE) -> 12% | M20: =VLOOKUP($C20,'RECAP SECT'!$G$6:$CU$253,55,FALSE) -> 9 | N20: =VLOOKUP($C20,'RECAP SECT'!$G$6:$CU$253,56,FALSE) -> 1,786 | O20: =VLOOKUP($C20,'RECAP SECT'!$G$6:$CU$253,57,FALSE) -> 32.52 | P20: =VLOOKUP($C20,'RECAP SECT'!$G$6:$CU$253,58,FALSE) -> 30% | Q20: =VLOOKUP($C20,'RECAP SECT'!$G$6:$CU$253,59,FALSE) -> 5 | R20: =VLOOKUP($C20,'RECAP SECT'!$G$6:$CU$253,60,FALSE) -> 25% | S20: =VLOOKUP($C20,'RECAP SECT'!$G$6:$CU$253,61,FALSE) -> 20% | T20: =VLOOKUP($C20,'RECAP SECT'!$G$6:$CU$253,62,FALSE) -> 5
A21: 110 | B21: MEURTHE ET MOSELLE MEUSE | C21: 27 | D21: PONT A MOUSSON | E21: =VLOOKUP($C21,'RECAP SECT'!$G$6:$CU$253,3,FALSE) -> 59.6 | F21: =VLOOKUP($C21,'RECAP SECT'!$G$6:$CU$253,48,FALSE) -> 26,253 | G21: =VLOOKUP($C21,'RECAP SECT'!$G$6:$CU$253,49,FALSE) -> 440.19 | H21: =VLOOKUP($C21,'RECAP SECT'!$G$6:$CU$253,50,FALSE) -> 35% | I21: =VLOOKUP($C21,'RECAP SECT'!$G$6:$CU$253,51,FALSE) -> 6 | J21: =VLOOKUP($C21,'RECAP SECT'!$G$6:$CU$253,52,FALSE) -> 3,618 | K21: =VLOOKUP($C21,'RECAP SECT'!$G$6:$CU$253,53,FALSE) -> 60.66 | L21: =VLOOKUP($C21,'RECAP SECT'!$G$6:$CU$253,54,FALSE) -> 11% | M21: =VLOOKUP($C21,'RECAP SECT'!$G$6:$CU$253,55,FALSE) -> 7 | N21: =VLOOKUP($C21,'RECAP SECT'!$G$6:$CU$253,56,FALSE) -> 1,852 | O21: =VLOOKUP($C21,'RECAP SECT'!$G$6:$CU$253,57,FALSE) -> 31.05 | P21: =VLOOKUP($C21,'RECAP SECT'!$G$6:$CU$253,58,FALSE) -> 33% | Q21: =VLOOKUP($C21,'RECAP SECT'!$G$6:$CU$253,59,FALSE) -> 6 | R21: =VLOOKUP($C21,'RECAP SECT'!$G$6:$CU$253,60,FALSE) -> 27% | S21: =VLOOKUP($C21,'RECAP SECT'!$G$6:$CU$253,61,FALSE) -> 22% | T21: =VLOOKUP($C21,'RECAP SECT'!$G$6:$CU$253,62,FALSE) -> 6
A22: 110 | B22: MEURTHE ET MOSELLE MEUSE | C22: 31 | D22: VERDUN | E22: =VLOOKUP($C22,'RECAP SECT'!$G$6:$CU$253,3,FALSE) -> 48.7 | F22: =VLOOKUP($C22,'RECAP SECT'!$G$6:$CU$253,48,FALSE) -> 15,801 | G22: =VLOOKUP($C22,'RECAP SECT'!$G$6:$CU$253,49,FALSE) -> 324.52 | H22: =VLOOKUP($C22,'RECAP SECT'!$G$6:$CU$253,50,FALSE) -> 52% | I22: =VLOOKUP($C22,'RECAP SECT'!$G$6:$CU$253,51,FALSE) -> 10 | J22: =VLOOKUP($C22,'RECAP SECT'!$G$6:$CU$253,52,FALSE) -> 3,316 | K22: =VLOOKUP($C22,'RECAP SECT'!$G$6:$CU$253,53,FALSE) -> 68.11 | L22: =VLOOKUP($C22,'RECAP SECT'!$G$6:$CU$253,54,FALSE) -> 0% | M22: =VLOOKUP($C22,'RECAP SECT'!$G$6:$CU$253,55,FALSE) -> 1 | N22: =VLOOKUP($C22,'RECAP SECT'!$G$6:$CU$253,56,FALSE) -> 1,302 | O22: =VLOOKUP($C22,'RECAP SECT'!$G$6:$CU$253,57,FALSE) -> 26.74 | P22: =VLOOKUP($C22,'RECAP SECT'!$G$6:$CU$253,58,FALSE) -> 42% | Q22: =VLOOKUP($C22,'RECAP SECT'!$G$6:$CU$253,59,FALSE) -> 11 | R22: =VLOOKUP($C22,'RECAP SECT'!$G$6:$CU$253,60,FALSE) -> 33% | S22: =VLOOKUP($C22,'RECAP SECT'!$G$6:$CU$253,61,FALSE) -> 28% | T22: =VLOOKUP($C22,'RECAP SECT'!$G$6:$CU$253,62,FALSE) -> 9
A23: 160 | B23: MOSELLE | C23: 45 | D23: METZ | E23: =VLOOKUP($C23,'RECAP SECT'!$G$6:$CU$253,3,FALSE) -> 72.6 | F23: =VLOOKUP($C23,'RECAP SECT'!$G$6:$CU$253,48,FALSE) -> 29,291 | G23: =VLOOKUP($C23,'RECAP SECT'!$G$6:$CU$253,49,FALSE) -> 403.74 | H23: =VLOOKUP($C23,'RECAP SECT'!$G$6:$CU$253,50,FALSE) -> 41% | I23: =VLOOKUP($C23,'RECAP SECT'!$G$6:$CU$253,51,FALSE) -> 8 | J23: =VLOOKUP($C23,'RECAP SECT'!$G$6:$CU$253,52,FALSE) -> 4,383 | K23: =VLOOKUP($C23,'RECAP SECT'!$G$6:$CU$253,53,FALSE) -> 60.41 | L23: =VLOOKUP($C23,'RECAP SECT'!$G$6:$CU$253,54,FALSE) -> 11% | M23: =VLOOKUP($C23,'RECAP SECT'!$G$6:$CU$253,55,FALSE) -> 8 | N23: =VLOOKUP($C23,'RECAP SECT'!$G$6:$CU$253,56,FALSE) -> 2,101 | O23: =VLOOKUP($C23,'RECAP SECT'!$G$6:$CU$253,57,FALSE) -> 28.96 | P23: =VLOOKUP($C23,'RECAP SECT'!$G$6:$CU$253,58,FALSE) -> 37% | Q23: =VLOOKUP($C23,'RECAP SECT'!$G$6:$CU$253,59,FALSE) -> 8 | R23: =VLOOKUP($C23,'RECAP SECT'!$G$6:$CU$253,60,FALSE) -> 31% | S23: =VLOOKUP($C23,'RECAP SECT'!$G$6:$CU$253,61,FALSE) -> 26% | T23: =VLOOKUP($C23,'RECAP SECT'!$G$6:$CU$253,62,FALSE) -> 8
A24: 160 | B24: MOSELLE | C24: 42 | D24: MOSELLE EST | E24: =VLOOKUP($C24,'RECAP SECT'!$G$6:$CU$253,3,FALSE) -> 57.7 | F24: =VLOOKUP($C24,'RECAP SECT'!$G$6:$CU$253,48,FALSE) -> 23,358 | G24: =VLOOKUP($C24,'RECAP SECT'!$G$6:$CU$253,49,FALSE) -> 404.96 | H24: =VLOOKUP($C24,'RECAP SECT'!$G$6:$CU$253,50,FALSE) -> 40% | I24: =VLOOKUP($C24,'RECAP SECT'!$G$6:$CU$253,51,FALSE) -> 7 | J24: =VLOOKUP($C24,'RECAP SECT'!$G$6:$CU$253,52,FALSE) -> 3,804 | K24: =VLOOKUP($C24,'RECAP SECT'!$G$6:$CU$253,53,FALSE) -> 65.94 | L24: =VLOOKUP($C24,'RECAP SECT'!$G$6:$CU$253,54,FALSE) -> 3% | M24: =VLOOKUP($C24,'RECAP SECT'!$G$6:$CU$253,55,FALSE) -> 3 | N24: =VLOOKUP($C24,'RECAP SECT'!$G$6:$CU$253,56,FALSE) -> 1,713 | O24: =VLOOKUP($C24,'RECAP SECT'!$G$6:$CU$253,57,FALSE) -> 29.70 | P24: =VLOOKUP($C24,'RECAP SECT'!$G$6:$CU$253,58,FALSE) -> 36% | Q24: =VLOOKUP($C24,'RECAP SECT'!$G$6:$CU$253,59,FALSE) -> 7 | R24: =VLOOKUP($C24,'RECAP SECT'!$G$6:$CU$253,60,FALSE) -> 27% | S24: =VLOOKUP($C24,'RECAP SECT'!$G$6:$CU$253,61,FALSE) -> 23% | T24: =VLOOKUP($C24,'RECAP SECT'!$G$6:$CU$253,62,FALSE) -> 7
A25: 160 | B25: MOSELLE | C25: 44 | D25: MOSELLE NORD | E25: =VLOOKUP($C25,'RECAP SECT'!$G$6:$CU$253,3,FALSE) -> 55.4 | F25: =VLOOKUP($C25,'RECAP SECT'!$G$6:$CU$253,48,FALSE) -> 35,426 | G25: =VLOOKUP($C25,'RECAP SECT'!$G$6:$CU$253,49,FALSE) -> 639.23 | H25: =VLOOKUP($C25,'RECAP SECT'!$G$6:$CU$253,50,FALSE) -> 6% | I25: =VLOOKUP($C25,'RECAP SECT'!$G$6:$CU$253,51,FALSE) -> 2 | J25: =VLOOKUP($C25,'RECAP SECT'!$G$6:$CU$253,52,FALSE) -> 3,687 | K25: =VLOOKUP($C25,'RECAP SECT'!$G$6:$CU$253,53,FALSE) -> 66.53 | L25: =VLOOKUP($C25,'RECAP SECT'!$G$6:$CU$253,54,FALSE) -> 2% | M25: =VLOOKUP($C25,'RECAP SECT'!$G$6:$CU$253,55,FALSE) -> 2 | N25: =VLOOKUP($C25,'RECAP SECT'!$G$6:$CU$253,56,FALSE) -> 2,138 | O25: =VLOOKUP($C25,'RECAP SECT'!$G$6:$CU$253,57,FALSE) -> 38.58 | P25: =VLOOKUP($C25,'RECAP SECT'!$G$6:$CU$253,58,FALSE) -> 17% | Q25: =VLOOKUP($C25,'RECAP SECT'!$G$6:$CU$253,59,FALSE) -> 2 | R25: =VLOOKUP($C25,'RECAP SECT'!$G$6:$CU$253,60,FALSE) -> 9% | S25: =VLOOKUP($C25,'RECAP SECT'!$G$6:$CU$253,61,FALSE) -> 5% | T25: =VLOOKUP($C25,'RECAP SECT'!$G$6:$CU$253,62,FALSE) -> 2
A26: 80 | B26: VOSGES | C26: 57 | D26: EPINAL | E26: =VLOOKUP($C26,'RECAP SECT'!$G$6:$CU$253,3,FALSE) -> 53.0 | F26: =VLOOKUP($C26,'RECAP SECT'!$G$6:$CU$253,48,FALSE) -> 15,420 | G26: =VLOOKUP($C26,'RECAP SECT'!$G$6:$CU$253,49,FALSE) -> 291.17 | H26: =VLOOKUP($C26,'RECAP SECT'!$G$6:$CU$253,50,FALSE) -> 57% | I26: =VLOOKUP($C26,'RECAP SECT'!$G$6:$CU$253,51,FALSE) -> 11 | J26: =VLOOKUP($C26,'RECAP SECT'!$G$6:$CU$253,52,FALSE) -> 2,661 | K26: =VLOOKUP($C26,'RECAP SECT'!$G$6:$CU$253,53,FALSE) -> 50.25 | L26: =VLOOKUP($C26,'RECAP SECT'!$G$6:$CU$253,54,FALSE) -> 26% | M26: =VLOOKUP($C26,'RECAP SECT'!$G$6:$CU$253,55,FALSE) -> 16 | N26: =VLOOKUP($C26,'RECAP SECT'!$G$6:$CU$253,56,FALSE) -> 1,474 | O26: =VLOOKUP($C26,'RECAP SECT'!$G$6:$CU$253,57,FALSE) -> 27.83 | P26: =VLOOKUP($C26,'RECAP SECT'!$G$6:$CU$253,58,FALSE) -> 40% | Q26: =VLOOKUP($C26,'RECAP SECT'!$G$6:$CU$253,59,FALSE) -> 10 | R26: =VLOOKUP($C26,'RECAP SECT'!$G$6:$CU$253,60,FALSE) -> 41% | S26: =VLOOKUP($C26,'RECAP SECT'!$G$6:$CU$253,61,FALSE) -> 36% | T26: =VLOOKUP($C26,'RECAP SECT'!$G$6:$CU$253,62,FALSE) -> 12
A27: 80 | B27: VOSGES | C27: 55 | D27: SAINT DIE | E27: =VLOOKUP($C27,'RECAP SECT'!$G$6:$CU$253,3,FALSE) -> 40.0 | F27: =VLOOKUP($C27,'RECAP SECT'!$G$6:$CU$253,48,FALSE) -> 10,413 | G27: =VLOOKUP($C27,'RECAP SECT'!$G$6:$CU$253,49,FALSE) -> 260.13 | H27: =VLOOKUP($C27,'RECAP SECT'!$G$6:$CU$253,50,FALSE) -> 62% | I27: =VLOOKUP($C27,'RECAP SECT'!$G$6:$CU$253,51,FALSE) -> 13 | J27: =VLOOKUP($C27,'RECAP SECT'!$G$6:$CU$253,52,FALSE) -> 2,255 | K27: =VLOOKUP($C27,'RECAP SECT'!$G$6:$CU$253,53,FALSE) -> 56.34 | L27: =VLOOKUP($C27,'RECAP SECT'!$G$6:$CU$253,54,FALSE) -> 17% | M27: =VLOOKUP($C27,'RECAP SECT'!$G$6:$CU$253,55,FALSE) -> 12 | N27: =VLOOKUP($C27,'RECAP SECT'!$G$6:$CU$253,56,FALSE) -> 1,031 | O27: =VLOOKUP($C27,'RECAP SECT'!$G$6:$CU$253,57,FALSE) -> 25.76 | P27: =VLOOKUP($C27,'RECAP SECT'!$G$6:$CU$253,58,FALSE) -> 44% | Q27: =VLOOKUP($C27,'RECAP SECT'!$G$6:$CU$253,59,FALSE) -> 13 | R27: =VLOOKUP($C27,'RECAP SECT'!$G$6:$CU$253,60,FALSE) -> 41% | S27: =VLOOKUP($C27,'RECAP SECT'!$G$6:$CU$253,61,FALSE) -> 37% | T27: =VLOOKUP($C27,'RECAP SECT'!$G$6:$CU$253,62,FALSE) -> 13
A28: Total CEGEE Directions Régionales | E28: =SUM(E10:E27) -> 946

Sheet SE_IARD
B1: Accueil | F1: BAROMETRE BDD - TERRITOIRES
F2: IARD ET PREVOYANCE
F3: =ACCUEIL!F7 -> 2022-11-27
F7: Ventes Nettes produits pondérés | J7: Ventes sur client non détenteur de l’univers | N7: Total IARD Prévoyance
F8: =DATEMAJ!C23 -> au 27/11 | H8: coef | I8: ='RECAP DIRCOM'!BX4 -> 12% | J8: =DATEMAJ!C24 -> au 27/11 | L8: coef | M8: ='RECAP DIRCOM'!CB4 -> 8% | O8: coef | P8: ='RECAP DIRCOM'!CE4 -> 20%
B9: Direction | C9: eds | D9: Territoire | E9: ="ETP perf "&DATEMAJ!$C$28 -> ETP perf 27-nov | F9: VN | G9: VN / ETP | H9: % Ecart au 1er | I9: Rang | J9: VB | K9: VB / ETP | L9: % Ecart au 1er | M9: Rang | N9: Moyenne ecart au 1er | O9: % Ecart au 1er | P9: Rang CEGEE
A10: 50 | B10: AUBE HAUTE MARNE | C10: 21 | D10: CHAUMONT | E10: =VLOOKUP($C10,'RECAP SECT'!$G$6:$CU$253,3,FALSE) -> 33.5 | F10: =VLOOKUP($C10,'RECAP SECT'!$G$6:$CU$253,67,FALSE) -> 6,457 | G10: =VLOOKUP($C10,'RECAP SECT'!$G$6:$CU$253,68,FALSE) -> 192.57 | H10: =VLOOKUP($C10,'RECAP SECT'!$G$6:$CU$253,69,FALSE) -> 8% | I10: =VLOOKUP($C10,'RECAP SECT'!$G$6:$CU$253,70,FALSE) -> 3 | J10: =VLOOKUP($C10,'RECAP SECT'!$G$6:$CU$253,71,FALSE) -> 1,581 | K10: =VLOOKUP($C10,'RECAP SECT'!$G$6:$CU$253,72,FALSE) -> 47.15 | L10: =VLOOKUP($C10,'RECAP SECT'!$G$6:$CU$253,73,FALSE) -> 24% | M10: =VLOOKUP($C10,'RECAP SECT'!$G$6:$CU$253,74,FALSE) -> 9 | N10: =VLOOKUP($C10,'RECAP SECT'!$G$6:$CU$253,75,FALSE) -> 14% | O10: =VLOOKUP($C10,'RECAP SECT'!$G$6:$CU$253,76,FALSE) -> 13% | P10: =VLOOKUP($C10,'RECAP SECT'!$G$6:$CU$253,77,FALSE) -> 5
A11: 50 | B11: AUBE HAUTE MARNE | C11: 14 | D11: TROYES | E11: =VLOOKUP($C11,'RECAP SECT'!$G$6:$CU$253,3,FALSE) -> 53.9 | F11: =VLOOKUP($C11,'RECAP SECT'!$G$6:$CU$253,67,FALSE) -> 5,942 | G11: =VLOOKUP($C11,'RECAP SECT'!$G$6:$CU$253,68,FALSE) -> 110.26 | H11: =VLOOKUP($C11,'RECAP SECT'!$G$6:$CU$253,69,FALSE) -> 47% | I11: =VLOOKUP($C11,'RECAP SECT'!$G$6:$CU$253,70,FALSE) -> 12 | J11: =VLOOKUP($C11,'RECAP SECT'!$G$6:$CU$253,71,FALSE) -> 2,322 | K11: =VLOOKUP($C11,'RECAP SECT'!$G$6:$CU$253,72,FALSE) -> 43.09 | L11: =VLOOKUP($C11,'RECAP SECT'!$G$6:$CU$253,73,FALSE) -> 30% | M11: =VLOOKUP($C11,'RECAP SECT'!$G$6:$CU$253,74,FALSE) -> 12 | N11: =VLOOKUP($C11,'RECAP SECT'!$G$6:$CU$253,75,FALSE) -> 40% | O11: =VLOOKUP($C11,'RECAP SECT'!$G$6:$CU$253,76,FALSE) -> 40% | P11: =VLOOKUP($C11,'RECAP SECT'!$G$6:$CU$253,77,FALSE) -> 12
A12: 262 | B12: BAS-RHIN | C12: 5060 | D12: HAGUENAU | E12: =VLOOKUP($C12,'RECAP SECT'!$G$6:$CU$253,3,FALSE) -> 55.7 | F12: =VLOOKUP($C12,'RECAP SECT'!$G$6:$CU$253,67,FALSE) -> 5,406 | G12: =VLOOKUP($C12,'RECAP SECT'!$G$6:$CU$253,68,FALSE) -> 97.13 | H12: =VLOOKUP($C12,'RECAP SECT'!$G$6:$CU$253,69,FALSE) -> 53% | I12: =VLOOKUP($C12,'RECAP SECT'!$G$6:$CU$253,70,FALSE) -> 15 | J12: =VLOOKUP($C12,'RECAP SECT'!$G$6:$CU$253,71,FALSE) -> 2,193 | K12: =VLOOKUP($C12,'RECAP SECT'!$G$6:$CU$253,72,FALSE) -> 39.40 | L12: =VLOOKUP($C12,'RECAP SECT'!$G$6:$CU$253,73,FALSE) -> 36% | M12: =VLOOKUP($C12,'RECAP SECT'!$G$6:$CU$253,74,FALSE) -> 15 | N12: =VLOOKUP($C12,'RECAP SECT'!$G$6:$CU$253,75,FALSE) -> 47% | O12: =VLOOKUP($C12,'RECAP SECT'!$G$6:$CU$253,76,FALSE) -> 46% | P12: =VLOOKUP($C12,'RECAP SECT'!$G$6:$CU$253,77,FALSE) -> 16
A13: 262 | B13: BAS-RHIN | C13: 5101 | D13: SELESTAT | E13: =VLOOKUP($C13,'RECAP SECT'!$G$6:$CU$253,3,FALSE) -> 50.7 | F13: =VLOOKUP($C13,'RECAP SECT'!$G$6:$CU$253,67,FALSE) -> 4,917 | G13: =VLOOKUP($C13,'RECAP SECT'!$G$6:$CU$253,68,FALSE) -> 97.06 | H13: =VLOOKUP($C13,'RECAP SECT'!$G$6:$CU$253,69,FALSE) -> 53% | I13: =VLOOKUP($C13,'RECAP SECT'!$G$6:$CU$253,70,FALSE) -> 16 | J13: =VLOOKUP($C13,'RECAP SECT'!$G$6:$CU$253,71,FALSE) -> 2,022 | K13: =VLOOKUP($C13,'RECAP SECT'!$G$6:$CU$253,72,FALSE) -> 39.91 | L13: =VLOOKUP($C13,'RECAP SECT'!$G$6:$CU$253,73,FALSE) -> 36% | M13: =VLOOKUP($C13,'RECAP SECT'!$G$6:$CU$253,74,FALSE) -> 14 | N13: =VLOOKUP($C13,'RECAP SECT'!$G$6:$CU$253,75,FALSE) -> 46% | O13: =VLOOKUP($C13,'RECAP SECT'!$G$6:$CU$253,76,FALSE) -> 46% | P13: =VLOOKUP($C13,'RECAP SECT'!$G$6:$CU$253,77,FALSE) -> 14
A14: 262 | B14: BAS-RHIN | C14: 5006 | D14: STRASBOURG | E14: =VLOOKUP($C14,'RECAP SECT'!$G$6:$CU$253,3,FALSE) -> 64.5 | F14: =VLOOKUP($C14,'RECAP SECT'!$G$6:$CU$253,67,FALSE) -> 9,393 | G14: =VLOOKUP($C14,'RECAP SECT'!$G$6:$CU$253,68,FALSE) -> 145.70 | H14: =VLOOKUP($C14,'RECAP SECT'!$G$6:$CU$253,69,FALSE) -> 30% | I14: =VLOOKUP($C14,'RECAP SECT'!$G$6:$CU$253,70,FALSE) -> 7 | J14: =VLOOKUP($C14,'RECAP SECT'!$G$6:$CU$253,71,FALSE) -> 3,817 | K14: =VLOOKUP($C14,'RECAP SECT'!$G$6:$CU$253,72,FALSE) -> 59.21 | L14: =VLOOKUP($C14,'RECAP SECT'!$G$6:$CU$253,73,FALSE) -> 4% | M14: =VLOOKUP($C14,'RECAP SECT'!$G$6:$CU$253,74,FALSE) -> 3 | N14: =VLOOKUP($C14,'RECAP SECT'!$G$6:$CU$253,75,FALSE) -> 20% | O14: =VLOOKUP($C14,'RECAP SECT'!$G$6:$CU$253,76,FALSE) -> 19% | P14: =VLOOKUP($C14,'RECAP SECT'!$G$6:$CU$253,77,FALSE) -> 7
A15: 264 | B15: HAUT-RHIN | C15: 5130 | D15: COLMAR | E15: =VLOOKUP($C15,'RECAP SECT'!$G$6:$CU$253,3,FALSE) -> 45.5 | F15: =VLOOKUP($C15,'RECAP SECT'!$G$6:$CU$253,67,FALSE) -> 2,783 | G15: =VLOOKUP($C15,'RECAP SECT'!$G$6:$CU$253,68,FALSE) -> 61.22 | H15: =VLOOKUP($C15,'RECAP SECT'!$G$6:$CU$253,69,FALSE) -> 71% | I15: =VLOOKUP($C15,'RECAP SECT'!$G$6:$CU$253,70,FALSE) -> 17 | J15: =VLOOKUP($C15,'RECAP SECT'!$G$6:$CU$253,71,FALSE) -> 1,696 | K15: =VLOOKUP($C15,'RECAP SECT'!$G$6:$CU$253,72,FALSE) -> 37.31 | L15: =VLOOKUP($C15,'RECAP SECT'!$G$6:$CU$253,73,FALSE) -> 40% | M15: =VLOOKUP($C15,'RECAP SECT'!$G$6:$CU$253,74,FALSE) -> 17 | N15: =VLOOKUP($C15,'RECAP SECT'!$G$6:$CU$253,75,FALSE) -> 58% | O15: =VLOOKUP($C15,'RECAP SECT'!$G$6:$CU$253,76,FALSE) -> 58% | P15: =VLOOKUP($C15,'RECAP SECT'!$G$6:$CU$253,77,FALSE) -> 17
A16: 264 | B16: HAUT-RHIN | C16: 5169 | D16: MULHOUSE | E16: =VLOOKUP($C16,'RECAP SECT'!$G$6:$CU$253,3,FALSE) -> 46.9 | F16: =VLOOKUP($C16,'RECAP SECT'!$G$6:$CU$253,67,FALSE) -> -395 | G16: =VLOOKUP($C16,'RECAP SECT'!$G$6:$CU$253,68,FALSE) -> -8.41 | H16: =VLOOKUP($C16,'RECAP SECT'!$G$6:$CU$253,69,FALSE) -> 104% | I16: =VLOOKUP($C16,'RECAP SECT'!$G$6:$CU$253,70,FALSE) -> 18 | J16: =VLOOKUP($C16,'RECAP SECT'!$G$6:$CU$253,71,FALSE) -> 1,726 | K16: =VLOOKUP($C16,'RECAP SECT'!$G$6:$CU$253,72,FALSE) -> 36.77 | L16: =VLOOKUP($C16,'RECAP SECT'!$G$6:$CU$253,73,FALSE) -> 41% | M16: =VLOOKUP($C16,'RECAP SECT'!$G$6:$CU$253,74,FALSE) -> 18 | N16: =VLOOKUP($C16,'RECAP SECT'!$G$6:$CU$253,75,FALSE) -> 79% | O16: =VLOOKUP($C16,'RECAP SECT'!$G$6:$CU$253,76,FALSE) -> 78% | P16: =VLOOKUP($C16,'RECAP SECT'!$G$6:$CU$253,77,FALSE) -> 18
A17: 30 | B17: MARNE-ARDENNES | C17: 6 | D17: CHALONS EN CHAMPAGNE | E17: =VLOOKUP($C17,'RECAP SECT'!$G$6:$CU$253,3,FALSE) -> 37.3 | F17: =VLOOKUP($C17,'RECAP SECT'!$G$6:$CU$253,67,FALSE) -> 7,069 | G17: =VLOOKUP($C17,'RECAP SECT'!$G$6:$CU$253,68,FALSE) -> 189.72 | H17: =VLOOKUP($C17,'RECAP SECT'!$G$6:$CU$253,69,FALSE) -> 9% | I17: =VLOOKUP($C17,'RECAP SECT'!$G$6:$CU$253,70,FALSE) -> 4 | J17: =VLOOKUP($C17,'RECAP SECT'!$G$6:$CU$253,71,FALSE) -> 2,036 | K17: =VLOOKUP($C17,'RECAP SECT'!$G$6:$CU$253,72,FALSE) -> 54.64 | L17: =VLOOKUP($C17,'RECAP SECT'!$G$6:$CU$253,73,FALSE) -> 12% | M17: =VLOOKUP($C17,'RECAP SECT'!$G$6:$CU$253,74,FALSE) -> 4 | N17: =VLOOKUP($C17,'RECAP SECT'!$G$6:$CU$253,75,FALSE) -> 10% | O17: =VLOOKUP($C17,'RECAP SECT'!$G$6:$CU$253,76,FALSE) -> 9% | P17: =VLOOKUP($C17,'RECAP SECT'!$G$6:$CU$253,77,FALSE) -> 3
A18: 30 | B18: MARNE-ARDENNES | C18: 2 | D18: CHARLEVILLE MEZIERES | E18: =VLOOKUP($C18,'RECAP SECT'!$G$6:$CU$253,3,FALSE) -> 48.2 | F18: =VLOOKUP($C18,'RECAP SECT'!$G$6:$CU$253,67,FALSE) -> 9,321 | G18: =VLOOKUP($C18,'RECAP SECT'!$G$6:$CU$253,68,FALSE) -> 193.58 | H18: =VLOOKUP($C18,'RECAP SECT'!$G$6:$CU$253,69,FALSE) -> 7% | I18: =VLOOKUP($C18,'RECAP SECT'!$G$6:$CU$253,70,FALSE) -> 2 | J18: =VLOOKUP($C18,'RECAP SECT'!$G$6:$CU$253,71,FALSE) -> 2,453 | K18: =VLOOKUP($C18,'RECAP SECT'!$G$6:$CU$253,72,FALSE) -> 50.94 | L18: =VLOOKUP($C18,'RECAP SECT'!$G$6:$CU$253,73,FALSE) -> 18% | M18: =VLOOKUP($C18,'RECAP SECT'!$G$6:$CU$253,74,FALSE) -> 7 | N18: =VLOOKUP($C18,'RECAP SECT'!$G$6:$CU$253,75,FALSE) -> 11% | O18: =VLOOKUP($C18,'RECAP SECT'!$G$6:$CU$253,76,FALSE) -> 11% | P18: =VLOOKUP($C18,'RECAP SECT'!$G$6:$CU$253,77,FALSE) -> 4
A19: 30 | B19: MARNE-ARDENNES | C19: 11 | D19: REIMS | E19: =VLOOKUP($C19,'RECAP SECT'!$G$6:$CU$253,3,FALSE) -> 67.9 | F19: =VLOOKUP($C19,'RECAP SECT'!$G$6:$CU$253,67,FALSE) -> 12,326 | G19: =VLOOKUP($C19,'RECAP SECT'!$G$6:$CU$253,68,FALSE) -> 181.48 | H19: =VLOOKUP($C19,'RECAP SECT'!$G$6:$CU$253,69,FALSE) -> 13% | I19: =VLOOKUP($C19,'RECAP SECT'!$G$6:$CU$253,70,FALSE) -> 5 | J19: =VLOOKUP($C19,'RECAP SECT'!$G$6:$CU$253,71,FALSE) -> 4,210 | K19: =VLOOKUP($C19,'RECAP SECT'!$G$6:$CU$253,72,FALSE) -> 61.98 | L19: =VLOOKUP($C19,'RECAP SECT'!$G$6:$CU$253,73,FALSE) -> 0% | M19: =VLOOKUP($C19,'RECAP SECT'!$G$6:$CU$253,74,FALSE) -> 1 | N19: =VLOOKUP($C19,'RECAP SECT'!$G$6:$CU$253,75,FALSE) -> 8% | O19: =VLOOKUP($C19,'RECAP SECT'!$G$6:$CU$253,76,FALSE) -> 7% | P19: =VLOOKUP($C19,'RECAP SECT'!$G$6:$CU$253,77,FALSE) -> 2
A20: 110 | B20: MEURTHE ET MOSELLE MEUSE | C20: 26 | D20: NANCY | E20: =VLOOKUP($C20,'RECAP SECT'!$G$6:$CU$253,3,FALSE) -> 54.9 | F20: =VLOOKUP($C20,'RECAP SECT'!$G$6:$CU$253,67,FALSE) -> 6,154 | G20: =VLOOKUP($C20,'RECAP SECT'!$G$6:$CU$253,68,FALSE) -> 112.05 | H20: =VLOOKUP($C20,'RECAP SECT'!$G$6:$CU$253,69,FALSE) -> 46% | I20: =VLOOKUP($C20,'RECAP SECT'!$G$6:$CU$253,70,FALSE) -> 11 | J20: =VLOOKUP($C20,'RECAP SECT'!$G$6:$CU$253,71,FALSE) -> 2,636 | K20: =VLOOKUP($C20,'RECAP SECT'!$G$6:$CU$253,72,FALSE) -> 48.00 | L20: =VLOOKUP($C20,'RECAP SECT'!$G$6:$CU$253,73,FALSE) -> 23% | M20: =VLOOKUP($C20,'RECAP SECT'!$G$6:$CU$253,74,FALSE) -> 8 | N20: =VLOOKUP($C20,'RECAP SECT'!$G$6:$CU$253,75,FALSE) -> 37% | O20: =VLOOKUP($C20,'RECAP SECT'!$G$6:$CU$253,76,FALSE) -> 36% | P20: =VLOOKUP($C20,'RECAP SECT'!$G$6:$CU$253,77,FALSE) -> 10
A21: 110 | B21: MEURTHE ET MOSELLE MEUSE | C21: 27 | D21: PONT A MOUSSON | E21: =VLOOKUP($C21,'RECAP SECT'!$G$6:$CU$253,3,FALSE) -> 59.6 | F21: =VLOOKUP($C21,'RECAP SECT'!$G$6:$CU$253,67,FALSE) -> 8,070 | G21: =VLOOKUP($C21,'RECAP SECT'!$G$6:$CU$253,68,FALSE) -> 135.31 | H21: =VLOOKUP($C21,'RECAP SECT'!$G$6:$CU$253,69,FALSE) -> 35% | I21: =VLOOKUP($C21,'RECAP SECT'!$G$6:$CU$253,70,FALSE) -> 8 | J21: =VLOOKUP($C21,'RECAP SECT'!$G$6:$CU$253,71,FALSE) -> 3,133 | K21: =VLOOKUP($C21,'RECAP SECT'!$G$6:$CU$253,72,FALSE) -> 52.53 | L21: =VLOOKUP($C21,'RECAP SECT'!$G$6:$CU$253,73,FALSE) -> 15% | M21: =VLOOKUP($C21,'RECAP SECT'!$G$6:$CU$253,74,FALSE) -> 6 | N21: =VLOOKUP($C21,'RECAP SECT'!$G$6:$CU$253,75,FALSE) -> 27% | O21: =VLOOKUP($C21,'RECAP SECT'!$G$6:$CU$253,76,FALSE) -> 26% | P21: =VLOOKUP($C21,'RECAP SECT'!$G$6:$CU$253,77,FALSE) -> 8
A22: 110 | B22: MEURTHE ET MOSELLE MEUSE | C22: 31 | D22: VERDUN | E22: =VLOOKUP($C22,'RECAP SECT'!$G$6:$CU$253,3,FALSE) -> 48.7 | F22: =VLOOKUP($C22,'RECAP SECT'!$G$6:$CU$253,67,FALSE) -> 5,751 | G22: =VLOOKUP($C22,'RECAP SECT'!$G$6:$CU$253,68,FALSE) -> 118.11 | H22: =VLOOKUP($C22,'RECAP SECT'!$G$6:$CU$253,69,FALSE) -> 43% | I22: =VLOOKUP($C22,'RECAP SECT'!$G$6:$CU$253,70,FALSE) -> 10 | J22: =VLOOKUP($C22,'RECAP SECT'!$G$6:$CU$253,71,FALSE) -> 2,125 | K22: =VLOOKUP($C22,'RECAP SECT'!$G$6:$CU$253,72,FALSE) -> 43.64 | L22: =VLOOKUP($C22,'RECAP SECT'!$G$6:$CU$253,73,FALSE) -> 30% | M22: =VLOOKUP($C22,'RECAP SECT'!$G$6:$CU$253,74,FALSE) -> 11 | N22: =VLOOKUP($C22,'RECAP SECT'!$G$6:$CU$253,75,FALSE) -> 38% | O22: =VLOOKUP($C22,'RECAP SECT'!$G$6:$CU$253,76,FALSE) -> 37% | P22: =VLOOKUP($C22,'RECAP SECT'!$G$6:$CU$253,77,FALSE) -> 11
A23: 160 | B23: MOSELLE | C23: 45 | D23: METZ | E23: =VLOOKUP($C23,'RECAP SECT'!$G$6:$CU$253,3,FALSE) -> 72.6 | F23: =VLOOKUP($C23,'RECAP SECT'!$G$6:$CU$253,67,FALSE) -> 9,026 | G23: =VLOOKUP($C23,'RECAP SECT'!$G$6:$CU$253,68,FALSE) -> 124.41 | H23: =VLOOKUP($C23,'RECAP SECT'!$G$6:$CU$253,69,FALSE) -> 40% | I23: =VLOOKUP($C23,'RECAP SECT'!$G$6:$CU$253,70,FALSE) -> 9 | J23: =VLOOKUP($C23,'RECAP SECT'!$G$6:$CU$253,71,FALSE) -> 3,372 | K23: =VLOOKUP($C23,'RECAP SECT'!$G$6:$CU$253,72,FALSE) -> 46.48 | L23: =VLOOKUP($C23,'RECAP SECT'!$G$6:$CU$253,73,FALSE) -> 25% | M23: =VLOOKUP($C23,'RECAP SECT'!$G$6:$CU$253,74,FALSE) -> 10 | N23: =VLOOKUP($C23,'RECAP SECT'!$G$6:$CU$253,75,FALSE) -> 34% | O23: =VLOOKUP($C23,'RECAP SECT'!$G$6:$CU$253,76,FALSE) -> 34% | P23: =VLOOKUP($C23,'RECAP SECT'!$G$6:$CU$253,77,FALSE) -> 9
A24: 160 | B24: MOSELLE | C24: 42 | D24: MOSELLE EST | E24: =VLOOKUP($C24,'RECAP SECT'!$G$6:$CU$253,3,FALSE) -> 57.7 | F24: =VLOOKUP($C24,'RECAP SECT'!$G$6:$CU$253,67,FALSE) -> 10,196 | G24: =VLOOKUP($C24,'RECAP SECT'!$G$6:$CU$253,68,FALSE) -> 176.77 | H24: =VLOOKUP($C24,'RECAP SECT'!$G$6:$CU$253,69,FALSE) -> 15% | I24: =VLOOKUP($C24,'RECAP SECT'!$G$6:$CU$253,70,FALSE) -> 6 | J24: =VLOOKUP($C24,'RECAP SECT'!$G$6:$CU$253,71,FALSE) -> 3,059 | K24: =VLOOKUP($C24,'RECAP SECT'!$G$6:$CU$253,72,FALSE) -> 53.03 | L24: =VLOOKUP($C24,'RECAP SECT'!$G$6:$CU$253,73,FALSE) -> 14% | M24: =VLOOKUP($C24,'RECAP SECT'!$G$6:$CU$253,74,FALSE) -> 5 | N24: =VLOOKUP($C24,'RECAP SECT'!$G$6:$CU$253,75,FALSE) -> 15% | O24: =VLOOKUP($C24,'RECAP SECT'!$G$6:$CU$253,76,FALSE) -> 14% | P24: =VLOOKUP($C24,'RECAP SECT'!$G$6:$CU$253,77,FALSE) -> 6
A25: 160 | B25: MOSELLE | C25: 44 | D25: MOSELLE NORD | E25: =VLOOKUP($C25,'RECAP SECT'!$G$6:$CU$253,3,FALSE) -> 55.4 | F25: =VLOOKUP($C25,'RECAP SECT'!$G$6:$CU$253,67,FALSE) -> 11,539 | G25: =VLOOKUP($C25,'RECAP SECT'!$G$6:$CU$253,68,FALSE) -> 208.21 | H25: =VLOOKUP($C25,'RECAP SECT'!$G$6:$CU$253,69,FALSE) -> 0% | I25: =VLOOKUP($C25,'RECAP SECT'!$G$6:$CU$253,70,FALSE) -> 1 | J25: =VLOOKUP($C25,'RECAP SECT'!$G$6:$CU$253,71,FALSE) -> 3,380 | K25: =VLOOKUP($C25,'RECAP SECT'!$G$6:$CU$253,72,FALSE) -> 60.99 | L25: =VLOOKUP($C25,'RECAP SECT'!$G$6:$CU$253,73,FALSE) -> 2% | M25: =VLOOKUP($C25,'RECAP SECT'!$G$6:$CU$253,74,FALSE) -> 2 | N25: =VLOOKUP($C25,'RECAP SECT'!$G$6:$CU$253,75,FALSE) -> 1% | O25: =VLOOKUP($C25,'RECAP SECT'!$G$6:$CU$253,76,FALSE) -> 0% | P25: =VLOOKUP($C25,'RECAP SECT'!$G$6:$CU$253,77,FALSE) -> 1
A26: 80 | B26: VOSGES | C26: 57 | D26: EPINAL | E26: =VLOOKUP($C26,'RECAP SECT'!$G$6:$CU$253,3,FALSE) -> 53.0 | F26: =VLOOKUP($C26,'RECAP SECT'!$G$6:$CU$253,67,FALSE) -> 5,646 | G26: =VLOOKUP($C26,'RECAP SECT'!$G$6:$CU$253,68,FALSE) -> 106.61 | H26: =VLOOKUP($C26,'RECAP SECT'!$G$6:$CU$253,69,FALSE) -> 49% | I26: =VLOOKUP($C26,'RECAP SECT'!$G$6:$CU$253,70,FALSE) -> 13 | J26: =VLOOKUP($C26,'RECAP SECT'!$G$6:$CU$253,71,FALSE) -> 2,168 | K26: =VLOOKUP($C26,'RECAP SECT'!$G$6:$CU$253,72,FALSE) -> 40.94 | L26: =VLOOKUP($C26,'RECAP SECT'!$G$6:$CU$253,73,FALSE) -> 34% | M26: =VLOOKUP($C26,'RECAP SECT'!$G$6:$CU$253,74,FALSE) -> 13 | N26: =VLOOKUP($C26,'RECAP SECT'!$G$6:$CU$253,75,FALSE) -> 43% | O26: =VLOOKUP($C26,'RECAP SECT'!$G$6:$CU$253,76,FALSE) -> 42% | P26: =VLOOKUP($C26,'RECAP SECT'!$G$6:$CU$253,77,FALSE) -> 13
A27: 80 | B27: VOSGES | C27: 55 | D27: SAINT DIE | E27: =VLOOKUP($C27,'RECAP SECT'!$G$6:$CU$253,3,FALSE) -> 40.0 | F27: =VLOOKUP($C27,'RECAP SECT'!$G$6:$CU$253,67,FALSE) -> 3,972 | G27: =VLOOKUP($C27,'RECAP SECT'!$G$6:$CU$253,68,FALSE) -> 99.23 | H27: =VLOOKUP($C27,'RECAP SECT'!$G$6:$CU$253,69,FALSE) -> 52% | I27: =VLOOKUP($C27,'RECAP SECT'!$G$6:$CU$253,70,FALSE) -> 14 | J27: =VLOOKUP($C27,'RECAP SECT'!$G$6:$CU$253,71,FALSE) -> 1,545 | K27: =VLOOKUP($C27,'RECAP SECT'!$G$6:$CU$253,72,FALSE) -> 38.60 | L27: =VLOOKUP($C27,'RECAP SECT'!$G$6:$CU$253,73,FALSE) -> 38% | M27: =VLOOKUP($C27,'RECAP SECT'!$G$6:$CU$253,74,FALSE) -> 16 | N27: =VLOOKUP($C27,'RECAP SECT'!$G$6:$CU$253,75,FALSE) -> 46% | O27: =VLOOKUP($C27,'RECAP SECT'!$G$6:$CU$253,76,FALSE) -> 46% | P27: =VLOOKUP($C27,'RECAP SECT'!$G$6:$CU$253,77,FALSE) -> 15
A28: Total CEGEE Directions Régionales | E28: =SUM(E10:E27) -> 946

Sheet SE_SATISFACTION
B1: Accueil | F1: BAROMETRE BDD - TERRITOIRES
F2: SATISFACTION
F3: =ACCUEIL!F7 -> 2022-11-27
F7: NPS à froid (SAE) | I7: NPS à chaud (QHD) | L7: Total Satisfaction Clients
F8: =DATEMAJ!E4 -> au 31/10 | G8: coef | H8: ='RECAP DIRCOM'!M4 -> 10% | I8: =DATEMAJ!C5 -> au 30/09 | J8: coef | K8: ='RECAP DIRCOM'!P4 -> 10% | M8: coef | N8: ='RECAP DIRCOM'!S4 -> 20%
B9: Direction | C9: eds | D9: Territoire | E9: ="ETP perf "&DATEMAJ!$C$28 -> ETP perf 27-nov | G9: % Ecart au 1er | H9: Rang | J9: % Ecart au 1er | K9: Rang | L9: Moyenne ecart au 1er | M9: % Ecart au 1er | N9: Rang CEGEE
A10: 50 | B10: AUBE HAUTE MARNE | C10: 21 | D10: CHAUMONT | E10: =VLOOKUP($C10,'RECAP SECT'!$G$6:$CU$253,3,FALSE) -> 33.5 | F10: =VLOOKUP($C10,'RECAP SECT'!$G$6:$CU$253,5,FALSE) -> 20.25 | G10: =VLOOKUP($C10,'RECAP SECT'!$G$6:$CU$253,6,FALSE) -> 20% | H10: =VLOOKUP($C10,'RECAP SECT'!$G$6:$CU$253,7,FALSE) -> 5 | I10: =VLOOKUP($C10,'RECAP SECT'!$G$6:$CU$253,8,FALSE) -> 65% | J10: =VLOOKUP($C10,'RECAP SECT'!$G$6:$CU$253,9,FALSE) -> 11% | K10: =VLOOKUP($C10,'RECAP SECT'!$G$6:$CU$253,10,FALSE) -> 8 | L10: =VLOOKUP($C10,'RECAP SECT'!$G$6:$CU$253,11,FALSE) -> 16% | M10: =VLOOKUP($C10,'RECAP SECT'!$G$6:$CU$253,12,FALSE) -> 15% | N10: =VLOOKUP($C10,'RECAP SECT'!$G$6:$CU$253,13,FALSE) -> 6
A11: 50 | B11: AUBE HAUTE MARNE | C11: 14 | D11: TROYES | E11: =VLOOKUP($C11,'RECAP SECT'!$G$6:$CU$253,3,FALSE) -> 53.9 | F11: =VLOOKUP($C11,'RECAP SECT'!$G$6:$CU$253,5,FALSE) -> 0 | G11: =VLOOKUP($C11,'RECAP SECT'!$G$6:$CU$253,6,FALSE) -> 100% | H11: =VLOOKUP($C11,'RECAP SECT'!$G$6:$CU$253,7,FALSE) -> 18 | I11: =VLOOKUP($C11,'RECAP SECT'!$G$6:$CU$253,8,FALSE) -> 48% | J11: =VLOOKUP($C11,'RECAP SECT'!$G$6:$CU$253,9,FALSE) -> 35% | K11: =VLOOKUP($C11,'RECAP SECT'!$G$6:$CU$253,10,FALSE) -> 17 | L11: =VLOOKUP($C11,'RECAP SECT'!$G$6:$CU$253,11,FALSE) -> 67% | M11: =VLOOKUP($C11,'RECAP SECT'!$G$6:$CU$253,12,FALSE) -> 67% | N11: =VLOOKUP($C11,'RECAP SECT'!$G$6:$CU$253,13,FALSE) -> 18
A12: 262 | B12: BAS-RHIN | C12: 5060 | D12: HAGUENAU | E12: =VLOOKUP($C12,'RECAP SECT'!$G$6:$CU$253,3,FALSE) -> 55.7 | F12: =VLOOKUP($C12,'RECAP SECT'!$G$6:$CU$253,5,FALSE) -> 11.25 | G12: =VLOOKUP($C12,'RECAP SECT'!$G$6:$CU$253,6,FALSE) -> 55% | H12: =VLOOKUP($C12,'RECAP SECT'!$G$6:$CU$253,7,FALSE) -> 11 | I12: =VLOOKUP($C12,'RECAP SECT'!$G$6:$CU$253,8,FALSE) -> 61% | J12: =VLOOKUP($C12,'RECAP SECT'!$G$6:$CU$253,9,FALSE) -> 17% | K12: =VLOOKUP($C12,'RECAP SECT'!$G$6:$CU$253,10,FALSE) -> 10 | L12: =VLOOKUP($C12,'RECAP SECT'!$G$6:$CU$253,11,FALSE) -> 36% | M12: =VLOOKUP($C12,'RECAP SECT'!$G$6:$CU$253,12,FALSE) -> 36% | N12: =VLOOKUP($C12,'RECAP SECT'!$G$6:$CU$253,13,FALSE) -> 11
A13: 262 | B13: BAS-RHIN | C13: 5101 | D13: SELESTAT | E13: =VLOOKUP($C13,'RECAP SECT'!$G$6:$CU$253,3,FALSE) -> 50.7 | F13: =VLOOKUP($C13,'RECAP SECT'!$G$6:$CU$253,5,FALSE) -> 2.25 | G13: =VLOOKUP($C13,'RECAP SECT'!$G$6:$CU$253,6,FALSE) -> 91% | H13: =VLOOKUP($C13,'RECAP SECT'!$G$6:$CU$253,7,FALSE) -> 16 | I13: =VLOOKUP($C13,'RECAP SECT'!$G$6:$CU$253,8,FALSE) -> 60% | J13: =VLOOKUP($C13,'RECAP SECT'!$G$6:$CU$253,9,FALSE) -> 19% | K13: =VLOOKUP($C13,'RECAP SECT'!$G$6:$CU$253,10,FALSE) -> 13 | L13: =VLOOKUP($C13,'RECAP SECT'!$G$6:$CU$253,11,FALSE) -> 55% | M13: =VLOOKUP($C13,'RECAP SECT'!$G$6:$CU$253,12,FALSE) -> 54% | N13: =VLOOKUP($C13,'RECAP SECT'!$G$6:$CU$253,13,FALSE) -> 15
A14: 262 | B14: BAS-RHIN | C14: 5006 | D14: STRASBOURG | E14: =VLOOKUP($C14,'RECAP SECT'!$G$6:$CU$253,3,FALSE) -> 64.5 | F14: =VLOOKUP($C14,'RECAP SECT'!$G$6:$CU$253,5,FALSE) -> 8.5 | G14: =VLOOKUP($C14,'RECAP SECT'!$G$6:$CU$253,6,FALSE) -> 66% | H14: =VLOOKUP($C14,'RECAP SECT'!$G$6:$CU$253,7,FALSE) -> 13 | I14: =VLOOKUP($C14,'RECAP SECT'!$G$6:$CU$253,8,FALSE) -> 66% | J14: =VLOOKUP($C14,'RECAP SECT'!$G$6:$CU$253,9,FALSE) -> 10% | K14: =VLOOKUP($C14,'RECAP SECT'!$G$6:$CU$253,10,FALSE) -> 5 | L14: =VLOOKUP($C14,'RECAP SECT'!$G$6:$CU$253,11,FALSE) -> 38% | M14: =VLOOKUP($C14,'RECAP SECT'!$G$6:$CU$253,12,FALSE) -> 38% | N14: =VLOOKUP($C14,'RECAP SECT'!$G$6:$CU$253,13,FALSE) -> 12
A15: 264 | B15: HAUT-RHIN | C15: 5130 | D15: COLMAR | E15: =VLOOKUP($C15,'RECAP SECT'!$G$6:$CU$253,3,FALSE) -> 45.5 | F15: =VLOOKUP($C15,'RECAP SECT'!$G$6:$CU$253,5,FALSE) -> 2.25 | G15: =VLOOKUP($C15,'RECAP SECT'!$G$6:$CU$253,6,FALSE) -> 91% | H15: =VLOOKUP($C15,'RECAP SECT'!$G$6:$CU$253,7,FALSE) -> 16 | I15: =VLOOKUP($C15,'RECAP SECT'!$G$6:$CU$253,8,FALSE) -> 49% | J15: =VLOOKUP($C15,'RECAP SECT'!$G$6:$CU$253,9,FALSE) -> 34% | K15: =VLOOKUP($C15,'RECAP SECT'!$G$6:$CU$253,10,FALSE) -> 16 | L15: =VLOOKUP($C15,'RECAP SECT'!$G$6:$CU$253,11,FALSE) -> 62% | M15: =VLOOKUP($C15,'RECAP SECT'!$G$6:$CU$253,12,FALSE) -> 62% | N15: =VLOOKUP($C15,'RECAP SECT'!$G$6:$CU$253,13,FALSE) -> 16
A16: 264 | B16: HAUT-RHIN | C16: 5169 | D16: MULHOUSE | E16: =VLOOKUP($C16,'RECAP SECT'!$G$6:$CU$253,3,FALSE) -> 46.9 | F16: =VLOOKUP($C16,'RECAP SECT'!$G$6:$CU$253,5,FALSE) -> 3.25 | G16: =VLOOKUP($C16,'RECAP SECT'!$G$6:$CU$253,6,FALSE) -> 87% | H16: =VLOOKUP($C16,'RECAP SECT'!$G$6:$CU$253,7,FALSE) -> 15 | I16: =VLOOKUP($C16,'RECAP SECT'!$G$6:$CU$253,8,FALSE) -> 45% | J16: =VLOOKUP($C16,'RECAP SECT'!$G$6:$CU$253,9,FALSE) -> 39% | K16: =VLOOKUP($C16,'RECAP SECT'!$G$6:$CU$253,10,FALSE) -> 18 | L16: =VLOOKUP($C16,'RECAP SECT'!$G$6:$CU$253,11,FALSE) -> 63% | M16: =VLOOKUP($C16,'RECAP SECT'!$G$6:$CU$253,12,FALSE) -> 63% | N16: =VLOOKUP($C16,'RECAP SECT'!$G$6:$CU$253,13,FALSE) -> 17
A17: 30 | B17: MARNE-ARDENNES | C17: 6 | D17: CHALONS EN CHAMPAGNE | E17: =VLOOKUP($C17,'RECAP SECT'!$G$6:$CU$253,3,FALSE) -> 37.3 | F17: =VLOOKUP($C17,'RECAP SECT'!$G$6:$CU$253,5,FALSE) -> 25 | G17: =VLOOKUP($C17,'RECAP SECT'!$G$6:$CU$253,6,FALSE) -> 1% | H17: =VLOOKUP($C17,'RECAP SECT'!$G$6:$CU$253,7,FALSE) -> 2 | I17: =VLOOKUP($C17,'RECAP SECT'!$G$6:$CU$253,8,FALSE) -> 73% | J17: =VLOOKUP($C17,'RECAP SECT'!$G$6:$CU$253,9,FALSE) -> 0% | K17: =VLOOKUP($C17,'RECAP SECT'!$G$6:$CU$253,10,FALSE) -> 1 | L17: =VLOOKUP($C17,'RECAP SECT'!$G$6:$CU$253,11,FALSE) -> 0% | M17: =VLOOKUP($C17,'RECAP SECT'!$G$6:$CU$253,12,FALSE) -> 0% | N17: =VLOOKUP($C17,'RECAP SECT'!$G$6:$CU$253,13,FALSE) -> 1
A18: 30 | B18: MARNE-ARDENNES | C18: 2 | D18: CHARLEVILLE MEZIERES | E18: =VLOOKUP($C18,'RECAP SECT'!$G$6:$CU$253,3,FALSE) -> 48.2 | F18: =VLOOKUP($C18,'RECAP SECT'!$G$6:$CU$253,5,FALSE) -> 14.5 | G18: =VLOOKUP($C18,'RECAP SECT'!$G$6:$CU$253,6,FALSE) -> 43% | H18: =VLOOKUP($C18,'RECAP SECT'!$G$6:$CU$253,7,FALSE) -> 9 | I18: =VLOOKUP($C18,'RECAP SECT'!$G$6:$CU$253,8,FALSE) -> 66% | J18: =VLOOKUP($C18,'RECAP SECT'!$G$6:$CU$253,9,FALSE) -> 11% | K18: =VLOOKUP($C18,'RECAP SECT'!$G$6:$CU$253,10,FALSE) -> 7 | L18: =VLOOKUP($C18,'RECAP SECT'!$G$6:$CU$253,11,FALSE) -> 27% | M18: =VLOOKUP($C18,'RECAP SECT'!$G$6:$CU$253,12,FALSE) -> 26% | N18: =VLOOKUP($C18,'RECAP SECT'!$G$6:$CU$253,13,FALSE) -> 7
A19: 30 | B19: MARNE-ARDENNES | C19: 11 | D19: REIMS | E19: =VLOOKUP($C19,'RECAP SECT'!$G$6:$CU$253,3,FALSE) -> 67.9 | F19: =VLOOKUP($C19,'RECAP SECT'!$G$6:$CU$253,5,FALSE) -> 16.25 | G19: =VLOOKUP($C19,'RECAP SECT'!$G$6:$CU$253,6,FALSE) -> 36% | H19: =VLOOKUP($C19,'RECAP SECT'!$G$6:$CU$253,7,FALSE) -> 7 | I19: =VLOOKUP($C19,'RECAP SECT'!$G$6:$CU$253,8,FALSE) -> 60% | J19: =VLOOKUP($C19,'RECAP SECT'!$G$6:$CU$253,9,FALSE) -> 18% | K19: =VLOOKUP($C19,'RECAP SECT'!$G$6:$CU$253,10,FALSE) -> 12 | L19: =VLOOKUP($C19,'RECAP SECT'!$G$6:$CU$253,11,FALSE) -> 27% | M19: =VLOOKUP($C19,'RECAP SECT'!$G$6:$CU$253,12,FALSE) -> 26% | N19: =VLOOKUP($C19,'RECAP SECT'!$G$6:$CU$253,13,FALSE) -> 8
A20: 110 | B20: MEURTHE ET MOSELLE MEUSE | C20: 26 | D20: NANCY | E20: =VLOOKUP($C20,'RECAP SECT'!$G$6:$CU$253,3,FALSE) -> 54.9 | F20: =VLOOKUP($C20,'RECAP SECT'!$G$6:$CU$253,5,FALSE) -> 13.25 | G20: =VLOOKUP($C20,'RECAP SECT'!$G$6:$CU$253,6,FALSE) -> 48% | H20: =VLOOKUP($C20,'RECAP SECT'!$G$6:$CU$253,7,FALSE) -> 10 | I20: =VLOOKUP($C20,'RECAP SECT'!$G$6:$CU$253,8,FALSE) -> 62% | J20: =VLOOKUP($C20,'RECAP SECT'!$G$6:$CU$253,9,FALSE) -> 16% | K20: =VLOOKUP($C20,'RECAP SECT'!$G$6:$CU$253,10,FALSE) -> 9 | L20: =VLOOKUP($C20,'RECAP SECT'!$G$6:$CU$253,11,FALSE) -> 32% | M20: =VLOOKUP($C20,'RECAP SECT'!$G$6:$CU$253,12,FALSE) -> 31% | N20: =VLOOKUP($C20,'RECAP SECT'!$G$6:$CU$253,13,FALSE) -> 10
A21: 110 | B21: MEURTHE ET MOSELLE MEUSE | C21: 27 | D21: PONT A MOUSSON | E21: =VLOOKUP($C21,'RECAP SECT'!$G$6:$CU$253,3,FALSE) -> 59.6 | F21: =VLOOKUP($C21,'RECAP SECT'!$G$6:$CU$253,5,FALSE) -> 4.75 | G21: =VLOOKUP($C21,'RECAP SECT'!$G$6:$CU$253,6,FALSE) -> 81% | H21: =VLOOKUP($C21,'RECAP SECT'!$G$6:$CU$253,7,FALSE) -> 14 | I21: =VLOOKUP($C21,'RECAP SECT'!$G$6:$CU$253,8,FALSE) -> 54% | J21: =VLOOKUP($C21,'RECAP SECT'!$G$6:$CU$253,9,FALSE) -> 27% | K21: =VLOOKUP($C21,'RECAP SECT'!$G$6:$CU$253,10,FALSE) -> 15 | L21: =VLOOKUP($C21,'RECAP SECT'!$G$6:$CU$253,11,FALSE) -> 54% | M21: =VLOOKUP($C21,'RECAP SECT'!$G$6:$CU$253,12,FALSE) -> 53% | N21: =VLOOKUP($C21,'RECAP SECT'!$G$6:$CU$253,13,FALSE) -> 14
A22: 110 | B22: MEURTHE ET MOSELLE MEUSE | C22: 31 | D22: VERDUN | E22: =VLOOKUP($C22,'RECAP SECT'!$G$6:$CU$253,3,FALSE) -> 48.7 | F22: =VLOOKUP($C22,'RECAP SECT'!$G$6:$CU$253,5,FALSE) -> 20.75 | G22: =VLOOKUP($C22,'RECAP SECT'!$G$6:$CU$253,6,FALSE) -> 18% | H22: =VLOOKUP($C22,'RECAP SECT'!$G$6:$CU$253,7,FALSE) -> 4 | I22: =VLOOKUP($C22,'RECAP SECT'!$G$6:$CU$253,8,FALSE) -> 67% | J22: =VLOOKUP($C22,'RECAP SECT'!$G$6:$CU$253,9,FALSE) -> 9% | K22: =VLOOKUP($C22,'RECAP SECT'!$G$6:$CU$253,10,FALSE) -> 4 | L22: =VLOOKUP($C22,'RECAP SECT'!$G$6:$CU$253,11,FALSE) -> 13% | M22: =VLOOKUP($C22,'RECAP SECT'!$G$6:$CU$253,12,FALSE) -> 13% | N22: =VLOOKUP($C22,'RECAP SECT'!$G$6:$CU$253,13,FALSE) -> 4
A23: 160 | B23: MOSELLE | C23: 45 | D23: METZ | E23: =VLOOKUP($C23,'RECAP SECT'!$G$6:$CU$253,3,FALSE) -> 72.6 | F23: =VLOOKUP($C23,'RECAP SECT'!$G$6:$CU$253,5,FALSE) -> 15.25 | G23: =VLOOKUP($C23,'RECAP SECT'!$G$6:$CU$253,6,FALSE) -> 40% | H23: =VLOOKUP($C23,'RECAP SECT'!$G$6:$CU$253,7,FALSE) -> 8 | I23: =VLOOKUP($C23,'RECAP SECT'!$G$6:$CU$253,8,FALSE) -> 59% | J23: =VLOOKUP($C23,'RECAP SECT'!$G$6:$CU$253,9,FALSE) -> 20% | K23: =VLOOKUP($C23,'RECAP SECT'!$G$6:$CU$253,10,FALSE) -> 14 | L23: =VLOOKUP($C23,'RECAP SECT'!$G$6:$CU$253,11,FALSE) -> 30% | M23: =VLOOKUP($C23,'RECAP SECT'!$G$6:$CU$253,12,FALSE) -> 29% | N23: =VLOOKUP($C23,'RECAP SECT'!$G$6:$CU$253,13,FALSE) -> 9
A24: 160 | B24: MOSELLE | C24: 42 | D24: MOSELLE EST | E24: =VLOOKUP($C24,'RECAP SECT'!$G$6:$CU$253,3,FALSE) -> 57.7 | F24: =VLOOKUP($C24,'RECAP SECT'!$G$6:$CU$253,5,FALSE) -> 20 | G24: =VLOOKUP($C24,'RECAP SECT'!$G$6:$CU$253,6,FALSE) -> 21% | H24: =VLOOKUP($C24,'RECAP SECT'!$G$6:$CU$253,7,FALSE) -> 6 | I24: =VLOOKUP($C24,'RECAP SECT'!$G$6:$CU$253,8,FALSE) -> 66% | J24: =VLOOKUP($C24,'RECAP SECT'!$G$6:$CU$253,9,FALSE) -> 10% | K24: =VLOOKUP($C24,'RECAP SECT'!$G$6:$CU$253,10,FALSE) -> 6 | L24: =VLOOKUP($C24,'RECAP SECT'!$G$6:$CU$253,11,FALSE) -> 16% | M24: =VLOOKUP($C24,'RECAP SECT'!$G$6:$CU$253,12,FALSE) -> 15% | N24: =VLOOKUP($C24,'RECAP SECT'!$G$6:$CU$253,13,FALSE) -> 5
A25: 160 | B25: MOSELLE | C25: 44 | D25: MOSELLE NORD | E25: =VLOOKUP($C25,'RECAP SECT'!$G$6:$CU$253,3,FALSE) -> 55.4 | F25: =VLOOKUP($C25,'RECAP SECT'!$G$6:$CU$253,5,FALSE) -> 9.5 | G25: =VLOOKUP($C25,'RECAP SECT'!$G$6:$CU$253,6,FALSE) -> 62% | H25: =VLOOKUP($C25,'RECAP SECT'!$G$6:$CU$253,7,FALSE) -> 12 | I25: =VLOOKUP($C25,'RECAP SECT'!$G$6:$CU$253,8,FALSE) -> 61% | J25: =VLOOKUP($C25,'RECAP SECT'!$G$6:$CU$253,9,FALSE) -> 17% | K25: =VLOOKUP($C25,'RECAP SECT'!$G$6:$CU$253,10,FALSE) -> 11 | L25: =VLOOKUP($C25,'RECAP SECT'!$G$6:$CU$253,11,FALSE) -> 40% | M25: =VLOOKUP($C25,'RECAP SECT'!$G$6:$CU$253,12,FALSE) -> 39% | N25: =VLOOKUP($C25,'RECAP SECT'!$G$6:$CU$253,13,FALSE) -> 13
A26: 80 | B26: VOSGES | C26: 57 | D26: EPINAL | E26: =VLOOKUP($C26,'RECAP SECT'!$G$6:$CU$253,3,FALSE) -> 53.0 | F26: =VLOOKUP($C26,'RECAP SECT'!$G$6:$CU$253,5,FALSE) -> 22.25 | G26: =VLOOKUP($C26,'RECAP SECT'!$G$6:$CU$253,6,FALSE) -> 12% | H26: =VLOOKUP($C26,'RECAP SECT'!$G$6:$CU$253,7,FALSE) -> 3 | I26: =VLOOKUP($C26,'RECAP SECT'!$G$6:$CU$253,8,FALSE) -> 70% | J26: =VLOOKUP($C26,'RECAP SECT'!$G$6:$CU$253,9,FALSE) -> 5% | K26: =VLOOKUP($C26,'RECAP SECT'!$G$6:$CU$253,10,FALSE) -> 2 | L26: =VLOOKUP($C26,'RECAP SECT'!$G$6:$CU$253,11,FALSE) -> 8% | M26: =VLOOKUP($C26,'RECAP SECT'!$G$6:$CU$253,12,FALSE) -> 8% | N26: =VLOOKUP($C26,'RECAP SECT'!$G$6:$CU$253,13,FALSE) -> 3
A27: 80 | B27: VOSGES | C27: 55 | D27: SAINT DIE | E27: =VLOOKUP($C27,'RECAP SECT'!$G$6:$CU$253,3,FALSE) -> 40.0 | F27: =VLOOKUP($C27,'RECAP SECT'!$G$6:$CU$253,5,FALSE) -> 25.25 | G27: =VLOOKUP($C27,'RECAP SECT'!$G$6:$CU$253,6,FALSE) -> 0% | H27: =VLOOKUP($C27,'RECAP SECT'!$G$6:$CU$253,7,FALSE) -> 1 | I27: =VLOOKUP($C27,'RECAP SECT'!$G$6:$CU$253,8,FALSE) -> 69% | J27: =VLOOKUP($C27,'RECAP SECT'!$G$6:$CU$253,9,FALSE) -> 6% | K27: =VLOOKUP($C27,'RECAP SECT'!$G$6:$CU$253,10,FALSE) -> 3 | L27: =VLOOKUP($C27,'RECAP SECT'!$G$6:$CU$253,11,FALSE) -> 3% | M27: =VLOOKUP($C27,'RECAP SECT'!$G$6:$CU$253,12,FALSE) -> 3% | N27: =VLOOKUP($C27,'RECAP SECT'!$G$6:$CU$253,13,FALSE) -> 2
A28: Total CEGEE Directions Régionales | E28: =SUM(E10:E27) -> 946

Sheet AG_CLASS
B1: Accueil | H1: BAROMETRE BDD - AGENCES
H2: CLASSEMENTS
H3: =ACCUEIL!F7 -> 2022-11-27
H8: CLASSEMENT GENERAL | I8: CRITERE Satisfaction Clients | J8: NPS à froid (SAE) | K8: NPS à chaud (QHD) | L8: CRITERE BANCARISATION | M8: Ventes Nettes produits pondérés | N8: Ventes sur client non détenteur de l’univers | O8: CRITERE EPARGNE | P8: Excédent Epargne hors DAV pondéré | Q8: Ventes sur client non détenteur de l’univers | R8: CRITERE IARD PREVOYANCE | S8: Ventes Nettes produits pondérés | T8: Ventes sur client non détenteur de l’univers | U8: CRITERE CREDITS | V8: Engagements et ventes accessoires pondérés Immo | W8: Engagements et ventes accessoires pondérés Conso | X8: Ventes sur client non détenteur de l’univers
B9: Direction | C9: eds | D9: Territoire | E9: eds | F9: Agence | G9: ="ETP perf "&DATEMAJ!$C$28 -> ETP perf 27-nov | H9: Rang | I9: Rang | J9: Rang | K9: Rang | L9: Rang | M9: Rang | N9: Rang | O9: Rang | P9: Rang | Q9: Rang | R9: Rang | S9: Rang | T9: Rang | U9: Rang | V9: Rang | W9: Rang | X9: Rang
A10: 50 | B10: MOSELLE | C10: 44 | D10: MOSELLE NORD | E10: 557508 | F10: NILVANGE | G10: 1.4 | H10: 1 | I10: 65 | J10: 77 | K10: 40 | L10: 1 | M10: 1 | N10: 1 | O10: 4 | P10: 90 | Q10: 1 | R10: 1 | S10: 1 | T10: 1 | U10: 1 | V10: 1 | W10: 1 | X10: 1
A11: 50 | B11: MARNE ARDENNES | C11: 11 | D11: REIMS | E11: 551340 | F11: BETHENY | G11: 2.2 | H11: 2 | I11: 53 | J11: 34 | K11: 113 | L11: 4 | M11: 5 | N11: 4 | O11: 7 | P11: 12 | Q11: 8 | R11: 49 | S11: 62 | T11: 33 | U11: 5 | V11: 2 | W11: 62 | X11: 8
A12: 50 | B12: VOSGES | C12: 57 | D12: EPINAL | E12: 488288 | F12: EPINAL LEOPOLD BOURG | G12: 2.0 | H12: 3 | I12: 4 | J12: 8 | K12: 2 | L12: 18 | M12: 12 | N12: 44 | O12: 6 | P12: 4 | Q12: 34 | R12: 59 | S12: 36 | T12: 135 | U12: 28 | V12: 18 | W12: 108 | X12: 31
A13: 50 | B13: MEURTHE ET MOSELLE MEUSE | C13: 27 | D13: PONT A MOUSSON | E13: 554381 | F13: LAXOU ARISTIDE BRIAND | G13: 2.3 | H13: 4 | I13: 142 | J13: 151 | K13: 128 | L13: 2 | M13: 2 | N13: 2 | O13: 29 | P13: 70 | Q13: 6 | R13: 11 | S13: 19 | T13: 7 | U13: 3 | V13: 5 | W13: 13 | X13: 7
A14: 50 | B14: MARNE ARDENNES | C14: 11 | D14: REIMS | E14: 551305 | F14: REIMS HIPPODROME | G14: 5.0 | H14: 5 | I14: 81 | J14: 78 | K14: 84 | L14: 10 | M14: 20 | N14: 8 | O14: 22 | P14: 43 | Q14: 13 | R14: 12 | S14: 14 | T14: 9 | U14: 6 | V14: 7 | W14: 69 | X14: 3
A15: 50 | B15: MARNE ARDENNES | C15: 6 | D15: CHALONS EN CHAMPAGNE | E15: 551330 | F15: MONTMIRAIL | G15: 2.8 | H15: 6 | I15: 9 | J15: 9 | K15: 19 | L15: 13 | M15: 6 | N15: 54 | O15: 42 | P15: 36 | Q15: 89 | R15: 9 | S15: 6 | T15: 20 | U15: 56 | V15: 47 | W15: 163 | X15: 29
A16: 50 | B16: MARNE ARDENNES | C16: 11 | D16: REIMS | E16: 551349 | F16: REIMS SAINT REMI | G16: 2.9 | H16: 7 | I16: 117 | J16: 124 | K16: 94 | L16: 3 | M16: 3 | N16: 7 | O16: 28 | P16: 63 | Q16: 9 | R16: 15 | S16: 25 | T16: 11 | U16: 9 | V16: 10 | W16: 35 | X16: 9
A17: 50 | B17: BAS RHIN | C17: 5006 | D17: STRASBOURG | E17: 4048 | F17: STRASBOURG KOENIGSHOFFEN | G17: 1.5 | H17: 8 | I17: 156 | J17: 184 | K17: 133 | L17: 5 | M17: 11 | N17: 3 | O17: 5 | P17: 9 | Q17: 3 | R17: 10 | S17: 72 | T17: 2 | U17: 17 | V17: 61 | W17: 14 | X17: 10
A18: 50 | B18: MOSELLE | C18: 45 | D18: METZ | E18: 457443 | F18: METZ REPUBLIQUE | G18: 3.5 | H18: 9 | I18: 37 | J18: 29 | K18: 61 | L18: 91 | M18: 85 | N18: 111 | O18: 1 | P18: 1 | Q18: 75 | R18: 21 | S18: 16 | T18: 54 | U18: 108 | V18: 116 | W18: 104 | X18: 99
A19: 50 | B19: MOSELLE | C19: 44 | D19: MOSELLE NORD | E19: 557113 | F19: AUDUN LE TICHE | G19: 2.1 | H19: 10 | I19: 106 | J19: 153 | K19: 12 | L19: 8 | M19: 15 | N19: 6 | O19: 24 | P19: 54 | Q19: 7 | R19: 32 | S19: 55 | T19: 18 | U19: 11 | V19: 13 | W19: 8 | X19: 25
A20: 50 | B20: MARNE ARDENNES | C20: 6 | D20: CHALONS EN CHAMPAGNE | E20: 451115 | F20: MOURMELON LE GRAND | G20: 2.8 | H20: 11 | I20: 98 | J20: 128 | K20: 25 | L20: 9 | M20: 8 | N20: 15 | O20: 15 | P20: 53 | Q20: 4 | R20: 17 | S20: 41 | T20: 10 | U20: 18 | V20: 44 | W20: 6 | X20: 35
A21: 50 | B21: MOSELLE | C21: 44 | D21: MOSELLE NORD | E21: 557660 | F21: UCKANGE | G21: 1.9 | H21: 12 | I21: 217 | J21: 163 | K21: 224 | L21: 14 | M21: 32 | N21: 10 | O21: 46 | P21: 190 | Q21: 2 | R21: 2 | S21: 2 | T21: 3 | U21: 2 | V21: 3 | W21: 53 | X21: 2
A22: 50 | B22: MEURTHE ET MOSELLE MEUSE | C22: 26 | D22: NANCY | E22: 554476 | F22: NANCY ARTEM | G22: 2.8 | H22: 13 | I22: 21 | J22: 31 | K22: 11 | L22: 16 | M22: 24 | N22: 17 | O22: 139 | P22: 151 | Q22: 64 | R22: 84 | S22: 77 | T22: 115 | U22: 8 | V22: 4 | W22: 110 | X22: 6
A23: 50 | B23: MARNE ARDENNES | C23: 6 | D23: CHALONS EN CHAMPAGNE | E23: 451120 | F23: SARRY | G23: 2.2 | H23: 14 | I23: 11 | J23: 14 | K23: 7 | L23: 21 | M23: 13 | N23: 70 | O23: 129 | P23: 166 | Q23: 32 | R23: 28 | S23: 17 | T23: 71 | U23: 44 | V23: 25 | W23: 88 | X23: 54
A24: 50 | B24: MARNE ARDENNES | C24: 2 | D24: CHARLEVILLE MEZIERES | E24: 508820 | F24: VOUZIERS | G24: 2.7 | H24: 15 | I24: 39 | J24: 31 | K24: 62 | L24: 42 | M24: 42 | N24: 60 | O24: 53 | P24: 40 | Q24: 155 | R24: 8 | S24: 5 | T24: 23 | U24: 37 | V24: 88 | W24: 5 | X24: 62
A25: 50 | B25: MARNE ARDENNES | C25: 11 | D25: REIMS | E25: 551365 | F25: DORMANS | G25: 2.5 | H25: 16 | I25: 36 | J25: 31 | K25: 53 | L25: 6 | M25: 4 | N25: 19 | O25: 167 | P25: 207 | Q25: 16 | R25: 39 | S25: 46 | T25: 40 | U25: 23 | V25: 30 | W25: 149 | X25: 13
A26: 50 | B26: BAS RHIN | C26: 5006 | D26: STRASBOURG | E26: 4037 | F26: SHOPPING PROMENADE CŒUR ALSACE | G26: 3.7 | H26: 17 | I26: 85 | J26: 85 | K26: 85 | L26: 12 | M26: 17 | N26: 16 | O26: 110 | P26: 160 | Q26: 20 | R26: 7 | S26: 7 | T26: 16 | U26: 26 | V26: 16 | W26: 168 | X26: 17
A27: 50 | B27: MOSELLE | C27: 42 | D27: MOSELLE EST | E27: 457165 | F27: BITCHE | G27: 2.3 | H27: 18 | I27: 17 | J27: 16 | K27: 31 | L27: 15 | M27: 10 | N27: 56 | O27: 98 | P27: 132 | Q27: 23 | R27: 37 | S27: 35 | T27: 62 | U27: 118 | V27: 114 | W27: 55 | X27: 183
A28: 262 | B28: MOSELLE | C28: 45 | D28: METZ | E28: 457446 | F28: METZ SAINT LOUIS | G28: 5.7 | H28: 19 | I28: 92 | J28: 93 | K28: 83 | L28: 19 | M28: 19 | N28: 31 | O28: 38 | P28: 77 | Q28: 10 | R28: 66 | S28: 60 | T28: 88 | U28: 21 | V28: 14 | W28: 153 | X28: 22
A29: 262 | B29: MARNE ARDENNES | C29: 11 | D29: REIMS | E29: 451350 | F29: REIMS CENTRE VILLE | G29: 6.3 | H29: 20 | I29: 185 | J29: 166 | K29: 187 | L29: 7 | M29: 9 | N29: 12 | O29: 137 | P29: 176 | Q29: 24 | R29: 18 | S29: 29 | T29: 19 | U29: 4 | V29: 6 | W29: 44 | X29: 4
A30: 262 | B30: MOSELLE | C30: 45 | D30: METZ | E30: 457453 | F30: MONTIGNY LES METZ | G30: 7.0 | H30: 21 | I30: 13 | J30: 15 | K30: 20 | L30: 46 | M30: 29 | N30: 100 | O30: 64 | P30: 105 | Q30: 14 | R30: 139 | S30: 115 | T30: 182 | U30: 45 | V30: 29 | W30: 71 | X30: 64
A31: 262 | B31: MARNE ARDENNES | C31: 6 | D31: CHALONS EN CHAMPAGNE | E31: 551354 | F31: VERTUS | G31: 2.0 | H31: 22 | I31: 2 | J31: 2 | K31: 1 | L31: 108 | M31: 77 | N31: 179 | O31: 26 | P31: 17 | Q31: 129 | R31: 184 | S31: 190 | T31: 150 | U31: 99 | V31: 161 | W31: 54 | X31: 106
A32: 262 | B32: MARNE ARDENNES | C32: 11 | D32: REIMS | E32: 451336 | F32: TINQUEUX | G32: 5.1 | H32: 23 | I32: 144 | J32: 131 | K32: 168 | L32: 48 | M32: 46 | N32: 75 | O32: 2 | P32: 2 | Q32: 63 | R32: 108 | S32: 121 | T32: 95 | U32: 61 | V32: 23 | W32: 164 | X32: 59
A33: 262 | B33: VOSGES | C33: 57 | D33: EPINAL | E33: 588336 | F33: GOLBEY | G33: 2.8 | H33: 24 | I33: 34 | J33: 27 | K33: 42 | L33: 93 | M33: 102 | N33: 89 | O33: 33 | P33: 25 | Q33: 101 | R33: 29 | S33: 18 | T33: 76 | U33: 71 | V33: 112 | W33: 95 | X33: 41
A34: 262 | B34: MARNE ARDENNES | C34: 2 | D34: CHARLEVILLE MEZIERES | E34: 508839 | F34: GIVET | G34: 3.4 | H34: 25 | I34: 71 | J34: 66 | K34: 100 | L34: 56 | M34: 71 | N34: 51 | O34: 118 | P34: 148 | Q34: 37 | R34: 5 | S34: 4 | T34: 39 | U34: 42 | V34: 67 | W34: 26 | X34: 55
A35: 262 | B35: MOSELLE | C35: 42 | D35: MOSELLE EST | E35: 457308 | F35: FORBACH CENTRALE | G35: 10.0 | H35: 26 | I35: 109 | J35: 100 | K35: 120 | L35: 24 | M35: 26 | N35: 41 | O35: 69 | P35: 89 | Q35: 40 | R35: 27 | S35: 32 | T35: 34 | U35: 33 | V35: 51 | W35: 22 | X35: 63
A36: 262 | B36: AUBE HAUTE MARNE | C36: 21 | D36: CHAUMONT | E36: 510590 | F36: CHAUMONT REPUBLIQUE | G36: 2.9 | H36: 27 | I36: 50 | J36: 76 | K36: 23 | L36: 130 | M36: 165 | N36: 74 | O36: 23 | P36: 21 | Q36: 55 | R36: 22 | S36: 20 | T36: 55 | U36: 69 | V36: 104 | W36: 43 | X36: 70
A37: 262 | B37: MARNE ARDENNES | C37: 2 | D37: CHARLEVILLE MEZIERES | E37: 508833 | F37: VILLERS SEMEUSE CORA | G37: 3.0 | H37: 28 | I37: 181 | J37: 205 | K37: 163 | L37: 89 | M37: 155 | N37: 29 | O37: 30 | P37: 46 | Q37: 25 | R37: 6 | S37: 8 | T37: 12 | U37: 12 | V37: 17 | W37: 7 | X37: 14
A38: 262 | B38: MEURTHE ET MOSELLE MEUSE | C38: 26 | D38: NANCY | E38: 554601 | F38: SAINT MAX | G38: 3.5 | H38: 29 | I38: 29 | J38: 27 | K38: 34 | L38: 122 | M38: 107 | N38: 144 | O38: 21 | P38: 14 | Q38: 125 | R38: 47 | S38: 40 | T38: 97 | U38: 105 | V38: 96 | W38: 99 | X38: 121
A39: 262 | B39: MOSELLE | C39: 42 | D39: MOSELLE EST | E39: 557250 | F39: CREUTZWALD | G39: 2.5 | H39: 30 | I39: 14 | J39: 12 | K39: 41 | L39: 131 | M39: 158 | N39: 91 | O39: 89 | P39: 95 | Q39: 62 | R39: 34 | S39: 21 | T39: 111 | U39: 81 | V39: 80 | W39: 36 | X39: 149
A40: 262 | B40: MEURTHE ET MOSELLE MEUSE | C40: 31 | D40: VERDUN | E40: 555406 | F40: LIGNY EN BARROIS | G40: 2.5 | H40: 31 | I40: 22 | J40: 17 | K40: 46 | L40: 110 | M40: 106 | N40: 112 | O40: 3 | P40: 3 | Q40: 139 | R40: 213 | S40: 209 | T40: 194 | U40: 169 | V40: 201 | W40: 148 | X40: 137
A41: 262 | B41: MARNE ARDENNES | C41: 11 | D41: REIMS | E41: 451301 | F41: REIMS HOTEL DE VILLE | G41: 6.8 | H41: 32 | I41: 110 | J41: 103 | K41: 119 | L41: 50 | M41: 66 | N41: 46 | O41: 104 | P41: 130 | Q41: 33 | R41: 14 | S41: 12 | T41: 24 | U41: 31 | V41: 15 | W41: 157 | X41: 34
A42: 262 | B42: MOSELLE | C42: 45 | D42: METZ | E42: 557447 | F42: METZ SAINT MAXIMIN | G42: 2.4 | H42: 33 | I42: 132 | J42: 138 | K42: 121 | L42: 47 | M42: 80 | N42: 26 | O42: 44 | P42: 76 | Q42: 12 | R42: 3 | S42: 3 | T42: 13 | U42: 134 | V42: 124 | W42: 58 | X42: 211
A43: 262 | B43: MEURTHE ET MOSELLE MEUSE | C43: 26 | D43: NANCY | E43: 554356 | F43: JARVILLE LA MALGRANGE | G43: 4.1 | H43: 34 | I43: 20 | J43: 25 | K43: 18 | L43: 34 | M43: 16 | N43: 98 | O43: 198 | P43: 202 | Q43: 83 | R43: 76 | S43: 69 | T43: 92 | U43: 62 | V43: 53 | W43: 132 | X43: 46
A44: 262 | B44: MEURTHE ET MOSELLE MEUSE | C44: 27 | D44: PONT A MOUSSON | E44: 554686 | F44: VEZELISE | G44: 1.9 | H44: 35 | I44: 1 | J44: 1 | K44: 10 | L44: 128 | M44: 117 | N44: 131 | O44: 47 | P44: 28 | Q44: 192 | R44: 176 | S44: 157 | T44: 190 | U44: 230 | V44: 217 | W44: 185 | X44: 230
A45: 262 | B45: MARNE ARDENNES | C45: 11 | D45: REIMS | E45: 451361 | F45: PIERRY LECLERC | G45: 1.9 | H45: 36 | I45: 48 | J45: 51 | K45: 54 | L45: 77 | M45: 73 | N45: 87 | O45: 16 | P45: 16 | Q45: 78 | R45: 119 | S45: 105 | T45: 148 | U45: 94 | V45: 56 | W45: 184 | X45: 88
A46: 262 | B46: MARNE ARDENNES | C46: 2 | D46: CHARLEVILLE MEZIERES | E46: 408801 | F46: CHARLEVILLE JEAN JAURES | G46: 8.9 | H46: 37 | I46: 75 | J46: 85 | K46: 51 | L46: 75 | M46: 79 | N46: 76 | O46: 68 | P46: 94 | Q46: 27 | R46: 54 | S46: 48 | T46: 85 | U46: 47 | V46: 21 | W46: 190 | X46: 33
A47: 262 | B47: MARNE ARDENNES | C47: 11 | D47: REIMS | E47: 551367 | F47: AY CHAMPAGNE | G47: 2.6 | H47: 38 | I47: 38 | J47: 29 | K47: 63 | L47: 107 | M47: 139 | N47: 73 | O47: 82 | P47: 82 | Q47: 90 | R47: 81 | S47: 91 | T47: 75 | U47: 36 | V47: 24 | W47: 173 | X47: 24
A48: 262 | B48: MOSELLE | C48: 44 | D48: MOSELLE NORD | E48: 557352 | F48: HETTANGE GRANDE | G48: 3.2 | H48: 39 | I48: 139 | J48: 106 | K48: 183 | L48: 26 | M48: 50 | N48: 22 | O48: 100 | P48: 112 | Q48: 45 | R48: 43 | S48: 54 | T48: 38 | U48: 19 | V48: 32 | W48: 28 | X48: 28
A49: 262 | B49: MOSELLE | C49: 45 | D49: METZ | E49: 557439 | F49: METZ POMPIDOU | G49: 2.7 | H49: 40 | I49: 66 | J49: 58 | K49: 99 | L49: 63 | M49: 109 | N49: 33 | O49: 14 | P49: 18 | Q49: 44 | R49: 144 | S49: 182 | T49: 61 | U49: 83 | V49: 60 | W49: 103 | X49: 107
A50: 262 | B50: MEURTHE ET MOSELLE MEUSE | C50: 31 | D50: VERDUN | E50: 554413 | F50: LONGWY BAS | G50: 3.4 | H50: 41 | I50: 16 | J50: 11 | K50: 68 | L50: 85 | M50: 76 | N50: 106 | O50: 106 | P50: 96 | Q50: 142 | R50: 105 | S50: 73 | T50: 161 | U50: 91 | V50: 81 | W50: 56 | X50: 164
A51: 262 | B51: MARNE ARDENNES | C51: 6 | D51: CHALONS EN CHAMPAGNE | E51: 551103 | F51: FAGNIERES LECLERC | G51: 2.6 | H51: 42 | I51: 76 | J51: 102 | K51: 24 | L51: 86 | M51: 82 | N51: 90 | O51: 141 | P51: 172 | Q51: 38 | R51: 13 | S51: 9 | T51: 29 | U51: 59 | V51: 79 | W51: 33 | X51: 82
A52: 262 | B52: MOSELLE | C52: 45 | D52: METZ | E52: 557432 | F52: MAIZIERES LES METZ | G52: 2.8 | H52: 43 | I52: 191 | J52: 205 | K52: 174 | L52: 22 | M52: 58 | N52: 13 | O52: 83 | P52: 118 | Q52: 22 | R52: 36 | S52: 37 | T52: 47 | U52: 15 | V52: 9 | W52: 155 | X52: 11
A53: 262 | B53: BAS RHIN | C53: 5006 | D53: STRASBOURG | E53: 4038 | F53: OBERHAUSBERGEN | G53: 3.4 | H53: 44 | I53: 61 | J53: 59 | K53: 80 | L53: 58 | M53: 97 | N53: 30 | O53: 13 | P53: 19 | Q53: 35 | R53: 195 | S53: 219 | T53: 65 | U53: 74 | V53: 50 | W53: 144 | X53: 85
A54: 262 | B54: BAS RHIN | C54: 5006 | D54: STRASBOURG | E54: 4047 | F54: STRASBOURG CRONENBOURG | G54: 4.1 | H54: 45 | I54: 100 | J54: 124 | K54: 36 | L54: 23 | M54: 18 | N54: 62 | O54: 41 | P54: 48 | Q54: 42 | R54: 100 | S54: 111 | T54: 99 | U54: 103 | V54: 62 | W54: 170 | X54: 101
A55: 262 | B55: BAS RHIN | C55: 5101 | D55: SELESTAT | E55: 4113 | F55: BARR | G55: 2.9 | H55: 46 | I55: 18 | J55: 25 | K55: 6 | L55: 43 | M55: 25 | N55: 102 | O55: 108 | P55: 124 | Q55: 47 | R55: 136 | S55: 110 | T55: 184 | U55: 158 | V55: 63 | W55: 239 | X55: 87
A56: 262 | B56: MOSELLE | C56: 42 | D56: MOSELLE EST | E56: 457583 | F56: SAINT AVOLD | G56: 6.9 | H56: 47 | I56: 64 | J56: 78 | K56: 39 | L56: 37 | M56: 33 | N56: 65 | O56: 109 | P56: 139 | Q56: 36 | R56: 64 | S56: 63 | T56: 67 | U56: 93 | V56: 84 | W56: 112 | X56: 102
A57: 262 | B57: MARNE ARDENNES | C57: 2 | D57: CHARLEVILLE MEZIERES | E57: 508819 | F57: MOUZON | G57: 1.9 | H57: 48 | I57: 130 | J57: 138 | K57: 108 | L57: 117 | M57: 163 | N57: 57 | O57: 18 | P57: 15 | Q57: 94 | R57: 61 | S57: 57 | T57: 81 | U57: 32 | V57: 98 | W57: 16 | X57: 32
A58: 262 | B58: MEURTHE ET MOSELLE MEUSE | C58: 26 | D58: NANCY | E58: 554636 | F58: TOMBLAINE | G58: 2.5 | H58: 49 | I58: 15 | J58: 21 | K58: 4 | L58: 121 | M58: 141 | N58: 95 | O58: 72 | P58: 75 | Q58: 70 | R58: 117 | S58: 127 | T58: 105 | U58: 128 | V58: 138 | W58: 121 | X58: 110
A59: 262 | B59: MEURTHE ET MOSELLE MEUSE | C59: 27 | D59: PONT A MOUSSON | E59: 554516 | F59: PAGNY SUR MOSELLE | G59: 2.7 | H59: 50 | I59: 111 | J59: 100 | K59: 125 | L59: 54 | M59: 51 | N59: 93 | O59: 92 | P59: 85 | Q59: 100 | R59: 40 | S59: 51 | T59: 36 | U59: 54 | V59: 49 | W59: 96 | X59: 48
A60: 262 | B60: MOSELLE | C60: 42 | D60: MOSELLE EST | E60: 557305 | F60: FAULQUEMONT | G60: 3.7 | H60: 51 | I60: 233 | J60: 205 | K60: 228 | L60: 17 | M60: 45 | N60: 11 | O60: 142 | P60: 193 | Q60: 17 | R60: 33 | S60: 56 | T60: 17 | U60: 7 | V60: 8 | W60: 47 | X60: 5
A61: 262 | B61: AUBE HAUTE MARNE | C61: 21 | D61: CHAUMONT | E61: 410541 | F61: LANGRES | G61: 8.0 | H61: 52 | I61: 51 | J61: 52 | K61: 64 | L61: 90 | M61: 57 | N61: 161 | O61: 97 | P61: 83 | Q61: 144 | R61: 46 | S61: 34 | T61: 119 | U61: 114 | V61: 171 | W61: 50 | X61: 128
A62: 262 | B62: MARNE ARDENNES | C62: 11 | D62: REIMS | E62: 551310 | F62: REIMS CHATILLONS | G62: 4.0 | H62: 53 | I62: 136 | J62: 120 | K62: 159 | L62: 27 | M62: 34 | N62: 36 | O62: 101 | P62: 97 | Q62: 114 | R62: 65 | S62: 88 | T62: 32 | U62: 34 | V62: 41 | W62: 118 | X62: 27
A63: 262 | B63: MEURTHE ET MOSELLE MEUSE | C63: 31 | D63: VERDUN | E63: 455678 | F63: VERDUN CENTRALE | G63: 10.5 | H63: 54 | I63: 27 | J63: 18 | K63: 67 | L63: 71 | M63: 75 | N63: 80 | O63: 156 | P63: 164 | Q63: 98 | R63: 155 | S63: 164 | T63: 129 | U63: 35 | V63: 36 | W63: 78 | X63: 39
A64: 262 | B64: MARNE ARDENNES | C64: 6 | D64: CHALONS EN CHAMPAGNE | E64: 551110 | F64: CHALONS ROOSEVELT | G64: 4.4 | H64: 55 | I64: 58 | J64: 57 | K64: 75 | L64: 126 | M64: 99 | N64: 157 | O64: 91 | P64: 92 | Q64: 84 | R64: 24 | S64: 11 | T64: 100 | U64: 120 | V64: 68 | W64: 194 | X64: 105
A65: 262 | B65: MARNE ARDENNES | C65: 6 | D65: CHALONS EN CHAMPAGNE | E65: 451381 | F65: SEZANNE | G65: 4.7 | H65: 56 | I65: 79 | J65: 69 | K65: 102 | L65: 65 | M65: 67 | N65: 85 | O65: 32 | P65: 27 | Q65: 95 | R65: 163 | S65: 178 | T65: 124 | U65: 67 | V65: 59 | W65: 133 | X65: 50
A66: 262 | B66: BAS RHIN | C66: 5006 | D66: STRASBOURG | E66: 4054 | F66: STRASBOURG MONTAGNE VERTE | G66: 2.7 | H66: 57 | I66: 68 | J66: 49 | K66: 127 | L66: 79 | M66: 153 | N66: 23 | O66: 49 | P66: 45 | Q66: 81 | R66: 31 | S66: 44 | T66: 21 | U66: 217 | V66: 231 | W66: 202 | X66: 151
A67: 262 | B67: MOSELLE | C67: 44 | D67: MOSELLE NORD | E67: 557303 | F67: FAMECK | G67: 2.8 | H67: 58 | I67: 43 | J67: 52 | K67: 35 | L67: 94 | M67: 196 | N67: 14 | O67: 39 | P67: 39 | Q67: 65 | R67: 219 | S67: 223 | T67: 142 | U67: 41 | V67: 69 | W67: 18 | X67: 57
A68: 262 | B68: BAS RHIN | C68: 5006 | D68: STRASBOURG | E68: 4010 | F68: STRASBOURG MEINAU | G68: 3.0 | H68: 59 | I68: 88 | J68: 63 | K68: 140 | L68: 36 | M68: 55 | N68: 24 | O68: 107 | P68: 109 | Q68: 73 | R68: 44 | S68: 83 | T68: 15 | U68: 139 | V68: 190 | W68: 77 | X68: 157
A69: 262 | B69: MARNE ARDENNES | C69: 6 | D69: CHALONS EN CHAMPAGNE | E69: 451101 | F69: CHALONS VIVIERS | G69: 9.2 | H69: 60 | I69: 26 | J69: 39 | K69: 14 | L69: 123 | M69: 101 | N69: 147 | O69: 112 | P69: 120 | Q69: 72 | R69: 78 | S69: 71 | T69: 101 | U69: 88 | V69: 85 | W69: 145 | X69: 73
A70: 262 | B70: MEURTHE ET MOSELLE MEUSE | C70: 31 | D70: VERDUN | E70: 555679 | F70: VERDUN MAZEL | G70: 3.7 | H70: 61 | I70: 19 | J70: 23 | K70: 13 | L70: 106 | M70: 98 | N70: 123 | O70: 77 | P70: 68 | Q70: 151 | R70: 113 | S70: 84 | T70: 177 | U70: 151 | V70: 146 | W70: 192 | X70: 104
A71: 262 | B71: MEURTHE ET MOSELLE MEUSE | C71: 27 | D71: PONT A MOUSSON | E71: 554531 | F71: POMPEY | G71: 3.2 | H71: 62 | I71: 209 | J71: 181 | K71: 208 | L71: 33 | M71: 60 | N71: 20 | O71: 50 | P71: 67 | Q71: 28 | R71: 75 | S71: 104 | T71: 48 | U71: 16 | V71: 19 | W71: 17 | X71: 23
A72: 262 | B72: MOSELLE | C72: 44 | D72: MOSELLE NORD | E72: 457348 | F72: HAGONDANGE | G72: 8.1 | H72: 63 | I72: 125 | J72: 133 | K72: 104 | L72: 38 | M72: 35 | N72: 67 | O72: 136 | P72: 144 | Q72: 77 | R72: 38 | S72: 33 | T72: 73 | U72: 55 | V72: 34 | W72: 137 | X72: 49
A73: 262 | B73: MOSELLE | C73: 44 | D73: MOSELLE NORD | E73: 457632 | F73: THIONVILLE CENTRALE | G73: 10.0 | H73: 64 | I73: 121 | J73: 123 | K73: 112 | L73: 31 | M73: 27 | N73: 52 | O73: 194 | P73: 214 | Q73: 43 | R73: 26 | S73: 31 | T73: 35 | U73: 49 | V73: 26 | W73: 117 | X73: 53
A74: 264 | B74: MOSELLE | C74: 42 | D74: MOSELLE EST | E74: 557523 | F74: PHALSBOURG | G74: 2.5 | H74: 65 | I74: 84 | J74: 89 | K74: 74 | L74: 144 | M74: 142 | N74: 141 | O74: 35 | P74: 32 | Q74: 71 | R74: 56 | S74: 30 | T74: 160 | U74: 97 | V74: 86 | W74: 142 | X74: 92
A75: 264 | B75: VOSGES | C75: 57 | D75: EPINAL | E75: 488561 | F75: REMIREMONT | G75: 7.2 | H75: 66 | I75: 8 | J75: 7 | K75: 33 | L75: 115 | M75: 70 | N75: 205 | O75: 125 | P75: 104 | Q75: 187 | R75: 142 | S75: 90 | T75: 223 | U75: 189 | V75: 107 | W75: 223 | X75: 133
A76: 264 | B76: MARNE ARDENNES | C76: 11 | D76: REIMS | E76: 451370 | F76: EPERNAY | G76: 9.1 | H76: 67 | I76: 63 | J76: 75 | K76: 50 | L76: 41 | M76: 31 | N76: 86 | O76: 152 | P76: 169 | Q76: 58 | R76: 107 | S76: 113 | T76: 110 | U76: 73 | V76: 78 | W76: 126 | X76: 47
A77: 264 | B77: VOSGES | C77: 55 | D77: SAINT DIE | E77: 488326 | F77: GERARDMER | G77: 3.9 | H77: 68 | I77: 74 | J77: 64 | K77: 107 | L77: 120 | M77: 120 | N77: 120 | O77: 65 | P77: 52 | Q77: 171 | R77: 103 | S77: 107 | T77: 107 | U77: 63 | V77: 71 | W77: 49 | X77: 76
A78: 264 | B78: MOSELLE | C78: 44 | D78: MOSELLE NORD | E78: 457350 | F78: HAYANGE | G78: 6.3 | H78: 69 | I78: 135 | J78: 131 | K78: 138 | L78: 49 | M78: 44 | N78: 88 | O78: 130 | P78: 167 | Q78: 29 | R78: 25 | S78: 28 | T78: 37 | U78: 60 | V78: 43 | W78: 147 | X78: 51
A79: 264 | B79: MEURTHE ET MOSELLE MEUSE | C79: 31 | D79: VERDUN | E79: 454414 | F79: LONGWY HAUT | G79: 3.4 | H79: 70 | I79: 80 | J79: 81 | K79: 79 | L79: 78 | M79: 93 | N79: 64 | O79: 124 | P79: 114 | Q79: 128 | R79: 50 | S79: 58 | T79: 45 | U79: 98 | V79: 97 | W79: 93 | X79: 112
A80: 264 | B80: MEURTHE ET MOSELLE MEUSE | C80: 26 | D80: NANCY | E80: 554116 | F80: BACCARAT | G80: 2.8 | H80: 71 | I80: 10 | J80: 10 | K80: 22 | L80: 137 | M80: 95 | N80: 203 | O80: 105 | P80: 78 | Q80: 220 | R80: 146 | S80: 136 | T80: 154 | U80: 195 | V80: 159 | W80: 159 | X80: 205
A81: 264 | B81: MEURTHE ET MOSELLE MEUSE | C81: 27 | D81: PONT A MOUSSON | E81: 554506 | F81: CHALIGNY NEUVES MAISONS | G81: 3.6 | H81: 72 | I81: 167 | J81: 161 | K81: 177 | L81: 28 | M81: 40 | N81: 28 | O81: 193 | P81: 201 | Q81: 67 | R81: 19 | S81: 23 | T81: 30 | U81: 20 | V81: 42 | W81: 40 | X81: 21
A82: 264 | B82: AUBE HAUTE MARNE | C82: 21 | D82: CHAUMONT | E82: 451154 | F82: JOINVILLE | G82: 1.8 | H82: 73 | I82: 40 | J82: 43 | K82: 48 | L82: 61 | M82: 86 | N82: 48 | O82: 223 | P82: 229 | Q82: 91 | R82: 23 | S82: 24 | T82: 46 | U82: 100 | V82: 154 | W82: 97 | X82: 77
A83: 264 | B83: VOSGES | C83: 57 | D83: EPINAL | E83: 588396 | F83: LE VAL D AJOL | G83: 2.5 | H83: 74 | I83: 3 | J83: 4 | K83: 5 | L83: 167 | M83: 137 | N83: 206 | O83: 85 | P83: 71 | Q83: 161 | R83: 172 | S83: 138 | T83: 219 | U83: 220 | V83: 158 | W83: 233 | X83: 171
A84: 264 | B84: VOSGES | C84: 55 | D84: SAINT DIE | E84: 488246 | F84: CORNIMONT LA BRESSE | G84: 2.7 | H84: 75 | I84: 12 | J84: 13 | K84: 15 | L84: 112 | M84: 108 | N84: 113 | O84: 171 | P84: 146 | Q84: 223 | R84: 101 | S84: 68 | T84: 174 | U84: 159 | V84: 219 | W84: 66 | X84: 172
A85: 264 | B85: MOSELLE | C85: 45 | D85: METZ | E85: 457574 | F85: ROMBAS | G85: 2.6 | H85: 76 | I85: 69 | J85: 50 | K85: 124 | L85: 113 | M85: 116 | N85: 104 | O85: 126 | P85: 133 | Q85: 74 | R85: 30 | S85: 15 | T85: 96 | U85: 117 | V85: 125 | W85: 61 | X85: 159
A86: 264 | B86: MARNE ARDENNES | C86: 11 | D86: REIMS | E86: 551314 | F86: FISMES | G86: 2.6 | H86: 77 | I86: 33 | J86: 52 | K86: 9 | L86: 40 | M86: 49 | N86: 50 | O86: 225 | P86: 231 | Q86: 39 | R86: 131 | S86: 162 | T86: 63 | U86: 50 | V86: 40 | W86: 146 | X86: 38
A87: 264 | B87: MOSELLE | C87: 44 | D87: MOSELLE NORD | E87: 457158 | F87: YUTZ | G87: 4.7 | H87: 78 | I87: 150 | J87: 165 | K87: 135 | L87: 55 | M87: 54 | N87: 81 | O87: 88 | P87: 91 | Q87: 79 | R87: 41 | S87: 42 | T87: 64 | U87: 48 | V87: 58 | W87: 42 | X87: 61
A88: 264 | B88: MARNE ARDENNES | C88: 6 | D88: CHALONS EN CHAMPAGNE | E88: 551128 | F88: SAINTE MENEHOULD | G88: 2.9 | H88: 79 | I88: 41 | J88: 45 | K88: 47 | L88: 83 | M88: 36 | N88: 213 | O88: 143 | P88: 115 | Q88: 213 | R88: 58 | S88: 45 | T88: 102 | U88: 178 | V88: 180 | W88: 92 | X88: 220
A89: 264 | B89: MEURTHE ET MOSELLE MEUSE | C89: 26 | D89: NANCY | E89: 454481 | F89: NANCY PLACE DOMBASLE | G89: 7.8 | H89: 80 | I89: 163 | J89: 195 | K89: 145 | L89: 82 | M89: 131 | N89: 34 | O89: 80 | P89: 134 | Q89: 11 | R89: 77 | S89: 99 | T89: 57 | U89: 14 | V89: 12 | W89: 76 | X89: 18
A90: 264 | B90: MEURTHE ET MOSELLE MEUSE | C90: 31 | D90: VERDUN | E90: 554700 | F90: VILLERUPT | G90: 2.7 | H90: 81 | I90: 42 | J90: 45 | K90: 58 | L90: 76 | M90: 68 | N90: 103 | O90: 86 | P90: 88 | Q90: 80 | R90: 109 | S90: 87 | T90: 156 | U90: 176 | V90: 205 | W90: 48 | X90: 234
A91: 264 | B91: MOSELLE | C91: 44 | D91: MOSELLE NORD | E91: 557347 | F91: GUENANGE | G91: 4.7 | H91: 82 | I91: 173 | J91: 157 | K91: 184 | L91: 29 | M91: 21 | N91: 66 | O91: 120 | P91: 122 | Q91: 87 | R91: 45 | S91: 38 | T91: 86 | U91: 30 | V91: 20 | W91: 73 | X91: 43
A92: 264 | B92: MOSELLE | C92: 45 | D92: METZ | E92: 557434 | F92: MARLY | G92: 3.1 | H92: 83 | I92: 35 | J92: 23 | K92: 87 | L92: 135 | M92: 100 | N92: 188 | O92: 45 | P92: 29 | Q92: 184 | R92: 193 | S92: 177 | T92: 205 | U92: 112 | V92: 70 | W92: 189 | X92: 91
A93: 264 | B93: MOSELLE | C93: 42 | D93: MOSELLE EST | E93: 457617 | F93: SARREGUEMINES | G93: 6.5 | H93: 84 | I93: 145 | J93: 145 | K93: 151 | L93: 52 | M93: 64 | N93: 58 | O93: 76 | P93: 100 | Q93: 31 | R93: 73 | S93: 78 | T93: 68 | U93: 43 | V93: 35 | W93: 102 | X93: 42
A94: 264 | B94: MOSELLE | C94: 45 | D94: METZ | E94: 557444 | F94: SAINT JULIEN LES METZ | G94: 3.6 | H94: 85 | I94: 231 | J94: 205 | K94: 226 | L94: 66 | M94: 110 | N94: 35 | O94: 8 | P94: 8 | Q94: 21 | R94: 62 | S94: 117 | T94: 14 | U94: 53 | V94: 94 | W94: 12 | X94: 80
A95: 264 | B95: MOSELLE | C95: 42 | D95: MOSELLE EST | E95: 457543 | F95: PUTTELANGE AUX LACS | G95: 2.3 | H95: 86 | I95: 143 | J95: 181 | K95: 97 | L95: 62 | M95: 59 | N95: 94 | O95: 87 | P95: 98 | Q95: 51 | R95: 20 | S95: 26 | T95: 28 | U95: 92 | V95: 66 | W95: 191 | X95: 66
A96: 30 | B96: VOSGES | C96: 55 | D96: SAINT DIE | E96: 588551 | F96: RAMBERVILLERS | G96: 2.6 | H96: 87 | I96: 25 | J96: 19 | K96: 56 | L96: 150 | M96: 183 | N96: 77 | O96: 61 | P96: 44 | Q96: 177 | R96: 227 | S96: 225 | T96: 196 | U96: 57 | V96: 77 | W96: 83 | X96: 37
A97: 30 | B97: MARNE ARDENNES | C97: 11 | D97: REIMS | E97: 551306 | F97: REIMS SAINT MARCEAUX | G97: 3.1 | H97: 88 | I97: 107 | J97: 87 | K97: 146 | L97: 11 | M97: 7 | N97: 45 | O97: 233 | P97: 235 | Q97: 53 | R97: 68 | S97: 74 | T97: 60 | U97: 46 | V97: 54 | W97: 109 | X97: 30
A98: 30 | B98: MARNE ARDENNES | C98: 2 | D98: CHARLEVILLE MEZIERES | E98: 408822 | F98: CHARLEVILLE MEZIERES | G98: 5.2 | H98: 89 | I98: 190 | J98: 171 | K98: 189 | L98: 109 | M98: 175 | N98: 39 | O98: 20 | P98: 60 | Q98: 5 | R98: 55 | S98: 70 | T98: 25 | U98: 39 | V98: 31 | W98: 187 | X98: 19
A99: 30 | B99: MARNE ARDENNES | C99: 11 | D99: REIMS | E99: 551369 | F99: DAMERY | G99: 1.6 | H99: 90 | I99: 93 | J99: 66 | K99: 139 | L99: 20 | M99: 38 | N99: 21 | O99: 238 | P99: 238 | Q99: 133 | R99: 51 | S99: 65 | T99: 27 | U99: 24 | V99: 22 | W99: 139 | X99: 16
A100: 30 | B100: MOSELLE | C100: 44 | D100: MOSELLE NORD | E100: 457306 | F100: FLORANGE | G100: 4.6 | H100: 91 | I100: 227 | J100: 205 | K100: 222 | L100: 32 | M100: 37 | N100: 43 | O100: 103 | P100: 147 | Q100: 18 | R100: 92 | S100: 123 | T100: 50 | U100: 10 | V100: 11 | W100: 25 | X100: 20
A101: 30 | B101: VOSGES | C101: 57 | D101: EPINAL | E101: 588716 | F101: XERTIGNY | G101: 2.8 | H101: 92 | I101: 62 | J101: 82 | K101: 28 | L101: 125 | M101: 78 | N101: 210 | O101: 43 | P101: 31 | Q101: 104 | R101: 132 | S101: 80 | T101: 218 | U101: 152 | V101: 173 | W101: 143 | X101: 138
A102: 30 | B102: MOSELLE | C102: 42 | D102: MOSELLE EST | E102: 557668 | F102: VALMONT | G102: 2.9 | H102: 93 | I102: 54 | J102: 36 | K102: 111 | L102: 196 | M102: 195 | N102: 180 | O102: 31 | P102: 20 | Q102: 157 | R102: 71 | S102: 53 | T102: 136 | U102: 166 | V102: 214 | W102: 72 | X102: 198
A103: 30 | B103: BAS RHIN | C103: 5006 | D103: STRASBOURG | E103: 4043 | F103: STRASBOURG HALLES | G103: 7.6 | H103: 94 | I103: 146 | J103: 205 | K103: 92 | L103: 45 | M103: 90 | N103: 18 | O103: 175 | P103: 210 | Q103: 19 | R103: 4 | S103: 10 | T103: 8 | U103: 124 | V103: 64 | W103: 235 | X103: 52
A104: 30 | B104: HAUT RHIN | C104: 5130 | D104: COLMAR | E104: 4143 | F104: MUNSTER | G104: 4.2 | H104: 95 | I104: 114 | J104: 126 | K104: 78 | L104: 59 | M104: 23 | N104: 195 | O104: 62 | P104: 42 | Q104: 205 | R104: 97 | S104: 66 | T104: 178 | U104: 141 | V104: 162 | W104: 81 | X104: 175
A105: 30 | B105: BAS RHIN | C105: 5006 | D105: STRASBOURG | E105: 4024 | F105: STRASBOURG AUSTERLITZ | G105: 1.5 | H105: 96 | I105: 235 | J105: 179 | K105: 237 | L105: 44 | M105: 132 | N105: 9 | O105: 12 | P105: 26 | Q105: 15 | R105: 53 | S105: 152 | T105: 4 | U105: 72 | V105: 37 | W105: 180 | X105: 69
A106: 30 | B106: BAS RHIN | C106: 5060 | D106: HAGUENAU | E106: 4071 | F106: WISSEMBOURG | G106: 8.2 | H106: 97 | I106: 30 | J106: 36 | K106: 26 | L106: 97 | M106: 94 | N106: 110 | O106: 111 | P106: 107 | Q106: 107 | R106: 126 | S106: 126 | T106: 126 | U106: 209 | V106: 216 | W106: 171 | X106: 200
A107: 30 | B107: MARNE ARDENNES | C107: 2 | D107: CHARLEVILLE MEZIERES | E107: 408862 | F107: REVIN | G107: 3.9 | H107: 98 | I107: 56 | J107: 69 | K107: 32 | L107: 136 | M107: 130 | N107: 139 | O107: 180 | P107: 185 | Q107: 96 | R107: 67 | S107: 59 | T107: 104 | U107: 90 | V107: 83 | W107: 158 | X107: 68
A108: 30 | B108: MARNE ARDENNES | C108: 2 | D108: CHARLEVILLE MEZIERES | E108: 408840 | F108: RETHEL | G108: 4.2 | H108: 99 | I108: 134 | J108: 133 | K108: 134 | L108: 64 | M108: 61 | N108: 96 | O108: 90 | P108: 81 | Q108: 121 | R108: 82 | S108: 64 | T108: 132 | U108: 78 | V108: 90 | W108: 101 | X108: 65
A109: 30 | B109: MEURTHE ET MOSELLE MEUSE | C109: 27 | D109: PONT A MOUSSON | E109: 554357 | F109: JOEUF | G109: 3.1 | H109: 100 | I109: 59 | J109: 39 | K109: 123 | L109: 133 | M109: 174 | N109: 69 | O109: 123 | P109: 110 | Q109: 132 | R109: 158 | S109: 185 | T109: 93 | U109: 65 | V109: 100 | W109: 9 | X109: 134
A110: 30 | B110: VOSGES | C110: 55 | D110: SAINT DIE | E110: 588386 | F110: LE THILLOT | G110: 2.6 | H110: 101 | I110: 5 | J110: 5 | K110: 21 | L110: 169 | M110: 88 | N110: 240 | O110: 158 | P110: 123 | Q110: 236 | R110: 191 | S110: 165 | T110: 221 | U110: 200 | V110: 197 | W110: 165 | X110: 173
A111: 30 | B111: MEURTHE ET MOSELLE MEUSE | C111: 31 | D111: VERDUN | E111: 554412 | F111: LONGUYON | G111: 2.8 | H111: 102 | I111: 73 | J111: 97 | K111: 30 | L111: 81 | M111: 92 | N111: 68 | O111: 135 | P111: 126 | Q111: 123 | R111: 112 | S111: 93 | T111: 149 | U111: 143 | V111: 152 | W111: 151 | X111: 126
A112: 30 | B112: BAS RHIN | C112: 5006 | D112: STRASBOURG | E112: 4019 | F112: STRASBOURG ANVERS | G112: 4.4 | H112: 103 | I112: 176 | J112: 184 | K112: 167 | L112: 57 | M112: 72 | N112: 49 | O112: 37 | P112: 55 | Q112: 26 | R112: 69 | S112: 67 | T112: 77 | U112: 122 | V112: 48 | W112: 224 | X112: 103
A113: 30 | B113: BAS RHIN | C113: 5060 | D113: HAGUENAU | E113: 4092 | F113: HOCHFELDEN | G113: 2.1 | H113: 104 | I113: 89 | J113: 95 | K113: 65 | L113: 176 | M113: 180 | N113: 133 | O113: 55 | P113: 49 | Q113: 106 | R113: 89 | S113: 94 | T113: 90 | U113: 136 | V113: 92 | W113: 156 | X113: 167
A114: 30 | B114: MOSELLE | C114: 45 | D114: METZ | E114: 557105 | F114: ARS SUR MOSELLE | G114: 2.8 | H114: 105 | I114: 119 | J114: 64 | K114: 201 | L114: 114 | M114: 162 | N114: 61 | O114: 189 | P114: 198 | Q114: 60 | R114: 91 | S114: 144 | T114: 22 | U114: 25 | V114: 33 | W114: 31 | X114: 40
A115: 30 | B115: MEURTHE ET MOSELLE MEUSE | C115: 27 | D115: PONT A MOUSSON | E115: 554416 | F115: LUDRES | G115: 3.7 | H115: 106 | I115: 70 | J115: 78 | K115: 52 | L115: 154 | M115: 133 | N115: 173 | O115: 51 | P115: 33 | Q115: 172 | R115: 143 | S115: 101 | T115: 216 | U115: 175 | V115: 105 | W115: 213 | X115: 132
A116: 30 | B116: MEURTHE ET MOSELLE MEUSE | C116: 31 | D116: VERDUN | E116: 455151 | F116: BAR LE DUC | G116: 9.8 | H116: 107 | I116: 49 | J116: 68 | K116: 29 | L116: 127 | M116: 96 | N116: 165 | O116: 155 | P116: 155 | Q116: 136 | R116: 95 | S116: 79 | T116: 134 | U116: 138 | V116: 188 | W116: 65 | X116: 170
A117: 30 | B117: BAS RHIN | C117: 5101 | D117: SELESTAT | E117: 4104 | F117: ERSTEIN | G117: 3.9 | H117: 108 | I117: 202 | J117: 191 | K117: 196 | L117: 25 | M117: 14 | N117: 92 | O117: 81 | P117: 79 | Q117: 105 | R117: 88 | S117: 61 | T117: 169 | U117: 76 | V117: 46 | W117: 172 | X117: 78
A118: 30 | B118: VOSGES | C118: 55 | D118: SAINT DIE | E118: 588316 | F118: FRAIZE | G118: 3.6 | H118: 109 | I118: 77 | J118: 92 | K118: 43 | L118: 148 | M118: 119 | N118: 189 | O118: 134 | P118: 127 | Q118: 119 | R118: 74 | S118: 47 | T118: 172 | U118: 127 | V118: 140 | W118: 105 | X118: 117
A119: 30 | B119: VOSGES | C119: 57 | D119: EPINAL | E119: 488281 | F119: ELOYES | G119: 3.4 | H119: 110 | I119: 47 | J119: 36 | K119: 93 | L119: 179 | M119: 150 | N119: 216 | O119: 60 | P119: 47 | Q119: 143 | R119: 202 | S119: 189 | T119: 213 | U119: 107 | V119: 175 | W119: 41 | X119: 129
A120: 30 | B120: VOSGES | C120: 55 | D120: SAINT DIE | E120: 588666 | F120: VAGNEY | G120: 3.5 | H120: 111 | I120: 23 | J120: 20 | K120: 45 | L120: 181 | M120: 143 | N120: 231 | O120: 57 | P120: 34 | Q120: 210 | R120: 204 | S120: 167 | T120: 238 | U120: 183 | V120: 196 | W120: 152 | X120: 168
A121: 30 | B121: BAS RHIN | C121: 5006 | D121: STRASBOURG | E121: 4006 | F121: STRASBOURG NEUDORF | G121: 7.9 | H121: 112 | I121: 24 | J121: 34 | K121: 16 | L121: 185 | M121: 193 | N121: 134 | O121: 115 | P121: 99 | Q121: 181 | R121: 94 | S121: 96 | T121: 108 | U121: 214 | V121: 177 | W121: 234 | X121: 141
A122: 30 | B122: BAS RHIN | C122: 5060 | D122: HAGUENAU | E122: 4057 | F122: BISCHWILLER | G122: 6.7 | H122: 113 | I122: 57 | J122: 59 | K122: 60 | L122: 67 | M122: 30 | N122: 196 | O122: 186 | P122: 173 | Q122: 183 | R122: 111 | S122: 97 | T122: 143 | U122: 172 | V122: 227 | W122: 51 | X122: 217
A123: 30 | B123: VOSGES | C123: 57 | D123: EPINAL | E123: 488286 | F123: EPINAL ARISTIDE BRIAND | G123: 8.1 | H123: 114 | I123: 170 | J123: 205 | K123: 149 | L123: 35 | M123: 52 | N123: 27 | O123: 73 | P123: 86 | Q123: 48 | R123: 98 | S123: 128 | T123: 56 | U123: 116 | V123: 95 | W123: 205 | X123: 56
A124: 30 | B124: VOSGES | C124: 57 | D124: EPINAL | E124: 588631 | F124: THAON LES VOSGES | G124: 4.7 | H124: 115 | I124: 95 | J124: 82 | K124: 110 | L124: 111 | M124: 84 | N124: 153 | O124: 128 | P124: 113 | Q124: 148 | R124: 130 | S124: 147 | T124: 79 | U124: 87 | V124: 157 | W124: 34 | X124: 108
A125: 30 | B125: BAS RHIN | C125: 5006 | D125: STRASBOURG | E125: 4027 | F125: SCHILTIGHEIM CENTRE | G125: 3.9 | H125: 116 | I125: 207 | J125: 205 | K125: 194 | L125: 39 | M125: 47 | N125: 53 | O125: 58 | P125: 57 | Q125: 76 | R125: 96 | S125: 133 | T125: 43 | U125: 79 | V125: 75 | W125: 106 | X125: 84
A126: 30 | B126: VOSGES | C126: 55 | D126: SAINT DIE | E126: 588186 | F126: BRUYERES | G126: 3.5 | H126: 117 | I126: 28 | J126: 22 | K126: 55 | L126: 138 | M126: 145 | N126: 119 | O126: 221 | P126: 225 | Q126: 111 | R126: 135 | S126: 172 | T126: 52 | U126: 89 | V126: 111 | W126: 119 | X126: 67
A127: 30 | B127: MOSELLE | C127: 44 | D127: MOSELLE NORD | E127: 457192 | F127: CATTENOM | G127: 1.5 | H127: 118 | I127: 141 | J127: 141 | K127: 144 | L127: 69 | M127: 63 | N127: 105 | O127: 122 | P127: 153 | Q127: 30 | R127: 129 | S127: 135 | T127: 114 | U127: 66 | V127: 55 | W127: 45 | X127: 115
A128: 30 | B128: BAS RHIN | C128: 5101 | D128: SELESTAT | E128: 4121 | F128: SCHIRMECK | G128: 2.8 | H128: 119 | I128: 55 | J128: 91 | K128: 8 | L128: 87 | M128: 62 | N128: 140 | O128: 177 | P128: 182 | Q128: 93 | R128: 185 | S128: 174 | T128: 192 | U128: 115 | V128: 120 | W128: 94 | X128: 122
A129: 30 | B129: MARNE ARDENNES | C129: 11 | D129: REIMS | E129: 551341 | F129: REIMS JEAN JAURES | G129: 4.3 | H129: 120 | I129: 197 | J129: 166 | K129: 202 | L129: 53 | M129: 83 | N129: 32 | O129: 146 | P129: 163 | Q129: 57 | R129: 86 | S129: 122 | T129: 41 | U129: 29 | V129: 27 | W129: 179 | X129: 15
A130: 30 | B130: MEURTHE ET MOSELLE MEUSE | C130: 31 | D130: VERDUN | E130: 455566 | F130: REVIGNY SUR ORNAIN | G130: 2.7 | H130: 121 | I130: 90 | J130: 84 | K130: 98 | L130: 143 | M130: 111 | N130: 194 | O130: 93 | P130: 65 | Q130: 207 | R130: 116 | S130: 92 | T130: 168 | U130: 148 | V130: 236 | W130: 29 | X130: 215
A131: 30 | B131: MARNE ARDENNES | C131: 2 | D131: CHARLEVILLE MEZIERES | E131: 508815 | F131: CARIGNAN | G131: 2.6 | H131: 122 | I131: 86 | J131: 61 | K131: 137 | L131: 98 | M131: 89 | N131: 115 | O131: 172 | P131: 171 | Q131: 113 | R131: 124 | S131: 89 | T131: 193 | U131: 109 | V131: 126 | W131: 79 | X131: 111
A132: 30 | B132: MOSELLE | C132: 44 | D132: MOSELLE NORD | E132: 557307 | F132: FONTOY | G132: 1.9 | H132: 123 | I132: 72 | J132: 69 | K132: 91 | L132: 175 | M132: 172 | N132: 156 | O132: 114 | P132: 103 | Q132: 147 | R132: 180 | S132: 191 | T132: 138 | U132: 64 | V132: 74 | W132: 21 | X132: 125
A133: 30 | B133: VOSGES | C133: 55 | D133: SAINT DIE | E133: 588461 | F133: MOYENMOUTIER | G133: 4.3 | H133: 124 | I133: 67 | J133: 69 | K133: 73 | L133: 96 | M133: 48 | N133: 225 | O133: 131 | P133: 102 | Q133: 216 | R133: 134 | S133: 116 | T133: 159 | U133: 212 | V133: 239 | W133: 111 | X133: 219
A134: 30 | B134: MARNE ARDENNES | C134: 2 | D134: CHARLEVILLE MEZIERES | E134: 508802 | F134: CHARLEVILLE NEVERS | G134: 2.8 | H134: 125 | I134: 32 | J134: 39 | K134: 27 | L134: 204 | M134: 187 | N134: 223 | O134: 211 | P134: 209 | Q134: 164 | R134: 70 | S134: 52 | T134: 141 | U134: 125 | V134: 76 | W134: 84 | X134: 208
A135: 110 | B135: BAS RHIN | C135: 5060 | D135: HAGUENAU | E135: 4041 | F135: HOERDT | G135: 1.7 | H135: 126 | I135: 83 | J135: 87 | K135: 76 | L135: 158 | M135: 124 | N135: 198 | O135: 52 | P135: 37 | Q135: 168 | R135: 148 | S135: 108 | T135: 215 | U135: 216 | V135: 135 | W135: 204 | X135: 224
A136: 110 | B136: BAS RHIN | C136: 5101 | D136: SELESTAT | E136: 4126 | F136: MUTZIG | G136: 2.7 | H136: 127 | I136: 147 | J136: 205 | K136: 95 | L136: 51 | M136: 28 | N136: 143 | O136: 54 | P136: 62 | Q136: 52 | R136: 156 | S136: 154 | T136: 140 | U136: 147 | V136: 103 | W136: 230 | X136: 74
A137: 110 | B137: VOSGES | C137: 57 | D137: EPINAL | E137: 588206 | F137: CHARMES | G137: 3.0 | H137: 128 | I137: 87 | J137: 104 | K137: 38 | L137: 156 | M137: 154 | N137: 147 | O137: 102 | P137: 73 | Q137: 222 | R137: 106 | S137: 112 | T137: 109 | U137: 190 | V137: 235 | W137: 128 | X137: 146
A138: 110 | B138: MOSELLE | C138: 45 | D138: METZ | E138: 557612 | F138: SAINTE MARIE AUX CHENES | G138: 3.7 | H138: 129 | I138: 31 | J138: 61 | K138: 3 | L138: 219 | M138: 194 | N138: 233 | O138: 95 | P138: 56 | Q138: 238 | R138: 123 | S138: 82 | T138: 203 | U138: 213 | V138: 215 | W138: 212 | X138: 148
A139: 110 | B139: AUBE HAUTE MARNE | C139: 14 | D139: TROYES | E139: 510570 | F139: NOGENT SUR SEINE | G139: 3.9 | H139: 130 | I139: 45 | J139: 39 | K139: 81 | L139: 124 | M139: 113 | N139: 130 | O139: 160 | P139: 165 | Q139: 122 | R139: 178 | S139: 158 | T139: 199 | U139: 156 | V139: 113 | W139: 176 | X139: 145
A140: 110 | B140: MEURTHE ET MOSELLE MEUSE | C140: 27 | D140: PONT A MOUSSON | E140: 554376 | F140: LAXOU BOUFFLERS | G140: 2.5 | H140: 131 | I140: 236 | J140: 205 | K140: 235 | L140: 30 | M140: 118 | N140: 5 | O140: 176 | P140: 180 | Q140: 92 | R140: 118 | S140: 216 | T140: 6 | U140: 13 | V140: 39 | W140: 15 | X140: 12
A141: 110 | B141: BAS RHIN | C141: 5006 | D141: STRASBOURG | E141: 4020 | F141: STRASBOURG ROBERTSAU | G141: 5.3 | H141: 132 | I141: 118 | J141: 126 | K141: 96 | L141: 180 | M141: 179 | N141: 171 | O141: 9 | P141: 5 | Q141: 115 | R141: 199 | S141: 175 | T141: 228 | U141: 201 | V141: 185 | W141: 162 | X141: 197
A142: 110 | B142: AUBE HAUTE MARNE | C142: 21 | D142: CHAUMONT | E142: 451156 | F142: SAINT DIZIER CENTRE | G142: 8.6 | H142: 133 | I142: 137 | J142: 120 | K142: 160 | L142: 134 | M142: 159 | N142: 97 | O142: 140 | P142: 141 | Q142: 108 | R142: 48 | S142: 49 | T142: 70 | U142: 101 | V142: 129 | W142: 113 | X142: 79
A143: 110 | B143: MEURTHE ET MOSELLE MEUSE | C143: 26 | D143: NANCY | E143: 454426 | F143: LUNEVILLE CARNOT | G143: 8.5 | H143: 134 | I143: 201 | J143: 171 | K143: 205 | L143: 99 | M143: 125 | N143: 72 | O143: 63 | P143: 58 | Q143: 109 | R143: 149 | S143: 176 | T143: 83 | U143: 38 | V143: 57 | W143: 39 | X143: 44
A144: 110 | B144: AUBE HAUTE MARNE | C144: 21 | D144: CHAUMONT | E144: 410566 | F144: CHAUMONT HOTEL DE VILLE | G144: 10.3 | H144: 135 | I144: 82 | J144: 74 | K144: 103 | L144: 182 | M144: 177 | N144: 182 | O144: 96 | P144: 80 | Q144: 169 | R144: 128 | S144: 95 | T144: 191 | U144: 174 | V144: 179 | W144: 122 | X144: 199
A145: 110 | B145: MEURTHE ET MOSELLE MEUSE | C145: 26 | D145: NANCY | E145: 554486 | F145: NANCY POINT CENTRAL | G145: 3.1 | H145: 136 | I145: 131 | J145: 94 | K145: 181 | L145: 184 | M145: 216 | N145: 82 | O145: 27 | P145: 22 | Q145: 66 | R145: 171 | S145: 188 | T145: 122 | U145: 121 | V145: 93 | W145: 70 | X145: 186
A146: 110 | B146: MEURTHE ET MOSELLE MEUSE | C146: 27 | D146: PONT A MOUSSON | E146: 554496 | F146: NANCY TROIS MAISONS | G146: 2.4 | H146: 137 | I146: 149 | J146: 184 | K146: 115 | L146: 104 | M146: 105 | N146: 108 | O146: 149 | P146: 131 | Q146: 189 | R146: 83 | S146: 81 | T146: 98 | U146: 77 | V146: 128 | W146: 37 | X146: 86
A147: 110 | B147: MOSELLE | C147: 42 | D147: MOSELLE EST | E147: 457435 | F147: MERLEBACH | G147: 2.7 | H147: 138 | I147: 105 | J147: 110 | K147: 89 | L147: 145 | M147: 207 | N147: 38 | O147: 178 | P147: 197 | Q147: 54 | R147: 147 | S147: 203 | T147: 26 | U147: 68 | V147: 176 | W147: 10 | X147: 93
A148: 110 | B148: BAS RHIN | C148: 5101 | D148: SELESTAT | E148: 4127 | F148: ROSHEIM | G148: 1.7 | H148: 139 | I148: 112 | J148: 106 | K148: 114 | L148: 202 | M148: 205 | N148: 186 | O148: 34 | P148: 24 | Q148: 140 | R148: 159 | S148: 141 | T148: 183 | U148: 155 | V148: 109 | W148: 228 | X148: 81
A149: 110 | B149: MEURTHE ET MOSELLE MEUSE | C149: 26 | D149: NANCY | E149: 554296 | F149: ESSEY LES NANCY | G149: 3.6 | H149: 140 | I149: 44 | J149: 45 | K149: 59 | L149: 147 | M149: 146 | N149: 142 | O149: 157 | P149: 140 | Q149: 204 | R149: 221 | S149: 217 | T149: 212 | U149: 149 | V149: 150 | W149: 207 | X149: 83
A150: 110 | B150: VOSGES | C150: 57 | D150: EPINAL | E150: 588201 | F150: CHANTRAINE | G150: 3.7 | H150: 141 | I150: 102 | J150: 106 | K150: 88 | L150: 105 | M150: 81 | N150: 152 | O150: 79 | P150: 69 | Q150: 156 | R150: 218 | S150: 199 | T150: 234 | U150: 188 | V150: 133 | W150: 206 | X150: 143
A151: 110 | B151: MEURTHE ET MOSELLE MEUSE | C151: 26 | D151: NANCY | E151: 554266 | F151: DOMBASLE SUR MEURTHE | G151: 3.4 | H151: 142 | I151: 169 | J151: 201 | K151: 153 | L151: 200 | M151: 202 | N151: 185 | O151: 17 | P151: 11 | Q151: 134 | R151: 122 | S151: 143 | T151: 78 | U151: 111 | V151: 172 | W151: 32 | X151: 165
A152: 110 | B152: MEURTHE ET MOSELLE MEUSE | C152: 27 | D152: PONT A MOUSSON | E152: 454355 | F152: JARNY | G152: 4.2 | H152: 143 | I152: 91 | J152: 97 | K152: 69 | L152: 170 | M152: 169 | N152: 155 | O152: 84 | P152: 66 | Q152: 188 | R152: 160 | S152: 160 | T152: 137 | U152: 218 | V152: 183 | W152: 211 | X152: 188
A153: 110 | B153: MEURTHE ET MOSELLE MEUSE | C153: 26 | D153: NANCY | E153: 554491 | F153: NANCY SAINT SEBASTIEN | G153: 3.5 | H153: 144 | I153: 122 | J153: 109 | K153: 143 | L153: 212 | M153: 224 | N153: 137 | O153: 19 | P153: 10 | Q153: 203 | R153: 203 | S153: 205 | T153: 167 | U153: 140 | V153: 119 | W153: 140 | X153: 156
A154: 110 | B154: BAS RHIN | C154: 5060 | D154: HAGUENAU | E154: 4031 | F154: TRUCHTERSHEIM | G154: 2.4 | H154: 145 | I154: 97 | J154: 99 | K154: 86 | L154: 73 | M154: 22 | N154: 230 | O154: 66 | P154: 41 | Q154: 227 | R154: 217 | S154: 198 | T154: 232 | U154: 240 | V154: 229 | W154: 237 | X154: 240
A155: 110 | B155: BAS RHIN | C155: 5006 | D155: STRASBOURG | E155: 4023 | F155: STRASBOURG VOSGES | G155: 3.0 | H155: 146 | I155: 123 | J155: 117 | K155: 131 | L155: 118 | M155: 115 | N155: 118 | O155: 36 | P155: 38 | Q155: 59 | R155: 210 | S155: 201 | T155: 204 | U155: 223 | V155: 127 | W155: 240 | X155: 130
A156: 110 | B156: MOSELLE | C156: 42 | D156: MOSELLE EST | E156: 457614 | F156: SARREBOURG | G156: 7.2 | H156: 147 | I156: 140 | J156: 128 | K156: 161 | L156: 153 | M156: 134 | N156: 170 | O156: 94 | P156: 84 | Q156: 112 | R156: 121 | S156: 98 | T156: 175 | U156: 157 | V156: 165 | W156: 98 | X156: 194
A157: 110 | B157: MARNE ARDENNES | C157: 2 | D157: CHARLEVILLE MEZIERES | E157: 408806 | F157: SEDAN | G157: 7.4 | H157: 148 | I157: 99 | J157: 114 | K157: 57 | L157: 157 | M157: 135 | N157: 172 | O157: 148 | P157: 156 | Q157: 82 | R157: 201 | S157: 179 | T157: 226 | U157: 106 | V157: 102 | W157: 120 | X157: 97
A158: 110 | B158: MEURTHE ET MOSELLE MEUSE | C158: 27 | D158: PONT A MOUSSON | E158: 454651 | F158: TOUL | G158: 9.3 | H158: 149 | I158: 198 | J158: 157 | K158: 212 | L158: 191 | M158: 209 | N158: 121 | O158: 74 | P158: 74 | Q158: 85 | R158: 102 | S158: 130 | T158: 58 | U158: 52 | V158: 45 | W158: 64 | X158: 71
A159: 110 | B159: VOSGES | C159: 57 | D159: EPINAL | E159: 488706 | F159: VITTEL | G159: 3.1 | H159: 150 | I159: 115 | J159: 128 | K159: 71 | L159: 173 | M159: 151 | N159: 209 | O159: 144 | P159: 117 | Q159: 209 | R159: 138 | S159: 129 | T159: 130 | U159: 137 | V159: 141 | W159: 174 | X159: 98
A160: 110 | B160: MEURTHE ET MOSELLE MEUSE | C160: 27 | D160: PONT A MOUSSON | E160: 454535 | F160: PONT A MOUSSON CENTRALE | G160: 5.8 | H160: 151 | I160: 230 | J160: 195 | K160: 227 | L160: 84 | M160: 128 | N160: 42 | O160: 170 | P160: 159 | Q160: 185 | R160: 79 | S160: 100 | T160: 66 | U160: 40 | V160: 28 | W160: 127 | X160: 36
A161: 110 | B161: BAS RHIN | C161: 5006 | D161: STRASBOURG | E161: 4029 | F161: SCHILTIGHEIM KLEBER | G161: 0.6 | H161: 152 | I161: 148 | J161: 142 | K161: 166 | L161: 235 | M161: 234 | N161: 151 | O161: 48 | P161: 35 | Q161: 127 | R161: 104 | S161: 213 | T161: 5 | U161: 95 | V161: 163 | W161: 57 | X161: 95
A162: 110 | B162: BAS RHIN | C162: 5060 | D162: HAGUENAU | E162: 4030 | F162: BRUMATH | G162: 3.8 | H162: 153 | I162: 215 | J162: 204 | K162: 209 | L162: 72 | M162: 41 | N162: 169 | O162: 10 | P162: 7 | Q162: 88 | R162: 220 | S162: 214 | T162: 207 | U162: 199 | V162: 136 | W162: 182 | X162: 206
A163: 110 | B163: BAS RHIN | C163: 5060 | D163: HAGUENAU | E163: 4067 | F163: PFAFFENHOFFEN | G163: 1.9 | H163: 154 | I163: 133 | J163: 145 | K163: 106 | L163: 68 | M163: 56 | N163: 114 | O163: 116 | P163: 108 | Q163: 120 | R163: 207 | S163: 208 | T163: 164 | U163: 167 | V163: 145 | W163: 218 | X163: 88
A164: 110 | B164: MOSELLE | C164: 45 | D164: METZ | E164: 557459 | F164: MOULINS LES METZ | G164: 2.6 | H164: 155 | I164: 96 | J164: 69 | K164: 142 | L164: 174 | M164: 161 | N164: 200 | O164: 182 | P164: 175 | Q164: 160 | R164: 137 | S164: 103 | T164: 198 | U164: 153 | V164: 167 | W164: 141 | X164: 144
A165: 110 | B165: BAS RHIN | C165: 5006 | D165: STRASBOURG | E165: 4028 | F165: BISCHHEIM | G165: 3.1 | H165: 156 | I165: 175 | J165: 205 | K165: 157 | L165: 163 | M165: 171 | N165: 122 | O165: 70 | P165: 72 | Q165: 69 | R165: 72 | S165: 75 | T165: 69 | U165: 191 | V165: 151 | W165: 188 | X165: 166
A166: 110 | B166: MEURTHE ET MOSELLE MEUSE | C166: 26 | D166: NANCY | E166: 554166 | F166: BLAINVILLE | G166: 2.9 | H166: 157 | I166: 162 | J166: 195 | K166: 141 | L166: 101 | M166: 91 | N166: 125 | O166: 192 | P166: 183 | Q166: 179 | R166: 57 | S166: 50 | T166: 87 | U166: 144 | V166: 134 | W166: 161 | X166: 124
A167: 110 | B167: MEURTHE ET MOSELLE MEUSE | C167: 27 | D167: PONT A MOUSSON | E167: 454696 | F167: VILLERS GENERAL LECLERC | G167: 3.9 | H167: 158 | I167: 155 | J167: 163 | K167: 152 | L167: 189 | M167: 201 | N167: 138 | O167: 11 | P167: 6 | Q167: 116 | R167: 164 | S167: 161 | T167: 147 | U167: 227 | V167: 209 | W167: 221 | X167: 203
A168: 110 | B168: AUBE HAUTE MARNE | C168: 14 | D168: TROYES | E168: 410550 | F168: BAR SUR AUBE | G168: 5.3 | H168: 159 | I168: 94 | J168: 95 | K168: 82 | L168: 178 | M168: 166 | N168: 183 | O168: 168 | P168: 150 | Q168: 193 | R168: 154 | S168: 140 | T168: 166 | U168: 171 | V168: 221 | W168: 74 | X168: 193
A169: 110 | B169: AUBE HAUTE MARNE | C169: 14 | D169: TROYES | E169: 510513 | F169: SAINT PARRES AUX TERTRES | G169: 2.9 | H169: 160 | I169: 234 | J169: 205 | K169: 233 | L169: 88 | M169: 121 | N169: 47 | O169: 132 | P169: 162 | Q169: 41 | R169: 16 | S169: 13 | T169: 44 | U169: 193 | V169: 241 | W169: 134 | X169: 114
A170: 110 | B170: MARNE ARDENNES | C170: 2 | D170: CHARLEVILLE MEZIERES | E170: 508860 | F170: ROCROI | G170: 2.3 | H170: 161 | I170: 205 | J170: 195 | K170: 197 | L170: 60 | M170: 65 | N170: 79 | O170: 169 | P170: 170 | Q170: 99 | R170: 133 | S170: 137 | T170: 118 | U170: 82 | V170: 65 | W170: 135 | X170: 75
A171: 110 | B171: MOSELLE | C171: 42 | D171: MOSELLE EST | E171: 557210 | F171: CHATEAU SALINS | G171: 1.9 | H171: 162 | I171: 174 | J171: 205 | K171: 156 | L171: 70 | M171: 53 | N171: 128 | O171: 213 | P171: 205 | Q171: 200 | R171: 35 | S171: 27 | T171: 91 | U171: 185 | V171: 222 | W171: 67 | X171: 216
A172: 110 | B172: BAS RHIN | C172: 5101 | D172: SELESTAT | E172: 4007 | F172: ILLKIRCH CENTRE | G172: 6.3 | H172: 163 | I172: 183 | J172: 188 | K172: 172 | L172: 151 | M172: 136 | N172: 163 | O172: 165 | P172: 158 | Q172: 162 | R172: 52 | S172: 39 | T172: 112 | U172: 130 | V172: 110 | W172: 116 | X172: 140
A173: 110 | B173: MOSELLE | C173: 45 | D173: METZ | E173: 557440 | F173: METZ MOZART | G173: 2.7 | H173: 164 | I173: 151 | J173: 205 | K173: 105 | L173: 149 | M173: 112 | N173: 202 | O173: 67 | P173: 50 | Q173: 196 | R173: 151 | S173: 120 | T173: 206 | U173: 203 | V173: 132 | W173: 220 | X173: 153
A174: 110 | B174: MEURTHE ET MOSELLE MEUSE | C174: 31 | D174: VERDUN | E174: 555624 | F174: STENAY | G174: 3.1 | H174: 165 | I174: 168 | J174: 205 | K174: 148 | L174: 80 | M174: 148 | N174: 25 | O174: 210 | P174: 217 | Q174: 103 | R174: 216 | S174: 227 | T174: 89 | U174: 22 | V174: 106 | W174: 2 | X174: 58
A175: 110 | B175: BAS RHIN | C175: 5101 | D175: SELESTAT | E175: 4109 | F175: MARCKOLSHEIM | G175: 2.3 | H175: 166 | I175: 113 | J175: 135 | K175: 49 | L175: 155 | M175: 138 | N175: 160 | O175: 181 | P175: 178 | Q175: 118 | R175: 177 | S175: 204 | T175: 84 | U175: 135 | V175: 207 | W175: 91 | X175: 123
A176: 110 | B176: BAS RHIN | C176: 5006 | D176: STRASBOURG | E176: 4039 | F176: REICHSTETT | G176: 1.4 | H176: 167 | I176: 138 | J176: 143 | K176: 122 | L176: 187 | M176: 181 | N176: 174 | O176: 99 | P176: 87 | Q176: 138 | R176: 140 | S176: 139 | T176: 117 | U176: 179 | V176: 87 | W176: 222 | X176: 154
A177: 160 | B177: AUBE HAUTE MARNE | C177: 14 | D177: TROYES | E177: 510523 | F177: LA CHAPELLE ST LUC | G177: 4.5 | H177: 168 | I177: 218 | J177: 188 | K177: 218 | L177: 140 | M177: 182 | N177: 59 | O177: 133 | P177: 157 | Q177: 46 | R177: 63 | S177: 86 | T177: 31 | U177: 113 | V177: 143 | W177: 107 | X177: 94
A178: 160 | B178: BAS RHIN | C178: 5060 | D178: HAGUENAU | E178: 4085 | F178: INGWILLER | G178: 3.5 | H178: 169 | I178: 129 | J178: 112 | K178: 155 | L178: 139 | M178: 129 | N178: 146 | O178: 190 | P178: 177 | Q178: 173 | R178: 152 | S178: 169 | T178: 113 | U178: 142 | V178: 174 | W178: 68 | X178: 192
A179: 160 | B179: MEURTHE ET MOSELLE MEUSE | C179: 27 | D179: PONT A MOUSSON | E179: 554196 | F179: CHAMPIGNEULLES | G179: 2.6 | H179: 170 | I179: 157 | J179: 205 | K179: 118 | L179: 166 | M179: 122 | N179: 220 | O179: 159 | P179: 137 | Q179: 214 | R179: 60 | S179: 43 | T179: 125 | U179: 192 | V179: 115 | W179: 198 | X179: 181
A180: 160 | B180: BAS RHIN | C180: 5101 | D180: SELESTAT | E180: 4008 | F180: FEGERSHEIM | G180: 2.4 | H180: 171 | I180: 127 | J180: 140 | K180: 101 | L180: 92 | M180: 43 | N180: 226 | O180: 121 | P180: 93 | Q180: 229 | R180: 200 | S180: 181 | T180: 220 | U180: 228 | V180: 210 | W180: 216 | X180: 212
A181: 160 | B181: MOSELLE | C181: 42 | D181: MOSELLE EST | E181: 557503 | F181: NEUNKIRCH | G181: 3.0 | H181: 172 | I181: 6 | J181: 6 | K181: 17 | L181: 218 | M181: 197 | N181: 232 | O181: 228 | P181: 223 | Q181: 230 | R181: 235 | S181: 233 | T181: 236 | U181: 208 | V181: 213 | W181: 131 | X181: 223
A182: 160 | B182: MOSELLE | C182: 45 | D182: METZ | E182: 557441 | F182: METZ PLAPPEVILLE | G182: 2.7 | H182: 173 | I182: 179 | J182: 145 | K182: 199 | L182: 199 | M182: 206 | N182: 158 | O182: 40 | P182: 23 | Q182: 191 | R182: 162 | S182: 149 | T182: 173 | U182: 146 | V182: 204 | W182: 60 | X182: 194
A183: 160 | B183: MARNE ARDENNES | C183: 11 | D183: REIMS | E183: 551309 | F183: REIMS EUROPE | G183: 2.3 | H183: 174 | I183: 164 | J183: 118 | K183: 217 | L183: 129 | M183: 176 | N183: 55 | O183: 202 | P183: 215 | Q183: 86 | R183: 87 | S183: 125 | T183: 42 | U183: 119 | V183: 72 | W183: 225 | X183: 60
A184: 160 | B184: MARNE ARDENNES | C184: 6 | D184: CHALONS EN CHAMPAGNE | E184: 451166 | F184: VITRY LE FRANCOIS | G184: 3.7 | H184: 175 | I184: 214 | J184: 205 | K184: 207 | L184: 74 | M184: 87 | N184: 63 | O184: 231 | P184: 233 | Q184: 49 | R184: 141 | S184: 145 | T184: 106 | U184: 27 | V184: 52 | W184: 46 | X184: 26
A185: 160 | B185: BAS RHIN | C185: 5060 | D185: HAGUENAU | E185: 4060 | F185: HAGUENAU HOUBLON | G185: 8.6 | H185: 176 | I185: 188 | J185: 166 | K185: 192 | L185: 171 | M185: 164 | N185: 167 | O185: 75 | P185: 61 | Q185: 178 | R185: 125 | S185: 114 | T185: 151 | U185: 184 | V185: 202 | W185: 124 | X185: 182
A186: 160 | B186: HAUT RHIN | C186: 5169 | D186: MULHOUSE | E186: 4180 | F186: RIEDISHEIM | G186: 3.3 | H186: 177 | I186: 78 | J186: 56 | K186: 129 | L186: 177 | M186: 160 | N186: 204 | O186: 216 | P186: 208 | Q186: 212 | R186: 150 | S186: 132 | T186: 180 | U186: 224 | V186: 117 | W186: 232 | X186: 218
A187: 160 | B187: HAUT RHIN | C187: 5169 | D187: MULHOUSE | E187: 4170 | F187: MULHOUSE REUNION | G187: 7.8 | H187: 178 | I187: 161 | J187: 136 | K187: 195 | L187: 159 | M187: 168 | N187: 117 | O187: 203 | P187: 204 | Q187: 141 | R187: 99 | S187: 131 | T187: 49 | U187: 110 | V187: 99 | W187: 89 | X187: 135
A188: 160 | B188: BAS RHIN | C188: 5101 | D188: SELESTAT | E188: 4101 | F188: SELESTAT CENTRE | G188: 7.9 | H188: 179 | I188: 178 | J188: 171 | K188: 175 | L188: 116 | M188: 74 | N188: 197 | O188: 162 | P188: 138 | Q188: 221 | R188: 120 | S188: 119 | T188: 128 | U188: 180 | V188: 218 | W188: 90 | X188: 189
A189: 160 | B189: BAS RHIN | C189: 5060 | D189: HAGUENAU | E189: 4066 | F189: NIEDERBRONN LES BAINS | G189: 5.7 | H189: 180 | I189: 103 | J189: 112 | K189: 77 | L189: 198 | M189: 199 | N189: 177 | O189: 161 | P189: 149 | Q189: 190 | R189: 197 | S189: 173 | T189: 217 | U189: 182 | V189: 224 | W189: 115 | X189: 161
A190: 160 | B190: HAUT RHIN | C190: 5130 | D190: COLMAR | E190: 4157 | F190: NEUF BRISACH | G190: 2.6 | H190: 181 | I190: 196 | J190: 205 | K190: 178 | L190: 162 | M190: 189 | N190: 84 | O190: 188 | P190: 199 | Q190: 56 | R190: 90 | S190: 106 | T190: 72 | U190: 102 | V190: 181 | W190: 52 | X190: 100
A191: 160 | B191: MOSELLE | C191: 45 | D191: METZ | E191: 557712 | F191: WOIPPY | G191: 4.3 | H191: 182 | I191: 223 | J191: 157 | K191: 231 | L191: 119 | M191: 126 | N191: 109 | O191: 166 | P191: 187 | Q191: 50 | R191: 80 | S191: 85 | T191: 82 | U191: 133 | V191: 108 | W191: 138 | X191: 131
A192: 160 | B192: MOSELLE | C192: 45 | D192: METZ | E192: 557445 | F192: METZ SAINT LIVIER | G192: 2.5 | H192: 183 | I192: 104 | J192: 89 | K192: 132 | L192: 168 | M192: 156 | N192: 187 | O192: 163 | P192: 168 | Q192: 124 | R192: 224 | S192: 212 | T192: 237 | U192: 173 | V192: 82 | W192: 203 | X192: 184
A193: 160 | B193: BAS RHIN | C193: 5101 | D193: SELESTAT | E193: 4119 | F193: OBERNAI | G193: 3.4 | H193: 184 | I193: 177 | J193: 157 | K193: 185 | L193: 214 | M193: 212 | N193: 207 | O193: 25 | P193: 13 | Q193: 159 | R193: 169 | S193: 151 | T193: 189 | U193: 215 | V193: 233 | W193: 129 | X193: 228
A194: 160 | B194: HAUT RHIN | C194: 5169 | D194: MULHOUSE | E194: 4178 | F194: SAINT LOUIS | G194: 6.6 | H194: 185 | I194: 172 | J194: 155 | K194: 186 | L194: 141 | M194: 147 | N194: 124 | O194: 59 | P194: 51 | Q194: 117 | R194: 196 | S194: 195 | T194: 165 | U194: 226 | V194: 166 | W194: 227 | X194: 214
A195: 160 | B195: BAS RHIN | C195: 5060 | D195: HAGUENAU | E195: 4082 | F195: BOUXWILLER | G195: 2.5 | H195: 186 | I195: 52 | J195: 52 | K195: 70 | L195: 192 | M195: 178 | N195: 211 | O195: 237 | P195: 237 | Q195: 149 | R195: 114 | S195: 118 | T195: 121 | U195: 162 | V195: 118 | W195: 175 | X195: 152
A196: 160 | B196: MOSELLE | C196: 42 | D196: MOSELLE EST | E196: 457258 | F196: DIEUZE | G196: 3.1 | H196: 187 | I196: 46 | J196: 48 | K196: 66 | L196: 231 | M196: 208 | N196: 237 | O196: 201 | P196: 184 | Q196: 228 | R196: 186 | S196: 180 | T196: 185 | U196: 225 | V196: 223 | W196: 197 | X196: 213
A197: 160 | B197: MOSELLE | C197: 45 | D197: METZ | E197: 557559 | F197: REMILLY | G197: 3.1 | H197: 188 | I197: 200 | J197: 191 | K197: 188 | L197: 152 | M197: 157 | N197: 135 | O197: 119 | P197: 106 | Q197: 152 | R197: 205 | S197: 211 | T197: 146 | U197: 84 | V197: 137 | W197: 38 | X197: 96
A198: 160 | B198: MOSELLE | C198: 45 | D198: METZ | E198: 557436 | F198: METZ CATHEDRALE | G198: 4.1 | H198: 189 | I198: 224 | J198: 205 | K198: 219 | L198: 132 | M198: 104 | N198: 164 | O198: 78 | P198: 64 | Q198: 180 | R198: 145 | S198: 134 | T198: 158 | U198: 168 | V198: 187 | W198: 130 | X198: 160
A199: 160 | B199: MARNE ARDENNES | C199: 11 | D199: REIMS | E199: 451308 | F199: REIMS SAINT THOMAS | G199: 5.6 | H199: 190 | I199: 238 | J199: 191 | K199: 239 | L199: 95 | M199: 114 | N199: 78 | O199: 207 | P199: 213 | Q199: 102 | R199: 93 | S199: 109 | T199: 74 | U199: 51 | V199: 38 | W199: 123 | X199: 45
A200: 160 | B200: BAS RHIN | C200: 5101 | D200: SELESTAT | E200: 4107 | F200: VILLE | G200: 2.3 | H200: 191 | I200: 206 | J200: 205 | K200: 191 | L200: 103 | M200: 39 | N200: 235 | O200: 56 | P200: 30 | Q200: 233 | R200: 190 | S200: 159 | T200: 224 | U200: 234 | V200: 232 | W200: 183 | X200: 235
A201: 160 | B201: AUBE HAUTE MARNE | C201: 14 | D201: TROYES | E201: 410510 | F201: TROYES GAMBETTA | G201: 8.6 | H201: 192 | I201: 208 | J201: 205 | K201: 198 | L201: 142 | M201: 149 | N201: 126 | O201: 197 | P201: 191 | Q201: 176 | R201: 85 | S201: 76 | T201: 116 | U201: 129 | V201: 91 | W201: 167 | X201: 109
A202: 160 | B202: BAS RHIN | C202: 5006 | D202: STRASBOURG | E202: 4045 | F202: STRASBOURG FRANCS BOURGEOIS | G202: 4.2 | H202: 193 | I202: 120 | J202: 145 | K202: 44 | L202: 102 | M202: 103 | N202: 99 | O202: 230 | P202: 232 | Q202: 61 | R202: 167 | S202: 148 | T202: 187 | U202: 210 | V202: 130 | W202: 229 | X202: 176
A203: 160 | B203: VOSGES | C203: 57 | D203: EPINAL | E203: 588501 | F203: NEUFCHATEAU | G203: 4.6 | H203: 194 | I203: 101 | J203: 105 | K203: 90 | L203: 172 | M203: 167 | N203: 166 | O203: 218 | P203: 218 | Q203: 166 | R203: 209 | S203: 206 | T203: 186 | U203: 194 | V203: 182 | W203: 193 | X203: 136
A204: 160 | B204: VOSGES | C204: 55 | D204: SAINT DIE | E204: 488586 | F204: SAINT DIE | G204: 11.1 | H204: 195 | I204: 126 | J204: 118 | K204: 130 | L204: 203 | M204: 188 | N204: 219 | O204: 174 | P204: 152 | Q204: 211 | R204: 188 | S204: 171 | T204: 197 | U204: 205 | V204: 148 | W204: 219 | X204: 163
... 47 more rows

Sheet AG_FICHE
A1: Accueil
A2: BAROMETRE GRAND PUBLIC
A4: UNITE: | B4: Agence | E4: ETP perf : | F4: =VLOOKUP(A5,'RECAP AG'!$G$6:$CY$248,3,FALSE) -> 5.21
A5: =VLOOKUP(B5,LISTES!$C$6:$D$246,2,FALSE) -> 4189 | B5: ALTKIRCH
C6: Coefficient du critère | E6: Résultats | I6: Ecart au 1ier | K6: =IF(OR(A5=4017,A5=4022),"Rang estimé","Rang") -> Rang
E7: du 1ier | G7: de l'Agence
A9: RANG GRAND PUBLIC | K9: =VLOOKUP($A$5,'RECAP AG'!$G$6:$CY$248,96,FALSE) -> 241
A11: SATISFACTION CLIENTS | C11: 20% | K11: =VLOOKUP($A$5,'RECAP AG'!$G$6:$CY$248,13,FALSE) -> 241
B12: NPS à froid (SAE) | C12: 10% | E12: =+'RECAP AG'!K4 -> 63 | G12: =VLOOKUP($A$5,'RECAP AG'!$G$6:$CY$248,5,FALSE) -> 0.0 | I12: =VLOOKUP($A$5,'RECAP AG'!$G$6:$CY$248,6,FALSE) -> 100% | K12: =VLOOKUP($A$5,'RECAP AG'!$G$6:$CY$248,7,FALSE) -> 205
B13: NPS à chaud (QHD) | C13: 10% | E13: =+'RECAP AG'!N4 -> 87% | G13: =VLOOKUP($A$5,'RECAP AG'!$G$6:$CY$248,8,FALSE) -> 9% | I13: =VLOOKUP($A$5,'RECAP AG'!$G$6:$CY$248,9,FALSE) -> 89% | K13: =VLOOKUP($A$5,'RECAP AG'!$G$6:$CY$248,10,FALSE) -> 241
A15: BANCARISATION | C15: 20% | K15: =VLOOKUP($A$5,'RECAP AG'!$G$6:$CY$248,28,FALSE) -> 240
B16: Ventes Nettes produits pondérés | C16: 12% | E16: ='RECAP AG'!X4 -> 119.1 | G16: =VLOOKUP($A$5,'RECAP AG'!$G$6:$CY$248,19,FALSE) -> -18.0 | I16: =VLOOKUP($A$5,'RECAP AG'!$G$6:$CY$248,20,FALSE) -> 115% | K16: =VLOOKUP($A$5,'RECAP AG'!$G$6:$CY$248,21,FALSE) -> 237
B17: Ventes sur client non détenteur de l’univers | C17: 8% | E17: ='RECAP AG'!AB4 -> 171.7 | G17: =VLOOKUP($A$5,'RECAP AG'!$G$6:$CY$248,23,FALSE) -> 40.1 | I17: =VLOOKUP($A$5,'RECAP AG'!$G$6:$CY$248,24,FALSE) -> 77% | K17: =VLOOKUP($A$5,'RECAP AG'!$G$6:$CY$248,25,FALSE) -> 236
A19: EPARGNE | C19: 20% | K19: =VLOOKUP($A$5,'RECAP AG'!$G$6:$CY$248,43,FALSE) -> 226
B20: Excédent Epargne hors DAV pondéré | C20: 12% | E20: ='RECAP AG'!AM4 -> 2542.3 | G20: =VLOOKUP($A$5,'RECAP AG'!$G$6:$CY$248,34,FALSE) -> -370.9 | I20: =VLOOKUP($A$5,'RECAP AG'!$G$6:$CY$248,35,FALSE) -> 101% | K20: =VLOOKUP($A$5,'RECAP AG'!$G$6:$CY$248,36,FALSE) -> 220
B21: Ventes sur client non détenteur de l’univers | C21: 8% | E21: ='RECAP AG'!AQ4 -> 322.5 | G21: =VLOOKUP($A$5,'RECAP AG'!$G$6:$CY$248,38,FALSE) -> 43.6 | I21: =VLOOKUP($A$5,'RECAP AG'!$G$6:$CY$248,39,FALSE) -> 86% | K21: =VLOOKUP($A$5,'RECAP AG'!$G$6:$CY$248,40,FALSE) -> 225
A23: IARD PREVOYANCE | C23: 20% | K23: =VLOOKUP($A$5,'RECAP AG'!$G$6:$CY$248,77,FALSE) -> 239
B24: Ventes Nettes produits pondérés | C24: 12% | E24: ='RECAP AG'!BU4 -> 685.5 | G24: =VLOOKUP($A$5,'RECAP AG'!$G$6:$CY$248,68,FALSE) -> -137.6 | I24: =VLOOKUP($A$5,'RECAP AG'!$G$6:$CY$248,69,FALSE) -> 115% | K24: =VLOOKUP($A$5,'RECAP AG'!$G$6:$CY$248,70,FALSE) -> 238
B25: Ventes sur client non détenteur de l’univers | C25: 8% | E25: ='RECAP AG'!BY4 -> 173.9 | G25: =VLOOKUP($A$5,'RECAP AG'!$G$6:$CY$248,72,FALSE) -> 26.7 | I25: =VLOOKUP($A$5,'RECAP AG'!$G$6:$CY$248,73,FALSE) -> 85% | K25: =VLOOKUP($A$5,'RECAP AG'!$G$6:$CY$248,74,FALSE) -> 230
A27: CREDITS | C27: 20% | K27: =VLOOKUP($A$5,'RECAP AG'!$G$6:$CY$248,62,FALSE) -> 237
B28: Engagements et ventes accessoires pondérés Immo | C28: 6% | E28: ='RECAP AG'!BB4 -> 1502.7 | G28: =VLOOKUP($A$5,'RECAP AG'!$G$6:$CY$248,49,FALSE) -> 118.6 | I28: =VLOOKUP($A$5,'RECAP AG'!$G$6:$CY$248,50,FALSE) -> 92% | K28: =VLOOKUP($A$5,'RECAP AG'!$G$6:$CY$248,51,FALSE) -> 234
B29: Engagements et ventes accessoires pondérés Conso | C29: 6% | E29: ='RECAP AG'!BF4 -> 129.6 | G29: =VLOOKUP($A$5,'RECAP AG'!$G$6:$CY$248,53,FALSE) -> 42.2 | I29: =VLOOKUP($A$5,'RECAP AG'!$G$6:$CY$248,54,FALSE) -> 67% | K29: =VLOOKUP($A$5,'RECAP AG'!$G$6:$CY$248,55,FALSE) -> 200
B30: Ventes sur client non détenteur de l’univers | C30: 8% | E30: ='RECAP AG'!BJ4 -> 99.3 | G30: =VLOOKUP($A$5,'RECAP AG'!$G$6:$CY$248,57,FALSE) -> 13.2 | I30: =VLOOKUP($A$5,'RECAP AG'!$G$6:$CY$248,58,FALSE) -> 87% | K30: =VLOOKUP($A$5,'RECAP AG'!$G$6:$CY$248,59,FALSE) -> 238

Sheet AG_TOTAL
B1: Accueil | H1: BAROMETRE BDD - AGENCES
H2: TOTAL GENERAL
H3: =ACCUEIL!F7 -> 2022-11-27
H7: TOTAL GENERAL | K7: Total Satisfaction Clients | N7: Total Bancarisation | Q7: Total Epargne | T7: Total IARD Prévoyance | W7: Total Crédits
I8: coef | J8: =M8+P8+S8+V8+Y8 -> 100% | L8: coef | M8: =AG_SATISFACTION!P8 -> 20% | O8: coef | P8: =AG_BANCA!R8 -> 20% | R8: coef | S8: =AG_EPARGNE!R8 -> 20% | U8: coef | V8: =AG_IARD!R8 -> 20% | X8: coef | Y8: =AG_CREDIT!V8 -> 20%
B9: Direction | C9: eds | D9: Territoire | E9: eds | F9: Agence | G9: ="ETP perf "&DATEMAJ!$C$28 -> ETP perf 27-nov | H9: Moyenne ecart au 1er | I9: % Ecart au 1er | J9: Rang CEGEE | K9: Moyenne ecart au 1er | L9: % Ecart au 1er | M9: Rang CEGEE | N9: Moyenne ecart au 1er | O9: % Ecart au 1er | P9: Rang CEGEE | Q9: Moyenne ecart au 1er | R9: % Ecart au 1er | S9: Rang CEGEE | T9: Moyenne ecart au 1er | U9: % Ecart au 1er | V9: Rang CEGEE | W9: Moyenne ecart au 1er | X9: % Ecart au 1er | Y9: Rang CEGEE
A10: 50 | B10: MOSELLE | C10: 44 | D10: MOSELLE NORD | E10: 557508 | F10: NILVANGE | G10: 1.4 | H10: 10% | I10: 0% | J10: 1 | K10: 40% | L10: 36% | M10: 65 | N10: 0% | O10: 0% | P10: 1 | Q10: 43% | R10: 13% | S10: 4 | T10: 0% | U10: 0% | V10: 1 | W10: 0% | X10: 0% | Y10: 1
A11: 50 | B11: MARNE ARDENNES | C11: 11 | D11: REIMS | E11: 551340 | F11: BETHENY | G11: 2.2 | H11: 40% | I11: 30% | J11: 2 | K11: 37% | L11: 34% | M11: 53 | N11: 38% | O11: 38% | P11: 4 | Q11: 53% | R11: 22% | S11: 7 | T11: 67% | U11: 67% | V11: 49 | W11: 37% | X11: 37% | Y11: 5
A12: 50 | B12: VOSGES | C12: 57 | D12: EPINAL | E12: 488288 | F12: EPINAL LEOPOLD BOURG | G12: 2.0 | H12: 41% | I12: 31% | J12: 3 | K12: 13% | L12: 9% | M12: 4 | N12: 54% | O12: 54% | P12: 18 | Q12: 49% | R12: 19% | S12: 6 | T12: 68% | U12: 68% | V12: 59 | W12: 55% | X12: 55% | Y12: 28
A13: 50 | B13: MEURTHE ET MOSELLE MEUSE | C13: 27 | D13: PONT A MOUSSON | E13: 554381 | F13: LAXOU ARISTIDE BRIAND | G13: 2.3 | H13: 42% | I13: 32% | J13: 4 | K13: 60% | L13: 56% | M13: 142 | N13: 30% | O13: 30% | P13: 2 | Q13: 64% | R13: 34% | S13: 29 | T13: 55% | U13: 55% | V13: 11 | W13: 34% | X13: 34% | Y13: 3
A14: 50 | B14: MARNE ARDENNES | C14: 11 | D14: REIMS | E14: 551305 | F14: REIMS HIPPODROME | G14: 5.0 | H14: 42% | I14: 33% | J14: 5 | K14: 43% | L14: 39% | M14: 81 | N14: 48% | O14: 48% | P14: 10 | Q14: 62% | R14: 32% | S14: 22 | T14: 55% | U14: 55% | V14: 12 | W14: 38% | X14: 38% | Y14: 6
A15: 50 | B15: MARNE ARDENNES | C15: 6 | D15: CHALONS EN CHAMPAGNE | E15: 551330 | F15: MONTMIRAIL | G15: 2.8 | H15: 43% | I15: 33% | J15: 6 | K15: 17% | L15: 14% | M15: 9 | N15: 51% | O15: 51% | P15: 13 | Q15: 67% | R15: 36% | S15: 42 | T15: 55% | U15: 55% | V15: 9 | W15: 60% | X15: 60% | Y15: 56
A16: 50 | B16: MARNE ARDENNES | C16: 11 | D16: REIMS | E16: 551349 | F16: REIMS SAINT REMI | G16: 2.9 | H16: 43% | I16: 33% | J16: 7 | K16: 52% | L16: 48% | M16: 117 | N16: 36% | O16: 36% | P16: 3 | Q16: 64% | R16: 33% | S16: 28 | T16: 58% | U16: 58% | V16: 15 | W16: 41% | X16: 41% | Y16: 9
A17: 50 | B17: BAS RHIN | C17: 5006 | D17: STRASBOURG | E17: 4048 | F17: STRASBOURG KOENIGSHOFFEN | G17: 1.5 | H17: 44% | I17: 34% | J17: 8 | K17: 63% | L17: 60% | M17: 156 | N17: 41% | O17: 41% | P17: 5 | Q17: 46% | R17: 16% | S17: 5 | T17: 55% | U17: 55% | V17: 10 | W17: 49% | X17: 49% | Y17: 17
A18: 50 | B18: MOSELLE | C18: 45 | D18: METZ | E18: 457443 | F18: METZ REPUBLIQUE | G18: 3.5 | H18: 46% | I18: 36% | J18: 9 | K18: 33% | L18: 29% | M18: 37 | N18: 71% | O18: 71% | P18: 91 | Q18: 30% | R18: 0% | S18: 1 | T18: 61% | U18: 61% | V18: 21 | W18: 68% | X18: 68% | Y18: 108
A19: 50 | B19: MOSELLE | C19: 44 | D19: MOSELLE NORD | E19: 557113 | F19: AUDUN LE TICHE | G19: 2.1 | H19: 46% | I19: 36% | J19: 10 | K19: 49% | L19: 46% | M19: 106 | N19: 45% | O19: 45% | P19: 8 | Q19: 62% | R19: 32% | S19: 24 | T19: 63% | U19: 63% | V19: 32 | W19: 45% | X19: 45% | Y19: 11
A20: 50 | B20: MARNE ARDENNES | C20: 6 | D20: CHALONS EN CHAMPAGNE | E20: 451115 | F20: MOURMELON LE GRAND | G20: 2.8 | H20: 46% | I20: 36% | J20: 11 | K20: 47% | L20: 43% | M20: 98 | N20: 46% | O20: 46% | P20: 9 | Q20: 61% | R20: 30% | S20: 15 | T20: 60% | U20: 60% | V20: 17 | W20: 51% | X20: 51% | Y20: 18
A21: 50 | B21: MOSELLE | C21: 44 | D21: MOSELLE NORD | E21: 557660 | F21: UCKANGE | G21: 1.9 | H21: 46% | I21: 36% | J21: 12 | K21: 75% | L21: 71% | M21: 217 | N21: 52% | O21: 52% | P21: 14 | Q21: 67% | R21: 37% | S21: 46 | T21: 39% | U21: 39% | V21: 2 | W21: 33% | X21: 33% | Y21: 2
A22: 50 | B22: MEURTHE ET MOSELLE MEUSE | C22: 26 | D22: NANCY | E22: 554476 | F22: NANCY ARTEM | G22: 2.8 | H22: 48% | I22: 38% | J22: 13 | K22: 28% | L22: 24% | M22: 21 | N22: 53% | O22: 53% | P22: 16 | Q22: 80% | R22: 50% | S22: 139 | T22: 72% | U22: 72% | V22: 84 | W22: 39% | X22: 39% | Y22: 8
A23: 50 | B23: MARNE ARDENNES | C23: 6 | D23: CHALONS EN CHAMPAGNE | E23: 451120 | F23: SARRY | G23: 2.2 | H23: 48% | I23: 39% | J23: 14 | K23: 20% | L23: 16% | M23: 11 | N23: 56% | O23: 56% | P23: 21 | Q23: 79% | R23: 49% | S23: 129 | T23: 62% | U23: 62% | V23: 28 | W23: 58% | X23: 58% | Y23: 44
A24: 50 | B24: MARNE ARDENNES | C24: 2 | D24: CHARLEVILLE MEZIERES | E24: 508820 | F24: VOUZIERS | G24: 2.7 | H24: 48% | I24: 39% | J24: 15 | K24: 33% | L24: 30% | M24: 39 | N24: 62% | O24: 62% | P24: 42 | Q24: 69% | R24: 39% | S24: 53 | T24: 54% | U24: 54% | V24: 8 | W24: 58% | X24: 58% | Y24: 37
A25: 50 | B25: MARNE ARDENNES | C25: 11 | D25: REIMS | E25: 551365 | F25: DORMANS | G25: 2.5 | H25: 49% | I25: 39% | J25: 16 | K25: 33% | L25: 29% | M25: 36 | N25: 43% | O25: 43% | P25: 6 | Q25: 84% | R25: 53% | S25: 167 | T25: 65% | U25: 65% | V25: 39 | W25: 54% | X25: 54% | Y25: 23
A26: 50 | B26: BAS RHIN | C26: 5006 | D26: STRASBOURG | E26: 4037 | F26: SHOPPING PROMENADE CŒUR ALSACE | G26: 3.7 | H26: 50% | I26: 40% | J26: 17 | K26: 44% | L26: 41% | M26: 85 | N26: 51% | O26: 51% | P26: 12 | Q26: 78% | R26: 47% | S26: 110 | T26: 54% | U26: 54% | V26: 7 | W26: 55% | X26: 55% | Y26: 26
A27: 50 | B27: MOSELLE | C27: 42 | D27: MOSELLE EST | E27: 457165 | F27: BITCHE | G27: 2.3 | H27: 50% | I27: 40% | J27: 18 | K27: 24% | L27: 20% | M27: 17 | N27: 53% | O27: 53% | P27: 15 | Q27: 75% | R27: 45% | S27: 98 | T27: 65% | U27: 65% | V27: 37 | W27: 69% | X27: 69% | Y27: 118
A28: 262 | B28: MOSELLE | C28: 45 | D28: METZ | E28: 457446 | F28: METZ SAINT LOUIS | G28: 5.7 | H28: 51% | I28: 41% | J28: 19 | K28: 45% | L28: 42% | M28: 92 | N28: 55% | O28: 55% | P28: 19 | Q28: 66% | R28: 36% | S28: 38 | T28: 70% | U28: 70% | V28: 66 | W28: 53% | X28: 53% | Y28: 21
A29: 262 | B29: MARNE ARDENNES | C29: 11 | D29: REIMS | E29: 451350 | F29: REIMS CENTRE VILLE | G29: 6.3 | H29: 51% | I29: 41% | J29: 20 | K29: 68% | L29: 65% | M29: 185 | N29: 44% | O29: 44% | P29: 7 | Q29: 80% | R29: 50% | S29: 137 | T29: 60% | U29: 60% | V29: 18 | W29: 37% | X29: 37% | Y29: 4
A30: 262 | B30: MOSELLE | C30: 45 | D30: METZ | E30: 457453 | F30: MONTIGNY LES METZ | G30: 7.0 | H30: 51% | I30: 42% | J30: 21 | K30: 22% | L30: 18% | M30: 13 | N30: 62% | O30: 62% | P30: 46 | Q30: 71% | R30: 41% | S30: 64 | T30: 78% | U30: 78% | V30: 139 | W30: 59% | X30: 59% | Y30: 45
A31: 262 | B31: MARNE ARDENNES | C31: 6 | D31: CHALONS EN CHAMPAGNE | E31: 551354 | F31: VERTUS | G31: 2.0 | H31: 52% | I31: 42% | J31: 22 | K31: 6% | L31: 3% | M31: 2 | N31: 73% | O31: 73% | P31: 108 | Q31: 63% | R31: 32% | S31: 26 | T31: 83% | U31: 83% | V31: 184 | W31: 67% | X31: 67% | Y31: 99
A32: 262 | B32: MARNE ARDENNES | C32: 11 | D32: REIMS | E32: 451336 | F32: TINQUEUX | G32: 5.1 | H32: 52% | I32: 42% | J32: 23 | K32: 60% | L32: 57% | M32: 144 | N32: 64% | O32: 64% | P32: 48 | Q32: 33% | R32: 2% | S32: 2 | T32: 75% | U32: 75% | V32: 108 | W32: 62% | X32: 62% | Y32: 61
A33: 262 | B33: VOSGES | C33: 57 | D33: EPINAL | E33: 588336 | F33: GOLBEY | G33: 2.8 | H33: 52% | I33: 42% | J33: 24 | K33: 31% | L33: 28% | M33: 34 | N33: 71% | O33: 71% | P33: 93 | Q33: 65% | R33: 35% | S33: 33 | T33: 63% | U33: 63% | V33: 29 | W33: 64% | X33: 64% | Y33: 71
A34: 262 | B34: MARNE ARDENNES | C34: 2 | D34: CHARLEVILLE MEZIERES | E34: 508839 | F34: GIVET | G34: 3.4 | H34: 53% | I34: 43% | J34: 25 | K34: 42% | L34: 38% | M34: 71 | N34: 65% | O34: 65% | P34: 56 | Q34: 78% | R34: 48% | S34: 118 | T34: 54% | U34: 54% | V34: 5 | W34: 58% | X34: 58% | Y34: 42
A35: 262 | B35: MOSELLE | C35: 42 | D35: MOSELLE EST | E35: 457308 | F35: FORBACH CENTRALE | G35: 10.0 | H35: 53% | I35: 43% | J35: 26 | K35: 50% | L35: 46% | M35: 109 | N35: 58% | O35: 58% | P35: 24 | Q35: 72% | R35: 41% | S35: 69 | T35: 62% | U35: 62% | V35: 27 | W35: 57% | X35: 57% | Y35: 33
A36: 262 | B36: AUBE HAUTE MARNE | C36: 21 | D36: CHAUMONT | E36: 510590 | F36: CHAUMONT REPUBLIQUE | G36: 2.9 | H36: 53% | I36: 43% | J36: 27 | K36: 37% | L36: 33% | M36: 50 | N36: 75% | O36: 75% | P36: 130 | Q36: 62% | R36: 32% | S36: 23 | T36: 62% | U36: 62% | V36: 22 | W36: 63% | X36: 63% | Y36: 69
A37: 262 | B37: MARNE ARDENNES | C37: 2 | D37: CHARLEVILLE MEZIERES | E37: 508833 | F37: VILLERS SEMEUSE CORA | G37: 3.0 | H37: 53% | I37: 43% | J37: 28 | K37: 68% | L37: 64% | M37: 181 | N37: 70% | O37: 70% | P37: 89 | Q37: 65% | R37: 34% | S37: 30 | T37: 54% | U37: 54% | V37: 6 | W37: 45% | X37: 45% | Y37: 12
A38: 262 | B38: MEURTHE ET MOSELLE MEUSE | C38: 26 | D38: NANCY | E38: 554601 | F38: SAINT MAX | G38: 3.5 | H38: 53% | I38: 44% | J38: 29 | K38: 31% | L38: 27% | M38: 29 | N38: 74% | O38: 74% | P38: 122 | Q38: 62% | R38: 32% | S38: 21 | T38: 67% | U38: 67% | V38: 47 | W38: 68% | X38: 68% | Y38: 105
A39: 262 | B39: MOSELLE | C39: 42 | D39: MOSELLE EST | E39: 557250 | F39: CREUTZWALD | G39: 2.5 | H39: 54% | I39: 44% | J39: 30 | K39: 23% | L39: 20% | M39: 14 | N39: 75% | O39: 75% | P39: 131 | Q39: 74% | R39: 44% | S39: 89 | T39: 64% | U39: 64% | V39: 34 | W39: 65% | X39: 65% | Y39: 81
A40: 262 | B40: MEURTHE ET MOSELLE MEUSE | C40: 31 | D40: VERDUN | E40: 555406 | F40: LIGNY EN BARROIS | G40: 2.5 | H40: 54% | I40: 44% | J40: 31 | K40: 28% | L40: 24% | M40: 22 | N40: 73% | O40: 73% | P40: 110 | Q40: 43% | R40: 12% | S40: 3 | T40: 87% | U40: 87% | V40: 213 | W40: 74% | X40: 74% | Y40: 169
A41: 262 | B41: MARNE ARDENNES | C41: 11 | D41: REIMS | E41: 451301 | F41: REIMS HOTEL DE VILLE | G41: 6.8 | H41: 54% | I41: 44% | J41: 32 | K41: 50% | L41: 47% | M41: 110 | N41: 64% | O41: 64% | P41: 50 | Q41: 76% | R41: 46% | S41: 104 | T41: 58% | U41: 58% | V41: 14 | W41: 56% | X41: 56% | Y41: 31
A42: 262 | B42: MOSELLE | C42: 45 | D42: METZ | E42: 557447 | F42: METZ SAINT MAXIMIN | G42: 2.4 | H42: 54% | I42: 44% | J42: 33 | K42: 57% | L42: 53% | M42: 132 | N42: 63% | O42: 63% | P42: 47 | Q42: 67% | R42: 36% | S42: 44 | T42: 48% | U42: 48% | V42: 3 | W42: 71% | X42: 71% | Y42: 134
A43: 262 | B43: MEURTHE ET MOSELLE MEUSE | C43: 26 | D43: NANCY | E43: 554356 | F43: JARVILLE LA MALGRANGE | G43: 4.1 | H43: 54% | I43: 45% | J43: 34 | K43: 26% | L43: 23% | M43: 20 | N43: 59% | O43: 59% | P43: 34 | Q43: 88% | R43: 57% | S43: 198 | T43: 71% | U43: 71% | V43: 76 | W43: 62% | X43: 62% | Y43: 62
A44: 262 | B44: MEURTHE ET MOSELLE MEUSE | C44: 27 | D44: PONT A MOUSSON | E44: 554686 | F44: VEZELISE | G44: 1.9 | H44: 55% | I44: 45% | J44: 35 | K44: 4% | L44: 0% | M44: 1 | N44: 75% | O44: 75% | P44: 128 | Q44: 67% | R44: 37% | S44: 47 | T44: 82% | U44: 82% | V44: 176 | W44: 80% | X44: 80% | Y44: 230
A45: 262 | B45: MARNE ARDENNES | C45: 11 | D45: REIMS | E45: 451361 | F45: PIERRY LECLERC | G45: 1.9 | H45: 55% | I45: 45% | J45: 36 | K45: 36% | L45: 32% | M45: 48 | N45: 68% | O45: 68% | P45: 77 | Q45: 61% | R45: 31% | S45: 16 | T45: 76% | U45: 76% | V45: 119 | W45: 67% | X45: 67% | Y45: 94
A46: 262 | B46: MARNE ARDENNES | C46: 2 | D46: CHARLEVILLE MEZIERES | E46: 408801 | F46: CHARLEVILLE JEAN JAURES | G46: 8.9 | H46: 55% | I46: 45% | J46: 37 | K46: 42% | L46: 39% | M46: 75 | N46: 68% | O46: 68% | P46: 75 | Q46: 72% | R46: 41% | S46: 68 | T46: 68% | U46: 68% | V46: 54 | W46: 59% | X46: 59% | Y46: 47
A47: 262 | B47: MARNE ARDENNES | C47: 11 | D47: REIMS | E47: 551367 | F47: AY CHAMPAGNE | G47: 2.6 | H47: 55% | I47: 45% | J47: 38 | K47: 33% | L47: 29% | M47: 38 | N47: 73% | O47: 73% | P47: 107 | Q47: 74% | R47: 43% | S47: 82 | T47: 72% | U47: 72% | V47: 81 | W47: 57% | X47: 57% | Y47: 36
A48: 262 | B48: MOSELLE | C48: 44 | D48: MOSELLE NORD | E48: 557352 | F48: HETTANGE GRANDE | G48: 3.2 | H48: 55% | I48: 45% | J48: 39 | K48: 58% | L48: 54% | M48: 139 | N48: 58% | O48: 58% | P48: 26 | Q48: 76% | R48: 45% | S48: 100 | T48: 66% | U48: 66% | V48: 43 | W48: 51% | X48: 51% | Y48: 19
A49: 262 | B49: MOSELLE | C49: 45 | D49: METZ | E49: 557439 | F49: METZ POMPIDOU | G49: 2.7 | H49: 55% | I49: 45% | J49: 40 | K49: 40% | L49: 36% | M49: 66 | N49: 67% | O49: 67% | P49: 63 | Q49: 60% | R49: 30% | S49: 14 | T49: 78% | U49: 78% | V49: 144 | W49: 65% | X49: 65% | Y49: 83
A50: 262 | B50: MEURTHE ET MOSELLE MEUSE | C50: 31 | D50: VERDUN | E50: 554413 | F50: LONGWY BAS | G50: 3.4 | H50: 55% | I50: 45% | J50: 41 | K50: 24% | L50: 20% | M50: 16 | N50: 69% | O50: 69% | P50: 85 | Q50: 76% | R50: 46% | S50: 106 | T50: 74% | U50: 74% | V50: 105 | W50: 67% | X50: 67% | Y50: 91
A51: 262 | B51: MARNE ARDENNES | C51: 6 | D51: CHALONS EN CHAMPAGNE | E51: 551103 | F51: FAGNIERES LECLERC | G51: 2.6 | H51: 55% | I51: 46% | J51: 42 | K51: 42% | L51: 39% | M51: 76 | N51: 69% | O51: 69% | P51: 86 | Q51: 81% | R51: 51% | S51: 141 | T51: 57% | U51: 57% | V51: 13 | W51: 61% | X51: 61% | Y51: 59
A52: 262 | B52: MOSELLE | C52: 45 | D52: METZ | E52: 557432 | F52: MAIZIERES LES METZ | G52: 2.8 | H52: 56% | I52: 46% | J52: 43 | K52: 69% | L52: 65% | M52: 191 | N52: 57% | O52: 57% | P52: 22 | Q52: 74% | R52: 43% | S52: 83 | T52: 64% | U52: 64% | V52: 36 | W52: 48% | X52: 48% | Y52: 15
A53: 262 | B53: BAS RHIN | C53: 5006 | D53: STRASBOURG | E53: 4038 | F53: OBERHAUSBERGEN | G53: 3.4 | H53: 56% | I53: 46% | J53: 44 | K53: 39% | L53: 36% | M53: 61 | N53: 66% | O53: 66% | P53: 58 | Q53: 60% | R53: 29% | S53: 13 | T53: 84% | U53: 84% | V53: 195 | W53: 64% | X53: 64% | Y53: 74
A54: 262 | B54: BAS RHIN | C54: 5006 | D54: STRASBOURG | E54: 4047 | F54: STRASBOURG CRONENBOURG | G54: 4.1 | H54: 56% | I54: 46% | J54: 45 | K54: 48% | L54: 44% | M54: 100 | N54: 57% | O54: 57% | P54: 23 | Q54: 67% | R54: 36% | S54: 41 | T54: 74% | U54: 74% | V54: 100 | W54: 68% | X54: 68% | Y54: 103
A55: 262 | B55: BAS RHIN | C55: 5101 | D55: SELESTAT | E55: 4113 | F55: BARR | G55: 2.9 | H55: 56% | I55: 46% | J55: 46 | K55: 25% | L55: 21% | M55: 18 | N55: 62% | O55: 62% | P55: 43 | Q55: 77% | R55: 46% | S55: 108 | T55: 77% | U55: 77% | V55: 136 | W55: 73% | X55: 73% | Y55: 158
A56: 262 | B56: MOSELLE | C56: 42 | D56: MOSELLE EST | E56: 457583 | F56: SAINT AVOLD | G56: 6.9 | H56: 56% | I56: 46% | J56: 47 | K56: 40% | L56: 36% | M56: 64 | N56: 61% | O56: 61% | P56: 37 | Q56: 77% | R56: 47% | S56: 109 | T56: 69% | U56: 69% | V56: 64 | W56: 67% | X56: 67% | Y56: 93
A57: 262 | B57: MARNE ARDENNES | C57: 2 | D57: CHARLEVILLE MEZIERES | E57: 508819 | F57: MOUZON | G57: 1.9 | H57: 56% | I57: 46% | J57: 48 | K57: 55% | L57: 52% | M57: 130 | N57: 73% | O57: 73% | P57: 117 | Q57: 61% | R57: 31% | S57: 18 | T57: 69% | U57: 69% | V57: 61 | W57: 57% | X57: 57% | Y57: 32
A58: 262 | B58: MEURTHE ET MOSELLE MEUSE | C58: 26 | D58: NANCY | E58: 554636 | F58: TOMBLAINE | G58: 2.5 | H58: 56% | I58: 46% | J58: 49 | K58: 23% | L58: 20% | M58: 15 | N58: 74% | O58: 74% | P58: 121 | Q58: 72% | R58: 42% | S58: 72 | T58: 76% | U58: 76% | V58: 117 | W58: 70% | X58: 70% | Y58: 128
A59: 262 | B59: MEURTHE ET MOSELLE MEUSE | C59: 27 | D59: PONT A MOUSSON | E59: 554516 | F59: PAGNY SUR MOSELLE | G59: 2.7 | H59: 56% | I59: 46% | J59: 50 | K59: 50% | L59: 47% | M59: 111 | N59: 65% | O59: 65% | P59: 54 | Q59: 74% | R59: 44% | S59: 92 | T59: 65% | U59: 65% | V59: 40 | W59: 60% | X59: 60% | Y59: 54
A60: 262 | B60: MOSELLE | C60: 42 | D60: MOSELLE EST | E60: 557305 | F60: FAULQUEMONT | G60: 3.7 | H60: 56% | I60: 47% | J60: 51 | K60: 79% | L60: 76% | M60: 233 | N60: 53% | O60: 53% | P60: 17 | Q60: 81% | R60: 51% | S60: 142 | T60: 64% | U60: 64% | V60: 33 | W60: 39% | X60: 39% | Y60: 7
A61: 262 | B61: AUBE HAUTE MARNE | C61: 21 | D61: CHAUMONT | E61: 410541 | F61: LANGRES | G61: 8.0 | H61: 57% | I61: 47% | J61: 52 | K61: 37% | L61: 33% | M61: 51 | N61: 70% | O61: 70% | P61: 90 | Q61: 75% | R61: 45% | S61: 97 | T61: 66% | U61: 66% | V61: 46 | W61: 69% | X61: 69% | Y61: 114
A62: 262 | B62: MARNE ARDENNES | C62: 11 | D62: REIMS | E62: 551310 | F62: REIMS CHATILLONS | G62: 4.0 | H62: 57% | I62: 47% | J62: 53 | K62: 57% | L62: 54% | M62: 136 | N62: 58% | O62: 58% | P62: 27 | Q62: 76% | R62: 46% | S62: 101 | T62: 69% | U62: 69% | V62: 65 | W62: 57% | X62: 57% | Y62: 34
A63: 262 | B63: MEURTHE ET MOSELLE MEUSE | C63: 31 | D63: VERDUN | E63: 455678 | F63: VERDUN CENTRALE | G63: 10.5 | H63: 57% | I63: 47% | J63: 54 | K63: 29% | L63: 26% | M63: 27 | N63: 68% | O63: 68% | P63: 71 | Q63: 83% | R63: 52% | S63: 156 | T63: 80% | U63: 80% | V63: 155 | W63: 57% | X63: 57% | Y63: 35
A64: 262 | B64: MARNE ARDENNES | C64: 6 | D64: CHALONS EN CHAMPAGNE | E64: 551110 | F64: CHALONS ROOSEVELT | G64: 4.4 | H64: 57% | I64: 47% | J64: 55 | K64: 38% | L64: 35% | M64: 58 | N64: 74% | O64: 74% | P64: 126 | Q64: 74% | R64: 44% | S64: 91 | T64: 62% | U64: 62% | V64: 24 | W64: 69% | X64: 69% | Y64: 120
A65: 262 | B65: MARNE ARDENNES | C65: 6 | D65: CHALONS EN CHAMPAGNE | E65: 451381 | F65: SEZANNE | G65: 4.7 | H65: 57% | I65: 47% | J65: 56 | K65: 43% | L65: 39% | M65: 79 | N65: 67% | O65: 67% | P65: 65 | Q65: 65% | R65: 35% | S65: 32 | T65: 81% | U65: 81% | V65: 163 | W65: 63% | X65: 63% | Y65: 67
A66: 262 | B66: BAS RHIN | C66: 5006 | D66: STRASBOURG | E66: 4054 | F66: STRASBOURG MONTAGNE VERTE | G66: 2.7 | H66: 57% | I66: 47% | J66: 57 | K66: 41% | L66: 37% | M66: 68 | N66: 68% | O66: 68% | P66: 79 | Q66: 68% | R66: 38% | S66: 49 | T66: 63% | U66: 63% | V66: 31 | W66: 78% | X66: 78% | Y66: 217
A67: 262 | B67: MOSELLE | C67: 44 | D67: MOSELLE NORD | E67: 557303 | F67: FAMECK | G67: 2.8 | H67: 57% | I67: 47% | J67: 58 | K67: 35% | L67: 31% | M67: 43 | N67: 71% | O67: 71% | P67: 94 | Q67: 66% | R67: 36% | S67: 39 | T67: 89% | U67: 89% | V67: 219 | W67: 58% | X67: 58% | Y67: 41
A68: 262 | B68: BAS RHIN | C68: 5006 | D68: STRASBOURG | E68: 4010 | F68: STRASBOURG MEINAU | G68: 3.0 | H68: 57% | I68: 47% | J68: 59 | K68: 45% | L68: 41% | M68: 88 | N68: 60% | O68: 60% | P68: 36 | Q68: 77% | R68: 46% | S68: 107 | T68: 66% | U68: 66% | V68: 44 | W68: 72% | X68: 72% | Y68: 139
A69: 262 | B69: MARNE ARDENNES | C69: 6 | D69: CHALONS EN CHAMPAGNE | E69: 451101 | F69: CHALONS VIVIERS | G69: 9.2 | H69: 57% | I69: 47% | J69: 60 | K69: 29% | L69: 25% | M69: 26 | N69: 74% | O69: 74% | P69: 123 | Q69: 78% | R69: 47% | S69: 112 | T69: 72% | U69: 72% | V69: 78 | W69: 66% | X69: 66% | Y69: 88
A70: 262 | B70: MEURTHE ET MOSELLE MEUSE | C70: 31 | D70: VERDUN | E70: 555679 | F70: VERDUN MAZEL | G70: 3.7 | H70: 57% | I70: 47% | J70: 61 | K70: 26% | L70: 22% | M70: 19 | N70: 73% | O70: 73% | P70: 106 | Q70: 73% | R70: 43% | S70: 77 | T70: 75% | U70: 75% | V70: 113 | W70: 73% | X70: 73% | Y70: 151
A71: 262 | B71: MEURTHE ET MOSELLE MEUSE | C71: 27 | D71: PONT A MOUSSON | E71: 554531 | F71: POMPEY | G71: 3.2 | H71: 57% | I71: 47% | J71: 62 | K71: 72% | L71: 69% | M71: 209 | N71: 59% | O71: 59% | P71: 33 | Q71: 68% | R71: 38% | S71: 50 | T71: 71% | U71: 71% | V71: 75 | W71: 49% | X71: 49% | Y71: 16
A72: 262 | B72: MOSELLE | C72: 44 | D72: MOSELLE NORD | E72: 457348 | F72: HAGONDANGE | G72: 8.1 | H72: 57% | I72: 47% | J72: 63 | K72: 54% | L72: 51% | M72: 125 | N72: 61% | O72: 61% | P72: 38 | Q72: 80% | R72: 50% | S72: 136 | T72: 65% | U72: 65% | V72: 38 | W72: 60% | X72: 60% | Y72: 55
A73: 262 | B73: MOSELLE | C73: 44 | D73: MOSELLE NORD | E73: 457632 | F73: THIONVILLE CENTRALE | G73: 10.0 | H73: 57% | I73: 48% | J73: 64 | K73: 53% | L73: 50% | M73: 121 | N73: 59% | O73: 59% | P73: 31 | Q73: 87% | R73: 57% | S73: 194 | T73: 62% | U73: 62% | V73: 26 | W73: 60% | X73: 60% | Y73: 49
A74: 264 | B74: MOSELLE | C74: 42 | D74: MOSELLE EST | E74: 557523 | F74: PHALSBOURG | G74: 2.5 | H74: 57% | I74: 48% | J74: 65 | K74: 44% | L74: 40% | M74: 84 | N74: 77% | O74: 77% | P74: 144 | Q74: 66% | R74: 35% | S74: 35 | T74: 68% | U74: 68% | V74: 56 | W74: 67% | X74: 67% | Y74: 97
A75: 264 | B75: VOSGES | C75: 57 | D75: EPINAL | E75: 488561 | F75: REMIREMONT | G75: 7.2 | H75: 58% | I75: 48% | J75: 66 | K75: 17% | L75: 13% | M75: 8 | N75: 73% | O75: 73% | P75: 115 | Q75: 79% | R75: 49% | S75: 125 | T75: 78% | U75: 78% | V75: 142 | W75: 75% | X75: 75% | Y75: 189
A76: 264 | B76: MARNE ARDENNES | C76: 11 | D76: REIMS | E76: 451370 | F76: EPERNAY | G76: 9.1 | H76: 58% | I76: 48% | J76: 67 | K76: 40% | L76: 36% | M76: 63 | N76: 62% | O76: 62% | P76: 41 | Q76: 82% | R76: 52% | S76: 152 | T76: 75% | U76: 75% | V76: 107 | W76: 64% | X76: 64% | Y76: 73
A77: 264 | B77: VOSGES | C77: 55 | D77: SAINT DIE | E77: 488326 | F77: GERARDMER | G77: 3.9 | H77: 58% | I77: 48% | J77: 68 | K77: 42% | L77: 39% | M77: 74 | N77: 74% | O77: 74% | P77: 120 | Q77: 71% | R77: 41% | S77: 65 | T77: 74% | U77: 74% | V77: 103 | W77: 62% | X77: 62% | Y77: 63
A78: 264 | B78: MOSELLE | C78: 44 | D78: MOSELLE NORD | E78: 457350 | F78: HAYANGE | G78: 6.3 | H78: 58% | I78: 48% | J78: 69 | K78: 57% | L78: 53% | M78: 135 | N78: 64% | O78: 64% | P78: 49 | Q78: 79% | R78: 49% | S78: 130 | T78: 62% | U78: 62% | V78: 25 | W78: 61% | X78: 61% | Y78: 60
A79: 264 | B79: MEURTHE ET MOSELLE MEUSE | C79: 31 | D79: VERDUN | E79: 454414 | F79: LONGWY HAUT | G79: 3.4 | H79: 58% | I79: 48% | J79: 70 | K79: 43% | L79: 39% | M79: 80 | N79: 68% | O79: 68% | P79: 78 | Q79: 79% | R79: 48% | S79: 124 | T79: 67% | U79: 67% | V79: 50 | W79: 67% | X79: 67% | Y79: 98
A80: 264 | B80: MEURTHE ET MOSELLE MEUSE | C80: 26 | D80: NANCY | E80: 554116 | F80: BACCARAT | G80: 2.8 | H80: 58% | I80: 48% | J80: 71 | K80: 18% | L80: 15% | M80: 10 | N80: 76% | O80: 76% | P80: 137 | Q80: 76% | R80: 46% | S80: 105 | T80: 79% | U80: 79% | V80: 146 | W80: 75% | X80: 75% | Y80: 195
A81: 264 | B81: MEURTHE ET MOSELLE MEUSE | C81: 27 | D81: PONT A MOUSSON | E81: 554506 | F81: CHALIGNY NEUVES MAISONS | G81: 3.6 | H81: 58% | I81: 48% | J81: 72 | K81: 66% | L81: 62% | M81: 167 | N81: 58% | O81: 58% | P81: 28 | Q81: 87% | R81: 57% | S81: 193 | T81: 60% | U81: 60% | V81: 19 | W81: 53% | X81: 53% | Y81: 20
A82: 264 | B82: AUBE HAUTE MARNE | C82: 21 | D82: CHAUMONT | E82: 451154 | F82: JOINVILLE | G82: 1.8 | H82: 58% | I82: 48% | J82: 73 | K82: 34% | L82: 30% | M82: 40 | N82: 67% | O82: 67% | P82: 61 | Q82: 95% | R82: 65% | S82: 223 | T82: 62% | U82: 62% | V82: 23 | W82: 68% | X82: 68% | Y82: 100
A83: 264 | B83: VOSGES | C83: 57 | D83: EPINAL | E83: 588396 | F83: LE VAL D AJOL | G83: 2.5 | H83: 58% | I83: 48% | J83: 74 | K83: 11% | L83: 8% | M83: 3 | N83: 79% | O83: 79% | P83: 167 | Q83: 74% | R83: 44% | S83: 85 | T83: 82% | U83: 82% | V83: 172 | W83: 79% | X83: 79% | Y83: 220
A84: 264 | B84: VOSGES | C84: 55 | D84: SAINT DIE | E84: 488246 | F84: CORNIMONT LA BRESSE | G84: 2.7 | H84: 58% | I84: 48% | J84: 75 | K84: 21% | L84: 17% | M84: 12 | N84: 73% | O84: 73% | P84: 112 | Q84: 84% | R84: 54% | S84: 171 | T84: 74% | U84: 74% | V84: 101 | W84: 73% | X84: 73% | Y84: 159
A85: 264 | B85: MOSELLE | C85: 45 | D85: METZ | E85: 457574 | F85: ROMBAS | G85: 2.6 | H85: 58% | I85: 48% | J85: 76 | K85: 41% | L85: 37% | M85: 69 | N85: 73% | O85: 73% | P85: 113 | Q85: 79% | R85: 49% | S85: 126 | T85: 63% | U85: 63% | V85: 30 | W85: 69% | X85: 69% | Y85: 117
A86: 264 | B86: MARNE ARDENNES | C86: 11 | D86: REIMS | E86: 551314 | F86: FISMES | G86: 2.6 | H86: 58% | I86: 48% | J86: 77 | K86: 31% | L86: 28% | M86: 33 | N86: 62% | O86: 62% | P86: 40 | Q86: 95% | R86: 65% | S86: 225 | T86: 77% | U86: 77% | V86: 131 | W86: 60% | X86: 60% | Y86: 50
A87: 264 | B87: MOSELLE | C87: 44 | D87: MOSELLE NORD | E87: 457158 | F87: YUTZ | G87: 4.7 | H87: 58% | I87: 48% | J87: 78 | K87: 62% | L87: 58% | M87: 150 | N87: 65% | O87: 65% | P87: 55 | Q87: 74% | R87: 44% | S87: 88 | T87: 65% | U87: 65% | V87: 41 | W87: 59% | X87: 59% | Y87: 48
A88: 264 | B88: MARNE ARDENNES | C88: 6 | D88: CHALONS EN CHAMPAGNE | E88: 551128 | F88: SAINTE MENEHOULD | G88: 2.9 | H88: 58% | I88: 48% | J88: 79 | K88: 34% | L88: 31% | M88: 41 | N88: 69% | O88: 69% | P88: 83 | Q88: 81% | R88: 51% | S88: 143 | T88: 68% | U88: 68% | V88: 58 | W88: 74% | X88: 74% | Y88: 178
A89: 264 | B89: MEURTHE ET MOSELLE MEUSE | C89: 26 | D89: NANCY | E89: 454481 | F89: NANCY PLACE DOMBASLE | G89: 7.8 | H89: 58% | I89: 48% | J89: 80 | K89: 65% | L89: 61% | M89: 163 | N89: 69% | O89: 69% | P89: 82 | Q89: 73% | R89: 43% | S89: 80 | T89: 71% | U89: 71% | V89: 77 | W89: 48% | X89: 48% | Y89: 14
A90: 264 | B90: MEURTHE ET MOSELLE MEUSE | C90: 31 | D90: VERDUN | E90: 554700 | F90: VILLERUPT | G90: 2.7 | H90: 58% | I90: 48% | J90: 81 | K90: 35% | L90: 31% | M90: 42 | N90: 68% | O90: 68% | P90: 76 | Q90: 74% | R90: 44% | S90: 86 | T90: 75% | U90: 75% | V90: 109 | W90: 74% | X90: 74% | Y90: 176
A91: 264 | B91: MOSELLE | C91: 44 | D91: MOSELLE NORD | E91: 557347 | F91: GUENANGE | G91: 4.7 | H91: 58% | I91: 48% | J91: 82 | K91: 67% | L91: 63% | M91: 173 | N91: 59% | O91: 59% | P91: 29 | Q91: 78% | R91: 48% | S91: 120 | T91: 66% | U91: 66% | V91: 45 | W91: 56% | X91: 56% | Y91: 30
A92: 264 | B92: MOSELLE | C92: 45 | D92: METZ | E92: 557434 | F92: MARLY | G92: 3.1 | H92: 59% | I92: 49% | J92: 83 | K92: 32% | L92: 28% | M92: 35 | N92: 76% | O92: 76% | P92: 135 | Q92: 67% | R92: 37% | S92: 45 | T92: 84% | U92: 84% | V92: 193 | W92: 68% | X92: 68% | Y92: 112
A93: 264 | B93: MOSELLE | C93: 42 | D93: MOSELLE EST | E93: 457617 | F93: SARREGUEMINES | G93: 6.5 | H93: 59% | I93: 49% | J93: 84 | K93: 61% | L93: 57% | M93: 145 | N93: 65% | O93: 65% | P93: 52 | Q93: 73% | R93: 43% | S93: 76 | T93: 71% | U93: 71% | V93: 73 | W93: 58% | X93: 58% | Y93: 43
A94: 264 | B94: MOSELLE | C94: 45 | D94: METZ | E94: 557444 | F94: SAINT JULIEN LES METZ | G94: 3.6 | H94: 59% | I94: 49% | J94: 85 | K94: 78% | L94: 75% | M94: 231 | N94: 67% | O94: 67% | P94: 66 | Q94: 53% | R94: 23% | S94: 8 | T94: 69% | U94: 69% | V94: 62 | W94: 60% | X94: 60% | Y94: 53
A95: 264 | B95: MOSELLE | C95: 42 | D95: MOSELLE EST | E95: 457543 | F95: PUTTELANGE AUX LACS | G95: 2.3 | H95: 59% | I95: 49% | J95: 86 | K95: 60% | L95: 56% | M95: 143 | N95: 67% | O95: 67% | P95: 62 | Q95: 74% | R95: 44% | S95: 87 | T95: 61% | U95: 61% | V95: 20 | W95: 67% | X95: 67% | Y95: 92
A96: 30 | B96: VOSGES | C96: 55 | D96: SAINT DIE | E96: 588551 | F96: RAMBERVILLERS | G96: 2.6 | H96: 59% | I96: 49% | J96: 87 | K96: 29% | L96: 25% | M96: 25 | N96: 77% | O96: 77% | P96: 150 | Q96: 70% | R96: 40% | S96: 61 | T96: 91% | U96: 91% | V96: 227 | W96: 61% | X96: 61% | Y96: 57
A97: 30 | B97: MARNE ARDENNES | C97: 11 | D97: REIMS | E97: 551306 | F97: REIMS SAINT MARCEAUX | G97: 3.1 | H97: 59% | I97: 49% | J97: 88 | K97: 50% | L97: 46% | M97: 107 | N97: 51% | O97: 51% | P97: 11 | Q97: 99% | R97: 69% | S97: 233 | T97: 70% | U97: 70% | V97: 68 | W97: 59% | X97: 59% | Y97: 46
A98: 30 | B98: MARNE ARDENNES | C98: 2 | D98: CHARLEVILLE MEZIERES | E98: 408822 | F98: CHARLEVILLE MEZIERES | G98: 5.2 | H98: 59% | I98: 49% | J98: 89 | K98: 69% | L98: 65% | M98: 190 | N98: 73% | O98: 73% | P98: 109 | Q98: 62% | R98: 32% | S98: 20 | T98: 68% | U98: 68% | V98: 55 | W98: 58% | X98: 58% | Y98: 39
A99: 30 | B99: MARNE ARDENNES | C99: 11 | D99: REIMS | E99: 551369 | F99: DAMERY | G99: 1.6 | H99: 59% | I99: 49% | J99: 90 | K99: 45% | L99: 42% | M99: 93 | N99: 56% | O99: 56% | P99: 20 | Q99: 108% | R99: 77% | S99: 238 | T99: 67% | U99: 67% | V99: 51 | W99: 54% | X99: 54% | Y99: 24
A100: 30 | B100: MOSELLE | C100: 44 | D100: MOSELLE NORD | E100: 457306 | F100: FLORANGE | G100: 4.6 | H100: 59% | I100: 49% | J100: 91 | K100: 77% | L100: 74% | M100: 227 | N100: 59% | O100: 59% | P100: 32 | Q100: 76% | R100: 46% | S100: 103 | T100: 73% | U100: 73% | V100: 92 | W100: 44% | X100: 44% | Y100: 10
A101: 30 | B101: VOSGES | C101: 57 | D101: EPINAL | E101: 588716 | F101: XERTIGNY | G101: 2.8 | H101: 59% | I101: 49% | J101: 92 | K101: 40% | L101: 36% | M101: 62 | N101: 74% | O101: 74% | P101: 125 | Q101: 67% | R101: 36% | S101: 43 | T101: 77% | U101: 77% | V101: 132 | W101: 73% | X101: 73% | Y101: 152
A102: 30 | B102: MOSELLE | C102: 42 | D102: MOSELLE EST | E102: 557668 | F102: VALMONT | G102: 2.9 | H102: 59% | I102: 49% | J102: 93 | K102: 37% | L102: 34% | M102: 54 | N102: 84% | O102: 84% | P102: 196 | Q102: 65% | R102: 34% | S102: 31 | T102: 71% | U102: 71% | V102: 71 | W102: 74% | X102: 74% | Y102: 166
A103: 30 | B103: BAS RHIN | C103: 5006 | D103: STRASBOURG | E103: 4043 | F103: STRASBOURG HALLES | G103: 7.6 | H103: 59% | I103: 49% | J103: 94 | K103: 61% | L103: 57% | M103: 146 | N103: 62% | O103: 62% | P103: 45 | Q103: 85% | R103: 54% | S103: 175 | T103: 53% | U103: 53% | V103: 4 | W103: 69% | X103: 69% | Y103: 124
A104: 30 | B104: HAUT RHIN | C104: 5130 | D104: COLMAR | E104: 4143 | F104: MUNSTER | G104: 4.2 | H104: 60% | I104: 50% | J104: 95 | K104: 51% | L104: 47% | M104: 114 | N104: 66% | O104: 66% | P104: 59 | Q104: 71% | R104: 40% | S104: 62 | T104: 74% | U104: 74% | V104: 97 | W104: 72% | X104: 72% | Y104: 141
A105: 30 | B105: BAS RHIN | C105: 5006 | D105: STRASBOURG | E105: 4024 | F105: STRASBOURG AUSTERLITZ | G105: 1.5 | H105: 60% | I105: 50% | J105: 96 | K105: 81% | L105: 77% | M105: 235 | N105: 62% | O105: 62% | P105: 44 | Q105: 59% | R105: 29% | S105: 12 | T105: 68% | U105: 68% | V105: 53 | W105: 64% | X105: 64% | Y105: 72
A106: 30 | B106: BAS RHIN | C106: 5060 | D106: HAGUENAU | E106: 4071 | F106: WISSEMBOURG | G106: 8.2 | H106: 60% | I106: 50% | J106: 97 | K106: 31% | L106: 27% | M106: 30 | N106: 71% | O106: 71% | P106: 97 | Q106: 78% | R106: 47% | S106: 111 | T106: 77% | U106: 77% | V106: 126 | W106: 77% | X106: 77% | Y106: 209
A107: 30 | B107: MARNE ARDENNES | C107: 2 | D107: CHARLEVILLE MEZIERES | E107: 408862 | F107: REVIN | G107: 3.9 | H107: 60% | I107: 50% | J107: 98 | K107: 38% | L107: 34% | M107: 56 | N107: 76% | O107: 76% | P107: 136 | Q107: 85% | R107: 55% | S107: 180 | T107: 70% | U107: 70% | V107: 67 | W107: 67% | X107: 67% | Y107: 90
A108: 30 | B108: MARNE ARDENNES | C108: 2 | D108: CHARLEVILLE MEZIERES | E108: 408840 | F108: RETHEL | G108: 4.2 | H108: 60% | I108: 50% | J108: 99 | K108: 57% | L108: 53% | M108: 134 | N108: 67% | O108: 67% | P108: 64 | Q108: 74% | R108: 44% | S108: 90 | T108: 72% | U108: 72% | V108: 82 | W108: 65% | X108: 65% | Y108: 78
A109: 30 | B109: MEURTHE ET MOSELLE MEUSE | C109: 27 | D109: PONT A MOUSSON | E109: 554357 | F109: JOEUF | G109: 3.1 | H109: 60% | I109: 50% | J109: 100 | K109: 39% | L109: 35% | M109: 59 | N109: 75% | O109: 75% | P109: 133 | Q109: 79% | R109: 48% | S109: 123 | T109: 80% | U109: 80% | V109: 158 | W109: 62% | X109: 62% | Y109: 65
A110: 30 | B110: VOSGES | C110: 55 | D110: SAINT DIE | E110: 588386 | F110: LE THILLOT | G110: 2.6 | H110: 60% | I110: 50% | J110: 101 | K110: 14% | L110: 10% | M110: 5 | N110: 79% | O110: 79% | P110: 169 | Q110: 83% | R110: 53% | S110: 158 | T110: 84% | U110: 84% | V110: 191 | W110: 76% | X110: 76% | Y110: 200
A111: 30 | B111: MEURTHE ET MOSELLE MEUSE | C111: 31 | D111: VERDUN | E111: 554412 | F111: LONGUYON | G111: 2.8 | H111: 61% | I111: 51% | J111: 102 | K111: 42% | L111: 38% | M111: 73 | N111: 69% | O111: 69% | P111: 81 | Q111: 80% | R111: 50% | S111: 135 | T111: 75% | U111: 75% | V111: 112 | W111: 72% | X111: 72% | Y111: 143
A112: 30 | B112: BAS RHIN | C112: 5006 | D112: STRASBOURG | E112: 4019 | F112: STRASBOURG ANVERS | G112: 4.4 | H112: 61% | I112: 51% | J112: 103 | K112: 67% | L112: 63% | M112: 176 | N112: 65% | O112: 65% | P112: 57 | Q112: 66% | R112: 36% | S112: 37 | T112: 70% | U112: 70% | V112: 69 | W112: 69% | X112: 69% | Y112: 122
A113: 30 | B113: BAS RHIN | C113: 5060 | D113: HAGUENAU | E113: 4092 | F113: HOCHFELDEN | G113: 2.1 | H113: 61% | I113: 51% | J113: 104 | K113: 45% | L113: 41% | M113: 89 | N113: 80% | O113: 80% | P113: 176 | Q113: 70% | R113: 39% | S113: 55 | T113: 73% | U113: 73% | V113: 89 | W113: 71% | X113: 71% | Y113: 136
A114: 30 | B114: MOSELLE | C114: 45 | D114: METZ | E114: 557105 | F114: ARS SUR MOSELLE | G114: 2.8 | H114: 61% | I114: 51% | J114: 105 | K114: 52% | L114: 49% | M114: 119 | N114: 73% | O114: 73% | P114: 114 | Q114: 86% | R114: 56% | S114: 189 | T114: 73% | U114: 73% | V114: 91 | W114: 54% | X114: 54% | Y114: 25
A115: 30 | B115: MEURTHE ET MOSELLE MEUSE | C115: 27 | D115: PONT A MOUSSON | E115: 554416 | F115: LUDRES | G115: 3.7 | H115: 61% | I115: 51% | J115: 106 | K115: 41% | L115: 37% | M115: 70 | N115: 77% | O115: 77% | P115: 154 | Q115: 69% | R115: 38% | S115: 51 | T115: 78% | U115: 78% | V115: 143 | W115: 74% | X115: 74% | Y115: 175
A116: 30 | B116: MEURTHE ET MOSELLE MEUSE | C116: 31 | D116: VERDUN | E116: 455151 | F116: BAR LE DUC | G116: 9.8 | H116: 61% | I116: 51% | J116: 107 | K116: 37% | L116: 33% | M116: 49 | N116: 74% | O116: 74% | P116: 127 | Q116: 83% | R116: 52% | S116: 155 | T116: 74% | U116: 74% | V116: 95 | W116: 72% | X116: 72% | Y116: 138
A117: 30 | B117: BAS RHIN | C117: 5101 | D117: SELESTAT | E117: 4104 | F117: ERSTEIN | G117: 3.9 | H117: 61% | I117: 51% | J117: 108 | K117: 71% | L117: 67% | M117: 202 | N117: 58% | O117: 58% | P117: 25 | Q117: 74% | R117: 43% | S117: 81 | T117: 73% | U117: 73% | V117: 88 | W117: 65% | X117: 65% | Y117: 76
A118: 30 | B118: VOSGES | C118: 55 | D118: SAINT DIE | E118: 588316 | F118: FRAIZE | G118: 3.6 | H118: 61% | I118: 51% | J118: 109 | K118: 42% | L118: 39% | M118: 77 | N118: 77% | O118: 77% | P118: 148 | Q118: 80% | R118: 50% | S118: 134 | T118: 71% | U118: 71% | V118: 74 | W118: 70% | X118: 70% | Y118: 127
A119: 30 | B119: VOSGES | C119: 57 | D119: EPINAL | E119: 488281 | F119: ELOYES | G119: 3.4 | H119: 61% | I119: 51% | J119: 110 | K119: 36% | L119: 32% | M119: 47 | N119: 81% | O119: 81% | P119: 179 | Q119: 70% | R119: 40% | S119: 60 | T119: 86% | U119: 86% | V119: 202 | W119: 68% | X119: 68% | Y119: 107
A120: 30 | B120: VOSGES | C120: 55 | D120: SAINT DIE | E120: 588666 | F120: VAGNEY | G120: 3.5 | H120: 61% | I120: 51% | J120: 111 | K120: 29% | L120: 25% | M120: 23 | N120: 82% | O120: 82% | P120: 181 | Q120: 70% | R120: 39% | S120: 57 | T120: 86% | U120: 86% | V120: 204 | W120: 75% | X120: 75% | Y120: 183
A121: 30 | B121: BAS RHIN | C121: 5006 | D121: STRASBOURG | E121: 4006 | F121: STRASBOURG NEUDORF | G121: 7.9 | H121: 61% | I121: 51% | J121: 112 | K121: 29% | L121: 25% | M121: 24 | N121: 82% | O121: 82% | P121: 185 | Q121: 78% | R121: 48% | S121: 115 | T121: 74% | U121: 74% | V121: 94 | W121: 78% | X121: 78% | Y121: 214
A122: 30 | B122: BAS RHIN | C122: 5060 | D122: HAGUENAU | E122: 4057 | F122: BISCHWILLER | G122: 6.7 | H122: 61% | I122: 51% | J122: 113 | K122: 38% | L122: 35% | M122: 57 | N122: 67% | O122: 67% | P122: 67 | Q122: 86% | R122: 56% | S122: 186 | T122: 75% | U122: 75% | V122: 111 | W122: 74% | X122: 74% | Y122: 172
A123: 30 | B123: VOSGES | C123: 57 | D123: EPINAL | E123: 488286 | F123: EPINAL ARISTIDE BRIAND | G123: 8.1 | H123: 61% | I123: 51% | J123: 114 | K123: 66% | L123: 62% | M123: 170 | N123: 60% | O123: 60% | P123: 35 | Q123: 72% | R123: 42% | S123: 73 | T123: 74% | U123: 74% | V123: 98 | W123: 69% | X123: 69% | Y123: 116
A124: 30 | B124: VOSGES | C124: 57 | D124: EPINAL | E124: 588631 | F124: THAON LES VOSGES | G124: 4.7 | H124: 61% | I124: 52% | J124: 115 | K124: 46% | L124: 43% | M124: 95 | N124: 73% | O124: 73% | P124: 111 | Q124: 79% | R124: 49% | S124: 128 | T124: 77% | U124: 77% | V124: 130 | W124: 66% | X124: 66% | Y124: 87
A125: 30 | B125: BAS RHIN | C125: 5006 | D125: STRASBOURG | E125: 4027 | F125: SCHILTIGHEIM CENTRE | G125: 3.9 | H125: 62% | I125: 52% | J125: 116 | K125: 72% | L125: 68% | M125: 207 | N125: 62% | O125: 62% | P125: 39 | Q125: 70% | R125: 39% | S125: 58 | T125: 74% | U125: 74% | V125: 96 | W125: 65% | X125: 65% | Y125: 79
A126: 30 | B126: VOSGES | C126: 55 | D126: SAINT DIE | E126: 588186 | F126: BRUYERES | G126: 3.5 | H126: 62% | I126: 52% | J126: 117 | K126: 30% | L126: 26% | M126: 28 | N126: 76% | O126: 76% | P126: 138 | Q126: 94% | R126: 64% | S126: 221 | T126: 77% | U126: 77% | V126: 135 | W126: 67% | X126: 67% | Y126: 89
A127: 30 | B127: MOSELLE | C127: 44 | D127: MOSELLE NORD | E127: 457192 | F127: CATTENOM | G127: 1.5 | H127: 62% | I127: 52% | J127: 118 | K127: 59% | L127: 55% | M127: 141 | N127: 68% | O127: 68% | P127: 69 | Q127: 78% | R127: 48% | S127: 122 | T127: 77% | U127: 77% | V127: 129 | W127: 62% | X127: 62% | Y127: 66
A128: 30 | B128: BAS RHIN | C128: 5101 | D128: SELESTAT | E128: 4121 | F128: SCHIRMECK | G128: 2.8 | H128: 62% | I128: 52% | J128: 119 | K128: 38% | L128: 34% | M128: 55 | N128: 69% | O128: 69% | P128: 87 | Q128: 85% | R128: 54% | S128: 177 | T128: 83% | U128: 83% | V128: 185 | W128: 69% | X128: 69% | Y128: 115
A129: 30 | B129: MARNE ARDENNES | C129: 11 | D129: REIMS | E129: 551341 | F129: REIMS JEAN JAURES | G129: 4.3 | H129: 62% | I129: 52% | J129: 120 | K129: 70% | L129: 66% | M129: 197 | N129: 65% | O129: 65% | P129: 53 | Q129: 81% | R129: 51% | S129: 146 | T129: 73% | U129: 73% | V129: 86 | W129: 56% | X129: 56% | Y129: 29
A130: 30 | B130: MEURTHE ET MOSELLE MEUSE | C130: 31 | D130: VERDUN | E130: 455566 | F130: REVIGNY SUR ORNAIN | G130: 2.7 | H130: 62% | I130: 52% | J130: 121 | K130: 45% | L130: 41% | M130: 90 | N130: 77% | O130: 77% | P130: 143 | Q130: 74% | R130: 44% | S130: 93 | T130: 76% | U130: 76% | V130: 116 | W130: 72% | X130: 72% | Y130: 148
A131: 30 | B131: MARNE ARDENNES | C131: 2 | D131: CHARLEVILLE MEZIERES | E131: 508815 | F131: CARIGNAN | G131: 2.6 | H131: 62% | I131: 52% | J131: 122 | K131: 44% | L131: 41% | M131: 86 | N131: 71% | O131: 71% | P131: 98 | Q131: 84% | R131: 54% | S131: 172 | T131: 77% | U131: 77% | V131: 124 | W131: 68% | X131: 68% | Y131: 109
A132: 30 | B132: MOSELLE | C132: 44 | D132: MOSELLE NORD | E132: 557307 | F132: FONTOY | G132: 1.9 | H132: 62% | I132: 52% | J132: 123 | K132: 42% | L132: 38% | M132: 72 | N132: 80% | O132: 80% | P132: 175 | Q132: 78% | R132: 48% | S132: 114 | T132: 83% | U132: 83% | V132: 180 | W132: 62% | X132: 62% | Y132: 64
A133: 30 | B133: VOSGES | C133: 55 | D133: SAINT DIE | E133: 588461 | F133: MOYENMOUTIER | G133: 4.3 | H133: 63% | I133: 53% | J133: 124 | K133: 41% | L133: 37% | M133: 67 | N133: 71% | O133: 71% | P133: 96 | Q133: 80% | R133: 49% | S133: 131 | T133: 77% | U133: 77% | V133: 134 | W133: 78% | X133: 78% | Y133: 212
A134: 30 | B134: MARNE ARDENNES | C134: 2 | D134: CHARLEVILLE MEZIERES | E134: 508802 | F134: CHARLEVILLE NEVERS | G134: 2.8 | H134: 63% | I134: 53% | J134: 125 | K134: 31% | L134: 27% | M134: 32 | N134: 86% | O134: 86% | P134: 204 | Q134: 91% | R134: 60% | S134: 211 | T134: 71% | U134: 71% | V134: 70 | W134: 69% | X134: 69% | Y134: 125
A135: 110 | B135: BAS RHIN | C135: 5060 | D135: HAGUENAU | E135: 4041 | F135: HOERDT | G135: 1.7 | H135: 63% | I135: 53% | J135: 126 | K135: 44% | L135: 40% | M135: 83 | N135: 78% | O135: 78% | P135: 158 | Q135: 69% | R135: 38% | S135: 52 | T135: 79% | U135: 79% | V135: 148 | W135: 78% | X135: 78% | Y135: 216
A136: 110 | B136: BAS RHIN | C136: 5101 | D136: SELESTAT | E136: 4126 | F136: MUTZIG | G136: 2.7 | H136: 63% | I136: 53% | J136: 127 | K136: 61% | L136: 57% | M136: 147 | N136: 64% | O136: 64% | P136: 51 | Q136: 69% | R136: 39% | S136: 54 | T136: 80% | U136: 80% | V136: 156 | W136: 72% | X136: 72% | Y136: 147
A137: 110 | B137: VOSGES | C137: 57 | D137: EPINAL | E137: 588206 | F137: CHARMES | G137: 3.0 | H137: 63% | I137: 53% | J137: 128 | K137: 44% | L137: 41% | M137: 87 | N137: 77% | O137: 77% | P137: 156 | Q137: 76% | R137: 46% | S137: 102 | T137: 75% | U137: 75% | V137: 106 | W137: 75% | X137: 75% | Y137: 190
A138: 110 | B138: MOSELLE | C138: 45 | D138: METZ | E138: 557612 | F138: SAINTE MARIE AUX CHENES | G138: 3.7 | H138: 63% | I138: 53% | J138: 129 | K138: 31% | L138: 27% | M138: 31 | N138: 88% | O138: 88% | P138: 219 | Q138: 75% | R138: 44% | S138: 95 | T138: 77% | U138: 77% | V138: 123 | W138: 78% | X138: 78% | Y138: 213
A139: 110 | B139: AUBE HAUTE MARNE | C139: 14 | D139: TROYES | E139: 510570 | F139: NOGENT SUR SEINE | G139: 3.9 | H139: 63% | I139: 53% | J139: 130 | K139: 35% | L139: 31% | M139: 45 | N139: 74% | O139: 74% | P139: 124 | Q139: 83% | R139: 53% | S139: 160 | T139: 83% | U139: 83% | V139: 178 | W139: 73% | X139: 73% | Y139: 156
A140: 110 | B140: MEURTHE ET MOSELLE MEUSE | C140: 27 | D140: PONT A MOUSSON | E140: 554376 | F140: LAXOU BOUFFLERS | G140: 2.5 | H140: 63% | I140: 53% | J140: 131 | K140: 81% | L140: 77% | M140: 236 | N140: 59% | O140: 59% | P140: 30 | Q140: 85% | R140: 54% | S140: 176 | T140: 76% | U140: 76% | V140: 118 | W140: 47% | X140: 47% | Y140: 13
A141: 110 | B141: BAS RHIN | C141: 5006 | D141: STRASBOURG | E141: 4020 | F141: STRASBOURG ROBERTSAU | G141: 5.3 | H141: 63% | I141: 53% | J141: 132 | K141: 52% | L141: 48% | M141: 118 | N141: 81% | O141: 81% | P141: 180 | Q141: 54% | R141: 24% | S141: 9 | T141: 85% | U141: 85% | V141: 199 | W141: 76% | X141: 76% | Y141: 201
A142: 110 | B142: AUBE HAUTE MARNE | C142: 21 | D142: CHAUMONT | E142: 451156 | F142: SAINT DIZIER CENTRE | G142: 8.6 | H142: 63% | I142: 53% | J142: 133 | K142: 57% | L142: 54% | M142: 137 | N142: 76% | O142: 76% | P142: 134 | Q142: 81% | R142: 51% | S142: 140 | T142: 67% | U142: 67% | V142: 48 | W142: 68% | X142: 68% | Y142: 101
A143: 110 | B143: MEURTHE ET MOSELLE MEUSE | C143: 26 | D143: NANCY | E143: 454426 | F143: LUNEVILLE CARNOT | G143: 8.5 | H143: 63% | I143: 53% | J143: 134 | K143: 71% | L143: 67% | M143: 201 | N143: 72% | O143: 72% | P143: 99 | Q143: 71% | R143: 41% | S143: 63 | T143: 79% | U143: 79% | V143: 149 | W143: 58% | X143: 58% | Y143: 38
A144: 110 | B144: AUBE HAUTE MARNE | C144: 21 | D144: CHAUMONT | E144: 410566 | F144: CHAUMONT HOTEL DE VILLE | G144: 10.3 | H144: 63% | I144: 53% | J144: 135 | K144: 43% | L144: 40% | M144: 82 | N144: 82% | O144: 82% | P144: 182 | Q144: 75% | R144: 45% | S144: 96 | T144: 77% | U144: 77% | V144: 128 | W144: 74% | X144: 74% | Y144: 174
A145: 110 | B145: MEURTHE ET MOSELLE MEUSE | C145: 26 | D145: NANCY | E145: 554486 | F145: NANCY POINT CENTRAL | G145: 3.1 | H145: 63% | I145: 54% | J145: 136 | K145: 56% | L145: 52% | M145: 131 | N145: 82% | O145: 82% | P145: 184 | Q145: 63% | R145: 33% | S145: 27 | T145: 82% | U145: 82% | V145: 171 | W145: 69% | X145: 69% | Y145: 121
A146: 110 | B146: MEURTHE ET MOSELLE MEUSE | C146: 27 | D146: PONT A MOUSSON | E146: 554496 | F146: NANCY TROIS MAISONS | G146: 2.4 | H146: 64% | I146: 54% | J146: 137 | K146: 62% | L146: 58% | M146: 149 | N146: 72% | O146: 72% | P146: 104 | Q146: 82% | R146: 51% | S146: 149 | T146: 72% | U146: 72% | V146: 83 | W146: 65% | X146: 65% | Y146: 77
A147: 110 | B147: MOSELLE | C147: 42 | D147: MOSELLE EST | E147: 457435 | F147: MERLEBACH | G147: 2.7 | H147: 64% | I147: 54% | J147: 138 | K147: 49% | L147: 45% | M147: 105 | N147: 77% | O147: 77% | P147: 145 | Q147: 85% | R147: 55% | S147: 178 | T147: 79% | U147: 79% | V147: 147 | W147: 63% | X147: 63% | Y147: 68
A148: 110 | B148: BAS RHIN | C148: 5101 | D148: SELESTAT | E148: 4127 | F148: ROSHEIM | G148: 1.7 | H148: 64% | I148: 54% | J148: 139 | K148: 50% | L148: 47% | M148: 112 | N148: 85% | O148: 85% | P148: 202 | Q148: 65% | R148: 35% | S148: 34 | T148: 80% | U148: 80% | V148: 159 | W148: 73% | X148: 73% | Y148: 155
A149: 110 | B149: MEURTHE ET MOSELLE MEUSE | C149: 26 | D149: NANCY | E149: 554296 | F149: ESSEY LES NANCY | G149: 3.6 | H149: 65% | I149: 55% | J149: 140 | K149: 35% | L149: 31% | M149: 44 | N149: 77% | O149: 77% | P149: 147 | Q149: 83% | R149: 53% | S149: 157 | T149: 89% | U149: 89% | V149: 221 | W149: 72% | X149: 72% | Y149: 149
A150: 110 | B150: VOSGES | C150: 57 | D150: EPINAL | E150: 588201 | F150: CHANTRAINE | G150: 3.7 | H150: 65% | I150: 55% | J150: 141 | K150: 48% | L150: 45% | M150: 102 | N150: 72% | O150: 72% | P150: 105 | Q150: 73% | R150: 43% | S150: 79 | T150: 88% | U150: 88% | V150: 218 | W150: 75% | X150: 75% | Y150: 188
A151: 110 | B151: MEURTHE ET MOSELLE MEUSE | C151: 26 | D151: NANCY | E151: 554266 | F151: DOMBASLE SUR MEURTHE | G151: 3.4 | H151: 65% | I151: 55% | J151: 142 | K151: 66% | L151: 62% | M151: 169 | N151: 85% | O151: 85% | P151: 200 | Q151: 61% | R151: 31% | S151: 17 | T151: 76% | U151: 76% | V151: 122 | W151: 68% | X151: 68% | Y151: 111
A152: 110 | B152: MEURTHE ET MOSELLE MEUSE | C152: 27 | D152: PONT A MOUSSON | E152: 454355 | F152: JARNY | G152: 4.2 | H152: 65% | I152: 55% | J152: 143 | K152: 45% | L152: 42% | M152: 91 | N152: 80% | O152: 80% | P152: 170 | Q152: 74% | R152: 43% | S152: 84 | T152: 80% | U152: 80% | V152: 160 | W152: 78% | X152: 78% | Y152: 218
A153: 110 | B153: MEURTHE ET MOSELLE MEUSE | C153: 26 | D153: NANCY | E153: 554491 | F153: NANCY SAINT SEBASTIEN | G153: 3.5 | H153: 65% | I153: 55% | J153: 144 | K153: 53% | L153: 50% | M153: 122 | N153: 87% | O153: 87% | P153: 212 | Q153: 62% | R153: 31% | S153: 19 | T153: 86% | U153: 86% | V153: 203 | W153: 72% | X153: 72% | Y153: 140
A154: 110 | B154: BAS RHIN | C154: 5060 | D154: HAGUENAU | E154: 4031 | F154: TRUCHTERSHEIM | G154: 2.4 | H154: 65% | I154: 55% | J154: 145 | K154: 47% | L154: 43% | M154: 97 | N154: 68% | O154: 68% | P154: 73 | Q154: 71% | R154: 41% | S154: 66 | T154: 88% | U154: 88% | V154: 217 | W154: 85% | X154: 85% | Y154: 240
A155: 110 | B155: BAS RHIN | C155: 5006 | D155: STRASBOURG | E155: 4023 | F155: STRASBOURG VOSGES | G155: 3.0 | H155: 65% | I155: 55% | J155: 146 | K155: 54% | L155: 50% | M155: 123 | N155: 74% | O155: 74% | P155: 118 | Q155: 66% | R155: 36% | S155: 36 | T155: 87% | U155: 87% | V155: 210 | W155: 79% | X155: 79% | Y155: 223
A156: 110 | B156: MOSELLE | C156: 42 | D156: MOSELLE EST | E156: 457614 | F156: SARREBOURG | G156: 7.2 | H156: 65% | I156: 55% | J156: 147 | K156: 59% | L156: 55% | M156: 140 | N156: 77% | O156: 77% | P156: 153 | Q156: 75% | R156: 44% | S156: 94 | T156: 76% | U156: 76% | V156: 121 | W156: 73% | X156: 73% | Y156: 157
A157: 110 | B157: MARNE ARDENNES | C157: 2 | D157: CHARLEVILLE MEZIERES | E157: 408806 | F157: SEDAN | G157: 7.4 | H157: 65% | I157: 55% | J157: 148 | K157: 48% | L157: 44% | M157: 99 | N157: 78% | O157: 78% | P157: 157 | Q157: 81% | R157: 51% | S157: 148 | T157: 85% | U157: 85% | V157: 201 | W157: 68% | X157: 68% | Y157: 106
A158: 110 | B158: MEURTHE ET MOSELLE MEUSE | C158: 27 | D158: PONT A MOUSSON | E158: 454651 | F158: TOUL | G158: 9.3 | H158: 65% | I158: 55% | J158: 149 | K158: 70% | L158: 67% | M158: 198 | N158: 83% | O158: 83% | P158: 191 | Q158: 73% | R158: 42% | S158: 74 | T158: 74% | U158: 74% | V158: 102 | W158: 60% | X158: 60% | Y158: 52
A159: 110 | B159: VOSGES | C159: 57 | D159: EPINAL | E159: 488706 | F159: VITTEL | G159: 3.1 | H159: 65% | I159: 55% | J159: 150 | K159: 51% | L159: 47% | M159: 115 | N159: 80% | O159: 80% | P159: 173 | Q159: 81% | R159: 51% | S159: 144 | T159: 77% | U159: 77% | V159: 138 | W159: 72% | X159: 72% | Y159: 137
A160: 110 | B160: MEURTHE ET MOSELLE MEUSE | C160: 27 | D160: PONT A MOUSSON | E160: 454535 | F160: PONT A MOUSSON CENTRALE | G160: 5.8 | H160: 65% | I160: 56% | J160: 151 | K160: 78% | L160: 75% | M160: 230 | N160: 69% | O160: 69% | P160: 84 | Q160: 84% | R160: 54% | S160: 170 | T160: 72% | U160: 72% | V160: 79 | W160: 58% | X160: 58% | Y160: 40
A161: 110 | B161: BAS RHIN | C161: 5006 | D161: STRASBOURG | E161: 4029 | F161: SCHILTIGHEIM KLEBER | G161: 0.6 | H161: 66% | I161: 56% | J161: 152 | K161: 62% | L161: 58% | M161: 148 | N161: 91% | O161: 91% | P161: 235 | Q161: 68% | R161: 37% | S161: 48 | T161: 74% | U161: 74% | V161: 104 | W161: 67% | X161: 67% | Y161: 95
A162: 110 | B162: BAS RHIN | C162: 5060 | D162: HAGUENAU | E162: 4030 | F162: BRUMATH | G162: 3.8 | H162: 66% | I162: 56% | J162: 153 | K162: 74% | L162: 70% | M162: 215 | N162: 68% | O162: 68% | P162: 72 | Q162: 56% | R162: 26% | S162: 10 | T162: 89% | U162: 89% | V162: 220 | W162: 76% | X162: 76% | Y162: 199
A163: 110 | B163: BAS RHIN | C163: 5060 | D163: HAGUENAU | E163: 4067 | F163: PFAFFENHOFFEN | G163: 1.9 | H163: 66% | I163: 56% | J163: 154 | K163: 57% | L163: 53% | M163: 133 | N163: 68% | O163: 68% | P163: 68 | Q163: 78% | R163: 48% | S163: 116 | T163: 86% | U163: 86% | V163: 207 | W163: 74% | X163: 74% | Y163: 167
A164: 110 | B164: MOSELLE | C164: 45 | D164: METZ | E164: 557459 | F164: MOULINS LES METZ | G164: 2.6 | H164: 66% | I164: 56% | J164: 155 | K164: 46% | L164: 43% | M164: 96 | N164: 80% | O164: 80% | P164: 174 | Q164: 86% | R164: 55% | S164: 182 | T164: 77% | U164: 77% | V164: 137 | W164: 73% | X164: 73% | Y164: 153
A165: 110 | B165: BAS RHIN | C165: 5006 | D165: STRASBOURG | E165: 4028 | F165: BISCHHEIM | G165: 3.1 | H165: 66% | I165: 56% | J165: 156 | K165: 67% | L165: 63% | M165: 175 | N165: 79% | O165: 79% | P165: 163 | Q165: 72% | R165: 42% | S165: 70 | T165: 71% | U165: 71% | V165: 72 | W165: 75% | X165: 75% | Y165: 191
A166: 110 | B166: MEURTHE ET MOSELLE MEUSE | C166: 26 | D166: NANCY | E166: 554166 | F166: BLAINVILLE | G166: 2.9 | H166: 66% | I166: 56% | J166: 157 | K166: 65% | L166: 61% | M166: 162 | N166: 72% | O166: 72% | P166: 101 | Q166: 87% | R166: 57% | S166: 192 | T166: 68% | U166: 68% | V166: 57 | W166: 72% | X166: 72% | Y166: 144
A167: 110 | B167: MEURTHE ET MOSELLE MEUSE | C167: 27 | D167: PONT A MOUSSON | E167: 454696 | F167: VILLERS GENERAL LECLERC | G167: 3.9 | H167: 66% | I167: 56% | J167: 158 | K167: 63% | L167: 60% | M167: 155 | N167: 83% | O167: 83% | P167: 189 | Q167: 57% | R167: 26% | S167: 11 | T167: 81% | U167: 81% | V167: 164 | W167: 80% | X167: 80% | Y167: 227
A168: 110 | B168: AUBE HAUTE MARNE | C168: 14 | D168: TROYES | E168: 410550 | F168: BAR SUR AUBE | G168: 5.3 | H168: 66% | I168: 56% | J168: 159 | K168: 46% | L168: 42% | M168: 94 | N168: 80% | O168: 80% | P168: 178 | Q168: 84% | R168: 54% | S168: 168 | T168: 80% | U168: 80% | V168: 154 | W168: 74% | X168: 74% | Y168: 171
A169: 110 | B169: AUBE HAUTE MARNE | C169: 14 | D169: TROYES | E169: 510513 | F169: SAINT PARRES AUX TERTRES | G169: 2.9 | H169: 66% | I169: 56% | J169: 160 | K169: 80% | L169: 77% | M169: 234 | N169: 70% | O169: 70% | P169: 88 | Q169: 80% | R169: 49% | S169: 132 | T169: 59% | U169: 59% | V169: 16 | W169: 75% | X169: 75% | Y169: 193
A170: 110 | B170: MARNE ARDENNES | C170: 2 | D170: CHARLEVILLE MEZIERES | E170: 508860 | F170: ROCROI | G170: 2.3 | H170: 66% | I170: 56% | J170: 161 | K170: 71% | L170: 68% | M170: 205 | N170: 67% | O170: 67% | P170: 60 | Q170: 84% | R170: 54% | S170: 169 | T170: 77% | U170: 77% | V170: 133 | W170: 65% | X170: 65% | Y170: 82
A171: 110 | B171: MOSELLE | C171: 42 | D171: MOSELLE EST | E171: 557210 | F171: CHATEAU SALINS | G171: 1.9 | H171: 66% | I171: 56% | J171: 162 | K171: 67% | L171: 63% | M171: 174 | N171: 68% | O171: 68% | P171: 70 | Q171: 91% | R171: 61% | S171: 213 | T171: 64% | U171: 64% | V171: 35 | W171: 75% | X171: 75% | Y171: 185
A172: 110 | B172: BAS RHIN | C172: 5101 | D172: SELESTAT | E172: 4007 | F172: ILLKIRCH CENTRE | G172: 6.3 | H172: 66% | I172: 56% | J172: 163 | K172: 68% | L172: 64% | M172: 183 | N172: 77% | O172: 77% | P172: 151 | Q172: 84% | R172: 53% | S172: 165 | T172: 67% | U172: 67% | V172: 52 | W172: 70% | X172: 70% | Y172: 130
A173: 110 | B173: MOSELLE | C173: 45 | D173: METZ | E173: 557440 | F173: METZ MOZART | G173: 2.7 | H173: 66% | I173: 57% | J173: 164 | K173: 62% | L173: 59% | M173: 151 | N173: 77% | O173: 77% | P173: 149 | Q173: 72% | R173: 41% | S173: 67 | T173: 79% | U173: 79% | V173: 151 | W173: 76% | X173: 76% | Y173: 203
A174: 110 | B174: MEURTHE ET MOSELLE MEUSE | C174: 31 | D174: VERDUN | E174: 555624 | F174: STENAY | G174: 3.1 | H174: 66% | I174: 57% | J174: 165 | K174: 66% | L174: 62% | M174: 168 | N174: 69% | O174: 69% | P174: 80 | Q174: 91% | R174: 60% | S174: 210 | T174: 88% | U174: 88% | V174: 216 | W174: 53% | X174: 53% | Y174: 22
A175: 110 | B175: BAS RHIN | C175: 5101 | D175: SELESTAT | E175: 4109 | F175: MARCKOLSHEIM | G175: 2.3 | H175: 67% | I175: 57% | J175: 166 | K175: 51% | L175: 47% | M175: 113 | N175: 77% | O175: 77% | P175: 155 | Q175: 85% | R175: 55% | S175: 181 | T175: 82% | U175: 82% | V175: 177 | W175: 71% | X175: 71% | Y175: 135
A176: 110 | B176: BAS RHIN | C176: 5006 | D176: STRASBOURG | E176: 4039 | F176: REICHSTETT | G176: 1.4 | H176: 67% | I176: 57% | J176: 167 | K176: 58% | L176: 54% | M176: 138 | N176: 82% | O176: 82% | P176: 187 | Q176: 75% | R176: 45% | S176: 99 | T176: 78% | U176: 78% | V176: 140 | W176: 74% | X176: 74% | Y176: 179
A177: 160 | B177: AUBE HAUTE MARNE | C177: 14 | D177: TROYES | E177: 510523 | F177: LA CHAPELLE ST LUC | G177: 4.5 | H177: 67% | I177: 57% | J177: 168 | K177: 75% | L177: 71% | M177: 218 | N177: 76% | O177: 76% | P177: 140 | Q177: 80% | R177: 50% | S177: 133 | T177: 69% | U177: 69% | V177: 63 | W177: 69% | X177: 69% | Y177: 113
A178: 160 | B178: BAS RHIN | C178: 5060 | D178: HAGUENAU | E178: 4085 | F178: INGWILLER | G178: 3.5 | H178: 67% | I178: 57% | J178: 169 | K178: 55% | L178: 51% | M178: 129 | N178: 76% | O178: 76% | P178: 139 | Q178: 86% | R178: 56% | S178: 190 | T178: 80% | U178: 80% | V178: 152 | W178: 72% | X178: 72% | Y178: 142
A179: 160 | B179: MEURTHE ET MOSELLE MEUSE | C179: 27 | D179: PONT A MOUSSON | E179: 554196 | F179: CHAMPIGNEULLES | G179: 2.6 | H179: 67% | I179: 57% | J179: 170 | K179: 64% | L179: 60% | M179: 157 | N179: 79% | O179: 79% | P179: 166 | Q179: 83% | R179: 53% | S179: 159 | T179: 68% | U179: 68% | V179: 60 | W179: 75% | X179: 75% | Y179: 192
A180: 160 | B180: BAS RHIN | C180: 5101 | D180: SELESTAT | E180: 4008 | F180: FEGERSHEIM | G180: 2.4 | H180: 67% | I180: 57% | J180: 171 | K180: 55% | L180: 51% | M180: 127 | N180: 71% | O180: 71% | P180: 92 | Q180: 78% | R180: 48% | S180: 121 | T180: 85% | U180: 85% | V180: 200 | W180: 80% | X180: 80% | Y180: 228
A181: 160 | B181: MOSELLE | C181: 42 | D181: MOSELLE EST | E181: 557503 | F181: NEUNKIRCH | G181: 3.0 | H181: 67% | I181: 57% | J181: 172 | K181: 14% | L181: 10% | M181: 6 | N181: 88% | O181: 88% | P181: 218 | Q181: 96% | R181: 66% | S181: 228 | T181: 96% | U181: 96% | V181: 235 | W181: 77% | X181: 77% | Y181: 208
A182: 160 | B182: MOSELLE | C182: 45 | D182: METZ | E182: 557441 | F182: METZ PLAPPEVILLE | G182: 2.7 | H182: 67% | I182: 58% | J182: 173 | K182: 67% | L182: 63% | M182: 179 | N182: 84% | O182: 84% | P182: 199 | Q182: 67% | R182: 36% | S182: 40 | T182: 81% | U182: 81% | V182: 162 | W182: 72% | X182: 72% | Y182: 146
A183: 160 | B183: MARNE ARDENNES | C183: 11 | D183: REIMS | E183: 551309 | F183: REIMS EUROPE | G183: 2.3 | H183: 67% | I183: 58% | J183: 174 | K183: 65% | L183: 62% | M183: 164 | N183: 75% | O183: 75% | P183: 129 | Q183: 89% | R183: 59% | S183: 202 | T183: 73% | U183: 73% | V183: 87 | W183: 69% | X183: 69% | Y183: 119
A184: 160 | B184: MARNE ARDENNES | C184: 6 | D184: CHALONS EN CHAMPAGNE | E184: 451166 | F184: VITRY LE FRANCOIS | G184: 3.7 | H184: 68% | I184: 58% | J184: 175 | K184: 74% | L184: 70% | M184: 214 | N184: 68% | O184: 68% | P184: 74 | Q184: 98% | R184: 68% | S184: 231 | T184: 78% | U184: 78% | V184: 141 | W184: 55% | X184: 55% | Y184: 27
A185: 160 | B185: BAS RHIN | C185: 5060 | D185: HAGUENAU | E185: 4060 | F185: HAGUENAU HOUBLON | G185: 8.6 | H185: 68% | I185: 58% | J185: 176 | K185: 69% | L185: 65% | M185: 188 | N185: 80% | O185: 80% | P185: 171 | Q185: 73% | R185: 42% | S185: 75 | T185: 77% | U185: 77% | V185: 125 | W185: 75% | X185: 75% | Y185: 184
A186: 160 | B186: HAUT RHIN | C186: 5169 | D186: MULHOUSE | E186: 4180 | F186: RIEDISHEIM | G186: 3.3 | H186: 68% | I186: 58% | J186: 177 | K186: 43% | L186: 39% | M186: 78 | N186: 80% | O186: 80% | P186: 177 | Q186: 92% | R186: 62% | S186: 216 | T186: 79% | U186: 79% | V186: 150 | W186: 79% | X186: 79% | Y186: 224
A187: 160 | B187: HAUT RHIN | C187: 5169 | D187: MULHOUSE | E187: 4170 | F187: MULHOUSE REUNION | G187: 7.8 | H187: 68% | I187: 58% | J187: 178 | K187: 64% | L187: 61% | M187: 161 | N187: 78% | O187: 78% | P187: 159 | Q187: 90% | R187: 59% | S187: 203 | T187: 74% | U187: 74% | V187: 99 | W187: 68% | X187: 68% | Y187: 110
A188: 160 | B188: BAS RHIN | C188: 5101 | D188: SELESTAT | E188: 4101 | F188: SELESTAT CENTRE | G188: 7.9 | H188: 68% | I188: 58% | J188: 179 | K188: 67% | L188: 63% | M188: 178 | N188: 73% | O188: 73% | P188: 116 | Q188: 83% | R188: 53% | S188: 162 | T188: 76% | U188: 76% | V188: 120 | W188: 74% | X188: 74% | Y188: 180
A189: 160 | B189: BAS RHIN | C189: 5060 | D189: HAGUENAU | E189: 4066 | F189: NIEDERBRONN LES BAINS | G189: 5.7 | H189: 68% | I189: 58% | J189: 180 | K189: 49% | L189: 45% | M189: 103 | N189: 84% | O189: 84% | P189: 198 | Q189: 83% | R189: 53% | S189: 161 | T189: 85% | U189: 85% | V189: 197 | W189: 74% | X189: 74% | Y189: 182
A190: 160 | B190: HAUT RHIN | C190: 5130 | D190: COLMAR | E190: 4157 | F190: NEUF BRISACH | G190: 2.6 | H190: 68% | I190: 58% | J190: 181 | K190: 70% | L190: 66% | M190: 196 | N190: 79% | O190: 79% | P190: 162 | Q190: 86% | R190: 56% | S190: 188 | T190: 73% | U190: 73% | V190: 90 | W190: 68% | X190: 68% | Y190: 102
A191: 160 | B191: MOSELLE | C191: 45 | D191: METZ | E191: 557712 | F191: WOIPPY | G191: 4.3 | H191: 68% | I191: 58% | J191: 182 | K191: 76% | L191: 72% | M191: 223 | N191: 74% | O191: 74% | P191: 119 | Q191: 84% | R191: 53% | S191: 166 | T191: 72% | U191: 72% | V191: 80 | W191: 70% | X191: 70% | Y191: 133
A192: 160 | B192: MOSELLE | C192: 45 | D192: METZ | E192: 557445 | F192: METZ SAINT LIVIER | G192: 2.5 | H192: 68% | I192: 58% | J192: 183 | K192: 49% | L192: 45% | M192: 104 | N192: 79% | O192: 79% | P192: 168 | Q192: 84% | R192: 53% | S192: 163 | T192: 91% | U192: 91% | V192: 224 | W192: 74% | X192: 74% | Y192: 173
A193: 160 | B193: BAS RHIN | C193: 5101 | D193: SELESTAT | E193: 4119 | F193: OBERNAI | G193: 3.4 | H193: 68% | I193: 59% | J193: 184 | K193: 67% | L193: 63% | M193: 177 | N193: 87% | O193: 87% | P193: 214 | Q193: 63% | R193: 32% | S193: 25 | T193: 82% | U193: 82% | V193: 169 | W193: 78% | X193: 78% | Y193: 215
A194: 160 | B194: HAUT RHIN | C194: 5169 | D194: MULHOUSE | E194: 4178 | F194: SAINT LOUIS | G194: 6.6 | H194: 69% | I194: 59% | J194: 185 | K194: 67% | L194: 63% | M194: 172 | N194: 76% | O194: 76% | P194: 141 | Q194: 70% | R194: 39% | S194: 59 | T194: 84% | U194: 84% | V194: 196 | W194: 80% | X194: 80% | Y194: 226
A195: 160 | B195: BAS RHIN | C195: 5060 | D195: HAGUENAU | E195: 4082 | F195: BOUXWILLER | G195: 2.5 | H195: 69% | I195: 59% | J195: 186 | K195: 37% | L195: 34% | M195: 52 | N195: 83% | O195: 83% | P195: 192 | Q195: 107% | R195: 77% | S195: 237 | T195: 76% | U195: 76% | V195: 114 | W195: 73% | X195: 73% | Y195: 162
A196: 160 | B196: MOSELLE | C196: 42 | D196: MOSELLE EST | E196: 457258 | F196: DIEUZE | G196: 3.1 | H196: 69% | I196: 59% | J196: 187 | K196: 36% | L196: 32% | M196: 46 | N196: 90% | O196: 90% | P196: 231 | Q196: 89% | R196: 58% | S196: 201 | T196: 83% | U196: 83% | V196: 186 | W196: 79% | X196: 79% | Y196: 225
A197: 160 | B197: MOSELLE | C197: 45 | D197: METZ | E197: 557559 | F197: REMILLY | G197: 3.1 | H197: 69% | I197: 59% | J197: 188 | K197: 70% | L197: 67% | M197: 200 | N197: 77% | O197: 77% | P197: 152 | Q197: 78% | R197: 48% | S197: 119 | T197: 86% | U197: 86% | V197: 205 | W197: 65% | X197: 65% | Y197: 84
A198: 160 | B198: MOSELLE | C198: 45 | D198: METZ | E198: 557436 | F198: METZ CATHEDRALE | G198: 4.1 | H198: 69% | I198: 59% | J198: 189 | K198: 76% | L198: 73% | M198: 224 | N198: 75% | O198: 75% | P198: 132 | Q198: 73% | R198: 43% | S198: 78 | T198: 79% | U198: 79% | V198: 145 | W198: 74% | X198: 74% | Y198: 168
A199: 160 | B199: MARNE ARDENNES | C199: 11 | D199: REIMS | E199: 451308 | F199: REIMS SAINT THOMAS | G199: 5.6 | H199: 69% | I199: 59% | J199: 190 | K199: 83% | L199: 80% | M199: 238 | N199: 71% | O199: 71% | P199: 95 | Q199: 90% | R199: 60% | S199: 207 | T199: 73% | U199: 73% | V199: 93 | W199: 60% | X199: 60% | Y199: 51
A200: 160 | B200: BAS RHIN | C200: 5101 | D200: SELESTAT | E200: 4107 | F200: VILLE | G200: 2.3 | H200: 69% | I200: 59% | J200: 191 | K200: 72% | L200: 68% | M200: 206 | N200: 72% | O200: 72% | P200: 103 | Q200: 70% | R200: 39% | S200: 56 | T200: 84% | U200: 84% | V200: 190 | W200: 81% | X200: 81% | Y200: 234
A201: 160 | B201: AUBE HAUTE MARNE | C201: 14 | D201: TROYES | E201: 410510 | F201: TROYES GAMBETTA | G201: 8.6 | H201: 69% | I201: 59% | J201: 192 | K201: 72% | L201: 69% | M201: 208 | N201: 76% | O201: 76% | P201: 142 | Q201: 88% | R201: 57% | S201: 197 | T201: 73% | U201: 73% | V201: 85 | W201: 70% | X201: 70% | Y201: 129
A202: 160 | B202: BAS RHIN | C202: 5006 | D202: STRASBOURG | E202: 4045 | F202: STRASBOURG FRANCS BOURGEOIS | G202: 4.2 | H202: 69% | I202: 60% | J202: 193 | K202: 53% | L202: 49% | M202: 120 | N202: 72% | O202: 72% | P202: 102 | Q202: 98% | R202: 67% | S202: 230 | T202: 81% | U202: 81% | V202: 167 | W202: 77% | X202: 77% | Y202: 210
A203: 160 | B203: VOSGES | C203: 57 | D203: EPINAL | E203: 588501 | F203: NEUFCHATEAU | G203: 4.6 | H203: 70% | I203: 60% | J203: 194 | K203: 48% | L203: 44% | M203: 101 | N203: 80% | O203: 80% | P203: 172 | Q203: 92% | R203: 62% | S203: 218 | T203: 86% | U203: 86% | V203: 209 | W203: 75% | X203: 75% | Y203: 194
... 48 more rows

Sheet AG_BANCA
B1: Accueil | H1: BAROMETRE BDD - AGENCES
H2: BANCARISATION
H3: =ACCUEIL!F7 -> 2022-11-27
H7: Ventes Nettes produits pondérés | L7: Ventes sur client non détenteur de l’univers | P7: Total Bancarisation
H8: =DATEMAJ!C8 -> au 27/11 | J8: coef | K8: ='RECAP DIRCOM'!AA4 -> 12% | L8: =DATEMAJ!C9 -> au 27/11 | N8: coef | O8: ='RECAP DIRCOM'!AE4 -> 8% | Q8: coef | R8: ='RECAP DIRCOM'!$AH$4 -> 20%
B9: Direction | C9: eds | D9: Territoire | E9: eds | F9: Agence | G9: ="ETP perf "&DATEMAJ!$C$28 -> ETP perf 27-nov | H9: VN | I9: VN / ETP | J9: % Ecart au 1er | K9: Rang | L9: VB | M9: VB / ETP | N9: % Ecart au 1er | O9: Rang | P9: Moyenne ecart au 1er | Q9: % Ecart au 1er | R9: Rang CEGEE
A10: 50 | B10: AUBE HAUTE MARNE | C10: 21 | D10: CHAUMONT | E10: 410541 | F10: LANGRES | G10: =VLOOKUP($E10,'RECAP AG'!$G$6:$CU$247,3,FALSE) -> 8.0 | H10: =VLOOKUP($E10,'RECAP AG'!$G$6:$CU$247,18,FALSE) -> 250.2 | I10: =VLOOKUP($E10,'RECAP AG'!$G$6:$CU$247,19,FALSE) -> 31.35 | J10: =VLOOKUP($E10,'RECAP AG'!$G$6:$CU$247,20,FALSE) -> 74% | K10: =VLOOKUP($E10,'RECAP AG'!$G$6:$CU$247,21,FALSE) -> 57 | L10: =VLOOKUP($E10,'RECAP AG'!$G$6:$CU$247,22,FALSE) -> 482 | M10: =VLOOKUP($E10,'RECAP AG'!$G$6:$CU$247,23,FALSE) -> 60.40 | N10: =VLOOKUP($E10,'RECAP AG'!$G$6:$CU$247,24,FALSE) -> 65% | O10: =VLOOKUP($E10,'RECAP AG'!$G$6:$CU$247,25,FALSE) -> 161 | P10: =VLOOKUP($E10,'RECAP AG'!$G$6:$CU$247,26,FALSE) -> 70% | Q10: =VLOOKUP($E10,'RECAP AG'!$G$6:$CU$247,27,FALSE) -> 70% | R10: =VLOOKUP($E10,'RECAP AG'!$G$6:$CU$247,28,FALSE) -> 90
A11: 50 | B11: AUBE HAUTE MARNE | C11: 21 | D11: CHAUMONT | E11: 410566 | F11: CHAUMONT HOTEL DE VILLE | G11: =VLOOKUP($E11,'RECAP AG'!$G$6:$CU$247,3,FALSE) -> 10.3 | H11: =VLOOKUP($E11,'RECAP AG'!$G$6:$CU$247,18,FALSE) -> 101.1 | I11: =VLOOKUP($E11,'RECAP AG'!$G$6:$CU$247,19,FALSE) -> 9.78 | J11: =VLOOKUP($E11,'RECAP AG'!$G$6:$CU$247,20,FALSE) -> 92% | K11: =VLOOKUP($E11,'RECAP AG'!$G$6:$CU$247,21,FALSE) -> 177 | L11: =VLOOKUP($E11,'RECAP AG'!$G$6:$CU$247,22,FALSE) -> 597 | M11: =VLOOKUP($E11,'RECAP AG'!$G$6:$CU$247,23,FALSE) -> 57.74 | N11: =VLOOKUP($E11,'RECAP AG'!$G$6:$CU$247,24,FALSE) -> 66% | O11: =VLOOKUP($E11,'RECAP AG'!$G$6:$CU$247,25,FALSE) -> 182 | P11: =VLOOKUP($E11,'RECAP AG'!$G$6:$CU$247,26,FALSE) -> 82% | Q11: =VLOOKUP($E11,'RECAP AG'!$G$6:$CU$247,27,FALSE) -> 82% | R11: =VLOOKUP($E11,'RECAP AG'!$G$6:$CU$247,28,FALSE) -> 182
A12: 50 | B12: AUBE HAUTE MARNE | C12: 21 | D12: CHAUMONT | E12: 510590 | F12: CHAUMONT REPUBLIQUE | G12: =VLOOKUP($E12,'RECAP AG'!$G$6:$CU$247,3,FALSE) -> 2.9 | H12: =VLOOKUP($E12,'RECAP AG'!$G$6:$CU$247,18,FALSE) -> 35.1 | I12: =VLOOKUP($E12,'RECAP AG'!$G$6:$CU$247,19,FALSE) -> 12.27 | J12: =VLOOKUP($E12,'RECAP AG'!$G$6:$CU$247,20,FALSE) -> 90% | K12: =VLOOKUP($E12,'RECAP AG'!$G$6:$CU$247,21,FALSE) -> 165 | L12: =VLOOKUP($E12,'RECAP AG'!$G$6:$CU$247,22,FALSE) -> 230 | M12: =VLOOKUP($E12,'RECAP AG'!$G$6:$CU$247,23,FALSE) -> 80.42 | N12: =VLOOKUP($E12,'RECAP AG'!$G$6:$CU$247,24,FALSE) -> 53% | O12: =VLOOKUP($E12,'RECAP AG'!$G$6:$CU$247,25,FALSE) -> 74 | P12: =VLOOKUP($E12,'RECAP AG'!$G$6:$CU$247,26,FALSE) -> 75% | Q12: =VLOOKUP($E12,'RECAP AG'!$G$6:$CU$247,27,FALSE) -> 75% | R12: =VLOOKUP($E12,'RECAP AG'!$G$6:$CU$247,28,FALSE) -> 130
A13: 50 | B13: AUBE HAUTE MARNE | C13: 21 | D13: CHAUMONT | E13: 451154 | F13: JOINVILLE | G13: =VLOOKUP($E13,'RECAP AG'!$G$6:$CU$247,3,FALSE) -> 1.8 | H13: =VLOOKUP($E13,'RECAP AG'!$G$6:$CU$247,18,FALSE) -> 45.6 | I13: =VLOOKUP($E13,'RECAP AG'!$G$6:$CU$247,19,FALSE) -> 25.19 | J13: =VLOOKUP($E13,'RECAP AG'!$G$6:$CU$247,20,FALSE) -> 79% | K13: =VLOOKUP($E13,'RECAP AG'!$G$6:$CU$247,21,FALSE) -> 86 | L13: =VLOOKUP($E13,'RECAP AG'!$G$6:$CU$247,22,FALSE) -> 161 | M13: =VLOOKUP($E13,'RECAP AG'!$G$6:$CU$247,23,FALSE) -> 88.95 | N13: =VLOOKUP($E13,'RECAP AG'!$G$6:$CU$247,24,FALSE) -> 48% | O13: =VLOOKUP($E13,'RECAP AG'!$G$6:$CU$247,25,FALSE) -> 48 | P13: =VLOOKUP($E13,'RECAP AG'!$G$6:$CU$247,26,FALSE) -> 67% | Q13: =VLOOKUP($E13,'RECAP AG'!$G$6:$CU$247,27,FALSE) -> 67% | R13: =VLOOKUP($E13,'RECAP AG'!$G$6:$CU$247,28,FALSE) -> 61
A14: 50 | B14: AUBE HAUTE MARNE | C14: 21 | D14: CHAUMONT | E14: 451156 | F14: SAINT DIZIER CENTRE | G14: =VLOOKUP($E14,'RECAP AG'!$G$6:$CU$247,3,FALSE) -> 8.6 | H14: =VLOOKUP($E14,'RECAP AG'!$G$6:$CU$247,18,FALSE) -> 122.6 | I14: =VLOOKUP($E14,'RECAP AG'!$G$6:$CU$247,19,FALSE) -> 14.24 | J14: =VLOOKUP($E14,'RECAP AG'!$G$6:$CU$247,20,FALSE) -> 88% | K14: =VLOOKUP($E14,'RECAP AG'!$G$6:$CU$247,21,FALSE) -> 159 | L14: =VLOOKUP($E14,'RECAP AG'!$G$6:$CU$247,22,FALSE) -> 640 | M14: =VLOOKUP($E14,'RECAP AG'!$G$6:$CU$247,23,FALSE) -> 74.33 | N14: =VLOOKUP($E14,'RECAP AG'!$G$6:$CU$247,24,FALSE) -> 57% | O14: =VLOOKUP($E14,'RECAP AG'!$G$6:$CU$247,25,FALSE) -> 97 | P14: =VLOOKUP($E14,'RECAP AG'!$G$6:$CU$247,26,FALSE) -> 76% | Q14: =VLOOKUP($E14,'RECAP AG'!$G$6:$CU$247,27,FALSE) -> 76% | R14: =VLOOKUP($E14,'RECAP AG'!$G$6:$CU$247,28,FALSE) -> 134
A15: 50 | B15: AUBE HAUTE MARNE | C15: 21 | D15: CHAUMONT | E15: 451151 | F15: WASSY | G15: =VLOOKUP($E15,'RECAP AG'!$G$6:$CU$247,3,FALSE) -> 1.9 | H15: =VLOOKUP($E15,'RECAP AG'!$G$6:$CU$247,18,FALSE) -> 29.8 | I15: =VLOOKUP($E15,'RECAP AG'!$G$6:$CU$247,19,FALSE) -> 15.44 | J15: =VLOOKUP($E15,'RECAP AG'!$G$6:$CU$247,20,FALSE) -> 87% | K15: =VLOOKUP($E15,'RECAP AG'!$G$6:$CU$247,21,FALSE) -> 152 | L15: =VLOOKUP($E15,'RECAP AG'!$G$6:$CU$247,22,FALSE) -> 117 | M15: =VLOOKUP($E15,'RECAP AG'!$G$6:$CU$247,23,FALSE) -> 60.62 | N15: =VLOOKUP($E15,'RECAP AG'!$G$6:$CU$247,24,FALSE) -> 65% | O15: =VLOOKUP($E15,'RECAP AG'!$G$6:$CU$247,25,FALSE) -> 159 | P15: =VLOOKUP($E15,'RECAP AG'!$G$6:$CU$247,26,FALSE) -> 78% | Q15: =VLOOKUP($E15,'RECAP AG'!$G$6:$CU$247,27,FALSE) -> 78% | R15: =VLOOKUP($E15,'RECAP AG'!$G$6:$CU$247,28,FALSE) -> 160
A16: 50 | B16: AUBE HAUTE MARNE | C16: 14 | D16: TROYES | E16: 510523 | F16: LA CHAPELLE ST LUC | G16: =VLOOKUP($E16,'RECAP AG'!$G$6:$CU$247,3,FALSE) -> 4.5 | H16: =VLOOKUP($E16,'RECAP AG'!$G$6:$CU$247,18,FALSE) -> 36.4 | I16: =VLOOKUP($E16,'RECAP AG'!$G$6:$CU$247,19,FALSE) -> 8.18 | J16: =VLOOKUP($E16,'RECAP AG'!$G$6:$CU$247,20,FALSE) -> 93% | K16: =VLOOKUP($E16,'RECAP AG'!$G$6:$CU$247,21,FALSE) -> 182 | L16: =VLOOKUP($E16,'RECAP AG'!$G$6:$CU$247,22,FALSE) -> 381 | M16: =VLOOKUP($E16,'RECAP AG'!$G$6:$CU$247,23,FALSE) -> 85.62 | N16: =VLOOKUP($E16,'RECAP AG'!$G$6:$CU$247,24,FALSE) -> 50% | O16: =VLOOKUP($E16,'RECAP AG'!$G$6:$CU$247,25,FALSE) -> 59 | P16: =VLOOKUP($E16,'RECAP AG'!$G$6:$CU$247,26,FALSE) -> 76% | Q16: =VLOOKUP($E16,'RECAP AG'!$G$6:$CU$247,27,FALSE) -> 76% | R16: =VLOOKUP($E16,'RECAP AG'!$G$6:$CU$247,28,FALSE) -> 140
A17: 50 | B17: AUBE HAUTE MARNE | C17: 14 | D17: TROYES | E17: 510530 | F17: ARCIS SUR AUBE | G17: =VLOOKUP($E17,'RECAP AG'!$G$6:$CU$247,3,FALSE) -> 3.7 | H17: =VLOOKUP($E17,'RECAP AG'!$G$6:$CU$247,18,FALSE) -> 58.9 | I17: =VLOOKUP($E17,'RECAP AG'!$G$6:$CU$247,19,FALSE) -> 16.09 | J17: =VLOOKUP($E17,'RECAP AG'!$G$6:$CU$247,20,FALSE) -> 86% | K17: =VLOOKUP($E17,'RECAP AG'!$G$6:$CU$247,21,FALSE) -> 144 | L17: =VLOOKUP($E17,'RECAP AG'!$G$6:$CU$247,22,FALSE) -> 214 | M17: =VLOOKUP($E17,'RECAP AG'!$G$6:$CU$247,23,FALSE) -> 58.47 | N17: =VLOOKUP($E17,'RECAP AG'!$G$6:$CU$247,24,FALSE) -> 66% | O17: =VLOOKUP($E17,'RECAP AG'!$G$6:$CU$247,25,FALSE) -> 178 | P17: =VLOOKUP($E17,'RECAP AG'!$G$6:$CU$247,26,FALSE) -> 78% | Q17: =VLOOKUP($E17,'RECAP AG'!$G$6:$CU$247,27,FALSE) -> 78% | R17: =VLOOKUP($E17,'RECAP AG'!$G$6:$CU$247,28,FALSE) -> 161
A18: 50 | B18: AUBE HAUTE MARNE | C18: 14 | D18: TROYES | E18: 410550 | F18: BAR SUR AUBE | G18: =VLOOKUP($E18,'RECAP AG'!$G$6:$CU$247,3,FALSE) -> 5.3 | H18: =VLOOKUP($E18,'RECAP AG'!$G$6:$CU$247,18,FALSE) -> 64.2 | I18: =VLOOKUP($E18,'RECAP AG'!$G$6:$CU$247,19,FALSE) -> 12.14 | J18: =VLOOKUP($E18,'RECAP AG'!$G$6:$CU$247,20,FALSE) -> 90% | K18: =VLOOKUP($E18,'RECAP AG'!$G$6:$CU$247,21,FALSE) -> 166 | L18: =VLOOKUP($E18,'RECAP AG'!$G$6:$CU$247,22,FALSE) -> 304 | M18: =VLOOKUP($E18,'RECAP AG'!$G$6:$CU$247,23,FALSE) -> 57.47 | N18: =VLOOKUP($E18,'RECAP AG'!$G$6:$CU$247,24,FALSE) -> 67% | O18: =VLOOKUP($E18,'RECAP AG'!$G$6:$CU$247,25,FALSE) -> 183 | P18: =VLOOKUP($E18,'RECAP AG'!$G$6:$CU$247,26,FALSE) -> 80% | Q18: =VLOOKUP($E18,'RECAP AG'!$G$6:$CU$247,27,FALSE) -> 80% | R18: =VLOOKUP($E18,'RECAP AG'!$G$6:$CU$247,28,FALSE) -> 178
A19: 50 | B19: AUBE HAUTE MARNE | C19: 14 | D19: TROYES | E19: 510556 | F19: BAR SUR SEINE | G19: =VLOOKUP($E19,'RECAP AG'!$G$6:$CU$247,3,FALSE) -> 2.7 | H19: =VLOOKUP($E19,'RECAP AG'!$G$6:$CU$247,18,FALSE) -> 16.5 | I19: =VLOOKUP($E19,'RECAP AG'!$G$6:$CU$247,19,FALSE) -> 6.18 | J19: =VLOOKUP($E19,'RECAP AG'!$G$6:$CU$247,20,FALSE) -> 95% | K19: =VLOOKUP($E19,'RECAP AG'!$G$6:$CU$247,21,FALSE) -> 190 | L19: =VLOOKUP($E19,'RECAP AG'!$G$6:$CU$247,22,FALSE) -> 123 | M19: =VLOOKUP($E19,'RECAP AG'!$G$6:$CU$247,23,FALSE) -> 46.07 | N19: =VLOOKUP($E19,'RECAP AG'!$G$6:$CU$247,24,FALSE) -> 73% | O19: =VLOOKUP($E19,'RECAP AG'!$G$6:$CU$247,25,FALSE) -> 228 | P19: =VLOOKUP($E19,'RECAP AG'!$G$6:$CU$247,26,FALSE) -> 86% | Q19: =VLOOKUP($E19,'RECAP AG'!$G$6:$CU$247,27,FALSE) -> 86% | R19: =VLOOKUP($E19,'RECAP AG'!$G$6:$CU$247,28,FALSE) -> 209
A20: 50 | B20: AUBE HAUTE MARNE | C20: 14 | D20: TROYES | E20: 510570 | F20: NOGENT SUR SEINE | G20: =VLOOKUP($E20,'RECAP AG'!$G$6:$CU$247,3,FALSE) -> 3.9 | H20: =VLOOKUP($E20,'RECAP AG'!$G$6:$CU$247,18,FALSE) -> 79.9 | I20: =VLOOKUP($E20,'RECAP AG'!$G$6:$CU$247,19,FALSE) -> 20.33 | J20: =VLOOKUP($E20,'RECAP AG'!$G$6:$CU$247,20,FALSE) -> 83% | K20: =VLOOKUP($E20,'RECAP AG'!$G$6:$CU$247,21,FALSE) -> 113 | L20: =VLOOKUP($E20,'RECAP AG'!$G$6:$CU$247,22,FALSE) -> 261 | M20: =VLOOKUP($E20,'RECAP AG'!$G$6:$CU$247,23,FALSE) -> 66.41 | N20: =VLOOKUP($E20,'RECAP AG'!$G$6:$CU$247,24,FALSE) -> 61% | O20: =VLOOKUP($E20,'RECAP AG'!$G$6:$CU$247,25,FALSE) -> 130 | P20: =VLOOKUP($E20,'RECAP AG'!$G$6:$CU$247,26,FALSE) -> 74% | Q20: =VLOOKUP($E20,'RECAP AG'!$G$6:$CU$247,27,FALSE) -> 74% | R20: =VLOOKUP($E20,'RECAP AG'!$G$6:$CU$247,28,FALSE) -> 124
A21: 50 | B21: AUBE HAUTE MARNE | C21: 14 | D21: TROYES | E21: 410571 | F21: ROMILLY SUR SEINE | G21: =VLOOKUP($E21,'RECAP AG'!$G$6:$CU$247,3,FALSE) -> 4.4 | H21: =VLOOKUP($E21,'RECAP AG'!$G$6:$CU$247,18,FALSE) -> -11.9 | I21: =VLOOKUP($E21,'RECAP AG'!$G$6:$CU$247,19,FALSE) -> -2.71 | J21: =VLOOKUP($E21,'RECAP AG'!$G$6:$CU$247,20,FALSE) -> 102% | K21: =VLOOKUP($E21,'RECAP AG'!$G$6:$CU$247,21,FALSE) -> 221 | L21: =VLOOKUP($E21,'RECAP AG'!$G$6:$CU$247,22,FALSE) -> 296 | M21: =VLOOKUP($E21,'RECAP AG'!$G$6:$CU$247,23,FALSE) -> 67.43 | N21: =VLOOKUP($E21,'RECAP AG'!$G$6:$CU$247,24,FALSE) -> 61% | O21: =VLOOKUP($E21,'RECAP AG'!$G$6:$CU$247,25,FALSE) -> 127 | P21: =VLOOKUP($E21,'RECAP AG'!$G$6:$CU$247,26,FALSE) -> 86% | Q21: =VLOOKUP($E21,'RECAP AG'!$G$6:$CU$247,27,FALSE) -> 86% | R21: =VLOOKUP($E21,'RECAP AG'!$G$6:$CU$247,28,FALSE) -> 207
A22: 50 | B22: AUBE HAUTE MARNE | C22: 14 | D22: TROYES | E22: 510520 | F22: SAINT ANDRE LES VERGERS | G22: =VLOOKUP($E22,'RECAP AG'!$G$6:$CU$247,3,FALSE) -> 3.1 | H22: =VLOOKUP($E22,'RECAP AG'!$G$6:$CU$247,18,FALSE) -> -20.0 | I22: =VLOOKUP($E22,'RECAP AG'!$G$6:$CU$247,19,FALSE) -> -6.37 | J22: =VLOOKUP($E22,'RECAP AG'!$G$6:$CU$247,20,FALSE) -> 105% | K22: =VLOOKUP($E22,'RECAP AG'!$G$6:$CU$247,21,FALSE) -> 228 | L22: =VLOOKUP($E22,'RECAP AG'!$G$6:$CU$247,22,FALSE) -> 246 | M22: =VLOOKUP($E22,'RECAP AG'!$G$6:$CU$247,23,FALSE) -> 78.34 | N22: =VLOOKUP($E22,'RECAP AG'!$G$6:$CU$247,24,FALSE) -> 54% | O22: =VLOOKUP($E22,'RECAP AG'!$G$6:$CU$247,25,FALSE) -> 83 | P22: =VLOOKUP($E22,'RECAP AG'!$G$6:$CU$247,26,FALSE) -> 85% | Q22: =VLOOKUP($E22,'RECAP AG'!$G$6:$CU$247,27,FALSE) -> 85% | R22: =VLOOKUP($E22,'RECAP AG'!$G$6:$CU$247,28,FALSE) -> 201
A23: 50 | B23: AUBE HAUTE MARNE | C23: 14 | D23: TROYES | E23: 410524 | F23: SAINT JULIEN LES VILLAS | G23: =VLOOKUP($E23,'RECAP AG'!$G$6:$CU$247,3,FALSE) -> 5.1 | H23: =VLOOKUP($E23,'RECAP AG'!$G$6:$CU$247,18,FALSE) -> 30.9 | I23: =VLOOKUP($E23,'RECAP AG'!$G$6:$CU$247,19,FALSE) -> 6.06 | J23: =VLOOKUP($E23,'RECAP AG'!$G$6:$CU$247,20,FALSE) -> 95% | K23: =VLOOKUP($E23,'RECAP AG'!$G$6:$CU$247,21,FALSE) -> 191 | L23: =VLOOKUP($E23,'RECAP AG'!$G$6:$CU$247,22,FALSE) -> 327 | M23: =VLOOKUP($E23,'RECAP AG'!$G$6:$CU$247,23,FALSE) -> 64.12 | N23: =VLOOKUP($E23,'RECAP AG'!$G$6:$CU$247,24,FALSE) -> 63% | O23: =VLOOKUP($E23,'RECAP AG'!$G$6:$CU$247,25,FALSE) -> 145 | P23: =VLOOKUP($E23,'RECAP AG'!$G$6:$CU$247,26,FALSE) -> 82% | Q23: =VLOOKUP($E23,'RECAP AG'!$G$6:$CU$247,27,FALSE) -> 82% | R23: =VLOOKUP($E23,'RECAP AG'!$G$6:$CU$247,28,FALSE) -> 186
A24: 50 | B24: AUBE HAUTE MARNE | C24: 14 | D24: TROYES | E24: 410521 | F24: SAINTE SAVINE | G24: =VLOOKUP($E24,'RECAP AG'!$G$6:$CU$247,3,FALSE) -> 4.2 | H24: =VLOOKUP($E24,'RECAP AG'!$G$6:$CU$247,18,FALSE) -> 2.8 | I24: =VLOOKUP($E24,'RECAP AG'!$G$6:$CU$247,19,FALSE) -> 0.67 | J24: =VLOOKUP($E24,'RECAP AG'!$G$6:$CU$247,20,FALSE) -> 99% | K24: =VLOOKUP($E24,'RECAP AG'!$G$6:$CU$247,21,FALSE) -> 214 | L24: =VLOOKUP($E24,'RECAP AG'!$G$6:$CU$247,22,FALSE) -> 253 | M24: =VLOOKUP($E24,'RECAP AG'!$G$6:$CU$247,23,FALSE) -> 60.38 | N24: =VLOOKUP($E24,'RECAP AG'!$G$6:$CU$247,24,FALSE) -> 65% | O24: =VLOOKUP($E24,'RECAP AG'!$G$6:$CU$247,25,FALSE) -> 162 | P24: =VLOOKUP($E24,'RECAP AG'!$G$6:$CU$247,26,FALSE) -> 86% | Q24: =VLOOKUP($E24,'RECAP AG'!$G$6:$CU$247,27,FALSE) -> 86% | R24: =VLOOKUP($E24,'RECAP AG'!$G$6:$CU$247,28,FALSE) -> 205
A25: 50 | B25: AUBE HAUTE MARNE | C25: 14 | D25: TROYES | E25: 510513 | F25: SAINT PARRES AUX TERTRES | G25: =VLOOKUP($E25,'RECAP AG'!$G$6:$CU$247,3,FALSE) -> 2.9 | H25: =VLOOKUP($E25,'RECAP AG'!$G$6:$CU$247,18,FALSE) -> 54.9 | I25: =VLOOKUP($E25,'RECAP AG'!$G$6:$CU$247,19,FALSE) -> 19.26 | J25: =VLOOKUP($E25,'RECAP AG'!$G$6:$CU$247,20,FALSE) -> 84% | K25: =VLOOKUP($E25,'RECAP AG'!$G$6:$CU$247,21,FALSE) -> 121 | L25: =VLOOKUP($E25,'RECAP AG'!$G$6:$CU$247,22,FALSE) -> 254 | M25: =VLOOKUP($E25,'RECAP AG'!$G$6:$CU$247,23,FALSE) -> 89.12 | N25: =VLOOKUP($E25,'RECAP AG'!$G$6:$CU$247,24,FALSE) -> 48% | O25: =VLOOKUP($E25,'RECAP AG'!$G$6:$CU$247,25,FALSE) -> 47 | P25: =VLOOKUP($E25,'RECAP AG'!$G$6:$CU$247,26,FALSE) -> 70% | Q25: =VLOOKUP($E25,'RECAP AG'!$G$6:$CU$247,27,FALSE) -> 70% | R25: =VLOOKUP($E25,'RECAP AG'!$G$6:$CU$247,28,FALSE) -> 88
A26: 50 | B26: AUBE HAUTE MARNE | C26: 14 | D26: TROYES | E26: 410510 | F26: TROYES GAMBETTA | G26: =VLOOKUP($E26,'RECAP AG'!$G$6:$CU$247,3,FALSE) -> 8.6 | H26: =VLOOKUP($E26,'RECAP AG'!$G$6:$CU$247,18,FALSE) -> 134.0 | I26: =VLOOKUP($E26,'RECAP AG'!$G$6:$CU$247,19,FALSE) -> 15.58 | J26: =VLOOKUP($E26,'RECAP AG'!$G$6:$CU$247,20,FALSE) -> 87% | K26: =VLOOKUP($E26,'RECAP AG'!$G$6:$CU$247,21,FALSE) -> 149 | L26: =VLOOKUP($E26,'RECAP AG'!$G$6:$CU$247,22,FALSE) -> 582 | M26: =VLOOKUP($E26,'RECAP AG'!$G$6:$CU$247,23,FALSE) -> 67.67 | N26: =VLOOKUP($E26,'RECAP AG'!$G$6:$CU$247,24,FALSE) -> 61% | O26: =VLOOKUP($E26,'RECAP AG'!$G$6:$CU$247,25,FALSE) -> 126 | P26: =VLOOKUP($E26,'RECAP AG'!$G$6:$CU$247,26,FALSE) -> 76% | Q26: =VLOOKUP($E26,'RECAP AG'!$G$6:$CU$247,27,FALSE) -> 76% | R26: =VLOOKUP($E26,'RECAP AG'!$G$6:$CU$247,28,FALSE) -> 142
A27: 50 | B27: AUBE HAUTE MARNE | C27: 14 | D27: TROYES | E27: 410512 | F27: TROYES ZOLA | G27: =VLOOKUP($E27,'RECAP AG'!$G$6:$CU$247,3,FALSE) -> 5.6 | H27: =VLOOKUP($E27,'RECAP AG'!$G$6:$CU$247,18,FALSE) -> -20.7 | I27: =VLOOKUP($E27,'RECAP AG'!$G$6:$CU$247,19,FALSE) -> -3.68 | J27: =VLOOKUP($E27,'RECAP AG'!$G$6:$CU$247,20,FALSE) -> 103% | K27: =VLOOKUP($E27,'RECAP AG'!$G$6:$CU$247,21,FALSE) -> 223 | L27: =VLOOKUP($E27,'RECAP AG'!$G$6:$CU$247,22,FALSE) -> 351 | M27: =VLOOKUP($E27,'RECAP AG'!$G$6:$CU$247,23,FALSE) -> 62.46 | N27: =VLOOKUP($E27,'RECAP AG'!$G$6:$CU$247,24,FALSE) -> 64% | O27: =VLOOKUP($E27,'RECAP AG'!$G$6:$CU$247,25,FALSE) -> 150 | P27: =VLOOKUP($E27,'RECAP AG'!$G$6:$CU$247,26,FALSE) -> 87% | Q27: =VLOOKUP($E27,'RECAP AG'!$G$6:$CU$247,27,FALSE) -> 87% | R27: =VLOOKUP($E27,'RECAP AG'!$G$6:$CU$247,28,FALSE) -> 217
A28: 262 | B28: BAS RHIN | C28: 5060 | D28: HAGUENAU | E28: 4057 | F28: BISCHWILLER | G28: =VLOOKUP($E28,'RECAP AG'!$G$6:$CU$247,3,FALSE) -> 6.7 | H28: =VLOOKUP($E28,'RECAP AG'!$G$6:$CU$247,18,FALSE) -> 264.2 | I28: =VLOOKUP($E28,'RECAP AG'!$G$6:$CU$247,19,FALSE) -> 39.49 | J28: =VLOOKUP($E28,'RECAP AG'!$G$6:$CU$247,20,FALSE) -> 67% | K28: =VLOOKUP($E28,'RECAP AG'!$G$6:$CU$247,21,FALSE) -> 30 | L28: =VLOOKUP($E28,'RECAP AG'!$G$6:$CU$247,22,FALSE) -> 371 | M28: =VLOOKUP($E28,'RECAP AG'!$G$6:$CU$247,23,FALSE) -> 55.46 | N28: =VLOOKUP($E28,'RECAP AG'!$G$6:$CU$247,24,FALSE) -> 68% | O28: =VLOOKUP($E28,'RECAP AG'!$G$6:$CU$247,25,FALSE) -> 196 | P28: =VLOOKUP($E28,'RECAP AG'!$G$6:$CU$247,26,FALSE) -> 67% | Q28: =VLOOKUP($E28,'RECAP AG'!$G$6:$CU$247,27,FALSE) -> 67% | R28: =VLOOKUP($E28,'RECAP AG'!$G$6:$CU$247,28,FALSE) -> 67
A29: 262 | B29: BAS RHIN | C29: 5060 | D29: HAGUENAU | E29: 4082 | F29: BOUXWILLER | G29: =VLOOKUP($E29,'RECAP AG'!$G$6:$CU$247,3,FALSE) -> 2.5 | H29: =VLOOKUP($E29,'RECAP AG'!$G$6:$CU$247,18,FALSE) -> 23.7 | I29: =VLOOKUP($E29,'RECAP AG'!$G$6:$CU$247,19,FALSE) -> 9.60 | J29: =VLOOKUP($E29,'RECAP AG'!$G$6:$CU$247,20,FALSE) -> 92% | K29: =VLOOKUP($E29,'RECAP AG'!$G$6:$CU$247,21,FALSE) -> 178 | L29: =VLOOKUP($E29,'RECAP AG'!$G$6:$CU$247,22,FALSE) -> 127 | M29: =VLOOKUP($E29,'RECAP AG'!$G$6:$CU$247,23,FALSE) -> 51.42 | N29: =VLOOKUP($E29,'RECAP AG'!$G$6:$CU$247,24,FALSE) -> 70% | O29: =VLOOKUP($E29,'RECAP AG'!$G$6:$CU$247,25,FALSE) -> 211 | P29: =VLOOKUP($E29,'RECAP AG'!$G$6:$CU$247,26,FALSE) -> 83% | Q29: =VLOOKUP($E29,'RECAP AG'!$G$6:$CU$247,27,FALSE) -> 83% | R29: =VLOOKUP($E29,'RECAP AG'!$G$6:$CU$247,28,FALSE) -> 192
A30: 262 | B30: BAS RHIN | C30: 5060 | D30: HAGUENAU | E30: 4030 | F30: BRUMATH | G30: =VLOOKUP($E30,'RECAP AG'!$G$6:$CU$247,3,FALSE) -> 3.8 | H30: =VLOOKUP($E30,'RECAP AG'!$G$6:$CU$247,18,FALSE) -> 138.3 | I30: =VLOOKUP($E30,'RECAP AG'!$G$6:$CU$247,19,FALSE) -> 36.30 | J30: =VLOOKUP($E30,'RECAP AG'!$G$6:$CU$247,20,FALSE) -> 70% | K30: =VLOOKUP($E30,'RECAP AG'!$G$6:$CU$247,21,FALSE) -> 41 | L30: =VLOOKUP($E30,'RECAP AG'!$G$6:$CU$247,22,FALSE) -> 226 | M30: =VLOOKUP($E30,'RECAP AG'!$G$6:$CU$247,23,FALSE) -> 59.32 | N30: =VLOOKUP($E30,'RECAP AG'!$G$6:$CU$247,24,FALSE) -> 65% | O30: =VLOOKUP($E30,'RECAP AG'!$G$6:$CU$247,25,FALSE) -> 169 | P30: =VLOOKUP($E30,'RECAP AG'!$G$6:$CU$247,26,FALSE) -> 68% | Q30: =VLOOKUP($E30,'RECAP AG'!$G$6:$CU$247,27,FALSE) -> 68% | R30: =VLOOKUP($E30,'RECAP AG'!$G$6:$CU$247,28,FALSE) -> 72
A31: 262 | B31: BAS RHIN | C31: 5060 | D31: HAGUENAU | E31: 4060 | F31: HAGUENAU HOUBLON | G31: =VLOOKUP($E31,'RECAP AG'!$G$6:$CU$247,3,FALSE) -> 8.6 | H31: =VLOOKUP($E31,'RECAP AG'!$G$6:$CU$247,18,FALSE) -> 108.9 | I31: =VLOOKUP($E31,'RECAP AG'!$G$6:$CU$247,19,FALSE) -> 12.69 | J31: =VLOOKUP($E31,'RECAP AG'!$G$6:$CU$247,20,FALSE) -> 89% | K31: =VLOOKUP($E31,'RECAP AG'!$G$6:$CU$247,21,FALSE) -> 164 | L31: =VLOOKUP($E31,'RECAP AG'!$G$6:$CU$247,22,FALSE) -> 511 | M31: =VLOOKUP($E31,'RECAP AG'!$G$6:$CU$247,23,FALSE) -> 59.56 | N31: =VLOOKUP($E31,'RECAP AG'!$G$6:$CU$247,24,FALSE) -> 65% | O31: =VLOOKUP($E31,'RECAP AG'!$G$6:$CU$247,25,FALSE) -> 167 | P31: =VLOOKUP($E31,'RECAP AG'!$G$6:$CU$247,26,FALSE) -> 80% | Q31: =VLOOKUP($E31,'RECAP AG'!$G$6:$CU$247,27,FALSE) -> 80% | R31: =VLOOKUP($E31,'RECAP AG'!$G$6:$CU$247,28,FALSE) -> 171
A32: 262 | B32: BAS RHIN | C32: 5060 | D32: HAGUENAU | E32: 4092 | F32: HOCHFELDEN | G32: =VLOOKUP($E32,'RECAP AG'!$G$6:$CU$247,3,FALSE) -> 2.1 | H32: =VLOOKUP($E32,'RECAP AG'!$G$6:$CU$247,18,FALSE) -> 18.3 | I32: =VLOOKUP($E32,'RECAP AG'!$G$6:$CU$247,19,FALSE) -> 8.63 | J32: =VLOOKUP($E32,'RECAP AG'!$G$6:$CU$247,20,FALSE) -> 93% | K32: =VLOOKUP($E32,'RECAP AG'!$G$6:$CU$247,21,FALSE) -> 180 | L32: =VLOOKUP($E32,'RECAP AG'!$G$6:$CU$247,22,FALSE) -> 140 | M32: =VLOOKUP($E32,'RECAP AG'!$G$6:$CU$247,23,FALSE) -> 66.04 | N32: =VLOOKUP($E32,'RECAP AG'!$G$6:$CU$247,24,FALSE) -> 62% | O32: =VLOOKUP($E32,'RECAP AG'!$G$6:$CU$247,25,FALSE) -> 133 | P32: =VLOOKUP($E32,'RECAP AG'!$G$6:$CU$247,26,FALSE) -> 80% | Q32: =VLOOKUP($E32,'RECAP AG'!$G$6:$CU$247,27,FALSE) -> 80% | R32: =VLOOKUP($E32,'RECAP AG'!$G$6:$CU$247,28,FALSE) -> 176
A33: 262 | B33: BAS RHIN | C33: 5060 | D33: HAGUENAU | E33: 4041 | F33: HOERDT | G33: =VLOOKUP($E33,'RECAP AG'!$G$6:$CU$247,3,FALSE) -> 1.7 | H33: =VLOOKUP($E33,'RECAP AG'!$G$6:$CU$247,18,FALSE) -> 31.8 | I33: =VLOOKUP($E33,'RECAP AG'!$G$6:$CU$247,19,FALSE) -> 19.04 | J33: =VLOOKUP($E33,'RECAP AG'!$G$6:$CU$247,20,FALSE) -> 84% | K33: =VLOOKUP($E33,'RECAP AG'!$G$6:$CU$247,21,FALSE) -> 124 | L33: =VLOOKUP($E33,'RECAP AG'!$G$6:$CU$247,22,FALSE) -> 92 | M33: =VLOOKUP($E33,'RECAP AG'!$G$6:$CU$247,23,FALSE) -> 55.09 | N33: =VLOOKUP($E33,'RECAP AG'!$G$6:$CU$247,24,FALSE) -> 68% | O33: =VLOOKUP($E33,'RECAP AG'!$G$6:$CU$247,25,FALSE) -> 198 | P33: =VLOOKUP($E33,'RECAP AG'!$G$6:$CU$247,26,FALSE) -> 78% | Q33: =VLOOKUP($E33,'RECAP AG'!$G$6:$CU$247,27,FALSE) -> 78% | R33: =VLOOKUP($E33,'RECAP AG'!$G$6:$CU$247,28,FALSE) -> 158
A34: 262 | B34: BAS RHIN | C34: 5060 | D34: HAGUENAU | E34: 4085 | F34: INGWILLER | G34: =VLOOKUP($E34,'RECAP AG'!$G$6:$CU$247,3,FALSE) -> 3.5 | H34: =VLOOKUP($E34,'RECAP AG'!$G$6:$CU$247,18,FALSE) -> 65.1 | I34: =VLOOKUP($E34,'RECAP AG'!$G$6:$CU$247,19,FALSE) -> 18.44 | J34: =VLOOKUP($E34,'RECAP AG'!$G$6:$CU$247,20,FALSE) -> 85% | K34: =VLOOKUP($E34,'RECAP AG'!$G$6:$CU$247,21,FALSE) -> 129 | L34: =VLOOKUP($E34,'RECAP AG'!$G$6:$CU$247,22,FALSE) -> 225 | M34: =VLOOKUP($E34,'RECAP AG'!$G$6:$CU$247,23,FALSE) -> 63.74 | N34: =VLOOKUP($E34,'RECAP AG'!$G$6:$CU$247,24,FALSE) -> 63% | O34: =VLOOKUP($E34,'RECAP AG'!$G$6:$CU$247,25,FALSE) -> 146 | P34: =VLOOKUP($E34,'RECAP AG'!$G$6:$CU$247,26,FALSE) -> 76% | Q34: =VLOOKUP($E34,'RECAP AG'!$G$6:$CU$247,27,FALSE) -> 76% | R34: =VLOOKUP($E34,'RECAP AG'!$G$6:$CU$247,28,FALSE) -> 139
A35: 262 | B35: BAS RHIN | C35: 5060 | D35: HAGUENAU | E35: 4066 | F35: NIEDERBRONN LES BAINS | G35: =VLOOKUP($E35,'RECAP AG'!$G$6:$CU$247,3,FALSE) -> 5.7 | H35: =VLOOKUP($E35,'RECAP AG'!$G$6:$CU$247,18,FALSE) -> 24.4 | I35: =VLOOKUP($E35,'RECAP AG'!$G$6:$CU$247,19,FALSE) -> 4.29 | J35: =VLOOKUP($E35,'RECAP AG'!$G$6:$CU$247,20,FALSE) -> 96% | K35: =VLOOKUP($E35,'RECAP AG'!$G$6:$CU$247,21,FALSE) -> 199 | L35: =VLOOKUP($E35,'RECAP AG'!$G$6:$CU$247,22,FALSE) -> 333 | M35: =VLOOKUP($E35,'RECAP AG'!$G$6:$CU$247,23,FALSE) -> 58.52 | N35: =VLOOKUP($E35,'RECAP AG'!$G$6:$CU$247,24,FALSE) -> 66% | O35: =VLOOKUP($E35,'RECAP AG'!$G$6:$CU$247,25,FALSE) -> 177 | P35: =VLOOKUP($E35,'RECAP AG'!$G$6:$CU$247,26,FALSE) -> 84% | Q35: =VLOOKUP($E35,'RECAP AG'!$G$6:$CU$247,27,FALSE) -> 84% | R35: =VLOOKUP($E35,'RECAP AG'!$G$6:$CU$247,28,FALSE) -> 198
A36: 262 | B36: BAS RHIN | C36: 5060 | D36: HAGUENAU | E36: 4067 | F36: PFAFFENHOFFEN | G36: =VLOOKUP($E36,'RECAP AG'!$G$6:$CU$247,3,FALSE) -> 1.9 | H36: =VLOOKUP($E36,'RECAP AG'!$G$6:$CU$247,18,FALSE) -> 59.0 | I36: =VLOOKUP($E36,'RECAP AG'!$G$6:$CU$247,19,FALSE) -> 31.72 | J36: =VLOOKUP($E36,'RECAP AG'!$G$6:$CU$247,20,FALSE) -> 73% | K36: =VLOOKUP($E36,'RECAP AG'!$G$6:$CU$247,21,FALSE) -> 56 | L36: =VLOOKUP($E36,'RECAP AG'!$G$6:$CU$247,22,FALSE) -> 131 | M36: =VLOOKUP($E36,'RECAP AG'!$G$6:$CU$247,23,FALSE) -> 70.43 | N36: =VLOOKUP($E36,'RECAP AG'!$G$6:$CU$247,24,FALSE) -> 59% | O36: =VLOOKUP($E36,'RECAP AG'!$G$6:$CU$247,25,FALSE) -> 114 | P36: =VLOOKUP($E36,'RECAP AG'!$G$6:$CU$247,26,FALSE) -> 68% | Q36: =VLOOKUP($E36,'RECAP AG'!$G$6:$CU$247,27,FALSE) -> 68% | R36: =VLOOKUP($E36,'RECAP AG'!$G$6:$CU$247,28,FALSE) -> 68
A37: 262 | B37: BAS RHIN | C37: 5060 | D37: HAGUENAU | E37: 4095 | F37: SARRE UNION | G37: =VLOOKUP($E37,'RECAP AG'!$G$6:$CU$247,3,FALSE) -> 3.0 | H37: =VLOOKUP($E37,'RECAP AG'!$G$6:$CU$247,18,FALSE) -> 32.7 | I37: =VLOOKUP($E37,'RECAP AG'!$G$6:$CU$247,19,FALSE) -> 10.79 | J37: =VLOOKUP($E37,'RECAP AG'!$G$6:$CU$247,20,FALSE) -> 91% | K37: =VLOOKUP($E37,'RECAP AG'!$G$6:$CU$247,21,FALSE) -> 173 | L37: =VLOOKUP($E37,'RECAP AG'!$G$6:$CU$247,22,FALSE) -> 151 | M37: =VLOOKUP($E37,'RECAP AG'!$G$6:$CU$247,23,FALSE) -> 49.83 | N37: =VLOOKUP($E37,'RECAP AG'!$G$6:$CU$247,24,FALSE) -> 71% | O37: =VLOOKUP($E37,'RECAP AG'!$G$6:$CU$247,25,FALSE) -> 215 | P37: =VLOOKUP($E37,'RECAP AG'!$G$6:$CU$247,26,FALSE) -> 83% | Q37: =VLOOKUP($E37,'RECAP AG'!$G$6:$CU$247,27,FALSE) -> 83% | R37: =VLOOKUP($E37,'RECAP AG'!$G$6:$CU$247,28,FALSE) -> 190
A38: 262 | B38: BAS RHIN | C38: 5060 | D38: HAGUENAU | E38: 4087 | F38: SAVERNE | G38: =VLOOKUP($E38,'RECAP AG'!$G$6:$CU$247,3,FALSE) -> 5.6 | H38: =VLOOKUP($E38,'RECAP AG'!$G$6:$CU$247,18,FALSE) -> 162.5 | I38: =VLOOKUP($E38,'RECAP AG'!$G$6:$CU$247,19,FALSE) -> 29.02 | J38: =VLOOKUP($E38,'RECAP AG'!$G$6:$CU$247,20,FALSE) -> 76% | K38: =VLOOKUP($E38,'RECAP AG'!$G$6:$CU$247,21,FALSE) -> 69 | L38: =VLOOKUP($E38,'RECAP AG'!$G$6:$CU$247,22,FALSE) -> 329 | M38: =VLOOKUP($E38,'RECAP AG'!$G$6:$CU$247,23,FALSE) -> 58.75 | N38: =VLOOKUP($E38,'RECAP AG'!$G$6:$CU$247,24,FALSE) -> 66% | O38: =VLOOKUP($E38,'RECAP AG'!$G$6:$CU$247,25,FALSE) -> 175 | P38: =VLOOKUP($E38,'RECAP AG'!$G$6:$CU$247,26,FALSE) -> 72% | Q38: =VLOOKUP($E38,'RECAP AG'!$G$6:$CU$247,27,FALSE) -> 72% | R38: =VLOOKUP($E38,'RECAP AG'!$G$6:$CU$247,28,FALSE) -> 100
A39: 262 | B39: BAS RHIN | C39: 5060 | D39: HAGUENAU | E39: 4031 | F39: TRUCHTERSHEIM | G39: =VLOOKUP($E39,'RECAP AG'!$G$6:$CU$247,3,FALSE) -> 2.4 | H39: =VLOOKUP($E39,'RECAP AG'!$G$6:$CU$247,18,FALSE) -> 103.0 | I39: =VLOOKUP($E39,'RECAP AG'!$G$6:$CU$247,19,FALSE) -> 42.74 | J39: =VLOOKUP($E39,'RECAP AG'!$G$6:$CU$247,20,FALSE) -> 64% | K39: =VLOOKUP($E39,'RECAP AG'!$G$6:$CU$247,21,FALSE) -> 22 | L39: =VLOOKUP($E39,'RECAP AG'!$G$6:$CU$247,22,FALSE) -> 109 | M39: =VLOOKUP($E39,'RECAP AG'!$G$6:$CU$247,23,FALSE) -> 45.23 | N39: =VLOOKUP($E39,'RECAP AG'!$G$6:$CU$247,24,FALSE) -> 74% | O39: =VLOOKUP($E39,'RECAP AG'!$G$6:$CU$247,25,FALSE) -> 230 | P39: =VLOOKUP($E39,'RECAP AG'!$G$6:$CU$247,26,FALSE) -> 68% | Q39: =VLOOKUP($E39,'RECAP AG'!$G$6:$CU$247,27,FALSE) -> 68% | R39: =VLOOKUP($E39,'RECAP AG'!$G$6:$CU$247,28,FALSE) -> 73
A40: 262 | B40: BAS RHIN | C40: 5060 | D40: HAGUENAU | E40: 4071 | F40: WISSEMBOURG | G40: =VLOOKUP($E40,'RECAP AG'!$G$6:$CU$247,3,FALSE) -> 8.2 | H40: =VLOOKUP($E40,'RECAP AG'!$G$6:$CU$247,18,FALSE) -> 194.3 | I40: =VLOOKUP($E40,'RECAP AG'!$G$6:$CU$247,19,FALSE) -> 23.70 | J40: =VLOOKUP($E40,'RECAP AG'!$G$6:$CU$247,20,FALSE) -> 80% | K40: =VLOOKUP($E40,'RECAP AG'!$G$6:$CU$247,21,FALSE) -> 94 | L40: =VLOOKUP($E40,'RECAP AG'!$G$6:$CU$247,22,FALSE) -> 590 | M40: =VLOOKUP($E40,'RECAP AG'!$G$6:$CU$247,23,FALSE) -> 71.95 | N40: =VLOOKUP($E40,'RECAP AG'!$G$6:$CU$247,24,FALSE) -> 58% | O40: =VLOOKUP($E40,'RECAP AG'!$G$6:$CU$247,25,FALSE) -> 110 | P40: =VLOOKUP($E40,'RECAP AG'!$G$6:$CU$247,26,FALSE) -> 71% | Q40: =VLOOKUP($E40,'RECAP AG'!$G$6:$CU$247,27,FALSE) -> 71% | R40: =VLOOKUP($E40,'RECAP AG'!$G$6:$CU$247,28,FALSE) -> 97
A41: 262 | B41: BAS RHIN | C41: 5101 | D41: SELESTAT | E41: 4113 | F41: BARR | G41: =VLOOKUP($E41,'RECAP AG'!$G$6:$CU$247,3,FALSE) -> 2.9 | H41: =VLOOKUP($E41,'RECAP AG'!$G$6:$CU$247,18,FALSE) -> 118.7 | I41: =VLOOKUP($E41,'RECAP AG'!$G$6:$CU$247,19,FALSE) -> 41.22 | J41: =VLOOKUP($E41,'RECAP AG'!$G$6:$CU$247,20,FALSE) -> 65% | K41: =VLOOKUP($E41,'RECAP AG'!$G$6:$CU$247,21,FALSE) -> 25 | L41: =VLOOKUP($E41,'RECAP AG'!$G$6:$CU$247,22,FALSE) -> 212 | M41: =VLOOKUP($E41,'RECAP AG'!$G$6:$CU$247,23,FALSE) -> 73.61 | N41: =VLOOKUP($E41,'RECAP AG'!$G$6:$CU$247,24,FALSE) -> 57% | O41: =VLOOKUP($E41,'RECAP AG'!$G$6:$CU$247,25,FALSE) -> 102 | P41: =VLOOKUP($E41,'RECAP AG'!$G$6:$CU$247,26,FALSE) -> 62% | Q41: =VLOOKUP($E41,'RECAP AG'!$G$6:$CU$247,27,FALSE) -> 62% | R41: =VLOOKUP($E41,'RECAP AG'!$G$6:$CU$247,28,FALSE) -> 43
A42: 262 | B42: BAS RHIN | C42: 5101 | D42: SELESTAT | E42: 4111 | F42: BENFELD | G42: =VLOOKUP($E42,'RECAP AG'!$G$6:$CU$247,3,FALSE) -> 3.1 | H42: =VLOOKUP($E42,'RECAP AG'!$G$6:$CU$247,18,FALSE) -> 9.2 | I42: =VLOOKUP($E42,'RECAP AG'!$G$6:$CU$247,19,FALSE) -> 2.97 | J42: =VLOOKUP($E42,'RECAP AG'!$G$6:$CU$247,20,FALSE) -> 98% | K42: =VLOOKUP($E42,'RECAP AG'!$G$6:$CU$247,21,FALSE) -> 203 | L42: =VLOOKUP($E42,'RECAP AG'!$G$6:$CU$247,22,FALSE) -> 143 | M42: =VLOOKUP($E42,'RECAP AG'!$G$6:$CU$247,23,FALSE) -> 46.13 | N42: =VLOOKUP($E42,'RECAP AG'!$G$6:$CU$247,24,FALSE) -> 73% | O42: =VLOOKUP($E42,'RECAP AG'!$G$6:$CU$247,25,FALSE) -> 227 | P42: =VLOOKUP($E42,'RECAP AG'!$G$6:$CU$247,26,FALSE) -> 88% | Q42: =VLOOKUP($E42,'RECAP AG'!$G$6:$CU$247,27,FALSE) -> 88% | R42: =VLOOKUP($E42,'RECAP AG'!$G$6:$CU$247,28,FALSE) -> 220
A43: 262 | B43: BAS RHIN | C43: 5101 | D43: SELESTAT | E43: 4104 | F43: ERSTEIN | G43: =VLOOKUP($E43,'RECAP AG'!$G$6:$CU$247,3,FALSE) -> 3.9 | H43: =VLOOKUP($E43,'RECAP AG'!$G$6:$CU$247,18,FALSE) -> 189.3 | I43: =VLOOKUP($E43,'RECAP AG'!$G$6:$CU$247,19,FALSE) -> 48.79 | J43: =VLOOKUP($E43,'RECAP AG'!$G$6:$CU$247,20,FALSE) -> 59% | K43: =VLOOKUP($E43,'RECAP AG'!$G$6:$CU$247,21,FALSE) -> 14 | L43: =VLOOKUP($E43,'RECAP AG'!$G$6:$CU$247,22,FALSE) -> 294 | M43: =VLOOKUP($E43,'RECAP AG'!$G$6:$CU$247,23,FALSE) -> 75.77 | N43: =VLOOKUP($E43,'RECAP AG'!$G$6:$CU$247,24,FALSE) -> 56% | O43: =VLOOKUP($E43,'RECAP AG'!$G$6:$CU$247,25,FALSE) -> 92 | P43: =VLOOKUP($E43,'RECAP AG'!$G$6:$CU$247,26,FALSE) -> 58% | Q43: =VLOOKUP($E43,'RECAP AG'!$G$6:$CU$247,27,FALSE) -> 58% | R43: =VLOOKUP($E43,'RECAP AG'!$G$6:$CU$247,28,FALSE) -> 25
A44: 262 | B44: BAS RHIN | C44: 5101 | D44: SELESTAT | E44: 4008 | F44: FEGERSHEIM | G44: =VLOOKUP($E44,'RECAP AG'!$G$6:$CU$247,3,FALSE) -> 2.4 | H44: =VLOOKUP($E44,'RECAP AG'!$G$6:$CU$247,18,FALSE) -> 86.8 | I44: =VLOOKUP($E44,'RECAP AG'!$G$6:$CU$247,19,FALSE) -> 35.87 | J44: =VLOOKUP($E44,'RECAP AG'!$G$6:$CU$247,20,FALSE) -> 70% | K44: =VLOOKUP($E44,'RECAP AG'!$G$6:$CU$247,21,FALSE) -> 43 | L44: =VLOOKUP($E44,'RECAP AG'!$G$6:$CU$247,22,FALSE) -> 113 | M44: =VLOOKUP($E44,'RECAP AG'!$G$6:$CU$247,23,FALSE) -> 46.69 | N44: =VLOOKUP($E44,'RECAP AG'!$G$6:$CU$247,24,FALSE) -> 73% | O44: =VLOOKUP($E44,'RECAP AG'!$G$6:$CU$247,25,FALSE) -> 226 | P44: =VLOOKUP($E44,'RECAP AG'!$G$6:$CU$247,26,FALSE) -> 71% | Q44: =VLOOKUP($E44,'RECAP AG'!$G$6:$CU$247,27,FALSE) -> 71% | R44: =VLOOKUP($E44,'RECAP AG'!$G$6:$CU$247,28,FALSE) -> 92
A45: 262 | B45: BAS RHIN | C45: 5101 | D45: SELESTAT | E45: 4007 | F45: ILLKIRCH CENTRE | G45: =VLOOKUP($E45,'RECAP AG'!$G$6:$CU$247,3,FALSE) -> 6.3 | H45: =VLOOKUP($E45,'RECAP AG'!$G$6:$CU$247,18,FALSE) -> 108.3 | I45: =VLOOKUP($E45,'RECAP AG'!$G$6:$CU$247,19,FALSE) -> 17.27 | J45: =VLOOKUP($E45,'RECAP AG'!$G$6:$CU$247,20,FALSE) -> 85% | K45: =VLOOKUP($E45,'RECAP AG'!$G$6:$CU$247,21,FALSE) -> 136 | L45: =VLOOKUP($E45,'RECAP AG'!$G$6:$CU$247,22,FALSE) -> 376 | M45: =VLOOKUP($E45,'RECAP AG'!$G$6:$CU$247,23,FALSE) -> 59.97 | N45: =VLOOKUP($E45,'RECAP AG'!$G$6:$CU$247,24,FALSE) -> 65% | O45: =VLOOKUP($E45,'RECAP AG'!$G$6:$CU$247,25,FALSE) -> 163 | P45: =VLOOKUP($E45,'RECAP AG'!$G$6:$CU$247,26,FALSE) -> 77% | Q45: =VLOOKUP($E45,'RECAP AG'!$G$6:$CU$247,27,FALSE) -> 77% | R45: =VLOOKUP($E45,'RECAP AG'!$G$6:$CU$247,28,FALSE) -> 151
A46: 262 | B46: BAS RHIN | C46: 5101 | D46: SELESTAT | E46: 4015 | F46: LINGOLSHEIM | G46: =VLOOKUP($E46,'RECAP AG'!$G$6:$CU$247,3,FALSE) -> 2.6 | H46: =VLOOKUP($E46,'RECAP AG'!$G$6:$CU$247,18,FALSE) -> -31.7 | I46: =VLOOKUP($E46,'RECAP AG'!$G$6:$CU$247,19,FALSE) -> -12.29 | J46: =VLOOKUP($E46,'RECAP AG'!$G$6:$CU$247,20,FALSE) -> 110% | K46: =VLOOKUP($E46,'RECAP AG'!$G$6:$CU$247,21,FALSE) -> 235 | L46: =VLOOKUP($E46,'RECAP AG'!$G$6:$CU$247,22,FALSE) -> 190 | M46: =VLOOKUP($E46,'RECAP AG'!$G$6:$CU$247,23,FALSE) -> 73.64 | N46: =VLOOKUP($E46,'RECAP AG'!$G$6:$CU$247,24,FALSE) -> 57% | O46: =VLOOKUP($E46,'RECAP AG'!$G$6:$CU$247,25,FALSE) -> 101 | P46: =VLOOKUP($E46,'RECAP AG'!$G$6:$CU$247,26,FALSE) -> 89% | Q46: =VLOOKUP($E46,'RECAP AG'!$G$6:$CU$247,27,FALSE) -> 89% | R46: =VLOOKUP($E46,'RECAP AG'!$G$6:$CU$247,28,FALSE) -> 225
A47: 262 | B47: BAS RHIN | C47: 5101 | D47: SELESTAT | E47: 4109 | F47: MARCKOLSHEIM | G47: =VLOOKUP($E47,'RECAP AG'!$G$6:$CU$247,3,FALSE) -> 2.3 | H47: =VLOOKUP($E47,'RECAP AG'!$G$6:$CU$247,18,FALSE) -> 38.1 | I47: =VLOOKUP($E47,'RECAP AG'!$G$6:$CU$247,19,FALSE) -> 16.71 | J47: =VLOOKUP($E47,'RECAP AG'!$G$6:$CU$247,20,FALSE) -> 86% | K47: =VLOOKUP($E47,'RECAP AG'!$G$6:$CU$247,21,FALSE) -> 138 | L47: =VLOOKUP($E47,'RECAP AG'!$G$6:$CU$247,22,FALSE) -> 138 | M47: =VLOOKUP($E47,'RECAP AG'!$G$6:$CU$247,23,FALSE) -> 60.53 | N47: =VLOOKUP($E47,'RECAP AG'!$G$6:$CU$247,24,FALSE) -> 65% | O47: =VLOOKUP($E47,'RECAP AG'!$G$6:$CU$247,25,FALSE) -> 160 | P47: =VLOOKUP($E47,'RECAP AG'!$G$6:$CU$247,26,FALSE) -> 77% | Q47: =VLOOKUP($E47,'RECAP AG'!$G$6:$CU$247,27,FALSE) -> 77% | R47: =VLOOKUP($E47,'RECAP AG'!$G$6:$CU$247,28,FALSE) -> 155
A48: 262 | B48: BAS RHIN | C48: 5101 | D48: SELESTAT | E48: 4120 | F48: WASSELONNE | G48: =VLOOKUP($E48,'RECAP AG'!$G$6:$CU$247,3,FALSE) -> 2.7 | H48: =VLOOKUP($E48,'RECAP AG'!$G$6:$CU$247,18,FALSE) -> -28.3 | I48: =VLOOKUP($E48,'RECAP AG'!$G$6:$CU$247,19,FALSE) -> -10.44 | J48: =VLOOKUP($E48,'RECAP AG'!$G$6:$CU$247,20,FALSE) -> 109% | K48: =VLOOKUP($E48,'RECAP AG'!$G$6:$CU$247,21,FALSE) -> 231 | L48: =VLOOKUP($E48,'RECAP AG'!$G$6:$CU$247,22,FALSE) -> 178 | M48: =VLOOKUP($E48,'RECAP AG'!$G$6:$CU$247,23,FALSE) -> 65.68 | N48: =VLOOKUP($E48,'RECAP AG'!$G$6:$CU$247,24,FALSE) -> 62% | O48: =VLOOKUP($E48,'RECAP AG'!$G$6:$CU$247,25,FALSE) -> 136 | P48: =VLOOKUP($E48,'RECAP AG'!$G$6:$CU$247,26,FALSE) -> 90% | Q48: =VLOOKUP($E48,'RECAP AG'!$G$6:$CU$247,27,FALSE) -> 90% | R48: =VLOOKUP($E48,'RECAP AG'!$G$6:$CU$247,28,FALSE) -> 232
A49: 262 | B49: BAS RHIN | C49: 5101 | D49: SELESTAT | E49: 4116 | F49: MOLSHEIM | G49: =VLOOKUP($E49,'RECAP AG'!$G$6:$CU$247,3,FALSE) -> 3.8 | H49: =VLOOKUP($E49,'RECAP AG'!$G$6:$CU$247,18,FALSE) -> -3.1 | I49: =VLOOKUP($E49,'RECAP AG'!$G$6:$CU$247,19,FALSE) -> -0.82 | J49: =VLOOKUP($E49,'RECAP AG'!$G$6:$CU$247,20,FALSE) -> 101% | K49: =VLOOKUP($E49,'RECAP AG'!$G$6:$CU$247,21,FALSE) -> 218 | L49: =VLOOKUP($E49,'RECAP AG'!$G$6:$CU$247,22,FALSE) -> 178 | M49: =VLOOKUP($E49,'RECAP AG'!$G$6:$CU$247,23,FALSE) -> 46.97 | N49: =VLOOKUP($E49,'RECAP AG'!$G$6:$CU$247,24,FALSE) -> 73% | O49: =VLOOKUP($E49,'RECAP AG'!$G$6:$CU$247,25,FALSE) -> 224 | P49: =VLOOKUP($E49,'RECAP AG'!$G$6:$CU$247,26,FALSE) -> 89% | Q49: =VLOOKUP($E49,'RECAP AG'!$G$6:$CU$247,27,FALSE) -> 89% | R49: =VLOOKUP($E49,'RECAP AG'!$G$6:$CU$247,28,FALSE) -> 228
